Workbook

Sheet Übersicht
D1: Kreisrundenwettkampf | J1: Saison | K1: 2019/2020 | M1: 4. Kreisklasse | P1: Schützen
C3: Wettkampftag: | D3: 15.09 | E3: 06.10. | F3: 20.10. | G3: 10.11. | H3: 24.11. | I3: 08.12. | J3: Hinrunde | L3: 19.01. | M3: 02.02. | N3: 16.02. | O3: 01.03. | P3: 15.03. | Q3: 29.03. | R3: Rückrunde | T3: Serie komplett
A4: Pos. | B4: Verein / Gruppe | D4: Spahnharrenstätte | E4: Esterwegen | F4: Neubörger | G4: Lahn | H4: Spahnharrenstätte | I4: Eisten | J4: Schnitt | K4: Gesamt | L4: Neubörger | M4: =E4 -> Esterwegen | N4: Spahnharrenstätte | O4: Lahn | P4: Spahnharrenstätte | Q4: Eisten | R4: Schnitt | S4: Gesamt | T4: Schnitt | U4: Gesamt | V4: Differenz
A6: 1 | B6: ='Übersicht Gruppen'!B2 -> Eisten II | D6: ='Übersicht Gruppen'!C2 -> 937.1 | E6: ='Übersicht Gruppen'!D2 -> 935.1 | F6: ='Übersicht Gruppen'!E2 -> 939.1 | G6: ='Übersicht Gruppen'!F2 -> 937.5 | H6: ='Übersicht Gruppen'!G2 -> 936.7 | I6: ='Übersicht Gruppen'!H2 -> 935.4 | J6: ='Übersicht Gruppen'!I2 -> 936.82 | K6: =SUM(D6:I6) -> 5,620.9 | L6: ='Übersicht Gruppen'!K2 -> 935.4 | M6: ='Übersicht Gruppen'!L2 -> 932.4 | N6: ='Übersicht Gruppen'!M2 -> 937.3 | O6: ='Übersicht Gruppen'!N2 -> 936.1 | P6: ='Übersicht Gruppen'!O2 -> 944.5 | Q6: ='Übersicht Gruppen'!P2 -> 0.0 | R6: =IF(Formelhilfe!O2=0,0,'Übersicht Gruppen'!Q2) -> 937.14 | S6: =SUM(L6:Q6) -> 4,685.7 | T6: ='Übersicht Gruppen'!S2 -> 936.96 | U6: =SUM(S6+K6) -> 10,306.6
A7: 2 | B7: ='Übersicht Gruppen'!B3 -> Spahnharrenstätte III | D7: ='Übersicht Gruppen'!C3 -> 927.3 | E7: ='Übersicht Gruppen'!D3 -> 934.8 | F7: ='Übersicht Gruppen'!E3 -> 928.5 | G7: ='Übersicht Gruppen'!F3 -> 935.6 | H7: ='Übersicht Gruppen'!G3 -> 937.5 | I7: ='Übersicht Gruppen'!H3 -> 927.2 | J7: ='Übersicht Gruppen'!I3 -> 931.82 | K7: 5,590.9 | L7: ='Übersicht Gruppen'!K3 -> 921.1 | M7: ='Übersicht Gruppen'!L3 -> 928.0 | N7: ='Übersicht Gruppen'!M3 -> 935.4 | O7: ='Übersicht Gruppen'!N3 -> 934.9 | P7: ='Übersicht Gruppen'!O3 -> 938.9 | Q7: ='Übersicht Gruppen'!P3 -> 0.0 | R7: =IF(Formelhilfe!O3=0,0,'Übersicht Gruppen'!Q3) -> 931.66 | S7: 4,658.3 | T7: ='Übersicht Gruppen'!S3 -> 931.75 | U7: =SUM(S7+K7) -> 10,249.2 | V7: =(U6-U7)*-1 -> -57.4
A8: 3 | B8: ='Übersicht Gruppen'!B4 -> Spahnharrenstätte II | D8: ='Übersicht Gruppen'!C4 -> 925.1 | E8: ='Übersicht Gruppen'!D4 -> 929.2 | F8: ='Übersicht Gruppen'!E4 -> 921.6 | G8: ='Übersicht Gruppen'!F4 -> 929.7 | H8: ='Übersicht Gruppen'!G4 -> 930.9 | I8: ='Übersicht Gruppen'!H4 -> 934.5 | J8: ='Übersicht Gruppen'!I4 -> 928.50 | K8: 5,571.0 | L8: ='Übersicht Gruppen'!K4 -> 931.9 | M8: ='Übersicht Gruppen'!L4 -> 928.5 | N8: ='Übersicht Gruppen'!M4 -> 929.7 | O8: ='Übersicht Gruppen'!N4 -> 929.7 | P8: ='Übersicht Gruppen'!O4 -> 928.0 | Q8: ='Übersicht Gruppen'!P4 -> 0.0 | R8: =IF(Formelhilfe!O4=0,0,'Übersicht Gruppen'!Q4) -> 929.56 | S8: 4,647.8 | T8: ='Übersicht Gruppen'!S4 -> 928.98 | U8: 10,218.8 | V8: =(U7-U8)*-1 -> -30.4
A9: 4 | B9: ='Übersicht Gruppen'!B5 -> Neubörger II | D9: ='Übersicht Gruppen'!C5 -> 928.7 | E9: ='Übersicht Gruppen'!D5 -> 918.8 | F9: ='Übersicht Gruppen'!E5 -> 927.9 | G9: ='Übersicht Gruppen'!F5 -> 928.0 | H9: ='Übersicht Gruppen'!G5 -> 935.3 | I9: ='Übersicht Gruppen'!H5 -> 918.9 | J9: ='Übersicht Gruppen'!I5 -> 926.27 | K9: 5,557.6 | L9: ='Übersicht Gruppen'!K5 -> 921.3 | M9: ='Übersicht Gruppen'!L5 -> 921.3 | N9: ='Übersicht Gruppen'!M5 -> 924.4 | O9: ='Übersicht Gruppen'!N5 -> 920.5 | P9: ='Übersicht Gruppen'!O5 -> 927.6 | Q9: ='Übersicht Gruppen'!P5 -> 0.0 | R9: =IF(Formelhilfe!O5=0,0,'Übersicht Gruppen'!Q5) -> 923.02 | S9: 4,615.1 | T9: ='Übersicht Gruppen'!S5 -> 924.79 | U9: 10,172.7 | V9: -46.1
A10: 5 | B10: ='Übersicht Gruppen'!B6 -> Esterwegen II | D10: ='Übersicht Gruppen'!C6 -> 916.1 | E10: ='Übersicht Gruppen'!D6 -> 919.0 | F10: ='Übersicht Gruppen'!E6 -> 931.5 | G10: ='Übersicht Gruppen'!F6 -> 921.7 | H10: ='Übersicht Gruppen'!G6 -> 925.4 | I10: ='Übersicht Gruppen'!H6 -> 925.8 | J10: ='Übersicht Gruppen'!I6 -> 923.25 | K10: 5,539.5 | L10: ='Übersicht Gruppen'!K6 -> 926.1 | M10: ='Übersicht Gruppen'!L6 -> 926.9 | N10: ='Übersicht Gruppen'!M6 -> 926.7 | O10: ='Übersicht Gruppen'!N6 -> 920.3 | P10: ='Übersicht Gruppen'!O6 -> 923.6 | Q10: ='Übersicht Gruppen'!P6 -> 0.0 | R10: =IF(Formelhilfe!O6=0,0,'Übersicht Gruppen'!Q6) -> 924.72 | S10: 4,623.6 | T10: ='Übersicht Gruppen'!S6 -> 923.92 | U10: 10,163.1 | V10: -9.6
A11: 6 | B11: ='Übersicht Gruppen'!B7 -> Lahn V | D11: ='Übersicht Gruppen'!C7 -> 911.3 | E11: ='Übersicht Gruppen'!D7 -> 910.4 | F11: ='Übersicht Gruppen'!E7 -> 903.7 | G11: ='Übersicht Gruppen'!F7 -> 915.3 | H11: ='Übersicht Gruppen'!G7 -> 925.3 | I11: ='Übersicht Gruppen'!H7 -> 910.4 | J11: ='Übersicht Gruppen'!I7 -> 912.73 | K11: 5,476.4 | L11: ='Übersicht Gruppen'!K7 -> 915.7 | M11: ='Übersicht Gruppen'!L7 -> 915.2 | N11: ='Übersicht Gruppen'!M7 -> 920.4 | O11: ='Übersicht Gruppen'!N7 -> 911.9 | P11: ='Übersicht Gruppen'!O7 -> 608.1 | Q11: ='Übersicht Gruppen'!P7 -> 0.0 | R11: =IF(Formelhilfe!O7=0,0,'Übersicht Gruppen'!Q7) -> 854.26 | S11: 4,271.3 | T11: ='Übersicht Gruppen'!S7 -> 886.15 | U11: 9,747.7 | V11: -415.4
C13: Schnitt: | D13: =AVERAGE(D6:D11) -> 924.3 | E13: =AVERAGE(E6:E11) -> 924.6 | F13: 925.4 | G13: 928.0 | H13: 931.9 | I13: 925.4 | J13: 926.56 | K13: =SUM(K6:K11)/6 -> 5,559.4 | L13: 925.3 | M13: 925.4 | N13: 929.0 | O13: 925.6 | P13: 878.5 | Q13: 0.0 | R13: 916.73 | S13: 4583.6 | T13: 922.09 | U13: 10,143.0
J15: Hinrunde | R15: Rückrunde | T15: Serie komplett | V15: Differenz
A16: Pos. | B16: Vorname Name | C16: Verein / Gruppe | J16: Schnitt | K16: Gesamt | R16: Schnitt | S16: Gesamt | T16: Schnitt | U16: Gesamt
A17: 1 | B17: ='Übersicht Schützen'!A2 -> Günther Baalmann | C17: ='Übersicht Schützen'!B2 -> Eisten II | D17: ='Übersicht Schützen'!C2 -> 315.3 | E17: ='Übersicht Schützen'!D2 -> 312.1 | F17: ='Übersicht Schützen'!E2 -> 316.7 | G17: ='Übersicht Schützen'!F2 -> 313.7 | H17: ='Übersicht Schützen'!G2 -> 312.8 | I17: ='Übersicht Schützen'!H2 -> 311.4 | J17: ='Übersicht Schützen'!I2 -> 313.67 | K17: =SUM(D17:I17) -> 1,882.0 | L17: ='Übersicht Schützen'!L2 -> 315.4 | M17: ='Übersicht Schützen'!M2 -> 313.8 | N17: ='Übersicht Schützen'!N2 -> 314.5 | O17: ='Übersicht Schützen'!O2 -> 311.3 | P17: ='Übersicht Schützen'!P2 -> 315.7 | Q17: ='Übersicht Schützen'!Q2 -> 0.0 | R17: =IF(Formelhilfe!O9=0,0,'Übersicht Schützen'!R2) -> 314.14 | S17: =SUM(L17:Q17) -> 1,570.7 | T17: ='Übersicht Schützen'!U2 -> 313.88 | U17: =SUM(K17+S17) -> 3,452.7
A18: 2 | B18: ='Übersicht Schützen'!A3 -> Achim Will | C18: ='Übersicht Schützen'!B3 -> Spahnharrenstätte III | D18: ='Übersicht Schützen'!C3 -> 307.9 | E18: ='Übersicht Schützen'!D3 -> 313.7 | F18: ='Übersicht Schützen'!E3 -> 310.4 | G18: ='Übersicht Schützen'!F3 -> 313.7 | H18: ='Übersicht Schützen'!G3 -> 315.1 | I18: ='Übersicht Schützen'!H3 -> 308.4 | J18: ='Übersicht Schützen'!I3 -> 311.53 | K18: =SUM(D18:I18) -> 1,869.2 | L18: ='Übersicht Schützen'!L3 -> 314.4 | M18: ='Übersicht Schützen'!M3 -> 308.4 | N18: ='Übersicht Schützen'!N3 -> 312.7 | O18: ='Übersicht Schützen'!O3 -> 315.3 | P18: ='Übersicht Schützen'!P3 -> 316.3 | Q18: ='Übersicht Schützen'!Q3 -> 0.0 | R18: =IF(Formelhilfe!O10=0,0,'Übersicht Schützen'!R3) -> 313.42 | S18: =SUM(L18:Q18) -> 1,567.1 | T18: ='Übersicht Schützen'!U3 -> 312.39 | U18: =SUM(K18+S18) -> 3,436.3 | V18: =(U17-U18)*-1 -> -16.4
A19: 3 | B19: ='Übersicht Schützen'!A4 -> Martin Hackmann | C19: ='Übersicht Schützen'!B4 -> Eisten II | D19: ='Übersicht Schützen'!C4 -> 313.5 | E19: ='Übersicht Schützen'!D4 -> 307.5 | F19: ='Übersicht Schützen'!E4 -> 311.4 | G19: ='Übersicht Schützen'!F4 -> 313.3 | H19: ='Übersicht Schützen'!G4 -> 313.0 | I19: ='Übersicht Schützen'!H4 -> 311.1 | J19: ='Übersicht Schützen'!I4 -> 311.63 | K19: =SUM(D19:I19) -> 1,869.8 | L19: ='Übersicht Schützen'!L4 -> 307.4 | M19: ='Übersicht Schützen'!M4 -> 308.9 | N19: ='Übersicht Schützen'!N4 -> 311.0 | O19: ='Übersicht Schützen'!O4 -> 310.6 | P19: ='Übersicht Schützen'!P4 -> 315.5 | Q19: ='Übersicht Schützen'!Q4 -> 0.0 | R19: =IF(Formelhilfe!O11=0,0,'Übersicht Schützen'!R4) -> 310.68 | S19: 1,553.4 | T19: ='Übersicht Schützen'!U4 -> 311.20 | U19: 3,423.2 | V19: =(U18-U19)*-1 -> -13.1
A20: 4 | B20: ='Übersicht Schützen'!A5 -> Martin Poker | C20: ='Übersicht Schützen'!B5 -> Eisten II | D20: ='Übersicht Schützen'!C5 -> 307.3 | E20: ='Übersicht Schützen'!D5 -> 313.4 | F20: ='Übersicht Schützen'!E5 -> 311.0 | G20: ='Übersicht Schützen'!F5 -> 310.5 | H20: ='Übersicht Schützen'!G5 -> 310.9 | I20: ='Übersicht Schützen'!H5 -> 311.8 | J20: ='Übersicht Schützen'!I5 -> 310.82 | K20: 1,864.9 | L20: ='Übersicht Schützen'!L5 -> 312.6 | M20: ='Übersicht Schützen'!M5 -> 305.4 | N20: ='Übersicht Schützen'!N5 -> 311.8 | O20: ='Übersicht Schützen'!O5 -> 314.2 | P20: ='Übersicht Schützen'!P5 -> 313.3 | Q20: ='Übersicht Schützen'!Q5 -> 0.0 | R20: =IF(Formelhilfe!O12=0,0,'Übersicht Schützen'!R5) -> 311.46 | S20: 1,557.3 | T20: ='Übersicht Schützen'!U5 -> 311.11 | U20: 3,422.2 | V20: -1.0
A21: 5 | B21: ='Übersicht Schützen'!A6 -> Dieter Hanekamp | C21: ='Übersicht Schützen'!B6 -> Spahnharrenstätte II | D21: ='Übersicht Schützen'!C6 -> 311.2 | E21: ='Übersicht Schützen'!D6 -> 308.7 | F21: ='Übersicht Schützen'!E6 -> 309.8 | G21: ='Übersicht Schützen'!F6 -> 310.7 | H21: ='Übersicht Schützen'!G6 -> 312.0 | I21: ='Übersicht Schützen'!H6 -> 313.7 | J21: ='Übersicht Schützen'!I6 -> 311.02 | K21: 1,866.1 | L21: ='Übersicht Schützen'!L6 -> 312.5 | M21: ='Übersicht Schützen'!M6 -> 311.5 | N21: ='Übersicht Schützen'!N6 -> 310.7 | O21: ='Übersicht Schützen'!O6 -> 309.5 | P21: ='Übersicht Schützen'!P6 -> 311.3 | Q21: ='Übersicht Schützen'!Q6 -> 0.0 | R21: =IF(Formelhilfe!O13=0,0,'Übersicht Schützen'!R6) -> 311.10 | S21: 1,555.5 | T21: ='Übersicht Schützen'!U6 -> 311.05 | U21: 3,421.6 | V21: -0.6
A22: 6 | B22: ='Übersicht Schützen'!A7 -> Alois Schmitz | C22: ='Übersicht Schützen'!B7 -> Neubörger II | D22: ='Übersicht Schützen'!C7 -> 311.0 | E22: ='Übersicht Schützen'!D7 -> 310.0 | F22: ='Übersicht Schützen'!E7 -> 308.7 | G22: ='Übersicht Schützen'!F7 -> 311.8 | H22: ='Übersicht Schützen'!G7 -> 313.2 | I22: ='Übersicht Schützen'!H7 -> 305.6 | J22: ='Übersicht Schützen'!I7 -> 310.05 | K22: 1,860.3 | L22: ='Übersicht Schützen'!L7 -> 307.5 | M22: ='Übersicht Schützen'!M7 -> 304.9 | N22: ='Übersicht Schützen'!N7 -> 310.5 | O22: ='Übersicht Schützen'!O7 -> 306.4 | P22: ='Übersicht Schützen'!P7 -> 311.8 | Q22: ='Übersicht Schützen'!Q7 -> 0.0 | R22: =IF(Formelhilfe!O14=0,0,'Übersicht Schützen'!R7) -> 308.22 | S22: 1,541.1 | T22: ='Übersicht Schützen'!U7 -> 309.22 | U22: 3,401.4 | V22: -20.2
A23: 7 | B23: ='Übersicht Schützen'!A8 -> Heiner Kröger | C23: ='Übersicht Schützen'!B8 -> Spahnharrenstätte II | D23: ='Übersicht Schützen'!C8 -> 307.9 | E23: ='Übersicht Schützen'!D8 -> 308.1 | F23: ='Übersicht Schützen'!E8 -> 306.9 | G23: ='Übersicht Schützen'!F8 -> 310.2 | H23: ='Übersicht Schützen'!G8 -> 306.9 | I23: ='Übersicht Schützen'!H8 -> 309.3 | J23: ='Übersicht Schützen'!I8 -> 308.22 | K23: 1,849.3 | L23: ='Übersicht Schützen'!L8 -> 311.6 | M23: ='Übersicht Schützen'!M8 -> 307.5 | N23: ='Übersicht Schützen'!N8 -> 308.9 | O23: ='Übersicht Schützen'!O8 -> 311.7 | P23: ='Übersicht Schützen'!P8 -> 311.7 | Q23: ='Übersicht Schützen'!Q8 -> 0.0 | R23: =IF(Formelhilfe!O15=0,0,'Übersicht Schützen'!R8) -> 310.28 | S23: 1,551.4 | T23: ='Übersicht Schützen'!U8 -> 309.15 | U23: 3,400.7 | V23: -0.7
A24: 8 | B24: ='Übersicht Schützen'!A9 -> Meik Sieger | C24: ='Übersicht Schützen'!B9 -> Esterwegen II | D24: ='Übersicht Schützen'!C9 -> 307.8 | E24: ='Übersicht Schützen'!D9 -> 305.8 | F24: ='Übersicht Schützen'!E9 -> 309.2 | G24: ='Übersicht Schützen'!F9 -> 312.3 | H24: ='Übersicht Schützen'!G9 -> 311.0 | I24: ='Übersicht Schützen'!H9 -> 306.5 | J24: ='Übersicht Schützen'!I9 -> 308.77 | K24: 1,852.6 | L24: ='Übersicht Schützen'!L9 -> 311.1 | M24: ='Übersicht Schützen'!M9 -> 306.6 | N24: ='Übersicht Schützen'!N9 -> 311.7 | O24: ='Übersicht Schützen'!O9 -> 306.8 | P24: ='Übersicht Schützen'!P9 -> 310.1 | Q24: ='Übersicht Schützen'!Q9 -> 0.0 | R24: =IF(Formelhilfe!O16=0,0,'Übersicht Schützen'!R9) -> 309.26 | S24: 1,546.3 | T24: ='Übersicht Schützen'!U9 -> 308.99 | U24: 3,398.9 | V24: -1.8
A25: 9 | B25: ='Übersicht Schützen'!A10 -> Ludger Hermes | C25: ='Übersicht Schützen'!B10 -> Neubörger II | D25: ='Übersicht Schützen'!C10 -> 311.9 | E25: ='Übersicht Schützen'!D10 -> 309.3 | F25: ='Übersicht Schützen'!E10 -> 312.9 | G25: ='Übersicht Schützen'!F10 -> 308.2 | H25: ='Übersicht Schützen'!G10 -> 309.9 | I25: ='Übersicht Schützen'!H10 -> 301.6 | J25: ='Übersicht Schützen'!I10 -> 308.97 | K25: 1,853.8 | L25: ='Übersicht Schützen'!L10 -> 309.1 | M25: ='Übersicht Schützen'!M10 -> 310.6 | N25: ='Übersicht Schützen'!N10 -> 304.5 | O25: ='Übersicht Schützen'!O10 -> 305.8 | P25: ='Übersicht Schützen'!P10 -> 310.9 | Q25: ='Übersicht Schützen'!Q10 -> 0.0 | R25: =IF(Formelhilfe!O17=0,0,'Übersicht Schützen'!R10) -> 308.18 | S25: 1,540.9 | T25: ='Übersicht Schützen'!U10 -> 308.61 | U25: 3,394.7 | V25: -4.2
A26: 10 | B26: ='Übersicht Schützen'!A11 -> Johannes Hülsmann | C26: ='Übersicht Schützen'!B11 -> Spahnharrenstätte II | D26: ='Übersicht Schützen'!C11 -> 305.6 | E26: ='Übersicht Schützen'!D11 -> 312.4 | F26: ='Übersicht Schützen'!E11 -> 303.4 | G26: ='Übersicht Schützen'!F11 -> 308.8 | H26: ='Übersicht Schützen'!G11 -> 312.0 | I26: ='Übersicht Schützen'!H11 -> 311.5 | J26: ='Übersicht Schützen'!I11 -> 308.95 | K26: 1,853.7 | L26: ='Übersicht Schützen'!L11 -> 307.8 | M26: ='Übersicht Schützen'!M11 -> 309.5 | N26: ='Übersicht Schützen'!N11 -> 310.1 | O26: ='Übersicht Schützen'!O11 -> 308.5 | P26: ='Übersicht Schützen'!P11 -> 305.0 | Q26: ='Übersicht Schützen'!Q11 -> 0.0 | R26: =IF(Formelhilfe!O18=0,0,'Übersicht Schützen'!R11) -> 308.18 | S26: 1,540.9 | T26: ='Übersicht Schützen'!U11 -> 308.60 | U26: 3,394.6 | V26: -0.1
A27: 11 | B27: ='Übersicht Schützen'!A12 -> Dennis Lindemann | C27: ='Übersicht Schützen'!B12 -> Esterwegen II | D27: ='Übersicht Schützen'!C12 -> 302.4 | E27: ='Übersicht Schützen'!D12 -> 306.6 | F27: ='Übersicht Schützen'!E12 -> 310.3 | G27: ='Übersicht Schützen'!F12 -> 306.5 | H27: ='Übersicht Schützen'!G12 -> 311.5 | I27: ='Übersicht Schützen'!H12 -> 308.9 | J27: ='Übersicht Schützen'!I12 -> 307.70 | K27: 1,846.2 | L27: ='Übersicht Schützen'!L12 -> 310.4 | M27: ='Übersicht Schützen'!M12 -> 312.5 | N27: ='Übersicht Schützen'!N12 -> 308.2 | O27: ='Übersicht Schützen'!O12 -> 307.0 | P27: ='Übersicht Schützen'!P12 -> 306.7 | Q27: ='Übersicht Schützen'!Q12 -> 0.0 | R27: =IF(Formelhilfe!O19=0,0,'Übersicht Schützen'!R12) -> 308.96 | S27: 1,544.8 | T27: ='Übersicht Schützen'!U12 -> 308.27 | U27: 3,391.0 | V27: -3.6
A28: 12 | B28: ='Übersicht Schützen'!A13 -> Christian Grönheim | C28: ='Übersicht Schützen'!B13 -> Spahnharrenstätte III | D28: ='Übersicht Schützen'!C13 -> 310.8 | E28: ='Übersicht Schützen'!D13 -> 309.9 | F28: ='Übersicht Schützen'!E13 -> 307.7 | G28: ='Übersicht Schützen'!F13 -> 310.0 | H28: ='Übersicht Schützen'!G13 -> 309.6 | I28: ='Übersicht Schützen'!H13 -> 302.6 | J28: ='Übersicht Schützen'!I13 -> 308.43 | K28: 1,850.6 | L28: ='Übersicht Schützen'!L13 -> 303.1 | M28: ='Übersicht Schützen'!M13 -> 308.0 | N28: ='Übersicht Schützen'!N13 -> 310.0 | O28: ='Übersicht Schützen'!O13 -> 303.1 | P28: ='Übersicht Schützen'!P13 -> 311.2 | Q28: ='Übersicht Schützen'!Q13 -> 0.0 | R28: =IF(Formelhilfe!O20=0,0,'Übersicht Schützen'!R13) -> 307.08 | S28: 1,535.4 | T28: ='Übersicht Schützen'!U13 -> 307.82 | U28: 3,386.0 | V28: -5.0
A29: 13 | B29: ='Übersicht Schützen'!A14 -> Franz Ostermann | C29: ='Übersicht Schützen'!B14 -> Eisten II | D29: ='Übersicht Schützen'!C14 -> 308.3 | E29: ='Übersicht Schützen'!D14 -> 309.6 | F29: ='Übersicht Schützen'!E14 -> 306.8 | G29: ='Übersicht Schützen'!F14 -> 300.2 | H29: ='Übersicht Schützen'!G14 -> 310.3 | I29: ='Übersicht Schützen'!H14 -> 312.2 | J29: ='Übersicht Schützen'!I14 -> 307.90 | K29: 1,847.4 | L29: ='Übersicht Schützen'!L14 -> 307.4 | M29: ='Übersicht Schützen'!M14 -> 309.7 | N29: ='Übersicht Schützen'!N14 -> 308.2 | O29: ='Übersicht Schützen'!O14 -> 297.8 | P29: ='Übersicht Schützen'!P14 -> 306.5 | Q29: ='Übersicht Schützen'!Q14 -> 0.0 | R29: 306.05 | S29: 1,529.6 | T29: ='Übersicht Schützen'!U14 -> 307.00 | U29: 3,377.0 | V29: -9.0
A30: 14 | B30: ='Übersicht Schützen'!A15 -> Ludwig Langen | C30: ='Übersicht Schützen'!B15 -> Neubörger II | D30: ='Übersicht Schützen'!C15 -> 305.8 | E30: ='Übersicht Schützen'!D15 -> 299.5 | F30: ='Übersicht Schützen'!E15 -> 305.8 | G30: ='Übersicht Schützen'!F15 -> 308.0 | H30: ='Übersicht Schützen'!G15 -> 312.2 | I30: ='Übersicht Schützen'!H15 -> 307.9 | J30: ='Übersicht Schützen'!I15 -> 306.53 | K30: 1,839.2 | L30: ='Übersicht Schützen'!L15 -> 304.4 | M30: ='Übersicht Schützen'!M15 -> 305.8 | N30: ='Übersicht Schützen'!N15 -> 309.4 | O30: ='Übersicht Schützen'!O15 -> 308.3 | P30: ='Übersicht Schützen'!P15 -> 304.9 | Q30: ='Übersicht Schützen'!Q15 -> 0.0 | R30: =IF(Formelhilfe!O22=0,0,'Übersicht Schützen'!R15) -> 306.56 | S30: 1,532.8 | T30: ='Übersicht Schützen'!U15 -> 306.55 | U30: 3,372.0 | V30: -5.0
A31: 15 | B31: ='Übersicht Schützen'!A16 -> Sebastian Albers | C31: ='Übersicht Schützen'!B16 -> Spahnharrenstätte III | D31: ='Übersicht Schützen'!C16 -> 304.5 | E31: ='Übersicht Schützen'!D16 -> 303.8 | F31: ='Übersicht Schützen'!E16 -> 307.5 | G31: ='Übersicht Schützen'!F16 -> 304.7 | H31: ='Übersicht Schützen'!G16 -> 305.7 | I31: ='Übersicht Schützen'!H16 -> 307.4 | J31: ='Übersicht Schützen'!I16 -> 305.60 | K31: 1,833.6 | L31: ='Übersicht Schützen'!L16 -> 308.6 | M31: ='Übersicht Schützen'!M16 -> 307.2 | N31: ='Übersicht Schützen'!N16 -> 306.3 | O31: ='Übersicht Schützen'!O16 -> 304.8 | P31: ='Übersicht Schützen'!P16 -> 311.3 | Q31: ='Übersicht Schützen'!Q16 -> 0.0 | R31: =IF(Formelhilfe!O23=0,0,'Übersicht Schützen'!R16) -> 307.64 | S31: 1,538.2 | T31: ='Übersicht Schützen'!U16 -> 306.53 | U31: 3,371.8 | V31: -0.2
A32: 16 | B32: ='Übersicht Schützen'!A17 -> Heiko Micksch | C32: ='Übersicht Schützen'!B17 -> Spahnharrenstätte III | D32: ='Übersicht Schützen'!C17 -> 302.8 | E32: ='Übersicht Schützen'!D17 -> 302.5 | F32: ='Übersicht Schützen'!E17 -> 309.4 | G32: ='Übersicht Schützen'!F17 -> 303.6 | H32: ='Übersicht Schützen'!G17 -> 304.3 | I32: ='Übersicht Schützen'!H17 -> 306.5 | J32: ='Übersicht Schützen'!I17 -> 304.85 | K32: 1,829.1 | L32: ='Übersicht Schützen'!L17 -> 303.6 | M32: ='Übersicht Schützen'!M17 -> 305.7 | N32: ='Übersicht Schützen'!N17 -> 306.3 | O32: ='Übersicht Schützen'!O17 -> 306.9 | P32: ='Übersicht Schützen'!P17 -> 309.6 | Q32: ='Übersicht Schützen'!Q17 -> 0.0 | R32: =IF(Formelhilfe!O24=0,0,'Übersicht Schützen'!R17) -> 306.42 | S32: 1,532.1 | T32: ='Übersicht Schützen'!U17 -> 305.56 | U32: 3,361.2 | V32: -10.6
A33: 17 | B33: ='Übersicht Schützen'!A18 -> Bernd Nortmann | C33: ='Übersicht Schützen'!B18 -> Lahn V | D33: ='Übersicht Schützen'!C18 -> 307.8 | E33: ='Übersicht Schützen'!D18 -> 302.2 | F33: ='Übersicht Schützen'!E18 -> 301.5 | G33: ='Übersicht Schützen'!F18 -> 308.6 | H33: ='Übersicht Schützen'!G18 -> 309.7 | I33: ='Übersicht Schützen'!H18 -> 306.0 | J33: ='Übersicht Schützen'!I18 -> 305.97 | K33: 1,835.8 | L33: ='Übersicht Schützen'!L18 -> 304.1 | M33: ='Übersicht Schützen'!M18 -> 308.9 | N33: ='Übersicht Schützen'!N18 -> 302.7 | O33: ='Übersicht Schützen'!O18 -> 304.5 | P33: ='Übersicht Schützen'!P18 -> 303.8 | Q33: ='Übersicht Schützen'!Q18 -> 0.0 | R33: =IF(Formelhilfe!O25=0,0,'Übersicht Schützen'!R18) -> 304.80 | S33: 1,524.0 | T33: ='Übersicht Schützen'!U18 -> 305.44 | U33: 3,359.8 | V33: -1.4
A34: 18 | B34: ='Übersicht Schützen'!A19 -> Josef Langen | C34: ='Übersicht Schützen'!B19 -> Spahnharrenstätte II | D34: ='Übersicht Schützen'!C19 -> 306.0 | E34: ='Übersicht Schützen'!D19 -> 304.9 | F34: ='Übersicht Schützen'!E19 -> 304.9 | G34: ='Übersicht Schützen'!F19 -> 300.3 | H34: ='Übersicht Schützen'!G19 -> 302.2 | I34: ='Übersicht Schützen'!H19 -> 308.2 | J34: ='Übersicht Schützen'!I19 -> 304.42 | K34: 1,826.5 | L34: ='Übersicht Schützen'!L19 -> 302.9 | M34: ='Übersicht Schützen'!M19 -> 306.7 | N34: ='Übersicht Schützen'!N19 -> 305.8 | O34: ='Übersicht Schützen'!O19 -> 307.9 | P34: ='Übersicht Schützen'!P19 -> 304.9 | Q34: ='Übersicht Schützen'!Q19 -> 0.0 | R34: =IF(Formelhilfe!O26=0,0,'Übersicht Schützen'!R19) -> 305.64 | S34: 1,528.2 | T34: ='Übersicht Schützen'!U19 -> 304.97 | U34: 3,354.7 | V34: -5.1
A35: 19 | B35: ='Übersicht Schützen'!A20 -> Andreas Lindemann | C35: ='Übersicht Schützen'!B20 -> Esterwegen II | D35: ='Übersicht Schützen'!C20 -> 301.3 | E35: ='Übersicht Schützen'!D20 -> 308.0 | F35: ='Übersicht Schützen'!E20 -> 312.0 | G35: ='Übersicht Schützen'!F20 -> 301.7 | H35: ='Übersicht Schützen'!G20 -> 282.1 | I35: ='Übersicht Schützen'!H20 -> 304.9 | J35: ='Übersicht Schützen'!I20 -> 301.67 | K35: 1,810.0 | L35: ='Übersicht Schützen'!L20 -> 303.0 | M35: ='Übersicht Schützen'!M20 -> 307.8 | N35: ='Übersicht Schützen'!N20 -> 305.5 | O35: ='Übersicht Schützen'!O20 -> 302.7 | P35: ='Übersicht Schützen'!P20 -> 305.8 | Q35: ='Übersicht Schützen'!Q20 -> 0.0 | R35: =IF(Formelhilfe!O27=0,0,'Übersicht Schützen'!R20) -> 304.96 | S35: 1,524.8 | T35: ='Übersicht Schützen'!U20 -> 303.16 | U35: 3,334.8 | V35: -19.9
A36: 20 | B36: ='Übersicht Schützen'!A21 -> Rudi Fromme | C36: ='Übersicht Schützen'!B21 -> Neubörger II | D36: ='Übersicht Schützen'!C21 -> 303.4 | E36: ='Übersicht Schützen'!D21 -> 298.5 | F36: ='Übersicht Schützen'!E21 -> 306.3 | G36: ='Übersicht Schützen'!F21 -> 302.3 | H36: ='Übersicht Schützen'!G21 -> 301.4 | I36: ='Übersicht Schützen'!H21 -> 305.4 | J36: ='Übersicht Schützen'!I21 -> 302.88 | K36: 1,817.3 | L36: ='Übersicht Schützen'!L21 -> 304.7 | M36: ='Übersicht Schützen'!M21 -> 303.2 | N36: ='Übersicht Schützen'!N21 -> 300.8 | O36: ='Übersicht Schützen'!O21 -> 304.2 | P36: ='Übersicht Schützen'!P21 -> 303.8 | Q36: ='Übersicht Schützen'!Q21 -> 0.0 | R36: =IF(Formelhilfe!O28=0,0,'Übersicht Schützen'!R21) -> 303.34 | S36: 1,516.7 | T36: ='Übersicht Schützen'!U21 -> 303.09 | U36: 3,334.0 | V36: -0.8
A37: 21 | B37: ='Übersicht Schützen'!A22 -> Oliver Reinelt | C37: ='Übersicht Schützen'!B22 -> Lahn V | D37: ='Übersicht Schützen'!C22 -> 294.1 | E37: ='Übersicht Schützen'!D22 -> 299.7 | F37: ='Übersicht Schützen'!E22 -> 293.1 | G37: ='Übersicht Schützen'!F22 -> 298.5 | H37: ='Übersicht Schützen'!G22 -> 303.3 | I37: ='Übersicht Schützen'!H22 -> 294.5 | J37: ='Übersicht Schützen'!I22 -> 297.20 | K37: 1,783.2 | L37: ='Übersicht Schützen'!L22 -> 301.4 | M37: ='Übersicht Schützen'!M22 -> 304.4 | N37: ='Übersicht Schützen'!N22 -> 305.8 | O37: ='Übersicht Schützen'!O22 -> 299.0 | P37: ='Übersicht Schützen'!P22 -> 304.3 | Q37: ='Übersicht Schützen'!Q22 -> 0.0 | R37: =IF(Formelhilfe!O29=0,0,'Übersicht Schützen'!R22) -> 302.98 | S37: 1,514.9 | T37: ='Übersicht Schützen'!U22 -> 299.83 | U37: 3,298.1 | V37: -35.9
A38: 22 | B38: ='Übersicht Schützen'!A23 -> Dirk Meyer | C38: ='Übersicht Schützen'!B23 -> Spahnharrenstätte III | D38: ='Übersicht Schützen'!C23 -> 308.6 | E38: ='Übersicht Schützen'!D23 -> 311.2 | F38: ='Übersicht Schützen'!E23 -> 310.4 | G38: ='Übersicht Schützen'!F23 -> 311.9 | H38: ='Übersicht Schützen'!G23 -> 312.8 | I38: ='Übersicht Schützen'!H23 -> 312.3 | J38: ='Übersicht Schützen'!I23 -> 311.20 | K38: 1,867.2 | L38: ='Übersicht Schützen'!L23 -> 0.0 | M38: ='Übersicht Schützen'!M23 -> 311.6 | N38: ='Übersicht Schützen'!N23 -> 312.7 | O38: ='Übersicht Schützen'!O23 -> 312.7 | P38: ='Übersicht Schützen'!P23 -> 311.4 | Q38: ='Übersicht Schützen'!Q23 -> 0.0 | R38: 302.65 | S38: 1,248.4 | T38: ='Übersicht Schützen'!U23 -> 311.56 | U38: 3,115.6 | V38: -182.5
A39: 23 | B39: ='Übersicht Schützen'!A24 -> Simon Schukenbrock | C39: ='Übersicht Schützen'!B24 -> Lahn V | D39: ='Übersicht Schützen'!C24 -> 309.4 | E39: ='Übersicht Schützen'!D24 -> 308.5 | F39: ='Übersicht Schützen'!E24 -> 309.1 | G39: ='Übersicht Schützen'!F24 -> 308.2 | H39: ='Übersicht Schützen'!G24 -> 312.3 | I39: ='Übersicht Schützen'!H24 -> 309.9 | J39: ='Übersicht Schützen'!I24 -> 309.57 | K39: 1,857.4 | L39: ='Übersicht Schützen'!L24 -> 310.2 | M39: ='Übersicht Schützen'!M24 -> 301.9 | N39: ='Übersicht Schützen'!N24 -> 311.9 | O39: ='Übersicht Schützen'!O24 -> 308.4 | P39: ='Übersicht Schützen'!P24 -> 0.0 | Q39: ='Übersicht Schützen'!Q24 -> 0.0 | R39: 312.33 | S39: 1,232.4 | T39: ='Übersicht Schützen'!U24 -> 308.98 | U39: 3,089.8 | V39: -25.8
A40: 24 | B40: ='Übersicht Schützen'!A25 -> Stefan Burlager | C40: ='Übersicht Schützen'!B25 -> Esterwegen II | D40: ='Übersicht Schützen'!C25 -> 304.3 | E40: ='Übersicht Schützen'!D25 -> 301.4 | F40: ='Übersicht Schützen'!E25 -> 296.8 | G40: ='Übersicht Schützen'!F25 -> 0.0 | H40: ='Übersicht Schützen'!G25 -> 306.5 | I40: ='Übersicht Schützen'!H25 -> 310.4 | J40: ='Übersicht Schützen'!I25 -> 303.88 | K40: 1,519.4 | L40: ='Übersicht Schützen'!L25 -> 304.6 | M40: ='Übersicht Schützen'!M25 -> 303.5 | N40: ='Übersicht Schützen'!N25 -> 306.8 | O40: ='Übersicht Schützen'!O25 -> 306.5 | P40: ='Übersicht Schützen'!P25 -> 306.8 | Q40: ='Übersicht Schützen'!Q25 -> 0.0 | R40: =IF(Formelhilfe!O32=0,0,'Übersicht Schützen'!R25) -> 305.64 | S40: 1,528.2 | T40: ='Übersicht Schützen'!U25 -> 304.76 | U40: 3,047.6 | V40: -42.2
A41: 25 | B41: ='Übersicht Schützen'!A26 -> Rainer Wielenberg | C41: ='Übersicht Schützen'!B26 -> Esterwegen II | D41: ='Übersicht Schützen'!C26 -> 305.9 | E41: ='Übersicht Schützen'!D26 -> 306.6 | F41: ='Übersicht Schützen'!E26 -> 306.4 | G41: ='Übersicht Schützen'!F26 -> 302.9 | H41: ='Übersicht Schützen'!G26 -> 302.9 | I41: ='Übersicht Schützen'!H26 -> 299.6 | J41: ='Übersicht Schützen'!I26 -> 304.05 | K41: 1,824.3 | L41: ='Übersicht Schützen'!L26 -> 0.0 | M41: ='Übersicht Schützen'!M26 -> 298.3 | N41: ='Übersicht Schützen'!N26 -> 303.5 | O41: ='Übersicht Schützen'!O26 -> 299.5 | P41: ='Übersicht Schützen'!P26 -> 0.0 | Q41: ='Übersicht Schützen'!Q26 -> 0.0 | R41: =IF(Formelhilfe!O33=0,0,'Übersicht Schützen'!R26) -> 300.43 | S41: 901.3 | T41: ='Übersicht Schützen'!U26 -> 302.84 | U41: 2,725.6 | V41: -322.0
A42: 26 | B42: ='Übersicht Schützen'!A27 -> Johannes Gebken | C42: ='Übersicht Schützen'!B27 -> Esterwegen II | D42: ='Übersicht Schützen'!C27 -> 299.9 | E42: ='Übersicht Schützen'!D27 -> 291.1 | F42: ='Übersicht Schützen'!E27 -> 290.6 | G42: ='Übersicht Schützen'!F27 -> 0.0 | H42: ='Übersicht Schützen'!G27 -> 0.0 | I42: ='Übersicht Schützen'!H27 -> 0.0 | J42: ='Übersicht Schützen'!I27 -> 293.87 | K42: 881.6 | L42: ='Übersicht Schützen'!L27 -> 0.0 | M42: ='Übersicht Schützen'!M27 -> 0.0 | N42: ='Übersicht Schützen'!N27 -> 0.0 | O42: ='Übersicht Schützen'!O27 -> 0.0 | P42: ='Übersicht Schützen'!P27 -> 0.0 | Q42: ='Übersicht Schützen'!Q27 -> 0.0 | R42: 0.00 | S42: 0.0 | T42: ='Übersicht Schützen'!U27 -> 293.87 | U42: 881.6 | V42: -1,844.0
A43: 27 | B43: ='Übersicht Schützen'!A28 -> Michael Boje | C43: ='Übersicht Schützen'!B28 -> Lahn V | D43: ='Übersicht Schützen'!C28 -> 0.0 | E43: ='Übersicht Schützen'!D28 -> 298.7 | F43: ='Übersicht Schützen'!E28 -> 0.0 | G43: ='Übersicht Schützen'!F28 -> 0.0 | H43: ='Übersicht Schützen'!G28 -> 0.0 | I43: ='Übersicht Schützen'!H28 -> 0.0 | J43: ='Übersicht Schützen'!I28 -> 298.70 | K43: 298.7 | L43: ='Übersicht Schützen'!L28 -> 0.0 | M43: ='Übersicht Schützen'!M28 -> 0.0 | N43: ='Übersicht Schützen'!N28 -> 0.0 | O43: ='Übersicht Schützen'!O28 -> 0.0 | P43: ='Übersicht Schützen'!P28 -> 0.0 | Q43: ='Übersicht Schützen'!Q28 -> 0.0 | R43: 0.00 | S43: 0.0 | T43: ='Übersicht Schützen'!U28 -> 298.70 | U43: 298.7 | V43: -582.9
A44: 28 | B44: ='Übersicht Schützen'!A29 -> Jan-Niklas Lindemann | C44: ='Übersicht Schützen'!B29 -> Esterwegen II | D44: ='Übersicht Schützen'!C29 -> 0.0 | E44: ='Übersicht Schützen'!D29 -> 0.0 | F44: ='Übersicht Schützen'!E29 -> 0.0 | G44: ='Übersicht Schützen'!F29 -> 0.0 | H44: ='Übersicht Schützen'!G29 -> 0.0 | I44: ='Übersicht Schützen'!H29 -> 0.0 | J44: 0.00 | K44: 0.0 | L44: ='Übersicht Schützen'!L29 -> 0.0 | M44: ='Übersicht Schützen'!M29 -> 0.0 | N44: ='Übersicht Schützen'!N29 -> 0.0 | O44: ='Übersicht Schützen'!O29 -> 0.0 | P44: ='Übersicht Schützen'!P29 -> 0.0 | Q44: ='Übersicht Schützen'!Q29 -> 0.0 | R44: 0.00 | S44: 0.0 | T44: 0.00 | U44: 0.0 | V44: 0.0
A45: 29 | B45: ='Übersicht Schützen'!A30 -> Schütze 29 | C45: ='Übersicht Schützen'!B30 -> 0 | D45: ='Übersicht Schützen'!C30 -> 0.0 | E45: ='Übersicht Schützen'!D30 -> 0.0 | F45: ='Übersicht Schützen'!E30 -> 0.0 | G45: ='Übersicht Schützen'!F30 -> 0.0 | H45: ='Übersicht Schützen'!G30 -> 0.0 | I45: ='Übersicht Schützen'!H30 -> 0.0 | J45: 0.00 | K45: 0.0 | L45: ='Übersicht Schützen'!L30 -> 0.0 | M45: ='Übersicht Schützen'!M30 -> 0.0 | N45: ='Übersicht Schützen'!N30 -> 0.0 | O45: ='Übersicht Schützen'!O30 -> 0.0 | P45: ='Übersicht Schützen'!P30 -> 0.0 | Q45: ='Übersicht Schützen'!Q30 -> 0.0 | R45: =IF(Formelhilfe!O37=0,0,'Übersicht Schützen'!R30) -> 0.00 | S45: 0.0 | T45: 0.00 | U45: 0.0 | V45: 0.0
A46: 30 | B46: ='Übersicht Schützen'!A31 -> Schütze 30 | C46: ='Übersicht Schützen'!B31 -> 0 | D46: ='Übersicht Schützen'!C31 -> 0.0 | E46: ='Übersicht Schützen'!D31 -> 0.0 | F46: ='Übersicht Schützen'!E31 -> 0.0 | G46: ='Übersicht Schützen'!F31 -> 0.0 | H46: ='Übersicht Schützen'!G31 -> 0.0 | I46: ='Übersicht Schützen'!H31 -> 0.0 | J46: 0.00 | K46: 0.0 | L46: ='Übersicht Schützen'!L31 -> 0.0 | M46: ='Übersicht Schützen'!M31 -> 0.0 | N46: ='Übersicht Schützen'!N31 -> 0.0 | O46: ='Übersicht Schützen'!O31 -> 0.0 | P46: ='Übersicht Schützen'!P31 -> 0.0 | Q46: ='Übersicht Schützen'!Q31 -> 0.0 | R46: =IF(Formelhilfe!O38=0,0,'Übersicht Schützen'!R31) -> 0.00 | S46: 0.0 | T46: 0.00 | U46: 0.0 | V46: 0.0
A47: 31 | B47: ='Übersicht Schützen'!A32 -> Schütze 31 | C47: ='Übersicht Schützen'!B32 -> 0 | D47: ='Übersicht Schützen'!C32 -> 0.0 | E47: ='Übersicht Schützen'!D32 -> 0.0 | F47: ='Übersicht Schützen'!E32 -> 0.0 | G47: ='Übersicht Schützen'!F32 -> 0.0 | H47: ='Übersicht Schützen'!G32 -> 0.0 | I47: ='Übersicht Schützen'!H32 -> 0.0 | J47: 0.00 | K47: 0.0 | L47: ='Übersicht Schützen'!L32 -> 0.0 | M47: ='Übersicht Schützen'!M32 -> 0.0 | N47: ='Übersicht Schützen'!N32 -> 0.0 | O47: ='Übersicht Schützen'!O32 -> 0.0 | P47: ='Übersicht Schützen'!P32 -> 0.0 | Q47: ='Übersicht Schützen'!Q32 -> 0.0 | R47: =IF(Formelhilfe!O39=0,0,'Übersicht Schützen'!R32) -> 0.00 | S47: 0.0 | T47: 0.00 | U47: 0.0 | V47: =(U46-U47)*-1 -> 0.0
A48: 32 | B48: ='Übersicht Schützen'!A33 -> Schütze 32 | C48: ='Übersicht Schützen'!B33 -> 0 | D48: ='Übersicht Schützen'!C33 -> 0.0 | E48: ='Übersicht Schützen'!D33 -> 0.0 | F48: ='Übersicht Schützen'!E33 -> 0.0 | G48: ='Übersicht Schützen'!F33 -> 0.0 | H48: ='Übersicht Schützen'!G33 -> 0.0 | I48: ='Übersicht Schützen'!H33 -> 0.0 | J48: 0.00 | K48: 0.0 | L48: ='Übersicht Schützen'!L33 -> 0.0 | M48: ='Übersicht Schützen'!M33 -> 0.0 | N48: ='Übersicht Schützen'!N33 -> 0.0 | O48: ='Übersicht Schützen'!O33 -> 0.0 | P48: ='Übersicht Schützen'!P33 -> 0.0 | Q48: ='Übersicht Schützen'!Q33 -> 0.0 | R48: =IF(Formelhilfe!O40=0,0,'Übersicht Schützen'!R33) -> 0.00 | S48: 0.0 | T48: 0.00 | U48: 0.0 | V48: 0.0
A49: 33 | B49: ='Übersicht Schützen'!A34 -> Schütze 33 | C49: ='Übersicht Schützen'!B34 -> 0 | D49: ='Übersicht Schützen'!C34 -> 0.0 | E49: ='Übersicht Schützen'!D34 -> 0.0 | F49: ='Übersicht Schützen'!E34 -> 0.0 | G49: ='Übersicht Schützen'!F34 -> 0.0 | H49: ='Übersicht Schützen'!G34 -> 0.0 | I49: ='Übersicht Schützen'!H34 -> 0.0 | J49: 0.00 | K49: 0.0 | L49: ='Übersicht Schützen'!L34 -> 0.0 | M49: ='Übersicht Schützen'!M34 -> 0.0 | N49: ='Übersicht Schützen'!N34 -> 0.0 | O49: ='Übersicht Schützen'!O34 -> 0.0 | P49: ='Übersicht Schützen'!P34 -> 0.0 | Q49: ='Übersicht Schützen'!Q34 -> 0.0 | R49: =IF(Formelhilfe!O41=0,0,'Übersicht Schützen'!R34) -> 0.00 | S49: 0.0 | T49: 0.00 | U49: 0.0 | V49: 0.0
A50: 34 | B50: ='Übersicht Schützen'!A35 -> Schütze 34 | C50: ='Übersicht Schützen'!B35 -> 0 | D50: ='Übersicht Schützen'!C35 -> 0.0 | E50: ='Übersicht Schützen'!D35 -> 0.0 | F50: ='Übersicht Schützen'!E35 -> 0.0 | G50: ='Übersicht Schützen'!F35 -> 0.0 | H50: ='Übersicht Schützen'!G35 -> 0.0 | I50: ='Übersicht Schützen'!H35 -> 0.0 | J50: 0.00 | K50: 0.0 | L50: ='Übersicht Schützen'!L35 -> 0.0 | M50: ='Übersicht Schützen'!M35 -> 0.0 | N50: ='Übersicht Schützen'!N35 -> 0.0 | O50: ='Übersicht Schützen'!O35 -> 0.0 | P50: ='Übersicht Schützen'!P35 -> 0.0 | Q50: ='Übersicht Schützen'!Q35 -> 0.0 | R50: =IF(Formelhilfe!O42=0,0,'Übersicht Schützen'!R35) -> 0.00 | S50: 0.0 | T50: 0.00 | U50: 0.0 | V50: 0.0
A51: 35 | B51: ='Übersicht Schützen'!A36 -> Schütze 35 | C51: ='Übersicht Schützen'!B36 -> 0 | D51: ='Übersicht Schützen'!C36 -> 0.0 | E51: ='Übersicht Schützen'!D36 -> 0.0 | F51: ='Übersicht Schützen'!E36 -> 0.0 | G51: ='Übersicht Schützen'!F36 -> 0.0 | H51: ='Übersicht Schützen'!G36 -> 0.0 | I51: ='Übersicht Schützen'!H36 -> 0.0 | J51: 0.00 | K51: 0.0 | L51: ='Übersicht Schützen'!L36 -> 0.0 | M51: ='Übersicht Schützen'!M36 -> 0.0 | N51: ='Übersicht Schützen'!N36 -> 0.0 | O51: ='Übersicht Schützen'!O36 -> 0.0 | P51: ='Übersicht Schützen'!P36 -> 0.0 | Q51: ='Übersicht Schützen'!Q36 -> 0.0 | R51: =IF(Formelhilfe!O43=0,0,'Übersicht Schützen'!R36) -> 0.00 | S51: 0.0 | T51: 0.00 | U51: 0.0 | V51: =(U50-U51)*-1 -> 0.0
A52: 36 | B52: ='Übersicht Schützen'!A37 -> Schütze 36 | C52: ='Übersicht Schützen'!B37 -> 0 | D52: ='Übersicht Schützen'!C37 -> 0.0 | E52: ='Übersicht Schützen'!D37 -> 0.0 | F52: ='Übersicht Schützen'!E37 -> 0.0 | G52: ='Übersicht Schützen'!F37 -> 0.0 | H52: ='Übersicht Schützen'!G37 -> 0.0 | I52: ='Übersicht Schützen'!H37 -> 0.0 | J52: 0.00 | K52: 0.0 | L52: ='Übersicht Schützen'!L37 -> 0.0 | M52: ='Übersicht Schützen'!M37 -> 0.0 | N52: ='Übersicht Schützen'!N37 -> 0.0 | O52: ='Übersicht Schützen'!O37 -> 0.0 | P52: ='Übersicht Schützen'!P37 -> 0.0 | Q52: ='Übersicht Schützen'!Q37 -> 0.0 | R52: =IF(Formelhilfe!O44=0,0,'Übersicht Schützen'!R37) -> 0.00 | S52: 0.0 | T52: 0.00 | U52: 0.0 | V52: 0.0
C54: Schnitt: | D54: =SUM(D17:D52)/Formelhilfe!B45 -> 306.7 | E54: =SUM(E17:E52)/Formelhilfe!C45 -> 306.1 | F54: =SUM(F17:F52)/Formelhilfe!D45 -> 306.9 | G54: =SUM(G17:G52)/Formelhilfe!E45 -> 307.5 | H54: =SUM(H17:H52)/Formelhilfe!F45 -> 308.1 | I54: =SUM(I17:I52)/Formelhilfe!G45 -> 307.5 | J54: =AVERAGE(J17:J52) -> 229.95 | K54: =AVERAGE(K17:K52) -> 1305.26 | L54: =SUM(L17:L52)/Formelhilfe!I45 -> 307.7 | M54: =SUM(M17:M52)/Formelhilfe!J45 -> 307.3 | N54: =SUM(N17:N52)/Formelhilfe!K45 -> 308.4 | O54: =SUM(O17:O52)/Formelhilfe!L45 -> 306.9 | P54: =SUM(P17:P52)/Formelhilfe!M45 -> 309.2 | Q54: =SUM(Q17:Q52)/Formelhilfe!N45 ->  | R54: =AVERAGE(R17:R52) -> 213.62 | S54: =AVERAGE(S17:S52) -> 1034.90 | T54: =AVERAGE(T17:T52) -> 230.09 | U54: =(K54+S54) -> 2,340.16

Sheet Wettkampf 1
B1: Verein / Gruppe | D1: Ergebnisse | X1: Austragungsort: | Y1: =Übersicht!D4 -> Spahnharrenstätte
A2: 1 | B2: Spahnharrenstätte III | D2: =G46 -> 927.3 | E2: =IF(H46>4,"Es sind zu viele Schützen in Wertung!"," ") ->  | X2: Wettkampftag: | Y2: =Übersicht!D3 -> 15.09
A3: 2 | B3: Esterwegen II | D3: =I46 -> 916.1 | E3: =IF(J46>4,"Es sind zu viele Schützen in Wertung!"," ") -> 
A4: 3 | B4: Neubörger II | D4: =K46 -> 928.7 | E4: =IF(L46>4,"Es sind zu viele Schützen in Wertung!"," ") ->  | Z4: Ansprechpartner für Rückfragen:
A5: 4 | B5: Lahn V | D5: =M46 -> 911.3 | E5: =IF(N46>4,"Es sind zu viele Schützen in Wertung!"," ") ->  | X5: Name: | Y5: Achim Will
A6: 5 | B6: Spahnharrenstätte II | D6: =O46 -> 925.1 | E6: =IF(P46>4,"Es sind zu viele Schützen in Wertung!"," ") ->  | X6: Tel:
A7: 6 | B7: Eisten II | D7: =Q46 -> 937.1 | E7: =IF(R46>4,"Es sind zu viele Schützen in Wertung!"," ") ->  | X7: Standaufsicht: | Y7: Achim Will
B9: Einzelergebnisse: | C9: Verein/Gruppe (per Dropdown-Feld einzutragen) | D9: Ergebnisse | E9: AW? Dann x eintippen | G9: Verein 1 | I9: Verein 2 | K9: Verein 3 | M9: Verein 4 | O9: Verein 5 | Q9: Verein 6 | U9: Geburtsdatum | W9: Proberechnung bei Streifen:
A10: 1 | B10: Heiko Micksch | C10: Spahnharrenstätte III | D10: 302.8 | E10: x | F10: =IF(E10="x","0",D10) -> 0 | G10: =IF(C10=$B$2,F10,0) -> 0 | H10: =(IF(AND($E10="",$C10=$B$2),1,0)) -> 0 | I10: =IF($C10=$B$3,F10,0) -> 0 | J10: =(IF(AND($E10="",$C10=$B$3),1,0)) -> 0 | K10: =IF($C10=$B$4,F10,0) -> 0 | L10: =(IF(AND($E10="",$C10=$B$4),1,0)) -> 0 | M10: =IF($C10=$B$5,F10,0) -> 0 | N10: =(IF(AND($E10="",$C10=$B$5),1,0)) -> 0 | O10: =IF($C10=$B$6,F10,0) -> 0 | P10: =(IF(AND($E10="",$C10=$B$6),1,0)) -> 0 | Q10: =IF($C10=$B$7,F10,0) -> 0 | R10: =(IF(AND($E10="",$C10=$B$7),1,0)) -> 0 | Z10: =W10+X10+Y10 -> 0.0 | AA10: =IF(Z10=D10,1,0) -> 0 | AB10: =IF(Z10=0,0,1) -> 0 | AC10: =IF(AA10+AB10=2,"Korrekt","") -> 
A11: 2 | B11: Dirk Meyer | C11: Spahnharrenstätte III | D11: 308.6 | F11: =IF(E11="x","0",D11) -> 308.6 | G11: =IF(C11=$B$2,F11,0) -> 308.6 | H11: =(IF(AND($E11="",$C11=$B$2),1,0)) -> 1 | I11: =IF($C11=$B$3,F11,0) -> 0 | J11: =(IF(AND($E11="",$C11=$B$3),1,0)) -> 0 | K11: =IF($C11=$B$4,F11,0) -> 0 | L11: =(IF(AND($E11="",$C11=$B$4),1,0)) -> 0 | M11: =IF($C11=$B$5,F11,0) -> 0 | N11: =(IF(AND($E11="",$C11=$B$5),1,0)) -> 0 | O11: =IF($C11=$B$6,F11,0) -> 0 | P11: =(IF(AND($E11="",$C11=$B$6),1,0)) -> 0 | Q11: =IF($C11=$B$7,F11,0) -> 0 | R11: =(IF(AND($E11="",$C11=$B$7),1,0)) -> 0 | Z11: =W11+X11+Y11 -> 0.0 | AA11: =IF(Z11=D11,1,0) -> 0 | AB11: =IF(Z11=0,0,1) -> 0 | AC11: =IF(AA11+AB11=2,"Korrekt","") -> 
A12: 3 | B12: Sebastian Albers | C12: Spahnharrenstätte III | D12: 304.5 | F12: 304.5 | G12: 304.5 | H12: 1 | I12: 0 | J12: 0 | K12: 0 | L12: 0 | M12: 0 | N12: 0 | O12: 0 | P12: 0 | Q12: 0 | R12: 0 | Z12: 0.0 | AA12: 0 | AB12: 0
A13: 4 | B13: Achim Will | C13: Spahnharrenstätte III | D13: 307.9 | F13: 307.9 | G13: 307.9 | H13: 1 | I13: 0 | J13: 0 | K13: 0 | L13: 0 | M13: 0 | N13: 0 | O13: 0 | P13: 0 | Q13: 0 | R13: 0 | Z13: 0.0 | AA13: 0 | AB13: 0
A14: 5 | B14: Christian Grönheim | C14: Spahnharrenstätte III | D14: 310.8 | F14: 310.8 | G14: 310.8 | H14: 1 | I14: 0 | J14: 0 | K14: 0 | L14: 0 | M14: 0 | N14: 0 | O14: 0 | P14: 0 | Q14: 0 | R14: 0 | Z14: 0.0 | AA14: 0 | AB14: 0
A15: 6 | B15: Dieter Hanekamp | C15: Spahnharrenstätte II | D15: 311.2 | F15: 311.2 | G15: 0 | H15: 0 | I15: 0 | J15: 0 | K15: 0 | L15: 0 | M15: 0 | N15: 0 | O15: 311.2 | P15: 1 | Q15: 0 | R15: 0 | Z15: 0.0 | AA15: 0 | AB15: 0
A16: 7 | B16: Josef Langen | C16: Spahnharrenstätte II | D16: 306.0 | F16: 306 | G16: 0 | H16: 0 | I16: 0 | J16: 0 | K16: 0 | L16: 0 | M16: 0 | N16: 0 | O16: 306 | P16: 1 | Q16: 0 | R16: 0 | Z16: 0.0 | AA16: 0 | AB16: 0
A17: 8 | B17: Johannes Hülsmann | C17: Spahnharrenstätte II | D17: 305.6 | F17: 305.6 | G17: 0 | H17: 0 | I17: 0 | J17: 0 | K17: 0 | L17: 0 | M17: 0 | N17: 0 | O17: 305.6 | P17: 1 | Q17: 0 | R17: 0 | Z17: 0.0 | AA17: 0 | AB17: 0
A18: 9 | B18: Heiner Kröger | C18: Spahnharrenstätte II | D18: 307.9 | F18: 307.9 | G18: 0 | H18: 0 | I18: 0 | J18: 0 | K18: 0 | L18: 0 | M18: 0 | N18: 0 | O18: 307.9 | P18: 1 | Q18: 0 | R18: 0 | Z18: 0.0 | AA18: 0 | AB18: 0
A19: 10 | B19: Bernd Nortmann | C19: Lahn V | D19: 307.8 | F19: 307.8 | G19: 0 | H19: 0 | I19: 0 | J19: 0 | K19: 0 | L19: 0 | M19: 307.8 | N19: 1 | O19: 0 | P19: 0 | Q19: 0 | R19: 0 | Z19: 0.0 | AA19: 0 | AB19: 0
A20: 11 | B20: Oliver Reinelt | C20: Lahn V | D20: 294.1 | F20: 294.1 | G20: 0 | H20: 0 | I20: 0 | J20: 0 | K20: 0 | L20: 0 | M20: 294.1 | N20: 1 | O20: 0 | P20: 0 | Q20: 0 | R20: 0 | Z20: 0.0 | AA20: 0 | AB20: 0
A21: 12 | B21: Simon Schukenbrock | C21: Lahn V | D21: 309.4 | F21: 309.4 | G21: 0 | H21: 0 | I21: 0 | J21: 0 | K21: 0 | L21: 0 | M21: 309.4 | N21: 1 | O21: 0 | P21: 0 | Q21: 0 | R21: 0 | Z21: 0.0 | AA21: 0 | AB21: 0
A22: 13 | B22: Michael Boje | C22: Lahn V | D22: 0.0 | F22: 0 | G22: 0 | H22: 0 | I22: 0 | J22: 0 | K22: 0 | L22: 0 | M22: 0 | N22: 1 | O22: 0 | P22: 0 | Q22: 0 | R22: 0 | Z22: 0.0 | AA22: 1 | AB22: 0
A23: 14 | B23: Ludger Hermes | C23: Neubörger II | D23: 311.9 | F23: 311.9 | G23: 0 | H23: 0 | I23: 0 | J23: 0 | K23: 311.9 | L23: 1 | M23: 0 | N23: 0 | O23: 0 | P23: 0 | Q23: 0 | R23: 0 | Z23: 0.0 | AA23: 0 | AB23: 0
A24: 15 | B24: Rudi Fromme | C24: Neubörger II | D24: 303.4 | F24: 303.4 | G24: 0 | H24: 0 | I24: 0 | J24: 0 | K24: 303.4 | L24: 1 | M24: 0 | N24: 0 | O24: 0 | P24: 0 | Q24: 0 | R24: 0 | Z24: 0.0 | AA24: 0 | AB24: 0
A25: 16 | B25: Alois Schmitz | C25: Neubörger II | D25: 311.0 | F25: 311 | G25: 0 | H25: 0 | I25: 0 | J25: 0 | K25: 311 | L25: 1 | M25: 0 | N25: 0 | O25: 0 | P25: 0 | Q25: 0 | R25: 0 | Z25: 0.0 | AA25: 0 | AB25: 0
A26: 17 | B26: Ludwig Langen | C26: Neubörger II | D26: 305.8 | F26: 305.8 | G26: 0 | H26: 0 | I26: 0 | J26: 0 | K26: 305.8 | L26: 1 | M26: 0 | N26: 0 | O26: 0 | P26: 0 | Q26: 0 | R26: 0 | Z26: 0.0 | AA26: 0 | AB26: 0
A27: 18 | B27: Rainer Wielenberg | C27: Esterwegen II | D27: 305.9 | F27: 305.9 | G27: 0 | H27: 0 | I27: 305.9 | J27: 1 | K27: 0 | L27: 0 | M27: 0 | N27: 0 | O27: 0 | P27: 0 | Q27: 0 | R27: 0 | Z27: 0.0 | AA27: 0 | AB27: 0
A28: 19 | B28: Meik Sieger | C28: Esterwegen II | D28: 307.8 | F28: 307.8 | G28: 0 | H28: 0 | I28: 307.8 | J28: 1 | K28: 0 | L28: 0 | M28: 0 | N28: 0 | O28: 0 | P28: 0 | Q28: 0 | R28: 0 | Z28: 0.0 | AA28: 0 | AB28: 0
A29: 20 | B29: Dennis Lindemann | C29: Esterwegen II | D29: 302.4 | F29: 302.4 | G29: 0 | H29: 0 | I29: 302.4 | J29: 1 | K29: 0 | L29: 0 | M29: 0 | N29: 0 | O29: 0 | P29: 0 | Q29: 0 | R29: 0 | Z29: 0.0 | AA29: 0 | AB29: 0
A30: 21 | B30: Andreas Lindemann | C30: Esterwegen II | D30: 301.3 | F30: 301.3 | G30: 0 | H30: 0 | I30: 301.3 | J30: 1 | K30: 0 | L30: 0 | M30: 0 | N30: 0 | O30: 0 | P30: 0 | Q30: 0 | R30: 0 | Z30: 0.0 | AA30: 0 | AB30: 0
A31: 22 | B31: Johannes Gebken | C31: Esterwegen II | D31: 299.9 | E31: x | F31: 0 | G31: 0 | H31: 0 | I31: 0 | J31: 0 | K31: 0 | L31: 0 | M31: 0 | N31: 0 | O31: 0 | P31: 0 | Q31: 0 | R31: 0 | Z31: 0.0 | AA31: 0 | AB31: 0
A32: 23 | B32: Jan-Niklas Lindemann | C32: Esterwegen II | D32: 0.0 | E32: x | F32: 0 | G32: 0 | H32: 0 | I32: 0 | J32: 0 | K32: 0 | L32: 0 | M32: 0 | N32: 0 | O32: 0 | P32: 0 | Q32: 0 | R32: 0 | Z32: 0.0 | AA32: 1 | AB32: 0
A33: 24 | B33: Stefan Burlager | C33: Esterwegen II | D33: 304.3 | E33: x | F33: 0 | G33: 0 | H33: 0 | I33: 0 | J33: 0 | K33: 0 | L33: 0 | M33: 0 | N33: 0 | O33: 0 | P33: 0 | Q33: 0 | R33: 0 | Z33: 0.0 | AA33: 0 | AB33: 0
A34: 25 | B34: Franz Ostermann | C34: Eisten II | D34: 308.3 | F34: 308.3 | G34: 0 | H34: 0 | I34: 0 | J34: 0 | K34: 0 | L34: 0 | M34: 0 | N34: 0 | O34: 0 | P34: 0 | Q34: 308.3 | R34: 1 | Z34: 0.0 | AA34: 0 | AB34: 0
A35: 26 | B35: Martin Hackmann | C35: Eisten II | D35: 313.5 | F35: 313.5 | G35: 0 | H35: 0 | I35: 0 | J35: 0 | K35: 0 | L35: 0 | M35: 0 | N35: 0 | O35: 0 | P35: 0 | Q35: 313.5 | R35: 1 | Z35: 0.0 | AA35: 0 | AB35: 0
A36: 27 | B36: Günther Baalmann | C36: Eisten II | D36: 315.3 | F36: 315.3 | G36: 0 | H36: 0 | I36: 0 | J36: 0 | K36: 0 | L36: 0 | M36: 0 | N36: 0 | O36: 0 | P36: 0 | Q36: 315.3 | R36: 1 | Z36: 0.0 | AA36: 0 | AB36: 0
A37: 28 | B37: Martin Poker | C37: Eisten II | D37: 307.3 | F37: 307.3 | G37: 0 | H37: 0 | I37: 0 | J37: 0 | K37: 0 | L37: 0 | M37: 0 | N37: 0 | O37: 0 | P37: 0 | Q37: 307.3 | R37: 1 | Z37: 0.0 | AA37: 0 | AB37: 0
A38: 29 | B38: Schütze 29 | F38: 0 | G38: 0 | H38: 0 | I38: 0 | J38: 0 | K38: 0 | L38: 0 | M38: 0 | N38: 0 | O38: 0 | P38: 0 | Q38: 0 | R38: 0 | Z38: 0.0 | AA38: 1 | AB38: 0
A39: 30 | B39: Schütze 30 | F39: 0 | G39: 0 | H39: 0 | I39: 0 | J39: 0 | K39: 0 | L39: 0 | M39: 0 | N39: 0 | O39: 0 | P39: 0 | Q39: 0 | R39: 0 | Z39: 0.0 | AA39: 1 | AB39: 0
A40: 31 | B40: Schütze 31 | F40: 0 | G40: 0 | H40: 0 | I40: 0 | J40: 0 | K40: 0 | L40: 0 | M40: 0 | N40: 0 | O40: 0 | P40: 0 | Q40: 0 | R40: 0 | Z40: =W40+X40+Y40 -> 0.0 | AA40: =IF(Z40=D40,1,0) -> 1 | AB40: =IF(Z40=0,0,1) -> 0 | AC40: =IF(AA40+AB40=2,"Korrekt","") -> 
A41: 32 | B41: Schütze 32 | F41: 0 | G41: 0 | H41: 0 | I41: 0 | J41: 0 | K41: 0 | L41: 0 | M41: 0 | N41: 0 | O41: 0 | P41: 0 | Q41: 0 | R41: 0 | Z41: 0.0 | AA41: 1 | AB41: 0
A42: 33 | B42: Schütze 33 | F42: 0 | G42: 0 | H42: 0 | I42: 0 | J42: 0 | K42: 0 | L42: 0 | M42: 0 | N42: 0 | O42: 0 | P42: 0 | Q42: 0 | R42: 0 | Z42: 0.0 | AA42: 1 | AB42: 0
A43: 34 | B43: Schütze 34 | F43: 0 | G43: 0 | H43: 0 | I43: 0 | J43: 0 | K43: 0 | L43: 0 | M43: 0 | N43: 0 | O43: 0 | P43: 0 | Q43: 0 | R43: 0 | Z43: 0.0 | AA43: 1 | AB43: 0
A44: 35 | B44: Schütze 35 | F44: 0 | G44: 0 | H44: 0 | I44: 0 | J44: 0 | K44: 0 | L44: 0 | M44: 0 | N44: 0 | O44: 0 | P44: 0 | Q44: 0 | R44: 0 | Z44: 0.0 | AA44: 1 | AB44: 0
A45: 36 | B45: Schütze 36 | F45: 0 | G45: 0 | H45: 0 | I45: 0 | J45: 0 | K45: 0 | L45: 0 | M45: 0 | N45: 0 | O45: 0 | P45: 0 | Q45: 0 | R45: 0 | Z45: =W45+X45+Y45 -> 0.0 | AA45: =IF(Z45=D45,1,0) -> 1 | AB45: =IF(Z45=0,0,1) -> 0 | AC45: =IF(AA45+AB45=2,"Korrekt","") -> 
G46: =LARGE(G10:G45,1)+LARGE(G10:G45,2)+LARGE(G10:G45,3) -> 927.3 | H46: =SUM(H10:H45) -> 4 | I46: =LARGE(I10:I45,1)+LARGE(I10:I45,2)+LARGE(I10:I45,3) -> 916.1 | J46: =SUM(J10:J45) -> 4 | K46: =LARGE(K10:K45,1)+LARGE(K10:K45,2)+LARGE(K10:K45,3) -> 928.7 | L46: =SUM(L10:L45) -> 4 | M46: =LARGE(M10:M45,1)+LARGE(M10:M45,2)+LARGE(M10:M45,3) -> 911.3 | N46: =SUM(N10:N45) -> 4 | O46: =LARGE(O10:O45,1)+LARGE(O10:O45,2)+LARGE(O10:O45,3) -> 925.1 | P46: =SUM(P10:P45) -> 4 | Q46: =LARGE(Q10:Q45,1)+LARGE(Q10:Q45,2)+LARGE(Q10:Q45,3) -> 937.1 | R46: =SUM(R10:S45) -> 4
C47: per Email an: sk-huemmling@gmx.de

Sheet 2
B1: Verein / Gruppe | D1: Ergebnisse | V1: Austragungsort: | W1: =Übersicht!E4 -> Esterwegen
A2: 1 | B2: ='Wettkampf 1'!B2 -> Spahnharrenstätte III | D2: =G46 -> 934.8 | E2: =IF(H46>4,"Es sind zu viele Schützen in Wertung!"," ") ->  | V2: Wettkampftag: | W2: =Übersicht!E3 -> 06.10.
A3: 2 | B3: ='Wettkampf 1'!B3 -> Esterwegen II | D3: =I46 -> 919.0 | E3: =IF(J46>4,"Es sind zu viele Schützen in Wertung!"," ") -> 
A4: 3 | B4: ='Wettkampf 1'!B4 -> Neubörger II | D4: =K46 -> 918.8 | E4: =IF(L46>4,"Es sind zu viele Schützen in Wertung!"," ") ->  | X4: Ansprechpartner für Rückfragen:
A5: 4 | B5: ='Wettkampf 1'!B5 -> Lahn V | D5: =M46 -> 910.4 | E5: =IF(N46>4,"Es sind zu viele Schützen in Wertung!"," ") ->  | V5: Name: | W5: Esterwegen II
A6: 5 | B6: ='Wettkampf 1'!B6 -> Spahnharrenstätte II | D6: =O46 -> 929.2 | E6: =IF(P46>4,"Es sind zu viele Schützen in Wertung!"," ") ->  | V6: Tel:
A7: 6 | B7: ='Wettkampf 1'!B7 -> Eisten II | D7: =Q46 -> 935.1 | E7: =IF(R46>4,"Es sind zu viele Schützen in Wertung!"," ") ->  | V7: Standaufsicht: | W7: Esterwegen II
B9: Einzelergebnisse: | C9: Verein / Gruppe | D9: Ergebnisse (mindestens 0 eintragen) | E9: AW? Dann x eintippen | G9: Verein 1 | I9: Verein 2 | K9: Verein 3 | M9: Verein 4 | O9: Verein 5 | Q9: Verein 6 | U9: Proberechnung bei Streifen:
A10: 1 | B10: ='Wettkampf 1'!B10 -> Heiko Micksch | C10: ='Wettkampf 1'!C10 -> Spahnharrenstätte III | D10: 302.5 | F10: =IF(E10="x","0",D10) -> 302.5 | G10: =IF(C10=$B$2,F10,0) -> 302.5 | H10: =(IF(AND($E10="",$C10=$B$2),1,0)) -> 1 | I10: =IF($C10=$B$3,F10,0) -> 0 | J10: =(IF(AND($E10="",$C10=$B$3),1,0)) -> 0 | K10: =IF($C10=$B$4,F10,0) -> 0 | L10: =(IF(AND($E10="",$C10=$B$4),1,0)) -> 0 | M10: =IF($C10=$B$5,F10,0) -> 0 | N10: =(IF(AND($E10="",$C10=$B$5),1,0)) -> 0 | O10: =IF($C10=$B$6,F10,0) -> 0 | P10: =(IF(AND($E10="",$C10=$B$6),1,0)) -> 0 | Q10: =IF($C10=$B$7,F10,0) -> 0 | R10: =(IF(AND($E10="",$C10=$B$7),1,0)) -> 0 | X10: =U10+V10+W10 -> 0.0 | Y10: =IF(X10=D10,1,0) -> 0 | Z10: =IF(X10=0,0,1) -> 0 | AA10: =IF(Y10+Z10=2,"Korrekt","") -> 
A11: 2 | B11: ='Wettkampf 1'!B11 -> Dirk Meyer | C11: ='Wettkampf 1'!C11 -> Spahnharrenstätte III | D11: 311.2 | F11: =IF(E11="x","0",D11) -> 311.2 | G11: =IF(C11=$B$2,F11,0) -> 311.2 | H11: =(IF(AND($E11="",$C11=$B$2),1,0)) -> 1 | I11: =IF($C11=$B$3,F11,0) -> 0 | J11: =(IF(AND($E11="",$C11=$B$3),1,0)) -> 0 | K11: =IF($C11=$B$4,F11,0) -> 0 | L11: =(IF(AND($E11="",$C11=$B$4),1,0)) -> 0 | M11: =IF($C11=$B$5,F11,0) -> 0 | N11: =(IF(AND($E11="",$C11=$B$5),1,0)) -> 0 | O11: =IF($C11=$B$6,F11,0) -> 0 | P11: =(IF(AND($E11="",$C11=$B$6),1,0)) -> 0 | Q11: =IF($C11=$B$7,F11,0) -> 0 | R11: =(IF(AND($E11="",$C11=$B$7),1,0)) -> 0 | X11: =U11+V11+W11 -> 0.0 | Y11: =IF(X11=D11,1,0) -> 0 | Z11: =IF(X11=0,0,1) -> 0 | AA11: =IF(Y11+Z11=2,"Korrekt","") -> 
A12: 3 | B12: ='Wettkampf 1'!B12 -> Sebastian Albers | C12: ='Wettkampf 1'!C12 -> Spahnharrenstätte III | D12: 303.8 | E12: x | F12: 0 | G12: 0 | H12: 0 | I12: 0 | J12: 0 | K12: 0 | L12: 0 | M12: 0 | N12: 0 | O12: 0 | P12: 0 | Q12: 0 | R12: 0 | X12: 0.0 | Y12: 0 | Z12: 0
A13: 4 | B13: ='Wettkampf 1'!B13 -> Achim Will | C13: ='Wettkampf 1'!C13 -> Spahnharrenstätte III | D13: 313.7 | F13: 313.7 | G13: 313.7 | H13: 1 | I13: 0 | J13: 0 | K13: 0 | L13: 0 | M13: 0 | N13: 0 | O13: 0 | P13: 0 | Q13: 0 | R13: 0 | X13: 0.0 | Y13: 0 | Z13: 0
A14: 5 | B14: ='Wettkampf 1'!B14 -> Christian Grönheim | C14: ='Wettkampf 1'!C14 -> Spahnharrenstätte III | D14: 309.9 | F14: 309.9 | G14: 309.9 | H14: 1 | I14: 0 | J14: 0 | K14: 0 | L14: 0 | M14: 0 | N14: 0 | O14: 0 | P14: 0 | Q14: 0 | R14: 0 | X14: 0.0 | Y14: 0 | Z14: 0
A15: 6 | B15: ='Wettkampf 1'!B15 -> Dieter Hanekamp | C15: ='Wettkampf 1'!C15 -> Spahnharrenstätte II | D15: 308.7 | F15: 308.7 | G15: 0 | H15: 0 | I15: 0 | J15: 0 | K15: 0 | L15: 0 | M15: 0 | N15: 0 | O15: 308.7 | P15: 1 | Q15: 0 | R15: 0 | X15: 0.0 | Y15: 0 | Z15: 0
A16: 7 | B16: ='Wettkampf 1'!B16 -> Josef Langen | C16: ='Wettkampf 1'!C16 -> Spahnharrenstätte II | D16: 304.9 | F16: 304.9 | G16: 0 | H16: 0 | I16: 0 | J16: 0 | K16: 0 | L16: 0 | M16: 0 | N16: 0 | O16: 304.9 | P16: 1 | Q16: 0 | R16: 0 | X16: 0.0 | Y16: 0 | Z16: 0
A17: 8 | B17: ='Wettkampf 1'!B17 -> Johannes Hülsmann | C17: ='Wettkampf 1'!C17 -> Spahnharrenstätte II | D17: 312.4 | F17: 312.4 | G17: 0 | H17: 0 | I17: 0 | J17: 0 | K17: 0 | L17: 0 | M17: 0 | N17: 0 | O17: 312.4 | P17: 1 | Q17: 0 | R17: 0 | X17: 0.0 | Y17: 0 | Z17: 0
A18: 9 | B18: ='Wettkampf 1'!B18 -> Heiner Kröger | C18: ='Wettkampf 1'!C18 -> Spahnharrenstätte II | D18: 308.1 | F18: 308.1 | G18: 0 | H18: 0 | I18: 0 | J18: 0 | K18: 0 | L18: 0 | M18: 0 | N18: 0 | O18: 308.1 | P18: 1 | Q18: 0 | R18: 0 | X18: 0.0 | Y18: 0 | Z18: 0
A19: 10 | B19: ='Wettkampf 1'!B19 -> Bernd Nortmann | C19: ='Wettkampf 1'!C19 -> Lahn V | D19: 302.2 | F19: 302.2 | G19: 0 | H19: 0 | I19: 0 | J19: 0 | K19: 0 | L19: 0 | M19: 302.2 | N19: 1 | O19: 0 | P19: 0 | Q19: 0 | R19: 0 | X19: 0.0 | Y19: 0 | Z19: 0
A20: 11 | B20: ='Wettkampf 1'!B20 -> Oliver Reinelt | C20: ='Wettkampf 1'!C20 -> Lahn V | D20: 299.7 | F20: 299.7 | G20: 0 | H20: 0 | I20: 0 | J20: 0 | K20: 0 | L20: 0 | M20: 299.7 | N20: 1 | O20: 0 | P20: 0 | Q20: 0 | R20: 0 | X20: 0.0 | Y20: 0 | Z20: 0
A21: 12 | B21: ='Wettkampf 1'!B21 -> Simon Schukenbrock | C21: ='Wettkampf 1'!C21 -> Lahn V | D21: 308.5 | F21: 308.5 | G21: 0 | H21: 0 | I21: 0 | J21: 0 | K21: 0 | L21: 0 | M21: 308.5 | N21: 1 | O21: 0 | P21: 0 | Q21: 0 | R21: 0 | X21: 0.0 | Y21: 0 | Z21: 0
A22: 13 | B22: ='Wettkampf 1'!B22 -> Michael Boje | C22: ='Wettkampf 1'!C22 -> Lahn V | D22: 298.7 | F22: 298.7 | G22: 0 | H22: 0 | I22: 0 | J22: 0 | K22: 0 | L22: 0 | M22: 298.7 | N22: 1 | O22: 0 | P22: 0 | Q22: 0 | R22: 0 | X22: 0.0 | Y22: 0 | Z22: 0
A23: 14 | B23: ='Wettkampf 1'!B23 -> Ludger Hermes | C23: ='Wettkampf 1'!C23 -> Neubörger II | D23: 309.3 | F23: 309.3 | G23: 0 | H23: 0 | I23: 0 | J23: 0 | K23: 309.3 | L23: 1 | M23: 0 | N23: 0 | O23: 0 | P23: 0 | Q23: 0 | R23: 0 | X23: 0.0 | Y23: 0 | Z23: 0
A24: 15 | B24: ='Wettkampf 1'!B24 -> Rudi Fromme | C24: ='Wettkampf 1'!C24 -> Neubörger II | D24: 298.5 | F24: 298.5 | G24: 0 | H24: 0 | I24: 0 | J24: 0 | K24: 298.5 | L24: 1 | M24: 0 | N24: 0 | O24: 0 | P24: 0 | Q24: 0 | R24: 0 | X24: 0.0 | Y24: 0 | Z24: 0
A25: 16 | B25: ='Wettkampf 1'!B25 -> Alois Schmitz | C25: ='Wettkampf 1'!C25 -> Neubörger II | D25: 310.0 | F25: 310.0 | G25: 0 | H25: 0 | I25: 0 | J25: 0 | K25: 310 | L25: 1 | M25: 0 | N25: 0 | O25: 0 | P25: 0 | Q25: 0 | R25: 0 | X25: 0.0 | Y25: 0 | Z25: 0
A26: 17 | B26: ='Wettkampf 1'!B26 -> Ludwig Langen | C26: ='Wettkampf 1'!C26 -> Neubörger II | D26: 299.5 | F26: 299.5 | G26: 0 | H26: 0 | I26: 0 | J26: 0 | K26: 299.5 | L26: 1 | M26: 0 | N26: 0 | O26: 0 | P26: 0 | Q26: 0 | R26: 0 | X26: 0.0 | Y26: 0 | Z26: 0
A27: 18 | B27: ='Wettkampf 1'!B27 -> Rainer Wielenberg | C27: ='Wettkampf 1'!C27 -> Esterwegen II | D27: 306.6 | F27: 306.6 | G27: 0 | H27: 0 | I27: 306.6 | J27: 1 | K27: 0 | L27: 0 | M27: 0 | N27: 0 | O27: 0 | P27: 0 | Q27: 0 | R27: 0 | X27: 0.0 | Y27: 0 | Z27: 0
A28: 19 | B28: ='Wettkampf 1'!B28 -> Meik Sieger | C28: ='Wettkampf 1'!C28 -> Esterwegen II | D28: 305.8 | F28: 305.8 | G28: 0 | H28: 0 | I28: 305.8 | J28: 1 | K28: 0 | L28: 0 | M28: 0 | N28: 0 | O28: 0 | P28: 0 | Q28: 0 | R28: 0 | X28: 0.0 | Y28: 0 | Z28: 0
A29: 20 | B29: ='Wettkampf 1'!B29 -> Dennis Lindemann | C29: ='Wettkampf 1'!C29 -> Esterwegen II | D29: 306.6 | F29: 306.6 | G29: 0 | H29: 0 | I29: 306.6 | J29: 1 | K29: 0 | L29: 0 | M29: 0 | N29: 0 | O29: 0 | P29: 0 | Q29: 0 | R29: 0 | X29: 0.0 | Y29: 0 | Z29: 0
A30: 21 | B30: ='Wettkampf 1'!B30 -> Andreas Lindemann | C30: ='Wettkampf 1'!C30 -> Esterwegen II | D30: 308.0 | E30: x | F30: 0 | G30: 0 | H30: 0 | I30: 0 | J30: 0 | K30: 0 | L30: 0 | M30: 0 | N30: 0 | O30: 0 | P30: 0 | Q30: 0 | R30: 0 | X30: 0.0 | Y30: 0 | Z30: 0
A31: 22 | B31: ='Wettkampf 1'!B31 -> Johannes Gebken | C31: ='Wettkampf 1'!C31 -> Esterwegen II | D31: 291.1 | E31: x | F31: 0 | G31: 0 | H31: 0 | I31: 0 | J31: 0 | K31: 0 | L31: 0 | M31: 0 | N31: 0 | O31: 0 | P31: 0 | Q31: 0 | R31: 0 | X31: 0.0 | Y31: 0 | Z31: 0
A32: 23 | B32: ='Wettkampf 1'!B32 -> Jan-Niklas Lindemann | C32: ='Wettkampf 1'!C32 -> Esterwegen II | D32: 0.0 | E32: x | F32: 0 | G32: 0 | H32: 0 | I32: 0 | J32: 0 | K32: 0 | L32: 0 | M32: 0 | N32: 0 | O32: 0 | P32: 0 | Q32: 0 | R32: 0 | X32: 0.0 | Y32: 1 | Z32: 0
A33: 24 | B33: ='Wettkampf 1'!B33 -> Stefan Burlager | C33: ='Wettkampf 1'!C33 -> Esterwegen II | D33: 301.4 | F33: 301.4 | G33: 0 | H33: 0 | I33: 301.4 | J33: 1 | K33: 0 | L33: 0 | M33: 0 | N33: 0 | O33: 0 | P33: 0 | Q33: 0 | R33: 0 | X33: 0.0 | Y33: 0 | Z33: 0
A34: 25 | B34: ='Wettkampf 1'!B34 -> Franz Ostermann | C34: ='Wettkampf 1'!C34 -> Eisten II | D34: 309.6 | F34: 309.6 | G34: 0 | H34: 0 | I34: 0 | J34: 0 | K34: 0 | L34: 0 | M34: 0 | N34: 0 | O34: 0 | P34: 0 | Q34: 309.6 | R34: 1 | X34: 0.0 | Y34: 0 | Z34: 0
A35: 26 | B35: ='Wettkampf 1'!B35 -> Martin Hackmann | C35: ='Wettkampf 1'!C35 -> Eisten II | D35: 307.5 | F35: 307.5 | G35: 0 | H35: 0 | I35: 0 | J35: 0 | K35: 0 | L35: 0 | M35: 0 | N35: 0 | O35: 0 | P35: 0 | Q35: 307.5 | R35: 1 | X35: 0.0 | Y35: 0 | Z35: 0
A36: 27 | B36: ='Wettkampf 1'!B36 -> Günther Baalmann | C36: ='Wettkampf 1'!C36 -> Eisten II | D36: 312.1 | F36: 312.1 | G36: 0 | H36: 0 | I36: 0 | J36: 0 | K36: 0 | L36: 0 | M36: 0 | N36: 0 | O36: 0 | P36: 0 | Q36: 312.1 | R36: 1 | X36: 0.0 | Y36: 0 | Z36: 0
A37: 28 | B37: ='Wettkampf 1'!B37 -> Martin Poker | C37: ='Wettkampf 1'!C37 -> Eisten II | D37: 313.4 | F37: 313.4 | G37: 0 | H37: 0 | I37: 0 | J37: 0 | K37: 0 | L37: 0 | M37: 0 | N37: 0 | O37: 0 | P37: 0 | Q37: 313.4 | R37: 1 | X37: 0.0 | Y37: 0 | Z37: 0
A38: 29 | B38: ='Wettkampf 1'!B38 -> Schütze 29 | C38: ='Wettkampf 1'!C38 -> 0.0 | D38: 0.0 | F38: 0.0 | G38: 0 | H38: 0 | I38: 0 | J38: 0 | K38: 0 | L38: 0 | M38: 0 | N38: 0 | O38: 0 | P38: 0 | Q38: 0 | R38: 0 | X38: 0.0 | Y38: 1 | Z38: 0
A39: 30 | B39: ='Wettkampf 1'!B39 -> Schütze 30 | C39: ='Wettkampf 1'!C39 -> 0.0 | D39: 0.0 | E39: x | F39: 0 | G39: 0 | H39: 0 | I39: 0 | J39: 0 | K39: 0 | L39: 0 | M39: 0 | N39: 0 | O39: 0 | P39: 0 | Q39: 0 | R39: 0 | X39: 0.0 | Y39: 1 | Z39: 0
A40: 31 | B40: ='Wettkampf 1'!B40 -> Schütze 31 | C40: ='Wettkampf 1'!C40 -> 0.0 | D40: 0.0 | F40: 0.0 | G40: 0 | H40: 0 | I40: 0 | J40: 0 | K40: 0 | L40: 0 | M40: 0 | N40: 0 | O40: 0 | P40: 0 | Q40: 0 | R40: 0 | X40: =U40+V40+W40 -> 0.0 | Y40: =IF(X40=D40,1,0) -> 1 | Z40: =IF(X40=0,0,1) -> 0 | AA40: =IF(Y40+Z40=2,"Korrekt","") -> 
A41: 32 | B41: ='Wettkampf 1'!B41 -> Schütze 32 | C41: ='Wettkampf 1'!C41 -> 0.0 | D41: 0.0 | F41: 0.0 | G41: 0 | H41: 0 | I41: 0 | J41: 0 | K41: 0 | L41: 0 | M41: 0 | N41: 0 | O41: 0 | P41: 0 | Q41: 0 | R41: 0 | X41: 0.0 | Y41: 1 | Z41: 0
A42: 33 | B42: ='Wettkampf 1'!B42 -> Schütze 33 | C42: ='Wettkampf 1'!C42 -> 0.0 | D42: 0.0 | F42: 0.0 | G42: 0 | H42: 0 | I42: 0 | J42: 0 | K42: 0 | L42: 0 | M42: 0 | N42: 0 | O42: 0 | P42: 0 | Q42: 0 | R42: 0 | X42: 0.0 | Y42: 1 | Z42: 0
A43: 34 | B43: ='Wettkampf 1'!B43 -> Schütze 34 | C43: ='Wettkampf 1'!C43 -> 0.0 | D43: 0.0 | F43: 0.0 | G43: 0 | H43: 0 | I43: 0 | J43: 0 | K43: 0 | L43: 0 | M43: 0 | N43: 0 | O43: 0 | P43: 0 | Q43: 0 | R43: 0 | X43: 0.0 | Y43: 1 | Z43: 0
A44: 35 | B44: ='Wettkampf 1'!B44 -> Schütze 35 | C44: ='Wettkampf 1'!C44 -> 0.0 | D44: 0.0 | E44: x | F44: 0 | G44: 0 | H44: 0 | I44: 0 | J44: 0 | K44: 0 | L44: 0 | M44: 0 | N44: 0 | O44: 0 | P44: 0 | Q44: 0 | R44: 0 | X44: 0.0 | Y44: 1 | Z44: 0
A45: 36 | B45: ='Wettkampf 1'!B45 -> Schütze 36 | C45: ='Wettkampf 1'!C45 -> 0.0 | D45: 0.0 | E45: x | F45: 0 | G45: 0 | H45: 0 | I45: 0 | J45: 0 | K45: 0 | L45: 0 | M45: 0 | N45: 0 | O45: 0 | P45: 0 | Q45: 0 | R45: 0 | X45: =U45+V45+W45 -> 0.0 | Y45: =IF(X45=D45,1,0) -> 1 | Z45: =IF(X45=0,0,1) -> 0 | AA45: =IF(Y45+Z45=2,"Korrekt","") -> 
G46: =LARGE(G10:G45,1)+LARGE(G10:G45,2)+LARGE(G10:G45,3) -> 934.8 | H46: =SUM(H10:H45) -> 4 | I46: =LARGE(I10:I45,1)+LARGE(I10:I45,2)+LARGE(I10:I45,3) -> 919 | J46: =SUM(J10:J45) -> 4 | K46: =LARGE(K10:K45,1)+LARGE(K10:K45,2)+LARGE(K10:K45,3) -> 918.8 | L46: =SUM(L10:L45) -> 4 | M46: =LARGE(M10:M45,1)+LARGE(M10:M45,2)+LARGE(M10:M45,3) -> 910.4 | N46: =SUM(N10:N45) -> 4 | O46: =LARGE(O10:O45,1)+LARGE(O10:O45,2)+LARGE(O10:O45,3) -> 929.2 | P46: =SUM(P10:P45) -> 4 | Q46: =LARGE(Q10:Q45,1)+LARGE(Q10:Q45,2)+LARGE(Q10:Q45,3) -> 935.1 | R46: =SUM(R10:S45) -> 4
C47: per Email an: sk-huemmling@gmx.de

Sheet 3
B1: Verein / Gruppe | D1: Ergebnisse | V1: Austragungsort: | W1: =Übersicht!F4 -> Neubörger
A2: 1 | B2: ='Wettkampf 1'!B2 -> Spahnharrenstätte III | D2: =G46 -> 928.5 | E2: =IF(H46>4,"Es sind zu viele Schützen in Wertung!"," ") ->  | V2: Wettkampftag: | W2: =Übersicht!F3 -> 20.10.
A3: 2 | B3: ='Wettkampf 1'!B3 -> Esterwegen II | D3: =I46 -> 931.5 | E3: =IF(J46>4,"Es sind zu viele Schützen in Wertung!"," ") -> 
A4: 3 | B4: ='Wettkampf 1'!B4 -> Neubörger II | D4: =K46 -> 927.9 | E4: =IF(L46>4,"Es sind zu viele Schützen in Wertung!"," ") ->  | X4: Ansprechpartner für Rückfragen:
A5: 4 | B5: ='Wettkampf 1'!B5 -> Lahn V | D5: =M46 -> 903.7 | E5: =IF(N46>4,"Es sind zu viele Schützen in Wertung!"," ") ->  | V5: Name: | W5: Alois Schmitz
A6: 5 | B6: ='Wettkampf 1'!B6 -> Spahnharrenstätte II | D6: =O46 -> 921.6 | E6: =IF(P46>4,"Es sind zu viele Schützen in Wertung!"," ") ->  | V6: Tel:
A7: 6 | B7: ='Wettkampf 1'!B7 -> Eisten II | D7: =Q46 -> 939.1 | E7: =IF(R46>4,"Es sind zu viele Schützen in Wertung!"," ") ->  | V7: Standaufsicht: | W7: Ludwig Langen
B9: Einzelergebnisse: | C9: Verein / Gruppe | D9: Ergebnisse (mindestens 0 eintragen) | E9: AW? Dann x eintippen | G9: Verein 1 | I9: Verein 2 | K9: Verein 3 | M9: Verein 4 | O9: Verein 5 | Q9: Verein 6 | U9: Proberechnung bei Streifen:
A10: 1 | B10: ='Wettkampf 1'!B10 -> Heiko Micksch | C10: ='Wettkampf 1'!C10 -> Spahnharrenstätte III | D10: 309.4 | E10: x | F10: =IF(E10="x","0",D10) -> 0 | G10: =IF(C10=$B$2,F10,0) -> 0 | H10: =(IF(AND($E10="",$C10=$B$2),1,0)) -> 0 | I10: =IF($C10=$B$3,F10,0) -> 0 | J10: =(IF(AND($E10="",$C10=$B$3),1,0)) -> 0 | K10: =IF($C10=$B$4,F10,0) -> 0 | L10: =(IF(AND($E10="",$C10=$B$4),1,0)) -> 0 | M10: =IF($C10=$B$5,F10,0) -> 0 | N10: =(IF(AND($E10="",$C10=$B$5),1,0)) -> 0 | O10: =IF($C10=$B$6,F10,0) -> 0 | P10: =(IF(AND($E10="",$C10=$B$6),1,0)) -> 0 | Q10: =IF($C10=$B$7,F10,0) -> 0 | R10: =(IF(AND($E10="",$C10=$B$7),1,0)) -> 0 | X10: =U10+V10+W10 -> 0.0 | Y10: =IF(X10=D10,1,0) -> 0 | Z10: =IF(X10=0,0,1) -> 0 | AA10: =IF(Y10+Z10=2,"Korrekt","") -> 
A11: 2 | B11: ='Wettkampf 1'!B11 -> Dirk Meyer | C11: ='Wettkampf 1'!C11 -> Spahnharrenstätte III | D11: 310.4 | F11: =IF(E11="x","0",D11) -> 310.4 | G11: =IF(C11=$B$2,F11,0) -> 310.4 | H11: =(IF(AND($E11="",$C11=$B$2),1,0)) -> 1 | I11: =IF($C11=$B$3,F11,0) -> 0 | J11: =(IF(AND($E11="",$C11=$B$3),1,0)) -> 0 | K11: =IF($C11=$B$4,F11,0) -> 0 | L11: =(IF(AND($E11="",$C11=$B$4),1,0)) -> 0 | M11: =IF($C11=$B$5,F11,0) -> 0 | N11: =(IF(AND($E11="",$C11=$B$5),1,0)) -> 0 | O11: =IF($C11=$B$6,F11,0) -> 0 | P11: =(IF(AND($E11="",$C11=$B$6),1,0)) -> 0 | Q11: =IF($C11=$B$7,F11,0) -> 0 | R11: =(IF(AND($E11="",$C11=$B$7),1,0)) -> 0 | X11: =U11+V11+W11 -> 0.0 | Y11: =IF(X11=D11,1,0) -> 0 | Z11: =IF(X11=0,0,1) -> 0 | AA11: =IF(Y11+Z11=2,"Korrekt","") -> 
A12: 3 | B12: ='Wettkampf 1'!B12 -> Sebastian Albers | C12: ='Wettkampf 1'!C12 -> Spahnharrenstätte III | D12: 307.5 | F12: 307.5 | G12: 307.5 | H12: 1 | I12: 0 | J12: 0 | K12: 0 | L12: 0 | M12: 0 | N12: 0 | O12: 0 | P12: 0 | Q12: 0 | R12: 0 | X12: 0.0 | Y12: 0 | Z12: 0
A13: 4 | B13: ='Wettkampf 1'!B13 -> Achim Will | C13: ='Wettkampf 1'!C13 -> Spahnharrenstätte III | D13: 310.4 | F13: 310.4 | G13: 310.4 | H13: 1 | I13: 0 | J13: 0 | K13: 0 | L13: 0 | M13: 0 | N13: 0 | O13: 0 | P13: 0 | Q13: 0 | R13: 0 | X13: 0.0 | Y13: 0 | Z13: 0
A14: 5 | B14: ='Wettkampf 1'!B14 -> Christian Grönheim | C14: ='Wettkampf 1'!C14 -> Spahnharrenstätte III | D14: 307.7 | F14: 307.7 | G14: 307.7 | H14: 1 | I14: 0 | J14: 0 | K14: 0 | L14: 0 | M14: 0 | N14: 0 | O14: 0 | P14: 0 | Q14: 0 | R14: 0 | X14: 0.0 | Y14: 0 | Z14: 0
A15: 6 | B15: ='Wettkampf 1'!B15 -> Dieter Hanekamp | C15: ='Wettkampf 1'!C15 -> Spahnharrenstätte II | D15: 309.8 | F15: 309.8 | G15: 0 | H15: 0 | I15: 0 | J15: 0 | K15: 0 | L15: 0 | M15: 0 | N15: 0 | O15: 309.8 | P15: 1 | Q15: 0 | R15: 0 | X15: 0.0 | Y15: 0 | Z15: 0
A16: 7 | B16: ='Wettkampf 1'!B16 -> Josef Langen | C16: ='Wettkampf 1'!C16 -> Spahnharrenstätte II | D16: 304.9 | F16: 304.9 | G16: 0 | H16: 0 | I16: 0 | J16: 0 | K16: 0 | L16: 0 | M16: 0 | N16: 0 | O16: 304.9 | P16: 1 | Q16: 0 | R16: 0 | X16: 0.0 | Y16: 0 | Z16: 0
A17: 8 | B17: ='Wettkampf 1'!B17 -> Johannes Hülsmann | C17: ='Wettkampf 1'!C17 -> Spahnharrenstätte II | D17: 303.4 | F17: 303.4 | G17: 0 | H17: 0 | I17: 0 | J17: 0 | K17: 0 | L17: 0 | M17: 0 | N17: 0 | O17: 303.4 | P17: 1 | Q17: 0 | R17: 0 | X17: 0.0 | Y17: 0 | Z17: 0
A18: 9 | B18: ='Wettkampf 1'!B18 -> Heiner Kröger | C18: ='Wettkampf 1'!C18 -> Spahnharrenstätte II | D18: 306.9 | F18: 306.9 | G18: 0 | H18: 0 | I18: 0 | J18: 0 | K18: 0 | L18: 0 | M18: 0 | N18: 0 | O18: 306.9 | P18: 1 | Q18: 0 | R18: 0 | X18: 0.0 | Y18: 0 | Z18: 0
A19: 10 | B19: ='Wettkampf 1'!B19 -> Bernd Nortmann | C19: ='Wettkampf 1'!C19 -> Lahn V | D19: 301.5 | F19: 301.5 | G19: 0 | H19: 0 | I19: 0 | J19: 0 | K19: 0 | L19: 0 | M19: 301.5 | N19: 1 | O19: 0 | P19: 0 | Q19: 0 | R19: 0 | X19: 0.0 | Y19: 0 | Z19: 0
A20: 11 | B20: ='Wettkampf 1'!B20 -> Oliver Reinelt | C20: ='Wettkampf 1'!C20 -> Lahn V | D20: 293.1 | F20: 293.1 | G20: 0 | H20: 0 | I20: 0 | J20: 0 | K20: 0 | L20: 0 | M20: 293.1 | N20: 1 | O20: 0 | P20: 0 | Q20: 0 | R20: 0 | X20: 0.0 | Y20: 0 | Z20: 0
A21: 12 | B21: ='Wettkampf 1'!B21 -> Simon Schukenbrock | C21: ='Wettkampf 1'!C21 -> Lahn V | D21: 309.1 | F21: 309.1 | G21: 0 | H21: 0 | I21: 0 | J21: 0 | K21: 0 | L21: 0 | M21: 309.1 | N21: 1 | O21: 0 | P21: 0 | Q21: 0 | R21: 0 | X21: 0.0 | Y21: 0 | Z21: 0
A22: 13 | B22: ='Wettkampf 1'!B22 -> Michael Boje | C22: ='Wettkampf 1'!C22 -> Lahn V | D22: 0.0 | F22: 0.0 | G22: 0 | H22: 0 | I22: 0 | J22: 0 | K22: 0 | L22: 0 | M22: 0 | N22: 1 | O22: 0 | P22: 0 | Q22: 0 | R22: 0 | X22: 0.0 | Y22: 1 | Z22: 0
A23: 14 | B23: ='Wettkampf 1'!B23 -> Ludger Hermes | C23: ='Wettkampf 1'!C23 -> Neubörger II | D23: 312.9 | F23: 312.9 | G23: 0 | H23: 0 | I23: 0 | J23: 0 | K23: 312.9 | L23: 1 | M23: 0 | N23: 0 | O23: 0 | P23: 0 | Q23: 0 | R23: 0 | X23: 0.0 | Y23: 0 | Z23: 0
A24: 15 | B24: ='Wettkampf 1'!B24 -> Rudi Fromme | C24: ='Wettkampf 1'!C24 -> Neubörger II | D24: 306.3 | F24: 306.3 | G24: 0 | H24: 0 | I24: 0 | J24: 0 | K24: 306.3 | L24: 1 | M24: 0 | N24: 0 | O24: 0 | P24: 0 | Q24: 0 | R24: 0 | X24: 0.0 | Y24: 0 | Z24: 0
A25: 16 | B25: ='Wettkampf 1'!B25 -> Alois Schmitz | C25: ='Wettkampf 1'!C25 -> Neubörger II | D25: 308.7 | F25: 308.7 | G25: 0 | H25: 0 | I25: 0 | J25: 0 | K25: 308.7 | L25: 1 | M25: 0 | N25: 0 | O25: 0 | P25: 0 | Q25: 0 | R25: 0 | X25: 0.0 | Y25: 0 | Z25: 0
A26: 17 | B26: ='Wettkampf 1'!B26 -> Ludwig Langen | C26: ='Wettkampf 1'!C26 -> Neubörger II | D26: 305.8 | F26: 305.8 | G26: 0 | H26: 0 | I26: 0 | J26: 0 | K26: 305.8 | L26: 1 | M26: 0 | N26: 0 | O26: 0 | P26: 0 | Q26: 0 | R26: 0 | X26: 0.0 | Y26: 0 | Z26: 0
A27: 18 | B27: ='Wettkampf 1'!B27 -> Rainer Wielenberg | C27: ='Wettkampf 1'!C27 -> Esterwegen II | D27: 306.4 | F27: 306.4 | G27: 0 | H27: 0 | I27: 306.4 | J27: 1 | K27: 0 | L27: 0 | M27: 0 | N27: 0 | O27: 0 | P27: 0 | Q27: 0 | R27: 0 | X27: 0.0 | Y27: 0 | Z27: 0
A28: 19 | B28: ='Wettkampf 1'!B28 -> Meik Sieger | C28: ='Wettkampf 1'!C28 -> Esterwegen II | D28: 309.2 | F28: 309.2 | G28: 0 | H28: 0 | I28: 309.2 | J28: 1 | K28: 0 | L28: 0 | M28: 0 | N28: 0 | O28: 0 | P28: 0 | Q28: 0 | R28: 0 | X28: 0.0 | Y28: 0 | Z28: 0
A29: 20 | B29: ='Wettkampf 1'!B29 -> Dennis Lindemann | C29: ='Wettkampf 1'!C29 -> Esterwegen II | D29: 310.3 | F29: 310.3 | G29: 0 | H29: 0 | I29: 310.3 | J29: 1 | K29: 0 | L29: 0 | M29: 0 | N29: 0 | O29: 0 | P29: 0 | Q29: 0 | R29: 0 | X29: 0.0 | Y29: 0 | Z29: 0
A30: 21 | B30: ='Wettkampf 1'!B30 -> Andreas Lindemann | C30: ='Wettkampf 1'!C30 -> Esterwegen II | D30: 312.0 | F30: 312.0 | G30: 0 | H30: 0 | I30: 312 | J30: 1 | K30: 0 | L30: 0 | M30: 0 | N30: 0 | O30: 0 | P30: 0 | Q30: 0 | R30: 0 | X30: 0.0 | Y30: 0 | Z30: 0
A31: 22 | B31: ='Wettkampf 1'!B31 -> Johannes Gebken | C31: ='Wettkampf 1'!C31 -> Esterwegen II | D31: 290.6 | E31: x | F31: 0 | G31: 0 | H31: 0 | I31: 0 | J31: 0 | K31: 0 | L31: 0 | M31: 0 | N31: 0 | O31: 0 | P31: 0 | Q31: 0 | R31: 0 | X31: 0.0 | Y31: 0 | Z31: 0
A32: 23 | B32: ='Wettkampf 1'!B32 -> Jan-Niklas Lindemann | C32: ='Wettkampf 1'!C32 -> Esterwegen II | D32: 0.0 | E32: x | F32: 0 | G32: 0 | H32: 0 | I32: 0 | J32: 0 | K32: 0 | L32: 0 | M32: 0 | N32: 0 | O32: 0 | P32: 0 | Q32: 0 | R32: 0 | X32: 0.0 | Y32: 1 | Z32: 0
A33: 24 | B33: ='Wettkampf 1'!B33 -> Stefan Burlager | C33: ='Wettkampf 1'!C33 -> Esterwegen II | D33: 296.8 | E33: x | F33: 0 | G33: 0 | H33: 0 | I33: 0 | J33: 0 | K33: 0 | L33: 0 | M33: 0 | N33: 0 | O33: 0 | P33: 0 | Q33: 0 | R33: 0 | X33: 0.0 | Y33: 0 | Z33: 0
A34: 25 | B34: ='Wettkampf 1'!B34 -> Franz Ostermann | C34: ='Wettkampf 1'!C34 -> Eisten II | D34: 306.8 | F34: 306.8 | G34: 0 | H34: 0 | I34: 0 | J34: 0 | K34: 0 | L34: 0 | M34: 0 | N34: 0 | O34: 0 | P34: 0 | Q34: 306.8 | R34: 1 | X34: 0.0 | Y34: 0 | Z34: 0
A35: 26 | B35: ='Wettkampf 1'!B35 -> Martin Hackmann | C35: ='Wettkampf 1'!C35 -> Eisten II | D35: 311.4 | F35: 311.4 | G35: 0 | H35: 0 | I35: 0 | J35: 0 | K35: 0 | L35: 0 | M35: 0 | N35: 0 | O35: 0 | P35: 0 | Q35: 311.4 | R35: 1 | X35: 0.0 | Y35: 0 | Z35: 0
A36: 27 | B36: ='Wettkampf 1'!B36 -> Günther Baalmann | C36: ='Wettkampf 1'!C36 -> Eisten II | D36: 316.7 | F36: 316.7 | G36: 0 | H36: 0 | I36: 0 | J36: 0 | K36: 0 | L36: 0 | M36: 0 | N36: 0 | O36: 0 | P36: 0 | Q36: 316.7 | R36: 1 | X36: 0.0 | Y36: 0 | Z36: 0
A37: 28 | B37: ='Wettkampf 1'!B37 -> Martin Poker | C37: ='Wettkampf 1'!C37 -> Eisten II | D37: 311.0 | F37: 311.0 | G37: 0 | H37: 0 | I37: 0 | J37: 0 | K37: 0 | L37: 0 | M37: 0 | N37: 0 | O37: 0 | P37: 0 | Q37: 311 | R37: 1 | X37: 0.0 | Y37: 0 | Z37: 0
A38: 29 | B38: ='Wettkampf 1'!B38 -> Schütze 29 | C38: ='Wettkampf 1'!C38 -> 0.0 | D38: 0.0 | E38: x | F38: 0 | G38: 0 | H38: 0 | I38: 0 | J38: 0 | K38: 0 | L38: 0 | M38: 0 | N38: 0 | O38: 0 | P38: 0 | Q38: 0 | R38: 0 | X38: 0.0 | Y38: 1 | Z38: 0
A39: 30 | B39: ='Wettkampf 1'!B39 -> Schütze 30 | C39: ='Wettkampf 1'!C39 -> 0.0 | D39: 0.0 | E39: x | F39: 0 | G39: 0 | H39: 0 | I39: 0 | J39: 0 | K39: 0 | L39: 0 | M39: 0 | N39: 0 | O39: 0 | P39: 0 | Q39: 0 | R39: 0 | X39: 0.0 | Y39: 1 | Z39: 0
A40: 31 | B40: ='Wettkampf 1'!B40 -> Schütze 31 | C40: ='Wettkampf 1'!C40 -> 0.0 | D40: 0.0 | F40: 0.0 | G40: 0 | H40: 0 | I40: 0 | J40: 0 | K40: 0 | L40: 0 | M40: 0 | N40: 0 | O40: 0 | P40: 0 | Q40: 0 | R40: 0 | X40: 0.0 | Y40: 1 | Z40: 0
A41: 32 | B41: ='Wettkampf 1'!B41 -> Schütze 32 | C41: ='Wettkampf 1'!C41 -> 0.0 | D41: 0.0 | F41: 0.0 | G41: 0 | H41: 0 | I41: 0 | J41: 0 | K41: 0 | L41: 0 | M41: 0 | N41: 0 | O41: 0 | P41: 0 | Q41: 0 | R41: 0 | X41: 0.0 | Y41: 1 | Z41: 0
A42: 33 | B42: ='Wettkampf 1'!B42 -> Schütze 33 | C42: ='Wettkampf 1'!C42 -> 0.0 | D42: 0.0 | F42: 0.0 | G42: 0 | H42: 0 | I42: 0 | J42: 0 | K42: 0 | L42: 0 | M42: 0 | N42: 0 | O42: 0 | P42: 0 | Q42: 0 | R42: 0 | X42: 0.0 | Y42: 1 | Z42: 0
A43: 34 | B43: ='Wettkampf 1'!B43 -> Schütze 34 | C43: ='Wettkampf 1'!C43 -> 0.0 | D43: 0.0 | F43: 0.0 | G43: 0 | H43: 0 | I43: 0 | J43: 0 | K43: 0 | L43: 0 | M43: 0 | N43: 0 | O43: 0 | P43: 0 | Q43: 0 | R43: 0 | X43: 0.0 | Y43: 1 | Z43: 0
A44: 35 | B44: ='Wettkampf 1'!B44 -> Schütze 35 | C44: ='Wettkampf 1'!C44 -> 0.0 | D44: 0.0 | E44: x | F44: 0 | G44: 0 | H44: 0 | I44: 0 | J44: 0 | K44: 0 | L44: 0 | M44: 0 | N44: 0 | O44: 0 | P44: 0 | Q44: 0 | R44: 0 | X44: 0.0 | Y44: 1 | Z44: 0
A45: 36 | B45: ='Wettkampf 1'!B45 -> Schütze 36 | C45: ='Wettkampf 1'!C45 -> 0.0 | D45: 0.0 | E45: x | F45: 0 | G45: 0 | H45: 0 | I45: 0 | J45: 0 | K45: 0 | L45: 0 | M45: 0 | N45: 0 | O45: 0 | P45: 0 | Q45: 0 | R45: 0 | X45: 0.0 | Y45: 1 | Z45: 0
G46: =LARGE(G10:G45,1)+LARGE(G10:G45,2)+LARGE(G10:G45,3) -> 928.5 | H46: =SUM(H10:H45) -> 4 | I46: =LARGE(I10:I45,1)+LARGE(I10:I45,2)+LARGE(I10:I45,3) -> 931.5 | J46: =SUM(J10:J45) -> 4 | K46: =LARGE(K10:K45,1)+LARGE(K10:K45,2)+LARGE(K10:K45,3) -> 927.9 | L46: =SUM(L10:L45) -> 4 | M46: =LARGE(M10:M45,1)+LARGE(M10:M45,2)+LARGE(M10:M45,3) -> 903.7 | N46: =SUM(N10:N45) -> 4 | O46: =LARGE(O10:O45,1)+LARGE(O10:O45,2)+LARGE(O10:O45,3) -> 921.6 | P46: =SUM(P10:P45) -> 4 | Q46: =LARGE(Q10:Q45,1)+LARGE(Q10:Q45,2)+LARGE(Q10:Q45,3) -> 939.1 | R46: =SUM(R10:S45) -> 4
C47: per Email an: sk-huemmling@gmx.de

Sheet 4
B1: Verein / Gruppe | D1: Ergebnisse | V1: Austragungsort: | W1: =Übersicht!G4 -> Lahn
A2: 1 | B2: ='Wettkampf 1'!B2 -> Spahnharrenstätte III | D2: =G46 -> 935.6 | E2: =IF(H46>4,"Es sind zu viele Schützen in Wertung!"," ") ->  | V2: Wettkampftag: | W2: =Übersicht!G3 -> 10.11.
A3: 2 | B3: ='Wettkampf 1'!B3 -> Esterwegen II | D3: =I46 -> 921.7 | E3: =IF(J46>4,"Es sind zu viele Schützen in Wertung!"," ") -> 
A4: 3 | B4: ='Wettkampf 1'!B4 -> Neubörger II | D4: =K46 -> 928.0 | E4: =IF(L46>4,"Es sind zu viele Schützen in Wertung!"," ") ->  | X4: Ansprechpartner für Rückfragen:
A5: 4 | B5: ='Wettkampf 1'!B5 -> Lahn V | D5: =M46 -> 915.3 | E5: =IF(N46>4,"Es sind zu viele Schützen in Wertung!"," ") ->  | V5: Name: | W5: Lahn V
A6: 5 | B6: ='Wettkampf 1'!B6 -> Spahnharrenstätte II | D6: =O46 -> 929.7 | E6: =IF(P46>4,"Es sind zu viele Schützen in Wertung!"," ") ->  | V6: Tel:
A7: 6 | B7: ='Wettkampf 1'!B7 -> Eisten II | D7: =Q46 -> 937.5 | E7: =IF(R46>4,"Es sind zu viele Schützen in Wertung!"," ") ->  | V7: Standaufsicht: | W7: Lahn V
B9: Einzelergebnisse: | C9: Verein / Gruppe | D9: Ergebnisse (mindestens 0 eintragen) | E9: AW? Dann x eintippen | G9: Verein 1 | I9: Verein 2 | K9: Verein 3 | M9: Verein 4 | O9: Verein 5 | Q9: Verein 6 | U9: Proberechnung bei Streifen:
A10: 1 | B10: ='Wettkampf 1'!B10 -> Heiko Micksch | C10: ='Wettkampf 1'!C10 -> Spahnharrenstätte III | D10: 303.6 | E10: x | F10: =IF(E10="x","0",D10) -> 0 | G10: =IF(C10=$B$2,F10,0) -> 0 | H10: =(IF(AND($E10="",$C10=$B$2),1,0)) -> 0 | I10: =IF($C10=$B$3,F10,0) -> 0 | J10: =(IF(AND($E10="",$C10=$B$3),1,0)) -> 0 | K10: =IF($C10=$B$4,F10,0) -> 0 | L10: =(IF(AND($E10="",$C10=$B$4),1,0)) -> 0 | M10: =IF($C10=$B$5,F10,0) -> 0 | N10: =(IF(AND($E10="",$C10=$B$5),1,0)) -> 0 | O10: =IF($C10=$B$6,F10,0) -> 0 | P10: =(IF(AND($E10="",$C10=$B$6),1,0)) -> 0 | Q10: =IF($C10=$B$7,F10,0) -> 0 | R10: =(IF(AND($E10="",$C10=$B$7),1,0)) -> 0 | X10: =U10+V10+W10 -> 0.0 | Y10: =IF(X10=D10,1,0) -> 0 | Z10: =IF(X10=0,0,1) -> 0 | AA10: =IF(Y10+Z10=2,"Korrekt","") -> 
A11: 2 | B11: ='Wettkampf 1'!B11 -> Dirk Meyer | C11: ='Wettkampf 1'!C11 -> Spahnharrenstätte III | D11: 311.9 | F11: =IF(E11="x","0",D11) -> 311.9 | G11: =IF(C11=$B$2,F11,0) -> 311.9 | H11: =(IF(AND($E11="",$C11=$B$2),1,0)) -> 1 | I11: =IF($C11=$B$3,F11,0) -> 0 | J11: =(IF(AND($E11="",$C11=$B$3),1,0)) -> 0 | K11: =IF($C11=$B$4,F11,0) -> 0 | L11: =(IF(AND($E11="",$C11=$B$4),1,0)) -> 0 | M11: =IF($C11=$B$5,F11,0) -> 0 | N11: =(IF(AND($E11="",$C11=$B$5),1,0)) -> 0 | O11: =IF($C11=$B$6,F11,0) -> 0 | P11: =(IF(AND($E11="",$C11=$B$6),1,0)) -> 0 | Q11: =IF($C11=$B$7,F11,0) -> 0 | R11: =(IF(AND($E11="",$C11=$B$7),1,0)) -> 0 | X11: =U11+V11+W11 -> 0.0 | Y11: =IF(X11=D11,1,0) -> 0 | Z11: =IF(X11=0,0,1) -> 0 | AA11: =IF(Y11+Z11=2,"Korrekt","") -> 
A12: 3 | B12: ='Wettkampf 1'!B12 -> Sebastian Albers | C12: ='Wettkampf 1'!C12 -> Spahnharrenstätte III | D12: 304.7 | F12: 304.7 | G12: 304.7 | H12: 1 | I12: 0 | J12: 0 | K12: 0 | L12: 0 | M12: 0 | N12: 0 | O12: 0 | P12: 0 | Q12: 0 | R12: 0 | X12: 0.0 | Y12: 0 | Z12: 0
A13: 4 | B13: ='Wettkampf 1'!B13 -> Achim Will | C13: ='Wettkampf 1'!C13 -> Spahnharrenstätte III | D13: 313.7 | F13: 313.7 | G13: 313.7 | H13: 1 | I13: 0 | J13: 0 | K13: 0 | L13: 0 | M13: 0 | N13: 0 | O13: 0 | P13: 0 | Q13: 0 | R13: 0 | X13: 0.0 | Y13: 0 | Z13: 0
A14: 5 | B14: ='Wettkampf 1'!B14 -> Christian Grönheim | C14: ='Wettkampf 1'!C14 -> Spahnharrenstätte III | D14: 310.0 | F14: 310.0 | G14: 310 | H14: 1 | I14: 0 | J14: 0 | K14: 0 | L14: 0 | M14: 0 | N14: 0 | O14: 0 | P14: 0 | Q14: 0 | R14: 0 | X14: 0.0 | Y14: 0 | Z14: 0
A15: 6 | B15: ='Wettkampf 1'!B15 -> Dieter Hanekamp | C15: ='Wettkampf 1'!C15 -> Spahnharrenstätte II | D15: 310.7 | F15: 310.7 | G15: 0 | H15: 0 | I15: 0 | J15: 0 | K15: 0 | L15: 0 | M15: 0 | N15: 0 | O15: 310.7 | P15: 1 | Q15: 0 | R15: 0 | X15: 0.0 | Y15: 0 | Z15: 0
A16: 7 | B16: ='Wettkampf 1'!B16 -> Josef Langen | C16: ='Wettkampf 1'!C16 -> Spahnharrenstätte II | D16: 300.3 | F16: 300.3 | G16: 0 | H16: 0 | I16: 0 | J16: 0 | K16: 0 | L16: 0 | M16: 0 | N16: 0 | O16: 300.3 | P16: 1 | Q16: 0 | R16: 0 | X16: 0.0 | Y16: 0 | Z16: 0
A17: 8 | B17: ='Wettkampf 1'!B17 -> Johannes Hülsmann | C17: ='Wettkampf 1'!C17 -> Spahnharrenstätte II | D17: 308.8 | F17: 308.8 | G17: 0 | H17: 0 | I17: 0 | J17: 0 | K17: 0 | L17: 0 | M17: 0 | N17: 0 | O17: 308.8 | P17: 1 | Q17: 0 | R17: 0 | X17: 0.0 | Y17: 0 | Z17: 0
A18: 9 | B18: ='Wettkampf 1'!B18 -> Heiner Kröger | C18: ='Wettkampf 1'!C18 -> Spahnharrenstätte II | D18: 310.2 | F18: 310.2 | G18: 0 | H18: 0 | I18: 0 | J18: 0 | K18: 0 | L18: 0 | M18: 0 | N18: 0 | O18: 310.2 | P18: 1 | Q18: 0 | R18: 0 | X18: 0.0 | Y18: 0 | Z18: 0
A19: 10 | B19: ='Wettkampf 1'!B19 -> Bernd Nortmann | C19: ='Wettkampf 1'!C19 -> Lahn V | D19: 308.6 | F19: 308.6 | G19: 0 | H19: 0 | I19: 0 | J19: 0 | K19: 0 | L19: 0 | M19: 308.6 | N19: 1 | O19: 0 | P19: 0 | Q19: 0 | R19: 0 | X19: 0.0 | Y19: 0 | Z19: 0
A20: 11 | B20: ='Wettkampf 1'!B20 -> Oliver Reinelt | C20: ='Wettkampf 1'!C20 -> Lahn V | D20: 298.5 | F20: 298.5 | G20: 0 | H20: 0 | I20: 0 | J20: 0 | K20: 0 | L20: 0 | M20: 298.5 | N20: 1 | O20: 0 | P20: 0 | Q20: 0 | R20: 0 | X20: 0.0 | Y20: 0 | Z20: 0
A21: 12 | B21: ='Wettkampf 1'!B21 -> Simon Schukenbrock | C21: ='Wettkampf 1'!C21 -> Lahn V | D21: 308.2 | F21: 308.2 | G21: 0 | H21: 0 | I21: 0 | J21: 0 | K21: 0 | L21: 0 | M21: 308.2 | N21: 1 | O21: 0 | P21: 0 | Q21: 0 | R21: 0 | X21: 0.0 | Y21: 0 | Z21: 0
A22: 13 | B22: ='Wettkampf 1'!B22 -> Michael Boje | C22: ='Wettkampf 1'!C22 -> Lahn V | F22: 0.0 | G22: 0 | H22: 0 | I22: 0 | J22: 0 | K22: 0 | L22: 0 | M22: 0 | N22: 1 | O22: 0 | P22: 0 | Q22: 0 | R22: 0 | X22: 0.0 | Y22: 1 | Z22: 0
A23: 14 | B23: ='Wettkampf 1'!B23 -> Ludger Hermes | C23: ='Wettkampf 1'!C23 -> Neubörger II | D23: 308.2 | F23: 308.2 | G23: 0 | H23: 0 | I23: 0 | J23: 0 | K23: 308.2 | L23: 1 | M23: 0 | N23: 0 | O23: 0 | P23: 0 | Q23: 0 | R23: 0 | X23: 0.0 | Y23: 0 | Z23: 0
A24: 15 | B24: ='Wettkampf 1'!B24 -> Rudi Fromme | C24: ='Wettkampf 1'!C24 -> Neubörger II | D24: 302.3 | F24: 302.3 | G24: 0 | H24: 0 | I24: 0 | J24: 0 | K24: 302.3 | L24: 1 | M24: 0 | N24: 0 | O24: 0 | P24: 0 | Q24: 0 | R24: 0 | X24: 0.0 | Y24: 0 | Z24: 0
A25: 16 | B25: ='Wettkampf 1'!B25 -> Alois Schmitz | C25: ='Wettkampf 1'!C25 -> Neubörger II | D25: 311.8 | F25: 311.8 | G25: 0 | H25: 0 | I25: 0 | J25: 0 | K25: 311.8 | L25: 1 | M25: 0 | N25: 0 | O25: 0 | P25: 0 | Q25: 0 | R25: 0 | X25: 0.0 | Y25: 0 | Z25: 0
A26: 17 | B26: ='Wettkampf 1'!B26 -> Ludwig Langen | C26: ='Wettkampf 1'!C26 -> Neubörger II | D26: 308.0 | F26: 308.0 | G26: 0 | H26: 0 | I26: 0 | J26: 0 | K26: 308 | L26: 1 | M26: 0 | N26: 0 | O26: 0 | P26: 0 | Q26: 0 | R26: 0 | X26: 0.0 | Y26: 0 | Z26: 0
A27: 18 | B27: ='Wettkampf 1'!B27 -> Rainer Wielenberg | C27: ='Wettkampf 1'!C27 -> Esterwegen II | D27: 302.9 | F27: 302.9 | G27: 0 | H27: 0 | I27: 302.9 | J27: 1 | K27: 0 | L27: 0 | M27: 0 | N27: 0 | O27: 0 | P27: 0 | Q27: 0 | R27: 0 | X27: 0.0 | Y27: 0 | Z27: 0
A28: 19 | B28: ='Wettkampf 1'!B28 -> Meik Sieger | C28: ='Wettkampf 1'!C28 -> Esterwegen II | D28: 312.3 | F28: 312.3 | G28: 0 | H28: 0 | I28: 312.3 | J28: 1 | K28: 0 | L28: 0 | M28: 0 | N28: 0 | O28: 0 | P28: 0 | Q28: 0 | R28: 0 | X28: 0.0 | Y28: 0 | Z28: 0
A29: 20 | B29: ='Wettkampf 1'!B29 -> Dennis Lindemann | C29: ='Wettkampf 1'!C29 -> Esterwegen II | D29: 306.5 | F29: 306.5 | G29: 0 | H29: 0 | I29: 306.5 | J29: 1 | K29: 0 | L29: 0 | M29: 0 | N29: 0 | O29: 0 | P29: 0 | Q29: 0 | R29: 0 | X29: 0.0 | Y29: 0 | Z29: 0
A30: 21 | B30: ='Wettkampf 1'!B30 -> Andreas Lindemann | C30: ='Wettkampf 1'!C30 -> Esterwegen II | D30: 301.7 | F30: 301.7 | G30: 0 | H30: 0 | I30: 301.7 | J30: 1 | K30: 0 | L30: 0 | M30: 0 | N30: 0 | O30: 0 | P30: 0 | Q30: 0 | R30: 0 | X30: 0.0 | Y30: 0 | Z30: 0
A31: 22 | B31: ='Wettkampf 1'!B31 -> Johannes Gebken | C31: ='Wettkampf 1'!C31 -> Esterwegen II | E31: x | F31: 0 | G31: 0 | H31: 0 | I31: 0 | J31: 0 | K31: 0 | L31: 0 | M31: 0 | N31: 0 | O31: 0 | P31: 0 | Q31: 0 | R31: 0 | X31: 0.0 | Y31: 1 | Z31: 0
A32: 23 | B32: ='Wettkampf 1'!B32 -> Jan-Niklas Lindemann | C32: ='Wettkampf 1'!C32 -> Esterwegen II | E32: x | F32: 0 | G32: 0 | H32: 0 | I32: 0 | J32: 0 | K32: 0 | L32: 0 | M32: 0 | N32: 0 | O32: 0 | P32: 0 | Q32: 0 | R32: 0 | X32: 0.0 | Y32: 1 | Z32: 0
A33: 24 | B33: ='Wettkampf 1'!B33 -> Stefan Burlager | C33: ='Wettkampf 1'!C33 -> Esterwegen II | E33: x | F33: 0 | G33: 0 | H33: 0 | I33: 0 | J33: 0 | K33: 0 | L33: 0 | M33: 0 | N33: 0 | O33: 0 | P33: 0 | Q33: 0 | R33: 0 | X33: 0.0 | Y33: 1 | Z33: 0
A34: 25 | B34: ='Wettkampf 1'!B34 -> Franz Ostermann | C34: ='Wettkampf 1'!C34 -> Eisten II | D34: 300.2 | F34: 300.2 | G34: 0 | H34: 0 | I34: 0 | J34: 0 | K34: 0 | L34: 0 | M34: 0 | N34: 0 | O34: 0 | P34: 0 | Q34: 300.2 | R34: 1 | X34: 0.0 | Y34: 0 | Z34: 0
A35: 26 | B35: ='Wettkampf 1'!B35 -> Martin Hackmann | C35: ='Wettkampf 1'!C35 -> Eisten II | D35: 313.3 | F35: 313.3 | G35: 0 | H35: 0 | I35: 0 | J35: 0 | K35: 0 | L35: 0 | M35: 0 | N35: 0 | O35: 0 | P35: 0 | Q35: 313.3 | R35: 1 | X35: 0.0 | Y35: 0 | Z35: 0
A36: 27 | B36: ='Wettkampf 1'!B36 -> Günther Baalmann | C36: ='Wettkampf 1'!C36 -> Eisten II | D36: 313.7 | F36: 313.7 | G36: 0 | H36: 0 | I36: 0 | J36: 0 | K36: 0 | L36: 0 | M36: 0 | N36: 0 | O36: 0 | P36: 0 | Q36: 313.7 | R36: 1 | X36: 0.0 | Y36: 0 | Z36: 0
A37: 28 | B37: ='Wettkampf 1'!B37 -> Martin Poker | C37: ='Wettkampf 1'!C37 -> Eisten II | D37: 310.5 | F37: 310.5 | G37: 0 | H37: 0 | I37: 0 | J37: 0 | K37: 0 | L37: 0 | M37: 0 | N37: 0 | O37: 0 | P37: 0 | Q37: 310.5 | R37: 1 | X37: 0.0 | Y37: 0 | Z37: 0
A38: 29 | B38: ='Wettkampf 1'!B38 -> Schütze 29 | C38: ='Wettkampf 1'!C38 -> 0.0 | E38: x | F38: 0 | G38: 0 | H38: 0 | I38: 0 | J38: 0 | K38: 0 | L38: 0 | M38: 0 | N38: 0 | O38: 0 | P38: 0 | Q38: 0 | R38: 0 | X38: 0.0 | Y38: 1 | Z38: 0
A39: 30 | B39: ='Wettkampf 1'!B39 -> Schütze 30 | C39: ='Wettkampf 1'!C39 -> 0.0 | E39: x | F39: 0 | G39: 0 | H39: 0 | I39: 0 | J39: 0 | K39: 0 | L39: 0 | M39: 0 | N39: 0 | O39: 0 | P39: 0 | Q39: 0 | R39: 0 | X39: 0.0 | Y39: 1 | Z39: 0
A40: 31 | B40: ='Wettkampf 1'!B40 -> Schütze 31 | C40: ='Wettkampf 1'!C40 -> 0.0 | F40: 0.0 | G40: 0 | H40: 0 | I40: 0 | J40: 0 | K40: 0 | L40: 0 | M40: 0 | N40: 0 | O40: 0 | P40: 0 | Q40: 0 | R40: 0 | X40: 0.0 | Y40: 1 | Z40: 0
A41: 32 | B41: ='Wettkampf 1'!B41 -> Schütze 32 | C41: ='Wettkampf 1'!C41 -> 0.0 | F41: 0.0 | G41: 0 | H41: 0 | I41: 0 | J41: 0 | K41: 0 | L41: 0 | M41: 0 | N41: 0 | O41: 0 | P41: 0 | Q41: 0 | R41: 0 | X41: 0.0 | Y41: 1 | Z41: 0
A42: 33 | B42: ='Wettkampf 1'!B42 -> Schütze 33 | C42: ='Wettkampf 1'!C42 -> 0.0 | F42: 0.0 | G42: 0 | H42: 0 | I42: 0 | J42: 0 | K42: 0 | L42: 0 | M42: 0 | N42: 0 | O42: 0 | P42: 0 | Q42: 0 | R42: 0 | X42: 0.0 | Y42: 1 | Z42: 0
A43: 34 | B43: ='Wettkampf 1'!B43 -> Schütze 34 | C43: ='Wettkampf 1'!C43 -> 0.0 | F43: 0.0 | G43: 0 | H43: 0 | I43: 0 | J43: 0 | K43: 0 | L43: 0 | M43: 0 | N43: 0 | O43: 0 | P43: 0 | Q43: 0 | R43: 0 | X43: 0.0 | Y43: 1 | Z43: 0
A44: 35 | B44: ='Wettkampf 1'!B44 -> Schütze 35 | C44: ='Wettkampf 1'!C44 -> 0.0 | E44: x | F44: 0 | G44: 0 | H44: 0 | I44: 0 | J44: 0 | K44: 0 | L44: 0 | M44: 0 | N44: 0 | O44: 0 | P44: 0 | Q44: 0 | R44: 0 | X44: 0.0 | Y44: 1 | Z44: 0
A45: 36 | B45: ='Wettkampf 1'!B45 -> Schütze 36 | C45: ='Wettkampf 1'!C45 -> 0.0 | E45: x | F45: 0 | G45: 0 | H45: 0 | I45: 0 | J45: 0 | K45: 0 | L45: 0 | M45: 0 | N45: 0 | O45: 0 | P45: 0 | Q45: 0 | R45: 0 | X45: 0.0 | Y45: 1 | Z45: 0
G46: =LARGE(G10:G45,1)+LARGE(G10:G45,2)+LARGE(G10:G45,3) -> 935.6 | H46: =SUM(H10:H45) -> 4 | I46: =LARGE(I10:I45,1)+LARGE(I10:I45,2)+LARGE(I10:I45,3) -> 921.7 | J46: =SUM(J10:J45) -> 4 | K46: =LARGE(K10:K45,1)+LARGE(K10:K45,2)+LARGE(K10:K45,3) -> 928 | L46: =SUM(L10:L45) -> 4 | M46: =LARGE(M10:M45,1)+LARGE(M10:M45,2)+LARGE(M10:M45,3) -> 915.3 | N46: =SUM(N10:N45) -> 4 | O46: =LARGE(O10:O45,1)+LARGE(O10:O45,2)+LARGE(O10:O45,3) -> 929.7 | P46: =SUM(P10:P45) -> 4 | Q46: =LARGE(Q10:Q45,1)+LARGE(Q10:Q45,2)+LARGE(Q10:Q45,3) -> 937.5 | R46: =SUM(R10:S45) -> 4
C47: per Email an: sk-huemmling@gmx.de

Sheet 5
B1: Verein / Gruppe | D1: Ergebnisse | V1: Austragungsort: | W1: =Übersicht!H4 -> Spahnharrenstätte
A2: 1 | B2: ='Wettkampf 1'!B2 -> Spahnharrenstätte III | D2: =G46 -> 937.5 | E2: =IF(H46>4,"Es sind zu viele Schützen in Wertung!"," ") ->  | V2: Wettkampftag: | W2: =Übersicht!H3 -> 24.11.
A3: 2 | B3: ='Wettkampf 1'!B3 -> Esterwegen II | D3: =I46 -> 925.4 | E3: =IF(J46>4,"Es sind zu viele Schützen in Wertung!"," ") -> 
A4: 3 | B4: ='Wettkampf 1'!B4 -> Neubörger II | D4: =K46 -> 935.3 | E4: =IF(L46>4,"Es sind zu viele Schützen in Wertung!"," ") ->  | X4: Ansprechpartner für Rückfragen:
A5: 4 | B5: ='Wettkampf 1'!B5 -> Lahn V | D5: =M46 -> 925.3 | E5: =IF(N46>4,"Es sind zu viele Schützen in Wertung!"," ") ->  | V5: Name: | W5: Hülsmann
A6: 5 | B6: ='Wettkampf 1'!B6 -> Spahnharrenstätte II | D6: =O46 -> 930.9 | E6: =IF(P46>4,"Es sind zu viele Schützen in Wertung!"," ") ->  | V6: Tel:
A7: 6 | B7: ='Wettkampf 1'!B7 -> Eisten II | D7: =Q46 -> 936.7 | E7: =IF(R46>4,"Es sind zu viele Schützen in Wertung!"," ") ->  | V7: Standaufsicht: | W7: Hülsmann
B9: Einzelergebnisse: | C9: Verein / Gruppe | D9: Ergebnisse (mindestens 0 eintragen) | E9: AW? Dann x eintippen | G9: Verein 1 | I9: Verein 2 | K9: Verein 3 | M9: Verein 4 | O9: Verein 5 | Q9: Verein 6 | U9: Proberechnung bei Streifen:
A10: 1 | B10: ='Wettkampf 1'!B10 -> Heiko Micksch | C10: ='Wettkampf 1'!C10 -> Spahnharrenstätte III | D10: 304.3 | E10: x | F10: =IF(E10="x","0",D10) -> 0 | G10: =IF(C10=$B$2,F10,0) -> 0 | H10: =(IF(AND($E10="",$C10=$B$2),1,0)) -> 0 | I10: =IF($C10=$B$3,F10,0) -> 0 | J10: =(IF(AND($E10="",$C10=$B$3),1,0)) -> 0 | K10: =IF($C10=$B$4,F10,0) -> 0 | L10: =(IF(AND($E10="",$C10=$B$4),1,0)) -> 0 | M10: =IF($C10=$B$5,F10,0) -> 0 | N10: =(IF(AND($E10="",$C10=$B$5),1,0)) -> 0 | O10: =IF($C10=$B$6,F10,0) -> 0 | P10: =(IF(AND($E10="",$C10=$B$6),1,0)) -> 0 | Q10: =IF($C10=$B$7,F10,0) -> 0 | R10: =(IF(AND($E10="",$C10=$B$7),1,0)) -> 0 | X10: =U10+V10+W10 -> 0.0 | Y10: =IF(X10=D10,1,0) -> 0 | Z10: =IF(X10=0,0,1) -> 0 | AA10: =IF(Y10+Z10=2,"Korrekt","") -> 
A11: 2 | B11: ='Wettkampf 1'!B11 -> Dirk Meyer | C11: ='Wettkampf 1'!C11 -> Spahnharrenstätte III | D11: 312.8 | F11: =IF(E11="x","0",D11) -> 312.8 | G11: =IF(C11=$B$2,F11,0) -> 312.8 | H11: =(IF(AND($E11="",$C11=$B$2),1,0)) -> 1 | I11: =IF($C11=$B$3,F11,0) -> 0 | J11: =(IF(AND($E11="",$C11=$B$3),1,0)) -> 0 | K11: =IF($C11=$B$4,F11,0) -> 0 | L11: =(IF(AND($E11="",$C11=$B$4),1,0)) -> 0 | M11: =IF($C11=$B$5,F11,0) -> 0 | N11: =(IF(AND($E11="",$C11=$B$5),1,0)) -> 0 | O11: =IF($C11=$B$6,F11,0) -> 0 | P11: =(IF(AND($E11="",$C11=$B$6),1,0)) -> 0 | Q11: =IF($C11=$B$7,F11,0) -> 0 | R11: =(IF(AND($E11="",$C11=$B$7),1,0)) -> 0 | X11: =U11+V11+W11 -> 0.0 | Y11: =IF(X11=D11,1,0) -> 0 | Z11: =IF(X11=0,0,1) -> 0 | AA11: =IF(Y11+Z11=2,"Korrekt","") -> 
A12: 3 | B12: ='Wettkampf 1'!B12 -> Sebastian Albers | C12: ='Wettkampf 1'!C12 -> Spahnharrenstätte III | D12: 305.7 | F12: 305.7 | G12: 305.7 | H12: 1 | I12: 0 | J12: 0 | K12: 0 | L12: 0 | M12: 0 | N12: 0 | O12: 0 | P12: 0 | Q12: 0 | R12: 0 | X12: 0.0 | Y12: 0 | Z12: 0
A13: 4 | B13: ='Wettkampf 1'!B13 -> Achim Will | C13: ='Wettkampf 1'!C13 -> Spahnharrenstätte III | D13: 315.1 | F13: 315.1 | G13: 315.1 | H13: 1 | I13: 0 | J13: 0 | K13: 0 | L13: 0 | M13: 0 | N13: 0 | O13: 0 | P13: 0 | Q13: 0 | R13: 0 | X13: 0.0 | Y13: 0 | Z13: 0
A14: 5 | B14: ='Wettkampf 1'!B14 -> Christian Grönheim | C14: ='Wettkampf 1'!C14 -> Spahnharrenstätte III | D14: 309.6 | F14: 309.6 | G14: 309.6 | H14: 1 | I14: 0 | J14: 0 | K14: 0 | L14: 0 | M14: 0 | N14: 0 | O14: 0 | P14: 0 | Q14: 0 | R14: 0 | X14: 0.0 | Y14: 0 | Z14: 0
A15: 6 | B15: ='Wettkampf 1'!B15 -> Dieter Hanekamp | C15: ='Wettkampf 1'!C15 -> Spahnharrenstätte II | D15: 312.0 | F15: 312.0 | G15: 0 | H15: 0 | I15: 0 | J15: 0 | K15: 0 | L15: 0 | M15: 0 | N15: 0 | O15: 312 | P15: 1 | Q15: 0 | R15: 0 | X15: 0.0 | Y15: 0 | Z15: 0
A16: 7 | B16: ='Wettkampf 1'!B16 -> Josef Langen | C16: ='Wettkampf 1'!C16 -> Spahnharrenstätte II | D16: 302.2 | F16: 302.2 | G16: 0 | H16: 0 | I16: 0 | J16: 0 | K16: 0 | L16: 0 | M16: 0 | N16: 0 | O16: 302.2 | P16: 1 | Q16: 0 | R16: 0 | X16: 0.0 | Y16: 0 | Z16: 0
A17: 8 | B17: ='Wettkampf 1'!B17 -> Johannes Hülsmann | C17: ='Wettkampf 1'!C17 -> Spahnharrenstätte II | D17: 312.0 | F17: 312.0 | G17: 0 | H17: 0 | I17: 0 | J17: 0 | K17: 0 | L17: 0 | M17: 0 | N17: 0 | O17: 312 | P17: 1 | Q17: 0 | R17: 0 | X17: 0.0 | Y17: 0 | Z17: 0
A18: 9 | B18: ='Wettkampf 1'!B18 -> Heiner Kröger | C18: ='Wettkampf 1'!C18 -> Spahnharrenstätte II | D18: 306.9 | F18: 306.9 | G18: 0 | H18: 0 | I18: 0 | J18: 0 | K18: 0 | L18: 0 | M18: 0 | N18: 0 | O18: 306.9 | P18: 1 | Q18: 0 | R18: 0 | X18: 0.0 | Y18: 0 | Z18: 0
A19: 10 | B19: ='Wettkampf 1'!B19 -> Bernd Nortmann | C19: ='Wettkampf 1'!C19 -> Lahn V | D19: 309.7 | F19: 309.7 | G19: 0 | H19: 0 | I19: 0 | J19: 0 | K19: 0 | L19: 0 | M19: 309.7 | N19: 1 | O19: 0 | P19: 0 | Q19: 0 | R19: 0 | X19: 0.0 | Y19: 0 | Z19: 0
A20: 11 | B20: ='Wettkampf 1'!B20 -> Oliver Reinelt | C20: ='Wettkampf 1'!C20 -> Lahn V | D20: 303.3 | F20: 303.3 | G20: 0 | H20: 0 | I20: 0 | J20: 0 | K20: 0 | L20: 0 | M20: 303.3 | N20: 1 | O20: 0 | P20: 0 | Q20: 0 | R20: 0 | X20: 0.0 | Y20: 0 | Z20: 0
A21: 12 | B21: ='Wettkampf 1'!B21 -> Simon Schukenbrock | C21: ='Wettkampf 1'!C21 -> Lahn V | D21: 312.3 | F21: 312.3 | G21: 0 | H21: 0 | I21: 0 | J21: 0 | K21: 0 | L21: 0 | M21: 312.3 | N21: 1 | O21: 0 | P21: 0 | Q21: 0 | R21: 0 | X21: 0.0 | Y21: 0 | Z21: 0
A22: 13 | B22: ='Wettkampf 1'!B22 -> Michael Boje | C22: ='Wettkampf 1'!C22 -> Lahn V | F22: 0.0 | G22: 0 | H22: 0 | I22: 0 | J22: 0 | K22: 0 | L22: 0 | M22: 0 | N22: 1 | O22: 0 | P22: 0 | Q22: 0 | R22: 0 | X22: 0.0 | Y22: 1 | Z22: 0
A23: 14 | B23: ='Wettkampf 1'!B23 -> Ludger Hermes | C23: ='Wettkampf 1'!C23 -> Neubörger II | D23: 309.9 | F23: 309.9 | G23: 0 | H23: 0 | I23: 0 | J23: 0 | K23: 309.9 | L23: 1 | M23: 0 | N23: 0 | O23: 0 | P23: 0 | Q23: 0 | R23: 0 | X23: 0.0 | Y23: 0 | Z23: 0
A24: 15 | B24: ='Wettkampf 1'!B24 -> Rudi Fromme | C24: ='Wettkampf 1'!C24 -> Neubörger II | D24: 301.4 | F24: 301.4 | G24: 0 | H24: 0 | I24: 0 | J24: 0 | K24: 301.4 | L24: 1 | M24: 0 | N24: 0 | O24: 0 | P24: 0 | Q24: 0 | R24: 0 | X24: 0.0 | Y24: 0 | Z24: 0
A25: 16 | B25: ='Wettkampf 1'!B25 -> Alois Schmitz | C25: ='Wettkampf 1'!C25 -> Neubörger II | D25: 313.2 | F25: 313.2 | G25: 0 | H25: 0 | I25: 0 | J25: 0 | K25: 313.2 | L25: 1 | M25: 0 | N25: 0 | O25: 0 | P25: 0 | Q25: 0 | R25: 0 | X25: 0.0 | Y25: 0 | Z25: 0
A26: 17 | B26: ='Wettkampf 1'!B26 -> Ludwig Langen | C26: ='Wettkampf 1'!C26 -> Neubörger II | D26: 312.2 | F26: 312.2 | G26: 0 | H26: 0 | I26: 0 | J26: 0 | K26: 312.2 | L26: 1 | M26: 0 | N26: 0 | O26: 0 | P26: 0 | Q26: 0 | R26: 0 | X26: 0.0 | Y26: 0 | Z26: 0
A27: 18 | B27: ='Wettkampf 1'!B27 -> Rainer Wielenberg | C27: ='Wettkampf 1'!C27 -> Esterwegen II | D27: 302.9 | F27: 302.9 | G27: 0 | H27: 0 | I27: 302.9 | J27: 1 | K27: 0 | L27: 0 | M27: 0 | N27: 0 | O27: 0 | P27: 0 | Q27: 0 | R27: 0 | X27: 0.0 | Y27: 0 | Z27: 0
A28: 19 | B28: ='Wettkampf 1'!B28 -> Meik Sieger | C28: ='Wettkampf 1'!C28 -> Esterwegen II | D28: 311.0 | F28: 311.0 | G28: 0 | H28: 0 | I28: 311 | J28: 1 | K28: 0 | L28: 0 | M28: 0 | N28: 0 | O28: 0 | P28: 0 | Q28: 0 | R28: 0 | X28: 0.0 | Y28: 0 | Z28: 0
A29: 20 | B29: ='Wettkampf 1'!B29 -> Dennis Lindemann | C29: ='Wettkampf 1'!C29 -> Esterwegen II | D29: 311.5 | F29: 311.5 | G29: 0 | H29: 0 | I29: 311.5 | J29: 1 | K29: 0 | L29: 0 | M29: 0 | N29: 0 | O29: 0 | P29: 0 | Q29: 0 | R29: 0 | X29: 0.0 | Y29: 0 | Z29: 0
A30: 21 | B30: ='Wettkampf 1'!B30 -> Andreas Lindemann | C30: ='Wettkampf 1'!C30 -> Esterwegen II | D30: 282.1 | F30: 282.1 | G30: 0 | H30: 0 | I30: 282.1 | J30: 1 | K30: 0 | L30: 0 | M30: 0 | N30: 0 | O30: 0 | P30: 0 | Q30: 0 | R30: 0 | X30: 0.0 | Y30: 0 | Z30: 0
A31: 22 | B31: ='Wettkampf 1'!B31 -> Johannes Gebken | C31: ='Wettkampf 1'!C31 -> Esterwegen II | E31: x | F31: 0 | G31: 0 | H31: 0 | I31: 0 | J31: 0 | K31: 0 | L31: 0 | M31: 0 | N31: 0 | O31: 0 | P31: 0 | Q31: 0 | R31: 0 | X31: 0.0 | Y31: 1 | Z31: 0
A32: 23 | B32: ='Wettkampf 1'!B32 -> Jan-Niklas Lindemann | C32: ='Wettkampf 1'!C32 -> Esterwegen II | E32: x | F32: 0 | G32: 0 | H32: 0 | I32: 0 | J32: 0 | K32: 0 | L32: 0 | M32: 0 | N32: 0 | O32: 0 | P32: 0 | Q32: 0 | R32: 0 | X32: 0.0 | Y32: 1 | Z32: 0
A33: 24 | B33: ='Wettkampf 1'!B33 -> Stefan Burlager | C33: ='Wettkampf 1'!C33 -> Esterwegen II | D33: 306.5 | E33: x | F33: 0 | G33: 0 | H33: 0 | I33: 0 | J33: 0 | K33: 0 | L33: 0 | M33: 0 | N33: 0 | O33: 0 | P33: 0 | Q33: 0 | R33: 0 | X33: 0.0 | Y33: 0 | Z33: 0
A34: 25 | B34: ='Wettkampf 1'!B34 -> Franz Ostermann | C34: ='Wettkampf 1'!C34 -> Eisten II | D34: 310.3 | F34: 310.3 | G34: 0 | H34: 0 | I34: 0 | J34: 0 | K34: 0 | L34: 0 | M34: 0 | N34: 0 | O34: 0 | P34: 0 | Q34: 310.3 | R34: 1 | X34: 0.0 | Y34: 0 | Z34: 0
A35: 26 | B35: ='Wettkampf 1'!B35 -> Martin Hackmann | C35: ='Wettkampf 1'!C35 -> Eisten II | D35: 313.0 | F35: 313.0 | G35: 0 | H35: 0 | I35: 0 | J35: 0 | K35: 0 | L35: 0 | M35: 0 | N35: 0 | O35: 0 | P35: 0 | Q35: 313 | R35: 1 | X35: 0.0 | Y35: 0 | Z35: 0
A36: 27 | B36: ='Wettkampf 1'!B36 -> Günther Baalmann | C36: ='Wettkampf 1'!C36 -> Eisten II | D36: 312.8 | F36: 312.8 | G36: 0 | H36: 0 | I36: 0 | J36: 0 | K36: 0 | L36: 0 | M36: 0 | N36: 0 | O36: 0 | P36: 0 | Q36: 312.8 | R36: 1 | X36: 0.0 | Y36: 0 | Z36: 0
A37: 28 | B37: ='Wettkampf 1'!B37 -> Martin Poker | C37: ='Wettkampf 1'!C37 -> Eisten II | D37: 310.9 | F37: 310.9 | G37: 0 | H37: 0 | I37: 0 | J37: 0 | K37: 0 | L37: 0 | M37: 0 | N37: 0 | O37: 0 | P37: 0 | Q37: 310.9 | R37: 1 | X37: 0.0 | Y37: 0 | Z37: 0
A38: 29 | B38: ='Wettkampf 1'!B38 -> Schütze 29 | C38: ='Wettkampf 1'!C38 -> 0.0 | E38: x | F38: 0 | G38: 0 | H38: 0 | I38: 0 | J38: 0 | K38: 0 | L38: 0 | M38: 0 | N38: 0 | O38: 0 | P38: 0 | Q38: 0 | R38: 0 | X38: 0.0 | Y38: 1 | Z38: 0
A39: 30 | B39: ='Wettkampf 1'!B39 -> Schütze 30 | C39: ='Wettkampf 1'!C39 -> 0.0 | E39: x | F39: 0 | G39: 0 | H39: 0 | I39: 0 | J39: 0 | K39: 0 | L39: 0 | M39: 0 | N39: 0 | O39: 0 | P39: 0 | Q39: 0 | R39: 0 | X39: 0.0 | Y39: 1 | Z39: 0
A40: 31 | B40: ='Wettkampf 1'!B40 -> Schütze 31 | C40: ='Wettkampf 1'!C40 -> 0.0 | F40: 0.0 | G40: 0 | H40: 0 | I40: 0 | J40: 0 | K40: 0 | L40: 0 | M40: 0 | N40: 0 | O40: 0 | P40: 0 | Q40: 0 | R40: 0 | X40: 0.0 | Y40: 1 | Z40: 0
A41: 32 | B41: ='Wettkampf 1'!B41 -> Schütze 32 | C41: ='Wettkampf 1'!C41 -> 0.0 | F41: 0.0 | G41: 0 | H41: 0 | I41: 0 | J41: 0 | K41: 0 | L41: 0 | M41: 0 | N41: 0 | O41: 0 | P41: 0 | Q41: 0 | R41: 0 | X41: 0.0 | Y41: 1 | Z41: 0
A42: 33 | B42: ='Wettkampf 1'!B42 -> Schütze 33 | C42: ='Wettkampf 1'!C42 -> 0.0 | F42: 0.0 | G42: 0 | H42: 0 | I42: 0 | J42: 0 | K42: 0 | L42: 0 | M42: 0 | N42: 0 | O42: 0 | P42: 0 | Q42: 0 | R42: 0 | X42: 0.0 | Y42: 1 | Z42: 0
A43: 34 | B43: ='Wettkampf 1'!B43 -> Schütze 34 | C43: ='Wettkampf 1'!C43 -> 0.0 | F43: 0.0 | G43: 0 | H43: 0 | I43: 0 | J43: 0 | K43: 0 | L43: 0 | M43: 0 | N43: 0 | O43: 0 | P43: 0 | Q43: 0 | R43: 0 | X43: 0.0 | Y43: 1 | Z43: 0
A44: 35 | B44: ='Wettkampf 1'!B44 -> Schütze 35 | C44: ='Wettkampf 1'!C44 -> 0.0 | E44: x | F44: 0 | G44: 0 | H44: 0 | I44: 0 | J44: 0 | K44: 0 | L44: 0 | M44: 0 | N44: 0 | O44: 0 | P44: 0 | Q44: 0 | R44: 0 | X44: 0.0 | Y44: 1 | Z44: 0
A45: 36 | B45: ='Wettkampf 1'!B45 -> Schütze 36 | C45: ='Wettkampf 1'!C45 -> 0.0 | E45: x | F45: 0 | G45: 0 | H45: 0 | I45: 0 | J45: 0 | K45: 0 | L45: 0 | M45: 0 | N45: 0 | O45: 0 | P45: 0 | Q45: 0 | R45: 0 | X45: 0.0 | Y45: 1 | Z45: 0
G46: =LARGE(G10:G45,1)+LARGE(G10:G45,2)+LARGE(G10:G45,3) -> 937.5 | H46: =SUM(H10:H45) -> 4 | I46: =LARGE(I10:I45,1)+LARGE(I10:I45,2)+LARGE(I10:I45,3) -> 925.4 | J46: =SUM(J10:J45) -> 4 | K46: =LARGE(K10:K45,1)+LARGE(K10:K45,2)+LARGE(K10:K45,3) -> 935.3 | L46: =SUM(L10:L45) -> 4 | M46: =LARGE(M10:M45,1)+LARGE(M10:M45,2)+LARGE(M10:M45,3) -> 925.3 | N46: =SUM(N10:N45) -> 4 | O46: =LARGE(O10:O45,1)+LARGE(O10:O45,2)+LARGE(O10:O45,3) -> 930.9 | P46: =SUM(P10:P45) -> 4 | Q46: =LARGE(Q10:Q45,1)+LARGE(Q10:Q45,2)+LARGE(Q10:Q45,3) -> 936.7 | R46: =SUM(R10:S45) -> 4
C47: per Email an: sk-huemmling@gmx.de

Sheet 6
B1: Verein / Gruppe | D1: Ergebnisse | V1: Austragungsort: | W1: =Übersicht!I4 -> Eisten
A2: 1 | B2: ='Wettkampf 1'!B2 -> Spahnharrenstätte III | D2: =G46 -> 927.2 | E2: =IF(H46>4,"Es sind zu viele Schützen in Wertung!"," ") ->  | V2: Wettkampftag: | W2: =Übersicht!I3 -> 08.12.
A3: 2 | B3: ='Wettkampf 1'!B3 -> Esterwegen II | D3: =I46 -> 925.8 | E3: =IF(J46>4,"Es sind zu viele Schützen in Wertung!"," ") -> 
A4: 3 | B4: ='Wettkampf 1'!B4 -> Neubörger II | D4: =K46 -> 918.9 | E4: =IF(L46>4,"Es sind zu viele Schützen in Wertung!"," ") ->  | X4: Ansprechpartner für Rückfragen:
A5: 4 | B5: ='Wettkampf 1'!B5 -> Lahn V | D5: =M46 -> 910.4 | E5: =IF(N46>4,"Es sind zu viele Schützen in Wertung!"," ") ->  | V5: Name: | W5: Baalmann Günter
A6: 5 | B6: ='Wettkampf 1'!B6 -> Spahnharrenstätte II | D6: =O46 -> 934.5 | E6: =IF(P46>4,"Es sind zu viele Schützen in Wertung!"," ") ->  | V6: Tel: | W6: 05952-3748
A7: 6 | B7: ='Wettkampf 1'!B7 -> Eisten II | D7: =Q46 -> 935.4 | E7: =IF(R46>4,"Es sind zu viele Schützen in Wertung!"," ") ->  | V7: Standaufsicht: | W7: Ostermann Franz
B9: Einzelergebnisse: | C9: Verein / Gruppe | D9: Ergebnisse (mindestens 0 eintragen) | E9: AW? Dann x eintippen | G9: Verein 1 | I9: Verein 2 | K9: Verein 3 | M9: Verein 4 | O9: Verein 5 | Q9: Verein 6 | U9: Proberechnung bei Streifen:
A10: 1 | B10: ='Wettkampf 1'!B10 -> Heiko Micksch | C10: ='Wettkampf 1'!C10 -> Spahnharrenstätte III | D10: 306.5 | F10: =IF(E10="x","0",D10) -> 306.5 | G10: =IF(C10=$B$2,F10,0) -> 306.5 | H10: =(IF(AND($E10="",$C10=$B$2),1,0)) -> 1 | I10: =IF($C10=$B$3,F10,0) -> 0 | J10: =(IF(AND($E10="",$C10=$B$3),1,0)) -> 0 | K10: =IF($C10=$B$4,F10,0) -> 0 | L10: =(IF(AND($E10="",$C10=$B$4),1,0)) -> 0 | M10: =IF($C10=$B$5,F10,0) -> 0 | N10: =(IF(AND($E10="",$C10=$B$5),1,0)) -> 0 | O10: =IF($C10=$B$6,F10,0) -> 0 | P10: =(IF(AND($E10="",$C10=$B$6),1,0)) -> 0 | Q10: =IF($C10=$B$7,F10,0) -> 0 | R10: =(IF(AND($E10="",$C10=$B$7),1,0)) -> 0 | X10: =U10+V10+W10 -> 0.0 | Y10: =IF(X10=D10,1,0) -> 0 | Z10: =IF(X10=0,0,1) -> 0 | AA10: =IF(Y10+Z10=2,"Korrekt","") -> 
A11: 2 | B11: ='Wettkampf 1'!B11 -> Dirk Meyer | C11: ='Wettkampf 1'!C11 -> Spahnharrenstätte III | D11: 312.3 | F11: =IF(E11="x","0",D11) -> 312.3 | G11: =IF(C11=$B$2,F11,0) -> 312.3 | H11: =(IF(AND($E11="",$C11=$B$2),1,0)) -> 1 | I11: =IF($C11=$B$3,F11,0) -> 0 | J11: =(IF(AND($E11="",$C11=$B$3),1,0)) -> 0 | K11: =IF($C11=$B$4,F11,0) -> 0 | L11: =(IF(AND($E11="",$C11=$B$4),1,0)) -> 0 | M11: =IF($C11=$B$5,F11,0) -> 0 | N11: =(IF(AND($E11="",$C11=$B$5),1,0)) -> 0 | O11: =IF($C11=$B$6,F11,0) -> 0 | P11: =(IF(AND($E11="",$C11=$B$6),1,0)) -> 0 | Q11: =IF($C11=$B$7,F11,0) -> 0 | R11: =(IF(AND($E11="",$C11=$B$7),1,0)) -> 0 | X11: =U11+V11+W11 -> 0.0 | Y11: =IF(X11=D11,1,0) -> 0 | Z11: =IF(X11=0,0,1) -> 0 | AA11: =IF(Y11+Z11=2,"Korrekt","") -> 
A12: 3 | B12: ='Wettkampf 1'!B12 -> Sebastian Albers | C12: ='Wettkampf 1'!C12 -> Spahnharrenstätte III | D12: 307.4 | E12: x | F12: 0 | G12: 0 | H12: 0 | I12: 0 | J12: 0 | K12: 0 | L12: 0 | M12: 0 | N12: 0 | O12: 0 | P12: 0 | Q12: 0 | R12: 0 | X12: 0.0 | Y12: 0 | Z12: 0
A13: 4 | B13: ='Wettkampf 1'!B13 -> Achim Will | C13: ='Wettkampf 1'!C13 -> Spahnharrenstätte III | D13: 308.4 | F13: 308.4 | G13: 308.4 | H13: 1 | I13: 0 | J13: 0 | K13: 0 | L13: 0 | M13: 0 | N13: 0 | O13: 0 | P13: 0 | Q13: 0 | R13: 0 | X13: 0.0 | Y13: 0 | Z13: 0
A14: 5 | B14: ='Wettkampf 1'!B14 -> Christian Grönheim | C14: ='Wettkampf 1'!C14 -> Spahnharrenstätte III | D14: 302.6 | F14: 302.6 | G14: 302.6 | H14: 1 | I14: 0 | J14: 0 | K14: 0 | L14: 0 | M14: 0 | N14: 0 | O14: 0 | P14: 0 | Q14: 0 | R14: 0 | X14: 0.0 | Y14: 0 | Z14: 0
A15: 6 | B15: ='Wettkampf 1'!B15 -> Dieter Hanekamp | C15: ='Wettkampf 1'!C15 -> Spahnharrenstätte II | D15: 313.7 | F15: 313.7 | G15: 0 | H15: 0 | I15: 0 | J15: 0 | K15: 0 | L15: 0 | M15: 0 | N15: 0 | O15: 313.7 | P15: 1 | Q15: 0 | R15: 0 | X15: 0.0 | Y15: 0 | Z15: 0
A16: 7 | B16: ='Wettkampf 1'!B16 -> Josef Langen | C16: ='Wettkampf 1'!C16 -> Spahnharrenstätte II | D16: 308.2 | F16: 308.2 | G16: 0 | H16: 0 | I16: 0 | J16: 0 | K16: 0 | L16: 0 | M16: 0 | N16: 0 | O16: 308.2 | P16: 1 | Q16: 0 | R16: 0 | X16: 0.0 | Y16: 0 | Z16: 0
A17: 8 | B17: ='Wettkampf 1'!B17 -> Johannes Hülsmann | C17: ='Wettkampf 1'!C17 -> Spahnharrenstätte II | D17: 311.5 | F17: 311.5 | G17: 0 | H17: 0 | I17: 0 | J17: 0 | K17: 0 | L17: 0 | M17: 0 | N17: 0 | O17: 311.5 | P17: 1 | Q17: 0 | R17: 0 | X17: 0.0 | Y17: 0 | Z17: 0
A18: 9 | B18: ='Wettkampf 1'!B18 -> Heiner Kröger | C18: ='Wettkampf 1'!C18 -> Spahnharrenstätte II | D18: 309.3 | F18: 309.3 | G18: 0 | H18: 0 | I18: 0 | J18: 0 | K18: 0 | L18: 0 | M18: 0 | N18: 0 | O18: 309.3 | P18: 1 | Q18: 0 | R18: 0 | X18: 0.0 | Y18: 0 | Z18: 0
A19: 10 | B19: ='Wettkampf 1'!B19 -> Bernd Nortmann | C19: ='Wettkampf 1'!C19 -> Lahn V | D19: 306.0 | F19: 306.0 | G19: 0 | H19: 0 | I19: 0 | J19: 0 | K19: 0 | L19: 0 | M19: 306 | N19: 1 | O19: 0 | P19: 0 | Q19: 0 | R19: 0 | X19: 0.0 | Y19: 0 | Z19: 0
A20: 11 | B20: ='Wettkampf 1'!B20 -> Oliver Reinelt | C20: ='Wettkampf 1'!C20 -> Lahn V | D20: 294.5 | F20: 294.5 | G20: 0 | H20: 0 | I20: 0 | J20: 0 | K20: 0 | L20: 0 | M20: 294.5 | N20: 1 | O20: 0 | P20: 0 | Q20: 0 | R20: 0 | X20: 0.0 | Y20: 0 | Z20: 0
A21: 12 | B21: ='Wettkampf 1'!B21 -> Simon Schukenbrock | C21: ='Wettkampf 1'!C21 -> Lahn V | D21: 309.9 | F21: 309.9 | G21: 0 | H21: 0 | I21: 0 | J21: 0 | K21: 0 | L21: 0 | M21: 309.9 | N21: 1 | O21: 0 | P21: 0 | Q21: 0 | R21: 0 | X21: 0.0 | Y21: 0 | Z21: 0
A22: 13 | B22: ='Wettkampf 1'!B22 -> Michael Boje | C22: ='Wettkampf 1'!C22 -> Lahn V | F22: 0.0 | G22: 0 | H22: 0 | I22: 0 | J22: 0 | K22: 0 | L22: 0 | M22: 0 | N22: 1 | O22: 0 | P22: 0 | Q22: 0 | R22: 0 | X22: 0.0 | Y22: 1 | Z22: 0
A23: 14 | B23: ='Wettkampf 1'!B23 -> Ludger Hermes | C23: ='Wettkampf 1'!C23 -> Neubörger II | D23: 301.6 | F23: 301.6 | G23: 0 | H23: 0 | I23: 0 | J23: 0 | K23: 301.6 | L23: 1 | M23: 0 | N23: 0 | O23: 0 | P23: 0 | Q23: 0 | R23: 0 | X23: 0.0 | Y23: 0 | Z23: 0
A24: 15 | B24: ='Wettkampf 1'!B24 -> Rudi Fromme | C24: ='Wettkampf 1'!C24 -> Neubörger II | D24: 305.4 | F24: 305.4 | G24: 0 | H24: 0 | I24: 0 | J24: 0 | K24: 305.4 | L24: 1 | M24: 0 | N24: 0 | O24: 0 | P24: 0 | Q24: 0 | R24: 0 | X24: 0.0 | Y24: 0 | Z24: 0
A25: 16 | B25: ='Wettkampf 1'!B25 -> Alois Schmitz | C25: ='Wettkampf 1'!C25 -> Neubörger II | D25: 305.6 | F25: 305.6 | G25: 0 | H25: 0 | I25: 0 | J25: 0 | K25: 305.6 | L25: 1 | M25: 0 | N25: 0 | O25: 0 | P25: 0 | Q25: 0 | R25: 0 | X25: 0.0 | Y25: 0 | Z25: 0
A26: 17 | B26: ='Wettkampf 1'!B26 -> Ludwig Langen | C26: ='Wettkampf 1'!C26 -> Neubörger II | D26: 307.9 | F26: 307.9 | G26: 0 | H26: 0 | I26: 0 | J26: 0 | K26: 307.9 | L26: 1 | M26: 0 | N26: 0 | O26: 0 | P26: 0 | Q26: 0 | R26: 0 | X26: 0.0 | Y26: 0 | Z26: 0
A27: 18 | B27: ='Wettkampf 1'!B27 -> Rainer Wielenberg | C27: ='Wettkampf 1'!C27 -> Esterwegen II | D27: 299.6 | F27: 299.6 | G27: 0 | H27: 0 | I27: 299.6 | J27: 1 | K27: 0 | L27: 0 | M27: 0 | N27: 0 | O27: 0 | P27: 0 | Q27: 0 | R27: 0 | X27: 0.0 | Y27: 0 | Z27: 0
A28: 19 | B28: ='Wettkampf 1'!B28 -> Meik Sieger | C28: ='Wettkampf 1'!C28 -> Esterwegen II | D28: 306.5 | F28: 306.5 | G28: 0 | H28: 0 | I28: 306.5 | J28: 1 | K28: 0 | L28: 0 | M28: 0 | N28: 0 | O28: 0 | P28: 0 | Q28: 0 | R28: 0 | X28: 0.0 | Y28: 0 | Z28: 0
A29: 20 | B29: ='Wettkampf 1'!B29 -> Dennis Lindemann | C29: ='Wettkampf 1'!C29 -> Esterwegen II | D29: 308.9 | F29: 308.9 | G29: 0 | H29: 0 | I29: 308.9 | J29: 1 | K29: 0 | L29: 0 | M29: 0 | N29: 0 | O29: 0 | P29: 0 | Q29: 0 | R29: 0 | X29: 0.0 | Y29: 0 | Z29: 0
A30: 21 | B30: ='Wettkampf 1'!B30 -> Andreas Lindemann | C30: ='Wettkampf 1'!C30 -> Esterwegen II | D30: 304.9 | E30: x | F30: 0 | G30: 0 | H30: 0 | I30: 0 | J30: 0 | K30: 0 | L30: 0 | M30: 0 | N30: 0 | O30: 0 | P30: 0 | Q30: 0 | R30: 0 | X30: 0.0 | Y30: 0 | Z30: 0
A31: 22 | B31: ='Wettkampf 1'!B31 -> Johannes Gebken | C31: ='Wettkampf 1'!C31 -> Esterwegen II | E31: x | F31: 0 | G31: 0 | H31: 0 | I31: 0 | J31: 0 | K31: 0 | L31: 0 | M31: 0 | N31: 0 | O31: 0 | P31: 0 | Q31: 0 | R31: 0 | X31: 0.0 | Y31: 1 | Z31: 0
A32: 23 | B32: ='Wettkampf 1'!B32 -> Jan-Niklas Lindemann | C32: ='Wettkampf 1'!C32 -> Esterwegen II | E32: x | F32: 0 | G32: 0 | H32: 0 | I32: 0 | J32: 0 | K32: 0 | L32: 0 | M32: 0 | N32: 0 | O32: 0 | P32: 0 | Q32: 0 | R32: 0 | X32: 0.0 | Y32: 1 | Z32: 0
A33: 24 | B33: ='Wettkampf 1'!B33 -> Stefan Burlager | C33: ='Wettkampf 1'!C33 -> Esterwegen II | D33: 310.4 | F33: 310.4 | G33: 0 | H33: 0 | I33: 310.4 | J33: 1 | K33: 0 | L33: 0 | M33: 0 | N33: 0 | O33: 0 | P33: 0 | Q33: 0 | R33: 0 | X33: 0.0 | Y33: 0 | Z33: 0
A34: 25 | B34: ='Wettkampf 1'!B34 -> Franz Ostermann | C34: ='Wettkampf 1'!C34 -> Eisten II | D34: 312.2 | F34: 312.2 | G34: 0 | H34: 0 | I34: 0 | J34: 0 | K34: 0 | L34: 0 | M34: 0 | N34: 0 | O34: 0 | P34: 0 | Q34: 312.2 | R34: 1 | X34: 0.0 | Y34: 0 | Z34: 0
A35: 26 | B35: ='Wettkampf 1'!B35 -> Martin Hackmann | C35: ='Wettkampf 1'!C35 -> Eisten II | D35: 311.1 | F35: 311.1 | G35: 0 | H35: 0 | I35: 0 | J35: 0 | K35: 0 | L35: 0 | M35: 0 | N35: 0 | O35: 0 | P35: 0 | Q35: 311.1 | R35: 1 | X35: 0.0 | Y35: 0 | Z35: 0
A36: 27 | B36: ='Wettkampf 1'!B36 -> Günther Baalmann | C36: ='Wettkampf 1'!C36 -> Eisten II | D36: 311.4 | F36: 311.4 | G36: 0 | H36: 0 | I36: 0 | J36: 0 | K36: 0 | L36: 0 | M36: 0 | N36: 0 | O36: 0 | P36: 0 | Q36: 311.4 | R36: 1 | X36: 0.0 | Y36: 0 | Z36: 0
A37: 28 | B37: ='Wettkampf 1'!B37 -> Martin Poker | C37: ='Wettkampf 1'!C37 -> Eisten II | D37: 311.8 | F37: 311.8 | G37: 0 | H37: 0 | I37: 0 | J37: 0 | K37: 0 | L37: 0 | M37: 0 | N37: 0 | O37: 0 | P37: 0 | Q37: 311.8 | R37: 1 | X37: 0.0 | Y37: 0 | Z37: 0
A38: 29 | B38: ='Wettkampf 1'!B38 -> Schütze 29 | C38: ='Wettkampf 1'!C38 -> 0.0 | E38: x | F38: 0 | G38: 0 | H38: 0 | I38: 0 | J38: 0 | K38: 0 | L38: 0 | M38: 0 | N38: 0 | O38: 0 | P38: 0 | Q38: 0 | R38: 0 | X38: 0.0 | Y38: 1 | Z38: 0
A39: 30 | B39: ='Wettkampf 1'!B39 -> Schütze 30 | C39: ='Wettkampf 1'!C39 -> 0.0 | E39: x | F39: 0 | G39: 0 | H39: 0 | I39: 0 | J39: 0 | K39: 0 | L39: 0 | M39: 0 | N39: 0 | O39: 0 | P39: 0 | Q39: 0 | R39: 0 | X39: 0.0 | Y39: 1 | Z39: 0
A40: 31 | B40: ='Wettkampf 1'!B40 -> Schütze 31 | C40: ='Wettkampf 1'!C40 -> 0.0 | F40: 0.0 | G40: 0 | H40: 0 | I40: 0 | J40: 0 | K40: 0 | L40: 0 | M40: 0 | N40: 0 | O40: 0 | P40: 0 | Q40: 0 | R40: 0 | X40: 0.0 | Y40: 1 | Z40: 0
A41: 32 | B41: ='Wettkampf 1'!B41 -> Schütze 32 | C41: ='Wettkampf 1'!C41 -> 0.0 | F41: 0.0 | G41: 0 | H41: 0 | I41: 0 | J41: 0 | K41: 0 | L41: 0 | M41: 0 | N41: 0 | O41: 0 | P41: 0 | Q41: 0 | R41: 0 | X41: 0.0 | Y41: 1 | Z41: 0
A42: 33 | B42: ='Wettkampf 1'!B42 -> Schütze 33 | C42: ='Wettkampf 1'!C42 -> 0.0 | F42: 0.0 | G42: 0 | H42: 0 | I42: 0 | J42: 0 | K42: 0 | L42: 0 | M42: 0 | N42: 0 | O42: 0 | P42: 0 | Q42: 0 | R42: 0 | X42: 0.0 | Y42: 1 | Z42: 0
A43: 34 | B43: ='Wettkampf 1'!B43 -> Schütze 34 | C43: ='Wettkampf 1'!C43 -> 0.0 | F43: 0.0 | G43: 0 | H43: 0 | I43: 0 | J43: 0 | K43: 0 | L43: 0 | M43: 0 | N43: 0 | O43: 0 | P43: 0 | Q43: 0 | R43: 0 | X43: 0.0 | Y43: 1 | Z43: 0
A44: 35 | B44: ='Wettkampf 1'!B44 -> Schütze 35 | C44: ='Wettkampf 1'!C44 -> 0.0 | E44: x | F44: 0 | G44: 0 | H44: 0 | I44: 0 | J44: 0 | K44: 0 | L44: 0 | M44: 0 | N44: 0 | O44: 0 | P44: 0 | Q44: 0 | R44: 0 | X44: 0.0 | Y44: 1 | Z44: 0
A45: 36 | B45: ='Wettkampf 1'!B45 -> Schütze 36 | C45: ='Wettkampf 1'!C45 -> 0.0 | E45: x | F45: 0 | G45: 0 | H45: 0 | I45: 0 | J45: 0 | K45: 0 | L45: 0 | M45: 0 | N45: 0 | O45: 0 | P45: 0 | Q45: 0 | R45: 0 | X45: 0.0 | Y45: 1 | Z45: 0
G46: =LARGE(G10:G45,1)+LARGE(G10:G45,2)+LARGE(G10:G45,3) -> 927.2 | H46: =SUM(H10:H45) -> 4 | I46: =LARGE(I10:I45,1)+LARGE(I10:I45,2)+LARGE(I10:I45,3) -> 925.8 | J46: =SUM(J10:J45) -> 4 | K46: =LARGE(K10:K45,1)+LARGE(K10:K45,2)+LARGE(K10:K45,3) -> 918.9 | L46: =SUM(L10:L45) -> 4 | M46: =LARGE(M10:M45,1)+LARGE(M10:M45,2)+LARGE(M10:M45,3) -> 910.4 | N46: =SUM(N10:N45) -> 4 | O46: =LARGE(O10:O45,1)+LARGE(O10:O45,2)+LARGE(O10:O45,3) -> 934.5 | P46: =SUM(P10:P45) -> 4 | Q46: =LARGE(Q10:Q45,1)+LARGE(Q10:Q45,2)+LARGE(Q10:Q45,3) -> 935.4 | R46: =SUM(R10:S45) -> 4
C47: per Email an: sk-huemmling@gmx.de

Sheet 7
B1: Verein / Gruppe | D1: Ergebnisse | V1: Austragungsort: | W1: =Übersicht!L4 -> Neubörger
A2: 1 | B2: ='Wettkampf 1'!B2 -> Spahnharrenstätte III | D2: =G46 -> 921.1 | E2: =IF(H46>4,"Es sind zu viele Schützen in Wertung!"," ") ->  | V2: Wettkampftag: | W2: =Übersicht!L3 -> 19.01.
A3: 2 | B3: ='Wettkampf 1'!B3 -> Esterwegen II | D3: =I46 -> 926.1 | E3: =IF(J46>4,"Es sind zu viele Schützen in Wertung!"," ") -> 
A4: 3 | B4: ='Wettkampf 1'!B4 -> Neubörger II | D4: =K46 -> 921.3 | E4: =IF(L46>4,"Es sind zu viele Schützen in Wertung!"," ") ->  | X4: Ansprechpartner für Rückfragen:
A5: 4 | B5: ='Wettkampf 1'!B5 -> Lahn V | D5: =M46 -> 915.7 | E5: =IF(N46>4,"Es sind zu viele Schützen in Wertung!"," ") ->  | V5: Name: | W5: Alois Schmitz
A6: 5 | B6: ='Wettkampf 1'!B6 -> Spahnharrenstätte II | D6: =O46 -> 931.9 | E6: =IF(P46>4,"Es sind zu viele Schützen in Wertung!"," ") ->  | V6: Tel:
A7: 6 | B7: ='Wettkampf 1'!B7 -> Eisten II | D7: =Q46 -> 935.4 | E7: =IF(R46>4,"Es sind zu viele Schützen in Wertung!"," ") ->  | V7: Standaufsicht: | W7: Ludwig Langen
B9: Einzelergebnisse: | C9: Verein / Gruppe | D9: Ergebnisse (mindestens 0 eintragen) | E9: AW? Dann x eintippen | G9: Verein 1 | I9: Verein 2 | K9: Verein 3 | M9: Verein 4 | O9: Verein 5 | Q9: Verein 6 | U9: Proberechnung bei Streifen:
A10: 1 | B10: ='Wettkampf 1'!B10 -> Heiko Micksch | C10: ='Wettkampf 1'!C10 -> Spahnharrenstätte III | D10: 303.6 | F10: =IF(E10="x","0",D10) -> 303.6 | G10: =IF(C10=$B$2,F10,0) -> 303.6 | H10: =(IF(AND($E10="",$C10=$B$2),1,0)) -> 1 | I10: =IF($C10=$B$3,F10,0) -> 0 | J10: =(IF(AND($E10="",$C10=$B$3),1,0)) -> 0 | K10: =IF($C10=$B$4,F10,0) -> 0 | L10: =(IF(AND($E10="",$C10=$B$4),1,0)) -> 0 | M10: =IF($C10=$B$5,F10,0) -> 0 | N10: =(IF(AND($E10="",$C10=$B$5),1,0)) -> 0 | O10: =IF($C10=$B$6,F10,0) -> 0 | P10: =(IF(AND($E10="",$C10=$B$6),1,0)) -> 0 | Q10: =IF($C10=$B$7,F10,0) -> 0 | R10: =(IF(AND($E10="",$C10=$B$7),1,0)) -> 0 | X10: =U10+V10+W10 -> 0.0 | Y10: =IF(X10=D10,1,0) -> 0 | Z10: =IF(X10=0,0,1) -> 0 | AA10: =IF(Y10+Z10=2,"Korrekt","") -> 
A11: 2 | B11: ='Wettkampf 1'!B11 -> Dirk Meyer | C11: ='Wettkampf 1'!C11 -> Spahnharrenstätte III | D11: 0.0 | F11: =IF(E11="x","0",D11) -> 0.0 | G11: =IF(C11=$B$2,F11,0) -> 0 | H11: =(IF(AND($E11="",$C11=$B$2),1,0)) -> 1 | I11: =IF($C11=$B$3,F11,0) -> 0 | J11: =(IF(AND($E11="",$C11=$B$3),1,0)) -> 0 | K11: =IF($C11=$B$4,F11,0) -> 0 | L11: =(IF(AND($E11="",$C11=$B$4),1,0)) -> 0 | M11: =IF($C11=$B$5,F11,0) -> 0 | N11: =(IF(AND($E11="",$C11=$B$5),1,0)) -> 0 | O11: =IF($C11=$B$6,F11,0) -> 0 | P11: =(IF(AND($E11="",$C11=$B$6),1,0)) -> 0 | Q11: =IF($C11=$B$7,F11,0) -> 0 | R11: =(IF(AND($E11="",$C11=$B$7),1,0)) -> 0 | X11: =U11+V11+W11 -> 0.0 | Y11: =IF(X11=D11,1,0) -> 1 | Z11: =IF(X11=0,0,1) -> 0 | AA11: =IF(Y11+Z11=2,"Korrekt","") -> 
A12: 3 | B12: ='Wettkampf 1'!B12 -> Sebastian Albers | C12: ='Wettkampf 1'!C12 -> Spahnharrenstätte III | D12: 308.6 | E12: x | F12: 0 | G12: 0 | H12: 0 | I12: 0 | J12: 0 | K12: 0 | L12: 0 | M12: 0 | N12: 0 | O12: 0 | P12: 0 | Q12: 0 | R12: 0 | X12: 0.0 | Y12: 0 | Z12: 0
A13: 4 | B13: ='Wettkampf 1'!B13 -> Achim Will | C13: ='Wettkampf 1'!C13 -> Spahnharrenstätte III | D13: 314.4 | F13: 314.4 | G13: 314.4 | H13: 1 | I13: 0 | J13: 0 | K13: 0 | L13: 0 | M13: 0 | N13: 0 | O13: 0 | P13: 0 | Q13: 0 | R13: 0 | X13: 0.0 | Y13: 0 | Z13: 0
A14: 5 | B14: ='Wettkampf 1'!B14 -> Christian Grönheim | C14: ='Wettkampf 1'!C14 -> Spahnharrenstätte III | D14: 303.1 | F14: 303.1 | G14: 303.1 | H14: 1 | I14: 0 | J14: 0 | K14: 0 | L14: 0 | M14: 0 | N14: 0 | O14: 0 | P14: 0 | Q14: 0 | R14: 0 | X14: 0.0 | Y14: 0 | Z14: 0
A15: 6 | B15: ='Wettkampf 1'!B15 -> Dieter Hanekamp | C15: ='Wettkampf 1'!C15 -> Spahnharrenstätte II | D15: 312.5 | F15: 312.5 | G15: 0 | H15: 0 | I15: 0 | J15: 0 | K15: 0 | L15: 0 | M15: 0 | N15: 0 | O15: 312.5 | P15: 1 | Q15: 0 | R15: 0 | X15: 0.0 | Y15: 0 | Z15: 0
A16: 7 | B16: ='Wettkampf 1'!B16 -> Josef Langen | C16: ='Wettkampf 1'!C16 -> Spahnharrenstätte II | D16: 302.9 | F16: 302.9 | G16: 0 | H16: 0 | I16: 0 | J16: 0 | K16: 0 | L16: 0 | M16: 0 | N16: 0 | O16: 302.9 | P16: 1 | Q16: 0 | R16: 0 | X16: 0.0 | Y16: 0 | Z16: 0
A17: 8 | B17: ='Wettkampf 1'!B17 -> Johannes Hülsmann | C17: ='Wettkampf 1'!C17 -> Spahnharrenstätte II | D17: 307.8 | F17: 307.8 | G17: 0 | H17: 0 | I17: 0 | J17: 0 | K17: 0 | L17: 0 | M17: 0 | N17: 0 | O17: 307.8 | P17: 1 | Q17: 0 | R17: 0 | X17: 0.0 | Y17: 0 | Z17: 0
A18: 9 | B18: ='Wettkampf 1'!B18 -> Heiner Kröger | C18: ='Wettkampf 1'!C18 -> Spahnharrenstätte II | D18: 311.6 | F18: 311.6 | G18: 0 | H18: 0 | I18: 0 | J18: 0 | K18: 0 | L18: 0 | M18: 0 | N18: 0 | O18: 311.6 | P18: 1 | Q18: 0 | R18: 0 | X18: 0.0 | Y18: 0 | Z18: 0
A19: 10 | B19: ='Wettkampf 1'!B19 -> Bernd Nortmann | C19: ='Wettkampf 1'!C19 -> Lahn V | D19: 304.1 | F19: 304.1 | G19: 0 | H19: 0 | I19: 0 | J19: 0 | K19: 0 | L19: 0 | M19: 304.1 | N19: 1 | O19: 0 | P19: 0 | Q19: 0 | R19: 0 | X19: 0.0 | Y19: 0 | Z19: 0
A20: 11 | B20: ='Wettkampf 1'!B20 -> Oliver Reinelt | C20: ='Wettkampf 1'!C20 -> Lahn V | D20: 301.4 | F20: 301.4 | G20: 0 | H20: 0 | I20: 0 | J20: 0 | K20: 0 | L20: 0 | M20: 301.4 | N20: 1 | O20: 0 | P20: 0 | Q20: 0 | R20: 0 | X20: 0.0 | Y20: 0 | Z20: 0
A21: 12 | B21: ='Wettkampf 1'!B21 -> Simon Schukenbrock | C21: ='Wettkampf 1'!C21 -> Lahn V | D21: 310.2 | F21: 310.2 | G21: 0 | H21: 0 | I21: 0 | J21: 0 | K21: 0 | L21: 0 | M21: 310.2 | N21: 1 | O21: 0 | P21: 0 | Q21: 0 | R21: 0 | X21: 0.0 | Y21: 0 | Z21: 0
A22: 13 | B22: ='Wettkampf 1'!B22 -> Michael Boje | C22: ='Wettkampf 1'!C22 -> Lahn V | D22: 0.0 | F22: 0.0 | G22: 0 | H22: 0 | I22: 0 | J22: 0 | K22: 0 | L22: 0 | M22: 0 | N22: 1 | O22: 0 | P22: 0 | Q22: 0 | R22: 0 | X22: 0.0 | Y22: 1 | Z22: 0
A23: 14 | B23: ='Wettkampf 1'!B23 -> Ludger Hermes | C23: ='Wettkampf 1'!C23 -> Neubörger II | D23: 309.1 | F23: 309.1 | G23: 0 | H23: 0 | I23: 0 | J23: 0 | K23: 309.1 | L23: 1 | M23: 0 | N23: 0 | O23: 0 | P23: 0 | Q23: 0 | R23: 0 | X23: 0.0 | Y23: 0 | Z23: 0
A24: 15 | B24: ='Wettkampf 1'!B24 -> Rudi Fromme | C24: ='Wettkampf 1'!C24 -> Neubörger II | D24: 304.7 | F24: 304.7 | G24: 0 | H24: 0 | I24: 0 | J24: 0 | K24: 304.7 | L24: 1 | M24: 0 | N24: 0 | O24: 0 | P24: 0 | Q24: 0 | R24: 0 | X24: 0.0 | Y24: 0 | Z24: 0
A25: 16 | B25: ='Wettkampf 1'!B25 -> Alois Schmitz | C25: ='Wettkampf 1'!C25 -> Neubörger II | D25: 307.5 | F25: 307.5 | G25: 0 | H25: 0 | I25: 0 | J25: 0 | K25: 307.5 | L25: 1 | M25: 0 | N25: 0 | O25: 0 | P25: 0 | Q25: 0 | R25: 0 | X25: 0.0 | Y25: 0 | Z25: 0
A26: 17 | B26: ='Wettkampf 1'!B26 -> Ludwig Langen | C26: ='Wettkampf 1'!C26 -> Neubörger II | D26: 304.4 | F26: 304.4 | G26: 0 | H26: 0 | I26: 0 | J26: 0 | K26: 304.4 | L26: 1 | M26: 0 | N26: 0 | O26: 0 | P26: 0 | Q26: 0 | R26: 0 | X26: 0.0 | Y26: 0 | Z26: 0
A27: 18 | B27: ='Wettkampf 1'!B27 -> Rainer Wielenberg | C27: ='Wettkampf 1'!C27 -> Esterwegen II | D27: 0.0 | E27: x | F27: 0 | G27: 0 | H27: 0 | I27: 0 | J27: 0 | K27: 0 | L27: 0 | M27: 0 | N27: 0 | O27: 0 | P27: 0 | Q27: 0 | R27: 0 | X27: 0.0 | Y27: 1 | Z27: 0
A28: 19 | B28: ='Wettkampf 1'!B28 -> Meik Sieger | C28: ='Wettkampf 1'!C28 -> Esterwegen II | D28: 311.1 | F28: 311.1 | G28: 0 | H28: 0 | I28: 311.1 | J28: 1 | K28: 0 | L28: 0 | M28: 0 | N28: 0 | O28: 0 | P28: 0 | Q28: 0 | R28: 0 | X28: 0.0 | Y28: 0 | Z28: 0
A29: 20 | B29: ='Wettkampf 1'!B29 -> Dennis Lindemann | C29: ='Wettkampf 1'!C29 -> Esterwegen II | D29: 310.4 | F29: 310.4 | G29: 0 | H29: 0 | I29: 310.4 | J29: 1 | K29: 0 | L29: 0 | M29: 0 | N29: 0 | O29: 0 | P29: 0 | Q29: 0 | R29: 0 | X29: 0.0 | Y29: 0 | Z29: 0
A30: 21 | B30: ='Wettkampf 1'!B30 -> Andreas Lindemann | C30: ='Wettkampf 1'!C30 -> Esterwegen II | D30: 303.0 | F30: 303.0 | G30: 0 | H30: 0 | I30: 303 | J30: 1 | K30: 0 | L30: 0 | M30: 0 | N30: 0 | O30: 0 | P30: 0 | Q30: 0 | R30: 0 | X30: 0.0 | Y30: 0 | Z30: 0
A31: 22 | B31: ='Wettkampf 1'!B31 -> Johannes Gebken | C31: ='Wettkampf 1'!C31 -> Esterwegen II | D31: 0.0 | E31: x | F31: 0 | G31: 0 | H31: 0 | I31: 0 | J31: 0 | K31: 0 | L31: 0 | M31: 0 | N31: 0 | O31: 0 | P31: 0 | Q31: 0 | R31: 0 | X31: 0.0 | Y31: 1 | Z31: 0
A32: 23 | B32: ='Wettkampf 1'!B32 -> Jan-Niklas Lindemann | C32: ='Wettkampf 1'!C32 -> Esterwegen II | D32: 0.0 | E32: x | F32: 0 | G32: 0 | H32: 0 | I32: 0 | J32: 0 | K32: 0 | L32: 0 | M32: 0 | N32: 0 | O32: 0 | P32: 0 | Q32: 0 | R32: 0 | X32: 0.0 | Y32: 1 | Z32: 0
A33: 24 | B33: ='Wettkampf 1'!B33 -> Stefan Burlager | C33: ='Wettkampf 1'!C33 -> Esterwegen II | D33: 304.6 | F33: 304.6 | G33: 0 | H33: 0 | I33: 304.6 | J33: 1 | K33: 0 | L33: 0 | M33: 0 | N33: 0 | O33: 0 | P33: 0 | Q33: 0 | R33: 0 | X33: 0.0 | Y33: 0 | Z33: 0
A34: 25 | B34: ='Wettkampf 1'!B34 -> Franz Ostermann | C34: ='Wettkampf 1'!C34 -> Eisten II | D34: 307.4 | F34: 307.4 | G34: 0 | H34: 0 | I34: 0 | J34: 0 | K34: 0 | L34: 0 | M34: 0 | N34: 0 | O34: 0 | P34: 0 | Q34: 307.4 | R34: 1 | X34: 0.0 | Y34: 0 | Z34: 0
A35: 26 | B35: ='Wettkampf 1'!B35 -> Martin Hackmann | C35: ='Wettkampf 1'!C35 -> Eisten II | D35: 307.4 | F35: 307.4 | G35: 0 | H35: 0 | I35: 0 | J35: 0 | K35: 0 | L35: 0 | M35: 0 | N35: 0 | O35: 0 | P35: 0 | Q35: 307.4 | R35: 1 | X35: 0.0 | Y35: 0 | Z35: 0
A36: 27 | B36: ='Wettkampf 1'!B36 -> Günther Baalmann | C36: ='Wettkampf 1'!C36 -> Eisten II | D36: 315.4 | F36: 315.4 | G36: 0 | H36: 0 | I36: 0 | J36: 0 | K36: 0 | L36: 0 | M36: 0 | N36: 0 | O36: 0 | P36: 0 | Q36: 315.4 | R36: 1 | X36: 0.0 | Y36: 0 | Z36: 0
A37: 28 | B37: ='Wettkampf 1'!B37 -> Martin Poker | C37: ='Wettkampf 1'!C37 -> Eisten II | D37: 312.6 | F37: 312.6 | G37: 0 | H37: 0 | I37: 0 | J37: 0 | K37: 0 | L37: 0 | M37: 0 | N37: 0 | O37: 0 | P37: 0 | Q37: 312.6 | R37: 1 | X37: 0.0 | Y37: 0 | Z37: 0
A38: 29 | B38: ='Wettkampf 1'!B38 -> Schütze 29 | C38: ='Wettkampf 1'!C38 -> 0.0 | F38: 0.0 | G38: 0 | H38: 0 | I38: 0 | J38: 0 | K38: 0 | L38: 0 | M38: 0 | N38: 0 | O38: 0 | P38: 0 | Q38: 0 | R38: 0 | X38: 0.0 | Y38: 1 | Z38: 0
A39: 30 | B39: ='Wettkampf 1'!B39 -> Schütze 30 | C39: ='Wettkampf 1'!C39 -> 0.0 | F39: 0.0 | G39: 0 | H39: 0 | I39: 0 | J39: 0 | K39: 0 | L39: 0 | M39: 0 | N39: 0 | O39: 0 | P39: 0 | Q39: 0 | R39: 0 | X39: 0.0 | Y39: 1 | Z39: 0
A40: 31 | B40: ='Wettkampf 1'!B40 -> Schütze 31 | C40: ='Wettkampf 1'!C40 -> 0.0 | F40: 0.0 | G40: 0 | H40: 0 | I40: 0 | J40: 0 | K40: 0 | L40: 0 | M40: 0 | N40: 0 | O40: 0 | P40: 0 | Q40: 0 | R40: 0 | X40: 0.0 | Y40: 1 | Z40: 0
A41: 32 | B41: ='Wettkampf 1'!B41 -> Schütze 32 | C41: ='Wettkampf 1'!C41 -> 0.0 | F41: 0.0 | G41: 0 | H41: 0 | I41: 0 | J41: 0 | K41: 0 | L41: 0 | M41: 0 | N41: 0 | O41: 0 | P41: 0 | Q41: 0 | R41: 0 | X41: 0.0 | Y41: 1 | Z41: 0
A42: 33 | B42: ='Wettkampf 1'!B42 -> Schütze 33 | C42: ='Wettkampf 1'!C42 -> 0.0 | F42: 0.0 | G42: 0 | H42: 0 | I42: 0 | J42: 0 | K42: 0 | L42: 0 | M42: 0 | N42: 0 | O42: 0 | P42: 0 | Q42: 0 | R42: 0 | X42: 0.0 | Y42: 1 | Z42: 0
A43: 34 | B43: ='Wettkampf 1'!B43 -> Schütze 34 | C43: ='Wettkampf 1'!C43 -> 0.0 | F43: 0.0 | G43: 0 | H43: 0 | I43: 0 | J43: 0 | K43: 0 | L43: 0 | M43: 0 | N43: 0 | O43: 0 | P43: 0 | Q43: 0 | R43: 0 | X43: 0.0 | Y43: 1 | Z43: 0
A44: 35 | B44: ='Wettkampf 1'!B44 -> Schütze 35 | C44: ='Wettkampf 1'!C44 -> 0.0 | F44: 0.0 | G44: 0 | H44: 0 | I44: 0 | J44: 0 | K44: 0 | L44: 0 | M44: 0 | N44: 0 | O44: 0 | P44: 0 | Q44: 0 | R44: 0 | X44: 0.0 | Y44: 1 | Z44: 0
A45: 36 | B45: ='Wettkampf 1'!B45 -> Schütze 36 | C45: ='Wettkampf 1'!C45 -> 0.0 | F45: 0.0 | G45: 0 | H45: 0 | I45: 0 | J45: 0 | K45: 0 | L45: 0 | M45: 0 | N45: 0 | O45: 0 | P45: 0 | Q45: 0 | R45: 0 | X45: 0.0 | Y45: 1 | Z45: 0
G46: =LARGE(G10:G45,1)+LARGE(G10:G45,2)+LARGE(G10:G45,3) -> 921.1 | H46: =SUM(H10:H45) -> 4 | I46: =LARGE(I10:I45,1)+LARGE(I10:I45,2)+LARGE(I10:I45,3) -> 926.1 | J46: =SUM(J10:J45) -> 4 | K46: =LARGE(K10:K45,1)+LARGE(K10:K45,2)+LARGE(K10:K45,3) -> 921.3 | L46: =SUM(L10:L45) -> 4 | M46: =LARGE(M10:M45,1)+LARGE(M10:M45,2)+LARGE(M10:M45,3) -> 915.7 | N46: =SUM(N10:N45) -> 4 | O46: =LARGE(O10:O45,1)+LARGE(O10:O45,2)+LARGE(O10:O45,3) -> 931.9 | P46: =SUM(P10:P45) -> 4 | Q46: =LARGE(Q10:Q45,1)+LARGE(Q10:Q45,2)+LARGE(Q10:Q45,3) -> 935.4 | R46: =SUM(R10:S45) -> 4
C47: per Email an: sk-huemmling@gmx.de

Sheet 8
B1: Verein / Gruppe | D1: Ergebnisse | V1: Austragungsort: | W1: =Übersicht!M4 -> Esterwegen
A2: 1 | B2: ='Wettkampf 1'!B2 -> Spahnharrenstätte III | D2: =G46 -> 928.0 | E2: =IF(H46>4,"Es sind zu viele Schützen in Wertung!"," ") ->  | V2: Wettkampftag: | W2: =Übersicht!M3 -> 02.02.
A3: 2 | B3: ='Wettkampf 1'!B3 -> Esterwegen II | D3: =I46 -> 926.9 | E3: =IF(J46>4,"Es sind zu viele Schützen in Wertung!"," ") -> 
A4: 3 | B4: ='Wettkampf 1'!B4 -> Neubörger II | D4: =K46 -> 921.3 | E4: =IF(L46>4,"Es sind zu viele Schützen in Wertung!"," ") ->  | X4: Ansprechpartner für Rückfragen:
A5: 4 | B5: ='Wettkampf 1'!B5 -> Lahn V | D5: =M46 -> 915.2 | E5: =IF(N46>4,"Es sind zu viele Schützen in Wertung!"," ") ->  | V5: Name: | W5: Konneman
A6: 5 | B6: ='Wettkampf 1'!B6 -> Spahnharrenstätte II | D6: =O46 -> 928.5 | E6: =IF(P46>4,"Es sind zu viele Schützen in Wertung!"," ") ->  | V6: Tel: | W6: 05955-988903
A7: 6 | B7: ='Wettkampf 1'!B7 -> Eisten II | D7: =Q46 -> 932.4 | E7: =IF(R46>4,"Es sind zu viele Schützen in Wertung!"," ") ->  | V7: Standaufsicht: | W7: Sieger
B9: Einzelergebnisse: | C9: Verein / Gruppe | D9: Ergebnisse (mindestens 0 eintragen) | E9: AW? Dann x eintippen | G9: Verein 1 | I9: Verein 2 | K9: Verein 3 | M9: Verein 4 | O9: Verein 5 | Q9: Verein 6 | U9: Proberechnung bei Streifen:
A10: 1 | B10: ='Wettkampf 1'!B10 -> Heiko Micksch | C10: ='Wettkampf 1'!C10 -> Spahnharrenstätte III | D10: 305.7 | E10: x | F10: =IF(E10="x","0",D10) -> 0 | G10: =IF(C10=$B$2,F10,0) -> 0 | H10: =(IF(AND($E10="",$C10=$B$2),1,0)) -> 0 | I10: =IF($C10=$B$3,F10,0) -> 0 | J10: =(IF(AND($E10="",$C10=$B$3),1,0)) -> 0 | K10: =IF($C10=$B$4,F10,0) -> 0 | L10: =(IF(AND($E10="",$C10=$B$4),1,0)) -> 0 | M10: =IF($C10=$B$5,F10,0) -> 0 | N10: =(IF(AND($E10="",$C10=$B$5),1,0)) -> 0 | O10: =IF($C10=$B$6,F10,0) -> 0 | P10: =(IF(AND($E10="",$C10=$B$6),1,0)) -> 0 | Q10: =IF($C10=$B$7,F10,0) -> 0 | R10: =(IF(AND($E10="",$C10=$B$7),1,0)) -> 0 | X10: =U10+V10+W10 -> 0.0 | Y10: =IF(X10=D10,1,0) -> 0 | Z10: =IF(X10=0,0,1) -> 0 | AA10: =IF(Y10+Z10=2,"Korrekt","") -> 
A11: 2 | B11: ='Wettkampf 1'!B11 -> Dirk Meyer | C11: ='Wettkampf 1'!C11 -> Spahnharrenstätte III | D11: 311.6 | F11: =IF(E11="x","0",D11) -> 311.6 | G11: =IF(C11=$B$2,F11,0) -> 311.6 | H11: =(IF(AND($E11="",$C11=$B$2),1,0)) -> 1 | I11: =IF($C11=$B$3,F11,0) -> 0 | J11: =(IF(AND($E11="",$C11=$B$3),1,0)) -> 0 | K11: =IF($C11=$B$4,F11,0) -> 0 | L11: =(IF(AND($E11="",$C11=$B$4),1,0)) -> 0 | M11: =IF($C11=$B$5,F11,0) -> 0 | N11: =(IF(AND($E11="",$C11=$B$5),1,0)) -> 0 | O11: =IF($C11=$B$6,F11,0) -> 0 | P11: =(IF(AND($E11="",$C11=$B$6),1,0)) -> 0 | Q11: =IF($C11=$B$7,F11,0) -> 0 | R11: =(IF(AND($E11="",$C11=$B$7),1,0)) -> 0 | X11: =U11+V11+W11 -> 0.0 | Y11: =IF(X11=D11,1,0) -> 0 | Z11: =IF(X11=0,0,1) -> 0 | AA11: =IF(Y11+Z11=2,"Korrekt","") -> 
A12: 3 | B12: ='Wettkampf 1'!B12 -> Sebastian Albers | C12: ='Wettkampf 1'!C12 -> Spahnharrenstätte III | D12: 307.2 | F12: 307.2 | G12: 307.2 | H12: 1 | I12: 0 | J12: 0 | K12: 0 | L12: 0 | M12: 0 | N12: 0 | O12: 0 | P12: 0 | Q12: 0 | R12: 0 | X12: 0.0 | Y12: 0 | Z12: 0
A13: 4 | B13: ='Wettkampf 1'!B13 -> Achim Will | C13: ='Wettkampf 1'!C13 -> Spahnharrenstätte III | D13: 308.4 | F13: 308.4 | G13: 308.4 | H13: 1 | I13: 0 | J13: 0 | K13: 0 | L13: 0 | M13: 0 | N13: 0 | O13: 0 | P13: 0 | Q13: 0 | R13: 0 | X13: 0.0 | Y13: 0 | Z13: 0
A14: 5 | B14: ='Wettkampf 1'!B14 -> Christian Grönheim | C14: ='Wettkampf 1'!C14 -> Spahnharrenstätte III | D14: 308.0 | F14: 308.0 | G14: 308 | H14: 1 | I14: 0 | J14: 0 | K14: 0 | L14: 0 | M14: 0 | N14: 0 | O14: 0 | P14: 0 | Q14: 0 | R14: 0 | X14: 0.0 | Y14: 0 | Z14: 0
A15: 6 | B15: ='Wettkampf 1'!B15 -> Dieter Hanekamp | C15: ='Wettkampf 1'!C15 -> Spahnharrenstätte II | D15: 311.5 | F15: 311.5 | G15: 0 | H15: 0 | I15: 0 | J15: 0 | K15: 0 | L15: 0 | M15: 0 | N15: 0 | O15: 311.5 | P15: 1 | Q15: 0 | R15: 0 | X15: 0.0 | Y15: 0 | Z15: 0
A16: 7 | B16: ='Wettkampf 1'!B16 -> Josef Langen | C16: ='Wettkampf 1'!C16 -> Spahnharrenstätte II | D16: 306.7 | F16: 306.7 | G16: 0 | H16: 0 | I16: 0 | J16: 0 | K16: 0 | L16: 0 | M16: 0 | N16: 0 | O16: 306.7 | P16: 1 | Q16: 0 | R16: 0 | X16: 0.0 | Y16: 0 | Z16: 0
A17: 8 | B17: ='Wettkampf 1'!B17 -> Johannes Hülsmann | C17: ='Wettkampf 1'!C17 -> Spahnharrenstätte II | D17: 309.5 | F17: 309.5 | G17: 0 | H17: 0 | I17: 0 | J17: 0 | K17: 0 | L17: 0 | M17: 0 | N17: 0 | O17: 309.5 | P17: 1 | Q17: 0 | R17: 0 | X17: 0.0 | Y17: 0 | Z17: 0
A18: 9 | B18: ='Wettkampf 1'!B18 -> Heiner Kröger | C18: ='Wettkampf 1'!C18 -> Spahnharrenstätte II | D18: 307.5 | F18: 307.5 | G18: 0 | H18: 0 | I18: 0 | J18: 0 | K18: 0 | L18: 0 | M18: 0 | N18: 0 | O18: 307.5 | P18: 1 | Q18: 0 | R18: 0 | X18: 0.0 | Y18: 0 | Z18: 0
A19: 10 | B19: ='Wettkampf 1'!B19 -> Bernd Nortmann | C19: ='Wettkampf 1'!C19 -> Lahn V | D19: 308.9 | F19: 308.9 | G19: 0 | H19: 0 | I19: 0 | J19: 0 | K19: 0 | L19: 0 | M19: 308.9 | N19: 1 | O19: 0 | P19: 0 | Q19: 0 | R19: 0 | X19: 0.0 | Y19: 0 | Z19: 0
A20: 11 | B20: ='Wettkampf 1'!B20 -> Oliver Reinelt | C20: ='Wettkampf 1'!C20 -> Lahn V | D20: 304.4 | F20: 304.4 | G20: 0 | H20: 0 | I20: 0 | J20: 0 | K20: 0 | L20: 0 | M20: 304.4 | N20: 1 | O20: 0 | P20: 0 | Q20: 0 | R20: 0 | X20: 0.0 | Y20: 0 | Z20: 0
A21: 12 | B21: ='Wettkampf 1'!B21 -> Simon Schukenbrock | C21: ='Wettkampf 1'!C21 -> Lahn V | D21: 301.9 | F21: 301.9 | G21: 0 | H21: 0 | I21: 0 | J21: 0 | K21: 0 | L21: 0 | M21: 301.9 | N21: 1 | O21: 0 | P21: 0 | Q21: 0 | R21: 0 | X21: 0.0 | Y21: 0 | Z21: 0
A22: 13 | B22: ='Wettkampf 1'!B22 -> Michael Boje | C22: ='Wettkampf 1'!C22 -> Lahn V | D22: 0.0 | F22: 0.0 | G22: 0 | H22: 0 | I22: 0 | J22: 0 | K22: 0 | L22: 0 | M22: 0 | N22: 1 | O22: 0 | P22: 0 | Q22: 0 | R22: 0 | X22: 0.0 | Y22: 1 | Z22: 0
A23: 14 | B23: ='Wettkampf 1'!B23 -> Ludger Hermes | C23: ='Wettkampf 1'!C23 -> Neubörger II | D23: 310.6 | F23: 310.6 | G23: 0 | H23: 0 | I23: 0 | J23: 0 | K23: 310.6 | L23: 1 | M23: 0 | N23: 0 | O23: 0 | P23: 0 | Q23: 0 | R23: 0 | X23: 0.0 | Y23: 0 | Z23: 0
A24: 15 | B24: ='Wettkampf 1'!B24 -> Rudi Fromme | C24: ='Wettkampf 1'!C24 -> Neubörger II | D24: 303.2 | F24: 303.2 | G24: 0 | H24: 0 | I24: 0 | J24: 0 | K24: 303.2 | L24: 1 | M24: 0 | N24: 0 | O24: 0 | P24: 0 | Q24: 0 | R24: 0 | X24: 0.0 | Y24: 0 | Z24: 0
A25: 16 | B25: ='Wettkampf 1'!B25 -> Alois Schmitz | C25: ='Wettkampf 1'!C25 -> Neubörger II | D25: 304.9 | F25: 304.9 | G25: 0 | H25: 0 | I25: 0 | J25: 0 | K25: 304.9 | L25: 1 | M25: 0 | N25: 0 | O25: 0 | P25: 0 | Q25: 0 | R25: 0 | X25: 0.0 | Y25: 0 | Z25: 0
A26: 17 | B26: ='Wettkampf 1'!B26 -> Ludwig Langen | C26: ='Wettkampf 1'!C26 -> Neubörger II | D26: 305.8 | F26: 305.8 | G26: 0 | H26: 0 | I26: 0 | J26: 0 | K26: 305.8 | L26: 1 | M26: 0 | N26: 0 | O26: 0 | P26: 0 | Q26: 0 | R26: 0 | X26: 0.0 | Y26: 0 | Z26: 0
A27: 18 | B27: ='Wettkampf 1'!B27 -> Rainer Wielenberg | C27: ='Wettkampf 1'!C27 -> Esterwegen II | D27: 298.3 | E27: x | F27: 0 | G27: 0 | H27: 0 | I27: 0 | J27: 0 | K27: 0 | L27: 0 | M27: 0 | N27: 0 | O27: 0 | P27: 0 | Q27: 0 | R27: 0 | X27: 0.0 | Y27: 0 | Z27: 0
A28: 19 | B28: ='Wettkampf 1'!B28 -> Meik Sieger | C28: ='Wettkampf 1'!C28 -> Esterwegen II | D28: 306.6 | F28: 306.6 | G28: 0 | H28: 0 | I28: 306.6 | J28: 1 | K28: 0 | L28: 0 | M28: 0 | N28: 0 | O28: 0 | P28: 0 | Q28: 0 | R28: 0 | X28: 0.0 | Y28: 0 | Z28: 0
A29: 20 | B29: ='Wettkampf 1'!B29 -> Dennis Lindemann | C29: ='Wettkampf 1'!C29 -> Esterwegen II | D29: 312.5 | F29: 312.5 | G29: 0 | H29: 0 | I29: 312.5 | J29: 1 | K29: 0 | L29: 0 | M29: 0 | N29: 0 | O29: 0 | P29: 0 | Q29: 0 | R29: 0 | X29: 0.0 | Y29: 0 | Z29: 0
A30: 21 | B30: ='Wettkampf 1'!B30 -> Andreas Lindemann | C30: ='Wettkampf 1'!C30 -> Esterwegen II | D30: 307.8 | F30: 307.8 | G30: 0 | H30: 0 | I30: 307.8 | J30: 1 | K30: 0 | L30: 0 | M30: 0 | N30: 0 | O30: 0 | P30: 0 | Q30: 0 | R30: 0 | X30: 0.0 | Y30: 0 | Z30: 0
A31: 22 | B31: ='Wettkampf 1'!B31 -> Johannes Gebken | C31: ='Wettkampf 1'!C31 -> Esterwegen II | D31: 0.0 | E31: x | F31: 0 | G31: 0 | H31: 0 | I31: 0 | J31: 0 | K31: 0 | L31: 0 | M31: 0 | N31: 0 | O31: 0 | P31: 0 | Q31: 0 | R31: 0 | X31: 0.0 | Y31: 1 | Z31: 0
A32: 23 | B32: ='Wettkampf 1'!B32 -> Jan-Niklas Lindemann | C32: ='Wettkampf 1'!C32 -> Esterwegen II | D32: 0.0 | E32: x | F32: 0 | G32: 0 | H32: 0 | I32: 0 | J32: 0 | K32: 0 | L32: 0 | M32: 0 | N32: 0 | O32: 0 | P32: 0 | Q32: 0 | R32: 0 | X32: 0.0 | Y32: 1 | Z32: 0
A33: 24 | B33: ='Wettkampf 1'!B33 -> Stefan Burlager | C33: ='Wettkampf 1'!C33 -> Esterwegen II | D33: 303.5 | F33: 303.5 | G33: 0 | H33: 0 | I33: 303.5 | J33: 1 | K33: 0 | L33: 0 | M33: 0 | N33: 0 | O33: 0 | P33: 0 | Q33: 0 | R33: 0 | X33: 0.0 | Y33: 0 | Z33: 0
A34: 25 | B34: ='Wettkampf 1'!B34 -> Franz Ostermann | C34: ='Wettkampf 1'!C34 -> Eisten II | D34: 309.7 | F34: 309.7 | G34: 0 | H34: 0 | I34: 0 | J34: 0 | K34: 0 | L34: 0 | M34: 0 | N34: 0 | O34: 0 | P34: 0 | Q34: 309.7 | R34: 1 | X34: 0.0 | Y34: 0 | Z34: 0
A35: 26 | B35: ='Wettkampf 1'!B35 -> Martin Hackmann | C35: ='Wettkampf 1'!C35 -> Eisten II | D35: 308.9 | F35: 308.9 | G35: 0 | H35: 0 | I35: 0 | J35: 0 | K35: 0 | L35: 0 | M35: 0 | N35: 0 | O35: 0 | P35: 0 | Q35: 308.9 | R35: 1 | X35: 0.0 | Y35: 0 | Z35: 0
A36: 27 | B36: ='Wettkampf 1'!B36 -> Günther Baalmann | C36: ='Wettkampf 1'!C36 -> Eisten II | D36: 313.8 | F36: 313.8 | G36: 0 | H36: 0 | I36: 0 | J36: 0 | K36: 0 | L36: 0 | M36: 0 | N36: 0 | O36: 0 | P36: 0 | Q36: 313.8 | R36: 1 | X36: 0.0 | Y36: 0 | Z36: 0
A37: 28 | B37: ='Wettkampf 1'!B37 -> Martin Poker | C37: ='Wettkampf 1'!C37 -> Eisten II | D37: 305.4 | F37: 305.4 | G37: 0 | H37: 0 | I37: 0 | J37: 0 | K37: 0 | L37: 0 | M37: 0 | N37: 0 | O37: 0 | P37: 0 | Q37: 305.4 | R37: 1 | X37: 0.0 | Y37: 0 | Z37: 0
A38: 29 | B38: ='Wettkampf 1'!B38 -> Schütze 29 | C38: ='Wettkampf 1'!C38 -> 0.0 | E38: x | F38: 0 | G38: 0 | H38: 0 | I38: 0 | J38: 0 | K38: 0 | L38: 0 | M38: 0 | N38: 0 | O38: 0 | P38: 0 | Q38: 0 | R38: 0 | X38: 0.0 | Y38: 1 | Z38: 0
A39: 30 | B39: ='Wettkampf 1'!B39 -> Schütze 30 | C39: ='Wettkampf 1'!C39 -> 0.0 | E39: x | F39: 0 | G39: 0 | H39: 0 | I39: 0 | J39: 0 | K39: 0 | L39: 0 | M39: 0 | N39: 0 | O39: 0 | P39: 0 | Q39: 0 | R39: 0 | X39: 0.0 | Y39: 1 | Z39: 0
A40: 31 | B40: ='Wettkampf 1'!B40 -> Schütze 31 | C40: ='Wettkampf 1'!C40 -> 0.0 | F40: 0.0 | G40: 0 | H40: 0 | I40: 0 | J40: 0 | K40: 0 | L40: 0 | M40: 0 | N40: 0 | O40: 0 | P40: 0 | Q40: 0 | R40: 0 | X40: 0.0 | Y40: 1 | Z40: 0
A41: 32 | B41: ='Wettkampf 1'!B41 -> Schütze 32 | C41: ='Wettkampf 1'!C41 -> 0.0 | F41: 0.0 | G41: 0 | H41: 0 | I41: 0 | J41: 0 | K41: 0 | L41: 0 | M41: 0 | N41: 0 | O41: 0 | P41: 0 | Q41: 0 | R41: 0 | X41: 0.0 | Y41: 1 | Z41: 0
A42: 33 | B42: ='Wettkampf 1'!B42 -> Schütze 33 | C42: ='Wettkampf 1'!C42 -> 0.0 | F42: 0.0 | G42: 0 | H42: 0 | I42: 0 | J42: 0 | K42: 0 | L42: 0 | M42: 0 | N42: 0 | O42: 0 | P42: 0 | Q42: 0 | R42: 0 | X42: 0.0 | Y42: 1 | Z42: 0
A43: 34 | B43: ='Wettkampf 1'!B43 -> Schütze 34 | C43: ='Wettkampf 1'!C43 -> 0.0 | F43: 0.0 | G43: 0 | H43: 0 | I43: 0 | J43: 0 | K43: 0 | L43: 0 | M43: 0 | N43: 0 | O43: 0 | P43: 0 | Q43: 0 | R43: 0 | X43: 0.0 | Y43: 1 | Z43: 0
A44: 35 | B44: ='Wettkampf 1'!B44 -> Schütze 35 | C44: ='Wettkampf 1'!C44 -> 0.0 | E44: x | F44: 0 | G44: 0 | H44: 0 | I44: 0 | J44: 0 | K44: 0 | L44: 0 | M44: 0 | N44: 0 | O44: 0 | P44: 0 | Q44: 0 | R44: 0 | X44: 0.0 | Y44: 1 | Z44: 0
A45: 36 | B45: ='Wettkampf 1'!B45 -> Schütze 36 | C45: ='Wettkampf 1'!C45 -> 0.0 | E45: x | F45: 0 | G45: 0 | H45: 0 | I45: 0 | J45: 0 | K45: 0 | L45: 0 | M45: 0 | N45: 0 | O45: 0 | P45: 0 | Q45: 0 | R45: 0 | X45: 0.0 | Y45: 1 | Z45: 0
G46: =LARGE(G10:G45,1)+LARGE(G10:G45,2)+LARGE(G10:G45,3) -> 928 | H46: =SUM(H10:H45) -> 4 | I46: =LARGE(I10:I45,1)+LARGE(I10:I45,2)+LARGE(I10:I45,3) -> 926.9 | J46: =SUM(J10:J45) -> 4 | K46: =LARGE(K10:K45,1)+LARGE(K10:K45,2)+LARGE(K10:K45,3) -> 921.3 | L46: =SUM(L10:L45) -> 4 | M46: =LARGE(M10:M45,1)+LARGE(M10:M45,2)+LARGE(M10:M45,3) -> 915.2 | N46: =SUM(N10:N45) -> 4 | O46: =LARGE(O10:O45,1)+LARGE(O10:O45,2)+LARGE(O10:O45,3) -> 928.5 | P46: =SUM(P10:P45) -> 4 | Q46: =LARGE(Q10:Q45,1)+LARGE(Q10:Q45,2)+LARGE(Q10:Q45,3) -> 932.4 | R46: =SUM(R10:S45) -> 4
C47: per Email an: sk-huemmling@gmx.de

Sheet 9
B1: Verein / Gruppe | D1: Ergebnisse | V1: Austragungsort: | W1: =Übersicht!N4 -> Spahnharrenstätte
A2: 1 | B2: ='Wettkampf 1'!B2 -> Spahnharrenstätte III | D2: =G46 -> 935.4 | E2: =IF(H46>4,"Es sind zu viele Schützen in Wertung!"," ") ->  | V2: Wettkampftag: | W2: =Übersicht!N3 -> 16.02.
A3: 2 | B3: ='Wettkampf 1'!B3 -> Esterwegen II | D3: =I46 -> 926.7 | E3: =IF(J46>4,"Es sind zu viele Schützen in Wertung!"," ") -> 
A4: 3 | B4: ='Wettkampf 1'!B4 -> Neubörger II | D4: =K46 -> 924.4 | E4: =IF(L46>4,"Es sind zu viele Schützen in Wertung!"," ") ->  | X4: Ansprechpartner für Rückfragen:
A5: 4 | B5: ='Wettkampf 1'!B5 -> Lahn V | D5: =M46 -> 920.4 | E5: =IF(N46>4,"Es sind zu viele Schützen in Wertung!"," ") ->  | V5: Name:
A6: 5 | B6: ='Wettkampf 1'!B6 -> Spahnharrenstätte II | D6: =O46 -> 929.7 | E6: =IF(P46>4,"Es sind zu viele Schützen in Wertung!"," ") ->  | V6: Tel:
A7: 6 | B7: ='Wettkampf 1'!B7 -> Eisten II | D7: =Q46 -> 937.3 | E7: =IF(R46>4,"Es sind zu viele Schützen in Wertung!"," ") ->  | V7: Standaufsicht: | W7: Achim Will
B9: Einzelergebnisse: | C9: Verein / Gruppe | D9: Ergebnisse (mindestens 0 eintragen) | E9: AW? Dann x eintippen | G9: Verein 1 | I9: Verein 2 | K9: Verein 3 | M9: Verein 4 | O9: Verein 5 | Q9: Verein 6 | U9: Proberechnung bei Streifen:
A10: 1 | B10: ='Wettkampf 1'!B10 -> Heiko Micksch | C10: ='Wettkampf 1'!C10 -> Spahnharrenstätte III | D10: 306.3 | E10: x | F10: =IF(E10="x","0",D10) -> 0 | G10: =IF(C10=$B$2,F10,0) -> 0 | H10: =(IF(AND($E10="",$C10=$B$2),1,0)) -> 0 | I10: =IF($C10=$B$3,F10,0) -> 0 | J10: =(IF(AND($E10="",$C10=$B$3),1,0)) -> 0 | K10: =IF($C10=$B$4,F10,0) -> 0 | L10: =(IF(AND($E10="",$C10=$B$4),1,0)) -> 0 | M10: =IF($C10=$B$5,F10,0) -> 0 | N10: =(IF(AND($E10="",$C10=$B$5),1,0)) -> 0 | O10: =IF($C10=$B$6,F10,0) -> 0 | P10: =(IF(AND($E10="",$C10=$B$6),1,0)) -> 0 | Q10: =IF($C10=$B$7,F10,0) -> 0 | R10: =(IF(AND($E10="",$C10=$B$7),1,0)) -> 0 | X10: =U10+V10+W10 -> 0.0 | Y10: =IF(X10=D10,1,0) -> 0 | Z10: =IF(X10=0,0,1) -> 0 | AA10: =IF(Y10+Z10=2,"Korrekt","") -> 
A11: 2 | B11: ='Wettkampf 1'!B11 -> Dirk Meyer | C11: ='Wettkampf 1'!C11 -> Spahnharrenstätte III | D11: 312.7 | F11: =IF(E11="x","0",D11) -> 312.7 | G11: =IF(C11=$B$2,F11,0) -> 312.7 | H11: =(IF(AND($E11="",$C11=$B$2),1,0)) -> 1 | I11: =IF($C11=$B$3,F11,0) -> 0 | J11: =(IF(AND($E11="",$C11=$B$3),1,0)) -> 0 | K11: =IF($C11=$B$4,F11,0) -> 0 | L11: =(IF(AND($E11="",$C11=$B$4),1,0)) -> 0 | M11: =IF($C11=$B$5,F11,0) -> 0 | N11: =(IF(AND($E11="",$C11=$B$5),1,0)) -> 0 | O11: =IF($C11=$B$6,F11,0) -> 0 | P11: =(IF(AND($E11="",$C11=$B$6),1,0)) -> 0 | Q11: =IF($C11=$B$7,F11,0) -> 0 | R11: =(IF(AND($E11="",$C11=$B$7),1,0)) -> 0 | X11: =U11+V11+W11 -> 0.0 | Y11: =IF(X11=D11,1,0) -> 0 | Z11: =IF(X11=0,0,1) -> 0 | AA11: =IF(Y11+Z11=2,"Korrekt","") -> 
A12: 3 | B12: ='Wettkampf 1'!B12 -> Sebastian Albers | C12: ='Wettkampf 1'!C12 -> Spahnharrenstätte III | D12: 306.3 | F12: 306.3 | G12: 306.3 | H12: 1 | I12: 0 | J12: 0 | K12: 0 | L12: 0 | M12: 0 | N12: 0 | O12: 0 | P12: 0 | Q12: 0 | R12: 0 | X12: 0.0 | Y12: 0 | Z12: 0
A13: 4 | B13: ='Wettkampf 1'!B13 -> Achim Will | C13: ='Wettkampf 1'!C13 -> Spahnharrenstätte III | D13: 312.7 | F13: 312.7 | G13: 312.7 | H13: 1 | I13: 0 | J13: 0 | K13: 0 | L13: 0 | M13: 0 | N13: 0 | O13: 0 | P13: 0 | Q13: 0 | R13: 0 | X13: 0.0 | Y13: 0 | Z13: 0
A14: 5 | B14: ='Wettkampf 1'!B14 -> Christian Grönheim | C14: ='Wettkampf 1'!C14 -> Spahnharrenstätte III | D14: 310.0 | F14: 310.0 | G14: 310 | H14: 1 | I14: 0 | J14: 0 | K14: 0 | L14: 0 | M14: 0 | N14: 0 | O14: 0 | P14: 0 | Q14: 0 | R14: 0 | X14: 0.0 | Y14: 0 | Z14: 0
A15: 6 | B15: ='Wettkampf 1'!B15 -> Dieter Hanekamp | C15: ='Wettkampf 1'!C15 -> Spahnharrenstätte II | D15: 310.7 | F15: 310.7 | G15: 0 | H15: 0 | I15: 0 | J15: 0 | K15: 0 | L15: 0 | M15: 0 | N15: 0 | O15: 310.7 | P15: 1 | Q15: 0 | R15: 0 | X15: 0.0 | Y15: 0 | Z15: 0
A16: 7 | B16: ='Wettkampf 1'!B16 -> Josef Langen | C16: ='Wettkampf 1'!C16 -> Spahnharrenstätte II | D16: 305.8 | F16: 305.8 | G16: 0 | H16: 0 | I16: 0 | J16: 0 | K16: 0 | L16: 0 | M16: 0 | N16: 0 | O16: 305.8 | P16: 1 | Q16: 0 | R16: 0 | X16: 0.0 | Y16: 0 | Z16: 0
A17: 8 | B17: ='Wettkampf 1'!B17 -> Johannes Hülsmann | C17: ='Wettkampf 1'!C17 -> Spahnharrenstätte II | D17: 310.1 | F17: 310.1 | G17: 0 | H17: 0 | I17: 0 | J17: 0 | K17: 0 | L17: 0 | M17: 0 | N17: 0 | O17: 310.1 | P17: 1 | Q17: 0 | R17: 0 | X17: 0.0 | Y17: 0 | Z17: 0
A18: 9 | B18: ='Wettkampf 1'!B18 -> Heiner Kröger | C18: ='Wettkampf 1'!C18 -> Spahnharrenstätte II | D18: 308.9 | F18: 308.9 | G18: 0 | H18: 0 | I18: 0 | J18: 0 | K18: 0 | L18: 0 | M18: 0 | N18: 0 | O18: 308.9 | P18: 1 | Q18: 0 | R18: 0 | X18: 0.0 | Y18: 0 | Z18: 0
A19: 10 | B19: ='Wettkampf 1'!B19 -> Bernd Nortmann | C19: ='Wettkampf 1'!C19 -> Lahn V | D19: 302.7 | F19: 302.7 | G19: 0 | H19: 0 | I19: 0 | J19: 0 | K19: 0 | L19: 0 | M19: 302.7 | N19: 1 | O19: 0 | P19: 0 | Q19: 0 | R19: 0 | X19: 0.0 | Y19: 0 | Z19: 0
A20: 11 | B20: ='Wettkampf 1'!B20 -> Oliver Reinelt | C20: ='Wettkampf 1'!C20 -> Lahn V | D20: 305.8 | F20: 305.8 | G20: 0 | H20: 0 | I20: 0 | J20: 0 | K20: 0 | L20: 0 | M20: 305.8 | N20: 1 | O20: 0 | P20: 0 | Q20: 0 | R20: 0 | X20: 0.0 | Y20: 0 | Z20: 0
A21: 12 | B21: ='Wettkampf 1'!B21 -> Simon Schukenbrock | C21: ='Wettkampf 1'!C21 -> Lahn V | D21: 311.9 | F21: 311.9 | G21: 0 | H21: 0 | I21: 0 | J21: 0 | K21: 0 | L21: 0 | M21: 311.9 | N21: 1 | O21: 0 | P21: 0 | Q21: 0 | R21: 0 | X21: 0.0 | Y21: 0 | Z21: 0
A22: 13 | B22: ='Wettkampf 1'!B22 -> Michael Boje | C22: ='Wettkampf 1'!C22 -> Lahn V | D22: 0.0 | F22: 0.0 | G22: 0 | H22: 0 | I22: 0 | J22: 0 | K22: 0 | L22: 0 | M22: 0 | N22: 1 | O22: 0 | P22: 0 | Q22: 0 | R22: 0 | X22: 0.0 | Y22: 1 | Z22: 0
A23: 14 | B23: ='Wettkampf 1'!B23 -> Ludger Hermes | C23: ='Wettkampf 1'!C23 -> Neubörger II | D23: 304.5 | F23: 304.5 | G23: 0 | H23: 0 | I23: 0 | J23: 0 | K23: 304.5 | L23: 1 | M23: 0 | N23: 0 | O23: 0 | P23: 0 | Q23: 0 | R23: 0 | X23: 0.0 | Y23: 0 | Z23: 0
A24: 15 | B24: ='Wettkampf 1'!B24 -> Rudi Fromme | C24: ='Wettkampf 1'!C24 -> Neubörger II | D24: 300.8 | F24: 300.8 | G24: 0 | H24: 0 | I24: 0 | J24: 0 | K24: 300.8 | L24: 1 | M24: 0 | N24: 0 | O24: 0 | P24: 0 | Q24: 0 | R24: 0 | X24: 0.0 | Y24: 0 | Z24: 0
A25: 16 | B25: ='Wettkampf 1'!B25 -> Alois Schmitz | C25: ='Wettkampf 1'!C25 -> Neubörger II | D25: 310.5 | F25: 310.5 | G25: 0 | H25: 0 | I25: 0 | J25: 0 | K25: 310.5 | L25: 1 | M25: 0 | N25: 0 | O25: 0 | P25: 0 | Q25: 0 | R25: 0 | X25: 0.0 | Y25: 0 | Z25: 0
A26: 17 | B26: ='Wettkampf 1'!B26 -> Ludwig Langen | C26: ='Wettkampf 1'!C26 -> Neubörger II | D26: 309.4 | F26: 309.4 | G26: 0 | H26: 0 | I26: 0 | J26: 0 | K26: 309.4 | L26: 1 | M26: 0 | N26: 0 | O26: 0 | P26: 0 | Q26: 0 | R26: 0 | X26: 0.0 | Y26: 0 | Z26: 0
A27: 18 | B27: ='Wettkampf 1'!B27 -> Rainer Wielenberg | C27: ='Wettkampf 1'!C27 -> Esterwegen II | D27: 303.5 | E27: x | F27: 0 | G27: 0 | H27: 0 | I27: 0 | J27: 0 | K27: 0 | L27: 0 | M27: 0 | N27: 0 | O27: 0 | P27: 0 | Q27: 0 | R27: 0 | X27: 0.0 | Y27: 0 | Z27: 0
A28: 19 | B28: ='Wettkampf 1'!B28 -> Meik Sieger | C28: ='Wettkampf 1'!C28 -> Esterwegen II | D28: 311.7 | F28: 311.7 | G28: 0 | H28: 0 | I28: 311.7 | J28: 1 | K28: 0 | L28: 0 | M28: 0 | N28: 0 | O28: 0 | P28: 0 | Q28: 0 | R28: 0 | X28: 0.0 | Y28: 0 | Z28: 0
A29: 20 | B29: ='Wettkampf 1'!B29 -> Dennis Lindemann | C29: ='Wettkampf 1'!C29 -> Esterwegen II | D29: 308.2 | F29: 308.2 | G29: 0 | H29: 0 | I29: 308.2 | J29: 1 | K29: 0 | L29: 0 | M29: 0 | N29: 0 | O29: 0 | P29: 0 | Q29: 0 | R29: 0 | X29: 0.0 | Y29: 0 | Z29: 0
A30: 21 | B30: ='Wettkampf 1'!B30 -> Andreas Lindemann | C30: ='Wettkampf 1'!C30 -> Esterwegen II | D30: 305.5 | E30: x | F30: 0 | G30: 0 | H30: 0 | I30: 0 | J30: 0 | K30: 0 | L30: 0 | M30: 0 | N30: 0 | O30: 0 | P30: 0 | Q30: 0 | R30: 0 | X30: 0.0 | Y30: 0 | Z30: 0
A31: 22 | B31: ='Wettkampf 1'!B31 -> Johannes Gebken | C31: ='Wettkampf 1'!C31 -> Esterwegen II | D31: 0.0 | E31: x | F31: 0 | G31: 0 | H31: 0 | I31: 0 | J31: 0 | K31: 0 | L31: 0 | M31: 0 | N31: 0 | O31: 0 | P31: 0 | Q31: 0 | R31: 0 | X31: 0.0 | Y31: 1 | Z31: 0
A32: 23 | B32: ='Wettkampf 1'!B32 -> Jan-Niklas Lindemann | C32: ='Wettkampf 1'!C32 -> Esterwegen II | D32: 0.0 | E32: x | F32: 0 | G32: 0 | H32: 0 | I32: 0 | J32: 0 | K32: 0 | L32: 0 | M32: 0 | N32: 0 | O32: 0 | P32: 0 | Q32: 0 | R32: 0 | X32: 0.0 | Y32: 1 | Z32: 0
A33: 24 | B33: ='Wettkampf 1'!B33 -> Stefan Burlager | C33: ='Wettkampf 1'!C33 -> Esterwegen II | D33: 306.8 | F33: 306.8 | G33: 0 | H33: 0 | I33: 306.8 | J33: 1 | K33: 0 | L33: 0 | M33: 0 | N33: 0 | O33: 0 | P33: 0 | Q33: 0 | R33: 0 | X33: 0.0 | Y33: 0 | Z33: 0
A34: 25 | B34: ='Wettkampf 1'!B34 -> Franz Ostermann | C34: ='Wettkampf 1'!C34 -> Eisten II | D34: 308.2 | E34: x | F34: 0 | G34: 0 | H34: 0 | I34: 0 | J34: 0 | K34: 0 | L34: 0 | M34: 0 | N34: 0 | O34: 0 | P34: 0 | Q34: 0 | R34: 0 | X34: 0.0 | Y34: 0 | Z34: 0
A35: 26 | B35: ='Wettkampf 1'!B35 -> Martin Hackmann | C35: ='Wettkampf 1'!C35 -> Eisten II | D35: 311.0 | F35: 311.0 | G35: 0 | H35: 0 | I35: 0 | J35: 0 | K35: 0 | L35: 0 | M35: 0 | N35: 0 | O35: 0 | P35: 0 | Q35: 311 | R35: 1 | X35: 0.0 | Y35: 0 | Z35: 0
A36: 27 | B36: ='Wettkampf 1'!B36 -> Günther Baalmann | C36: ='Wettkampf 1'!C36 -> Eisten II | D36: 314.5 | F36: 314.5 | G36: 0 | H36: 0 | I36: 0 | J36: 0 | K36: 0 | L36: 0 | M36: 0 | N36: 0 | O36: 0 | P36: 0 | Q36: 314.5 | R36: 1 | X36: 0.0 | Y36: 0 | Z36: 0
A37: 28 | B37: ='Wettkampf 1'!B37 -> Martin Poker | C37: ='Wettkampf 1'!C37 -> Eisten II | D37: 311.8 | F37: 311.8 | G37: 0 | H37: 0 | I37: 0 | J37: 0 | K37: 0 | L37: 0 | M37: 0 | N37: 0 | O37: 0 | P37: 0 | Q37: 311.8 | R37: 1 | X37: 0.0 | Y37: 0 | Z37: 0
A38: 29 | B38: ='Wettkampf 1'!B38 -> Schütze 29 | C38: ='Wettkampf 1'!C38 -> 0.0 | F38: 0.0 | G38: 0 | H38: 0 | I38: 0 | J38: 0 | K38: 0 | L38: 0 | M38: 0 | N38: 0 | O38: 0 | P38: 0 | Q38: 0 | R38: 0 | X38: 0.0 | Y38: 1 | Z38: 0
A39: 30 | B39: ='Wettkampf 1'!B39 -> Schütze 30 | C39: ='Wettkampf 1'!C39 -> 0.0 | F39: 0.0 | G39: 0 | H39: 0 | I39: 0 | J39: 0 | K39: 0 | L39: 0 | M39: 0 | N39: 0 | O39: 0 | P39: 0 | Q39: 0 | R39: 0 | X39: 0.0 | Y39: 1 | Z39: 0
A40: 31 | B40: ='Wettkampf 1'!B40 -> Schütze 31 | C40: ='Wettkampf 1'!C40 -> 0.0 | F40: 0.0 | G40: 0 | H40: 0 | I40: 0 | J40: 0 | K40: 0 | L40: 0 | M40: 0 | N40: 0 | O40: 0 | P40: 0 | Q40: 0 | R40: 0 | X40: 0.0 | Y40: 1 | Z40: 0
A41: 32 | B41: ='Wettkampf 1'!B41 -> Schütze 32 | C41: ='Wettkampf 1'!C41 -> 0.0 | F41: 0.0 | G41: 0 | H41: 0 | I41: 0 | J41: 0 | K41: 0 | L41: 0 | M41: 0 | N41: 0 | O41: 0 | P41: 0 | Q41: 0 | R41: 0 | X41: 0.0 | Y41: 1 | Z41: 0
A42: 33 | B42: ='Wettkampf 1'!B42 -> Schütze 33 | C42: ='Wettkampf 1'!C42 -> 0.0 | F42: 0.0 | G42: 0 | H42: 0 | I42: 0 | J42: 0 | K42: 0 | L42: 0 | M42: 0 | N42: 0 | O42: 0 | P42: 0 | Q42: 0 | R42: 0 | X42: 0.0 | Y42: 1 | Z42: 0
A43: 34 | B43: ='Wettkampf 1'!B43 -> Schütze 34 | C43: ='Wettkampf 1'!C43 -> 0.0 | F43: 0.0 | G43: 0 | H43: 0 | I43: 0 | J43: 0 | K43: 0 | L43: 0 | M43: 0 | N43: 0 | O43: 0 | P43: 0 | Q43: 0 | R43: 0 | X43: 0.0 | Y43: 1 | Z43: 0
A44: 35 | B44: ='Wettkampf 1'!B44 -> Schütze 35 | C44: ='Wettkampf 1'!C44 -> 0.0 | F44: 0.0 | G44: 0 | H44: 0 | I44: 0 | J44: 0 | K44: 0 | L44: 0 | M44: 0 | N44: 0 | O44: 0 | P44: 0 | Q44: 0 | R44: 0 | X44: 0.0 | Y44: 1 | Z44: 0
A45: 36 | B45: ='Wettkampf 1'!B45 -> Schütze 36 | C45: ='Wettkampf 1'!C45 -> 0.0 | F45: 0.0 | G45: 0 | H45: 0 | I45: 0 | J45: 0 | K45: 0 | L45: 0 | M45: 0 | N45: 0 | O45: 0 | P45: 0 | Q45: 0 | R45: 0 | X45: 0.0 | Y45: 1 | Z45: 0
G46: =LARGE(G10:G45,1)+LARGE(G10:G45,2)+LARGE(G10:G45,3) -> 935.4 | H46: =SUM(H10:H45) -> 4 | I46: =LARGE(I10:I45,1)+LARGE(I10:I45,2)+LARGE(I10:I45,3) -> 926.7 | J46: =SUM(J10:J45) -> 3 | K46: =LARGE(K10:K45,1)+LARGE(K10:K45,2)+LARGE(K10:K45,3) -> 924.4 | L46: =SUM(L10:L45) -> 4 | M46: =LARGE(M10:M45,1)+LARGE(M10:M45,2)+LARGE(M10:M45,3) -> 920.4 | N46: =SUM(N10:N45) -> 4 | O46: =LARGE(O10:O45,1)+LARGE(O10:O45,2)+LARGE(O10:O45,3) -> 929.7 | P46: =SUM(P10:P45) -> 4 | Q46: =LARGE(Q10:Q45,1)+LARGE(Q10:Q45,2)+LARGE(Q10:Q45,3) -> 937.3 | R46: =SUM(R10:S45) -> 3
C47: per Email an: sk-huemmling@gmx.de

Sheet 10
B1: Verein / Gruppe | D1: Ergebnisse | V1: Austragungsort: | W1: =Übersicht!O4 -> Lahn
A2: 1 | B2: ='Wettkampf 1'!B2 -> Spahnharrenstätte III | D2: =G46 -> 934.9 | E2: =IF(H46>4,"Es sind zu viele Schützen in Wertung!"," ") ->  | V2: Wettkampftag: | W2: =Übersicht!O3 -> 01.03.
A3: 2 | B3: ='Wettkampf 1'!B3 -> Esterwegen II | D3: =I46 -> 920.3 | E3: =IF(J46>4,"Es sind zu viele Schützen in Wertung!"," ") -> 
A4: 3 | B4: ='Wettkampf 1'!B4 -> Neubörger II | D4: =K46 -> 920.5 | E4: =IF(L46>4,"Es sind zu viele Schützen in Wertung!"," ") ->  | X4: Ansprechpartner für Rückfragen:
A5: 4 | B5: ='Wettkampf 1'!B5 -> Lahn V | D5: =M46 -> 911.9 | E5: =IF(N46>4,"Es sind zu viele Schützen in Wertung!"," ") ->  | V5: Name: | W5: Nortmann
A6: 5 | B6: ='Wettkampf 1'!B6 -> Spahnharrenstätte II | D6: =O46 -> 929.7 | E6: =IF(P46>4,"Es sind zu viele Schützen in Wertung!"," ") ->  | V6: Tel:
A7: 6 | B7: ='Wettkampf 1'!B7 -> Eisten II | D7: =Q46 -> 936.1 | E7: =IF(R46>4,"Es sind zu viele Schützen in Wertung!"," ") ->  | V7: Standaufsicht: | W7: Lahn V
B9: Einzelergebnisse: | C9: Verein / Gruppe | D9: Ergebnisse (mindestens 0 eintragen) | E9: AW? Dann x eintippen | G9: Verein 1 | I9: Verein 2 | K9: Verein 3 | M9: Verein 4 | O9: Verein 5 | Q9: Verein 6 | U9: Proberechnung bei Streifen:
A10: 1 | B10: ='Wettkampf 1'!B10 -> Heiko Micksch | C10: ='Wettkampf 1'!C10 -> Spahnharrenstätte III | D10: 306.9 | F10: =IF(E10="x","0",D10) -> 306.9 | G10: =IF(C10=$B$2,F10,0) -> 306.9 | H10: =(IF(AND($E10="",$C10=$B$2),1,0)) -> 1 | I10: =IF($C10=$B$3,F10,0) -> 0 | J10: =(IF(AND($E10="",$C10=$B$3),1,0)) -> 0 | K10: =IF($C10=$B$4,F10,0) -> 0 | L10: =(IF(AND($E10="",$C10=$B$4),1,0)) -> 0 | M10: =IF($C10=$B$5,F10,0) -> 0 | N10: =(IF(AND($E10="",$C10=$B$5),1,0)) -> 0 | O10: =IF($C10=$B$6,F10,0) -> 0 | P10: =(IF(AND($E10="",$C10=$B$6),1,0)) -> 0 | Q10: =IF($C10=$B$7,F10,0) -> 0 | R10: =(IF(AND($E10="",$C10=$B$7),1,0)) -> 0 | X10: =U10+V10+W10 -> 0.0 | Y10: =IF(X10=D10,1,0) -> 0 | Z10: =IF(X10=0,0,1) -> 0 | AA10: =IF(Y10+Z10=2,"Korrekt","") -> 
A11: 2 | B11: ='Wettkampf 1'!B11 -> Dirk Meyer | C11: ='Wettkampf 1'!C11 -> Spahnharrenstätte III | D11: 312.7 | F11: =IF(E11="x","0",D11) -> 312.7 | G11: =IF(C11=$B$2,F11,0) -> 312.7 | H11: =(IF(AND($E11="",$C11=$B$2),1,0)) -> 1 | I11: =IF($C11=$B$3,F11,0) -> 0 | J11: =(IF(AND($E11="",$C11=$B$3),1,0)) -> 0 | K11: =IF($C11=$B$4,F11,0) -> 0 | L11: =(IF(AND($E11="",$C11=$B$4),1,0)) -> 0 | M11: =IF($C11=$B$5,F11,0) -> 0 | N11: =(IF(AND($E11="",$C11=$B$5),1,0)) -> 0 | O11: =IF($C11=$B$6,F11,0) -> 0 | P11: =(IF(AND($E11="",$C11=$B$6),1,0)) -> 0 | Q11: =IF($C11=$B$7,F11,0) -> 0 | R11: =(IF(AND($E11="",$C11=$B$7),1,0)) -> 0 | X11: =U11+V11+W11 -> 0.0 | Y11: =IF(X11=D11,1,0) -> 0 | Z11: =IF(X11=0,0,1) -> 0 | AA11: =IF(Y11+Z11=2,"Korrekt","") -> 
A12: 3 | B12: ='Wettkampf 1'!B12 -> Sebastian Albers | C12: ='Wettkampf 1'!C12 -> Spahnharrenstätte III | D12: 304.8 | E12: x | F12: 0 | G12: 0 | H12: 0 | I12: 0 | J12: 0 | K12: 0 | L12: 0 | M12: 0 | N12: 0 | O12: 0 | P12: 0 | Q12: 0 | R12: 0 | X12: 0.0 | Y12: 0 | Z12: 0
A13: 4 | B13: ='Wettkampf 1'!B13 -> Achim Will | C13: ='Wettkampf 1'!C13 -> Spahnharrenstätte III | D13: 315.3 | F13: 315.3 | G13: 315.3 | H13: 1 | I13: 0 | J13: 0 | K13: 0 | L13: 0 | M13: 0 | N13: 0 | O13: 0 | P13: 0 | Q13: 0 | R13: 0 | X13: 0.0 | Y13: 0 | Z13: 0
A14: 5 | B14: ='Wettkampf 1'!B14 -> Christian Grönheim | C14: ='Wettkampf 1'!C14 -> Spahnharrenstätte III | D14: 303.1 | F14: 303.1 | G14: 303.1 | H14: 1 | I14: 0 | J14: 0 | K14: 0 | L14: 0 | M14: 0 | N14: 0 | O14: 0 | P14: 0 | Q14: 0 | R14: 0 | X14: 0.0 | Y14: 0 | Z14: 0
A15: 6 | B15: ='Wettkampf 1'!B15 -> Dieter Hanekamp | C15: ='Wettkampf 1'!C15 -> Spahnharrenstätte II | D15: 309.5 | F15: 309.5 | G15: 0 | H15: 0 | I15: 0 | J15: 0 | K15: 0 | L15: 0 | M15: 0 | N15: 0 | O15: 309.5 | P15: 1 | Q15: 0 | R15: 0 | X15: 0.0 | Y15: 0 | Z15: 0
A16: 7 | B16: ='Wettkampf 1'!B16 -> Josef Langen | C16: ='Wettkampf 1'!C16 -> Spahnharrenstätte II | D16: 307.9 | F16: 307.9 | G16: 0 | H16: 0 | I16: 0 | J16: 0 | K16: 0 | L16: 0 | M16: 0 | N16: 0 | O16: 307.9 | P16: 1 | Q16: 0 | R16: 0 | X16: 0.0 | Y16: 0 | Z16: 0
A17: 8 | B17: ='Wettkampf 1'!B17 -> Johannes Hülsmann | C17: ='Wettkampf 1'!C17 -> Spahnharrenstätte II | D17: 308.5 | F17: 308.5 | G17: 0 | H17: 0 | I17: 0 | J17: 0 | K17: 0 | L17: 0 | M17: 0 | N17: 0 | O17: 308.5 | P17: 1 | Q17: 0 | R17: 0 | X17: 0.0 | Y17: 0 | Z17: 0
A18: 9 | B18: ='Wettkampf 1'!B18 -> Heiner Kröger | C18: ='Wettkampf 1'!C18 -> Spahnharrenstätte II | D18: 311.7 | F18: 311.7 | G18: 0 | H18: 0 | I18: 0 | J18: 0 | K18: 0 | L18: 0 | M18: 0 | N18: 0 | O18: 311.7 | P18: 1 | Q18: 0 | R18: 0 | X18: 0.0 | Y18: 0 | Z18: 0
A19: 10 | B19: ='Wettkampf 1'!B19 -> Bernd Nortmann | C19: ='Wettkampf 1'!C19 -> Lahn V | D19: 304.5 | F19: 304.5 | G19: 0 | H19: 0 | I19: 0 | J19: 0 | K19: 0 | L19: 0 | M19: 304.5 | N19: 1 | O19: 0 | P19: 0 | Q19: 0 | R19: 0 | X19: 0.0 | Y19: 0 | Z19: 0
A20: 11 | B20: ='Wettkampf 1'!B20 -> Oliver Reinelt | C20: ='Wettkampf 1'!C20 -> Lahn V | D20: 299.0 | F20: 299.0 | G20: 0 | H20: 0 | I20: 0 | J20: 0 | K20: 0 | L20: 0 | M20: 299 | N20: 1 | O20: 0 | P20: 0 | Q20: 0 | R20: 0 | X20: 0.0 | Y20: 0 | Z20: 0
A21: 12 | B21: ='Wettkampf 1'!B21 -> Simon Schukenbrock | C21: ='Wettkampf 1'!C21 -> Lahn V | D21: 308.4 | F21: 308.4 | G21: 0 | H21: 0 | I21: 0 | J21: 0 | K21: 0 | L21: 0 | M21: 308.4 | N21: 1 | O21: 0 | P21: 0 | Q21: 0 | R21: 0 | X21: 0.0 | Y21: 0 | Z21: 0
A22: 13 | B22: ='Wettkampf 1'!B22 -> Michael Boje | C22: ='Wettkampf 1'!C22 -> Lahn V | D22: 0.0 | F22: 0.0 | G22: 0 | H22: 0 | I22: 0 | J22: 0 | K22: 0 | L22: 0 | M22: 0 | N22: 1 | O22: 0 | P22: 0 | Q22: 0 | R22: 0 | X22: 0.0 | Y22: 1 | Z22: 0
A23: 14 | B23: ='Wettkampf 1'!B23 -> Ludger Hermes | C23: ='Wettkampf 1'!C23 -> Neubörger II | D23: 305.8 | F23: 305.8 | G23: 0 | H23: 0 | I23: 0 | J23: 0 | K23: 305.8 | L23: 1 | M23: 0 | N23: 0 | O23: 0 | P23: 0 | Q23: 0 | R23: 0 | X23: 0.0 | Y23: 0 | Z23: 0
A24: 15 | B24: ='Wettkampf 1'!B24 -> Rudi Fromme | C24: ='Wettkampf 1'!C24 -> Neubörger II | D24: 304.2 | F24: 304.2 | G24: 0 | H24: 0 | I24: 0 | J24: 0 | K24: 304.2 | L24: 1 | M24: 0 | N24: 0 | O24: 0 | P24: 0 | Q24: 0 | R24: 0 | X24: 0.0 | Y24: 0 | Z24: 0
A25: 16 | B25: ='Wettkampf 1'!B25 -> Alois Schmitz | C25: ='Wettkampf 1'!C25 -> Neubörger II | D25: 306.4 | F25: 306.4 | G25: 0 | H25: 0 | I25: 0 | J25: 0 | K25: 306.4 | L25: 1 | M25: 0 | N25: 0 | O25: 0 | P25: 0 | Q25: 0 | R25: 0 | X25: 0.0 | Y25: 0 | Z25: 0
A26: 17 | B26: ='Wettkampf 1'!B26 -> Ludwig Langen | C26: ='Wettkampf 1'!C26 -> Neubörger II | D26: 308.3 | F26: 308.3 | G26: 0 | H26: 0 | I26: 0 | J26: 0 | K26: 308.3 | L26: 1 | M26: 0 | N26: 0 | O26: 0 | P26: 0 | Q26: 0 | R26: 0 | X26: 0.0 | Y26: 0 | Z26: 0
A27: 18 | B27: ='Wettkampf 1'!B27 -> Rainer Wielenberg | C27: ='Wettkampf 1'!C27 -> Esterwegen II | D27: 299.5 | E27: x | F27: 0 | G27: 0 | H27: 0 | I27: 0 | J27: 0 | K27: 0 | L27: 0 | M27: 0 | N27: 0 | O27: 0 | P27: 0 | Q27: 0 | R27: 0 | X27: 0.0 | Y27: 0 | Z27: 0
A28: 19 | B28: ='Wettkampf 1'!B28 -> Meik Sieger | C28: ='Wettkampf 1'!C28 -> Esterwegen II | D28: 306.8 | F28: 306.8 | G28: 0 | H28: 0 | I28: 306.8 | J28: 1 | K28: 0 | L28: 0 | M28: 0 | N28: 0 | O28: 0 | P28: 0 | Q28: 0 | R28: 0 | X28: 0.0 | Y28: 0 | Z28: 0
A29: 20 | B29: ='Wettkampf 1'!B29 -> Dennis Lindemann | C29: ='Wettkampf 1'!C29 -> Esterwegen II | D29: 307.0 | F29: 307.0 | G29: 0 | H29: 0 | I29: 307 | J29: 1 | K29: 0 | L29: 0 | M29: 0 | N29: 0 | O29: 0 | P29: 0 | Q29: 0 | R29: 0 | X29: 0.0 | Y29: 0 | Z29: 0
A30: 21 | B30: ='Wettkampf 1'!B30 -> Andreas Lindemann | C30: ='Wettkampf 1'!C30 -> Esterwegen II | D30: 302.7 | F30: 302.7 | G30: 0 | H30: 0 | I30: 302.7 | J30: 1 | K30: 0 | L30: 0 | M30: 0 | N30: 0 | O30: 0 | P30: 0 | Q30: 0 | R30: 0 | X30: 0.0 | Y30: 0 | Z30: 0
A31: 22 | B31: ='Wettkampf 1'!B31 -> Johannes Gebken | C31: ='Wettkampf 1'!C31 -> Esterwegen II | D31: 0.0 | E31: x | F31: 0 | G31: 0 | H31: 0 | I31: 0 | J31: 0 | K31: 0 | L31: 0 | M31: 0 | N31: 0 | O31: 0 | P31: 0 | Q31: 0 | R31: 0 | X31: 0.0 | Y31: 1 | Z31: 0
A32: 23 | B32: ='Wettkampf 1'!B32 -> Jan-Niklas Lindemann | C32: ='Wettkampf 1'!C32 -> Esterwegen II | D32: 0.0 | E32: x | F32: 0 | G32: 0 | H32: 0 | I32: 0 | J32: 0 | K32: 0 | L32: 0 | M32: 0 | N32: 0 | O32: 0 | P32: 0 | Q32: 0 | R32: 0 | X32: 0.0 | Y32: 1 | Z32: 0
A33: 24 | B33: ='Wettkampf 1'!B33 -> Stefan Burlager | C33: ='Wettkampf 1'!C33 -> Esterwegen II | D33: 306.5 | F33: 306.5 | G33: 0 | H33: 0 | I33: 306.5 | J33: 1 | K33: 0 | L33: 0 | M33: 0 | N33: 0 | O33: 0 | P33: 0 | Q33: 0 | R33: 0 | X33: 0.0 | Y33: 0 | Z33: 0
A34: 25 | B34: ='Wettkampf 1'!B34 -> Franz Ostermann | C34: ='Wettkampf 1'!C34 -> Eisten II | D34: 297.8 | F34: 297.8 | G34: 0 | H34: 0 | I34: 0 | J34: 0 | K34: 0 | L34: 0 | M34: 0 | N34: 0 | O34: 0 | P34: 0 | Q34: 297.8 | R34: 1 | X34: 0.0 | Y34: 0 | Z34: 0
A35: 26 | B35: ='Wettkampf 1'!B35 -> Martin Hackmann | C35: ='Wettkampf 1'!C35 -> Eisten II | D35: 310.6 | F35: 310.6 | G35: 0 | H35: 0 | I35: 0 | J35: 0 | K35: 0 | L35: 0 | M35: 0 | N35: 0 | O35: 0 | P35: 0 | Q35: 310.6 | R35: 1 | X35: 0.0 | Y35: 0 | Z35: 0
A36: 27 | B36: ='Wettkampf 1'!B36 -> Günther Baalmann | C36: ='Wettkampf 1'!C36 -> Eisten II | D36: 311.3 | F36: 311.3 | G36: 0 | H36: 0 | I36: 0 | J36: 0 | K36: 0 | L36: 0 | M36: 0 | N36: 0 | O36: 0 | P36: 0 | Q36: 311.3 | R36: 1 | X36: 0.0 | Y36: 0 | Z36: 0
A37: 28 | B37: ='Wettkampf 1'!B37 -> Martin Poker | C37: ='Wettkampf 1'!C37 -> Eisten II | D37: 314.2 | F37: 314.2 | G37: 0 | H37: 0 | I37: 0 | J37: 0 | K37: 0 | L37: 0 | M37: 0 | N37: 0 | O37: 0 | P37: 0 | Q37: 314.2 | R37: 1 | X37: 0.0 | Y37: 0 | Z37: 0
A38: 29 | B38: ='Wettkampf 1'!B38 -> Schütze 29 | C38: ='Wettkampf 1'!C38 -> 0.0 | E38: x | F38: 0 | G38: 0 | H38: 0 | I38: 0 | J38: 0 | K38: 0 | L38: 0 | M38: 0 | N38: 0 | O38: 0 | P38: 0 | Q38: 0 | R38: 0 | X38: 0.0 | Y38: 1 | Z38: 0
A39: 30 | B39: ='Wettkampf 1'!B39 -> Schütze 30 | C39: ='Wettkampf 1'!C39 -> 0.0 | E39: x | F39: 0 | G39: 0 | H39: 0 | I39: 0 | J39: 0 | K39: 0 | L39: 0 | M39: 0 | N39: 0 | O39: 0 | P39: 0 | Q39: 0 | R39: 0 | X39: 0.0 | Y39: 1 | Z39: 0
A40: 31 | B40: ='Wettkampf 1'!B40 -> Schütze 31 | C40: ='Wettkampf 1'!C40 -> 0.0 | F40: 0.0 | G40: 0 | H40: 0 | I40: 0 | J40: 0 | K40: 0 | L40: 0 | M40: 0 | N40: 0 | O40: 0 | P40: 0 | Q40: 0 | R40: 0 | X40: 0.0 | Y40: 1 | Z40: 0
A41: 32 | B41: ='Wettkampf 1'!B41 -> Schütze 32 | C41: ='Wettkampf 1'!C41 -> 0.0 | F41: 0.0 | G41: 0 | H41: 0 | I41: 0 | J41: 0 | K41: 0 | L41: 0 | M41: 0 | N41: 0 | O41: 0 | P41: 0 | Q41: 0 | R41: 0 | X41: 0.0 | Y41: 1 | Z41: 0
A42: 33 | B42: ='Wettkampf 1'!B42 -> Schütze 33 | C42: ='Wettkampf 1'!C42 -> 0.0 | F42: 0.0 | G42: 0 | H42: 0 | I42: 0 | J42: 0 | K42: 0 | L42: 0 | M42: 0 | N42: 0 | O42: 0 | P42: 0 | Q42: 0 | R42: 0 | X42: 0.0 | Y42: 1 | Z42: 0
A43: 34 | B43: ='Wettkampf 1'!B43 -> Schütze 34 | C43: ='Wettkampf 1'!C43 -> 0.0 | F43: 0.0 | G43: 0 | H43: 0 | I43: 0 | J43: 0 | K43: 0 | L43: 0 | M43: 0 | N43: 0 | O43: 0 | P43: 0 | Q43: 0 | R43: 0 | X43: 0.0 | Y43: 1 | Z43: 0
A44: 35 | B44: ='Wettkampf 1'!B44 -> Schütze 35 | C44: ='Wettkampf 1'!C44 -> 0.0 | E44: x | F44: 0 | G44: 0 | H44: 0 | I44: 0 | J44: 0 | K44: 0 | L44: 0 | M44: 0 | N44: 0 | O44: 0 | P44: 0 | Q44: 0 | R44: 0 | X44: 0.0 | Y44: 1 | Z44: 0
A45: 36 | B45: ='Wettkampf 1'!B45 -> Schütze 36 | C45: ='Wettkampf 1'!C45 -> 0.0 | E45: x | F45: 0 | G45: 0 | H45: 0 | I45: 0 | J45: 0 | K45: 0 | L45: 0 | M45: 0 | N45: 0 | O45: 0 | P45: 0 | Q45: 0 | R45: 0 | X45: 0.0 | Y45: 1 | Z45: 0
G46: =LARGE(G10:G45,1)+LARGE(G10:G45,2)+LARGE(G10:G45,3) -> 934.9 | H46: =SUM(H10:H45) -> 4 | I46: =LARGE(I10:I45,1)+LARGE(I10:I45,2)+LARGE(I10:I45,3) -> 920.3 | J46: =SUM(J10:J45) -> 4 | K46: =LARGE(K10:K45,1)+LARGE(K10:K45,2)+LARGE(K10:K45,3) -> 920.5 | L46: =SUM(L10:L45) -> 4 | M46: =LARGE(M10:M45,1)+LARGE(M10:M45,2)+LARGE(M10:M45,3) -> 911.9 | N46: =SUM(N10:N45) -> 4 | O46: =LARGE(O10:O45,1)+LARGE(O10:O45,2)+LARGE(O10:O45,3) -> 929.7 | P46: =SUM(P10:P45) -> 4 | Q46: =LARGE(Q10:Q45,1)+LARGE(Q10:Q45,2)+LARGE(Q10:Q45,3) -> 936.1 | R46: =SUM(R10:S45) -> 4
C47: per Email an: sk-huemmling@gmx.de

Sheet 11
B1: Verein / Gruppe | D1: Ergebnisse | V1: Austragungsort: | W1: =Übersicht!P4 -> Spahnharrenstätte
A2: 1 | B2: ='Wettkampf 1'!B2 -> Spahnharrenstätte III | D2: =G46 -> 938.9 | E2: =IF(H46>4,"Es sind zu viele Schützen in Wertung!"," ") ->  | V2: Wettkampftag: | W2: =Übersicht!P3 -> 15.03.
A3: 2 | B3: ='Wettkampf 1'!B3 -> Esterwegen II | D3: =I46 -> 923.6 | E3: =IF(J46>4,"Es sind zu viele Schützen in Wertung!"," ") -> 
A4: 3 | B4: ='Wettkampf 1'!B4 -> Neubörger II | D4: =K46 -> 927.6 | E4: =IF(L46>4,"Es sind zu viele Schützen in Wertung!"," ") ->  | X4: Ansprechpartner für Rückfragen:
A5: 4 | B5: ='Wettkampf 1'!B5 -> Lahn V | D5: =M46 -> 608.1 | E5: =IF(N46>4,"Es sind zu viele Schützen in Wertung!"," ") ->  | V5: Name: | W5: Josef Langen
A6: 5 | B6: ='Wettkampf 1'!B6 -> Spahnharrenstätte II | D6: =O46 -> 928.0 | E6: =IF(P46>4,"Es sind zu viele Schützen in Wertung!"," ") ->  | V6: Tel:
A7: 6 | B7: ='Wettkampf 1'!B7 -> Eisten II | D7: =Q46 -> 944.5 | E7: =IF(R46>4,"Es sind zu viele Schützen in Wertung!"," ") ->  | V7: Standaufsicht: | W7: Josef Langen
B9: Einzelergebnisse: | C9: Verein / Gruppe | D9: Ergebnisse (mindestens 0 eintragen) | E9: AW? Dann x eintippen | G9: Verein 1 | I9: Verein 2 | K9: Verein 3 | M9: Verein 4 | O9: Verein 5 | Q9: Verein 6 | U9: Proberechnung bei Streifen:
A10: 1 | B10: ='Wettkampf 1'!B10 -> Heiko Micksch | C10: ='Wettkampf 1'!C10 -> Spahnharrenstätte III | D10: 309.6 | F10: =IF(E10="x","0",D10) -> 309.6 | G10: =IF(C10=$B$2,F10,0) -> 309.6 | H10: =(IF(AND($E10="",$C10=$B$2),1,0)) -> 1 | I10: =IF($C10=$B$3,F10,0) -> 0 | J10: =(IF(AND($E10="",$C10=$B$3),1,0)) -> 0 | K10: =IF($C10=$B$4,F10,0) -> 0 | L10: =(IF(AND($E10="",$C10=$B$4),1,0)) -> 0 | M10: =IF($C10=$B$5,F10,0) -> 0 | N10: =(IF(AND($E10="",$C10=$B$5),1,0)) -> 0 | O10: =IF($C10=$B$6,F10,0) -> 0 | P10: =(IF(AND($E10="",$C10=$B$6),1,0)) -> 0 | Q10: =IF($C10=$B$7,F10,0) -> 0 | R10: =(IF(AND($E10="",$C10=$B$7),1,0)) -> 0 | X10: =U10+V10+W10 -> 0.0 | Y10: =IF(X10=D10,1,0) -> 0 | Z10: =IF(X10=0,0,1) -> 0 | AA10: =IF(Y10+Z10=2,"Korrekt","") -> 
A11: 2 | B11: ='Wettkampf 1'!B11 -> Dirk Meyer | C11: ='Wettkampf 1'!C11 -> Spahnharrenstätte III | D11: 311.4 | F11: =IF(E11="x","0",D11) -> 311.4 | G11: =IF(C11=$B$2,F11,0) -> 311.4 | H11: =(IF(AND($E11="",$C11=$B$2),1,0)) -> 1 | I11: =IF($C11=$B$3,F11,0) -> 0 | J11: =(IF(AND($E11="",$C11=$B$3),1,0)) -> 0 | K11: =IF($C11=$B$4,F11,0) -> 0 | L11: =(IF(AND($E11="",$C11=$B$4),1,0)) -> 0 | M11: =IF($C11=$B$5,F11,0) -> 0 | N11: =(IF(AND($E11="",$C11=$B$5),1,0)) -> 0 | O11: =IF($C11=$B$6,F11,0) -> 0 | P11: =(IF(AND($E11="",$C11=$B$6),1,0)) -> 0 | Q11: =IF($C11=$B$7,F11,0) -> 0 | R11: =(IF(AND($E11="",$C11=$B$7),1,0)) -> 0 | X11: =U11+V11+W11 -> 0.0 | Y11: =IF(X11=D11,1,0) -> 0 | Z11: =IF(X11=0,0,1) -> 0 | AA11: =IF(Y11+Z11=2,"Korrekt","") -> 
A12: 3 | B12: ='Wettkampf 1'!B12 -> Sebastian Albers | C12: ='Wettkampf 1'!C12 -> Spahnharrenstätte III | D12: 311.3 | E12: X | F12: 0 | G12: 0 | H12: 0 | I12: 0 | J12: 0 | K12: 0 | L12: 0 | M12: 0 | N12: 0 | O12: 0 | P12: 0 | Q12: 0 | R12: 0 | X12: 0.0 | Y12: 0 | Z12: 0
A13: 4 | B13: ='Wettkampf 1'!B13 -> Achim Will | C13: ='Wettkampf 1'!C13 -> Spahnharrenstätte III | D13: 316.3 | F13: 316.3 | G13: 316.3 | H13: 1 | I13: 0 | J13: 0 | K13: 0 | L13: 0 | M13: 0 | N13: 0 | O13: 0 | P13: 0 | Q13: 0 | R13: 0 | X13: 0.0 | Y13: 0 | Z13: 0
A14: 5 | B14: ='Wettkampf 1'!B14 -> Christian Grönheim | C14: ='Wettkampf 1'!C14 -> Spahnharrenstätte III | D14: 311.2 | F14: 311.2 | G14: 311.2 | H14: 1 | I14: 0 | J14: 0 | K14: 0 | L14: 0 | M14: 0 | N14: 0 | O14: 0 | P14: 0 | Q14: 0 | R14: 0 | X14: 0.0 | Y14: 0 | Z14: 0
A15: 6 | B15: ='Wettkampf 1'!B15 -> Dieter Hanekamp | C15: ='Wettkampf 1'!C15 -> Spahnharrenstätte II | D15: 311.3 | F15: 311.3 | G15: 0 | H15: 0 | I15: 0 | J15: 0 | K15: 0 | L15: 0 | M15: 0 | N15: 0 | O15: 311.3 | P15: 1 | Q15: 0 | R15: 0 | X15: 0.0 | Y15: 0 | Z15: 0
A16: 7 | B16: ='Wettkampf 1'!B16 -> Josef Langen | C16: ='Wettkampf 1'!C16 -> Spahnharrenstätte II | D16: 304.9 | F16: 304.9 | G16: 0 | H16: 0 | I16: 0 | J16: 0 | K16: 0 | L16: 0 | M16: 0 | N16: 0 | O16: 304.9 | P16: 1 | Q16: 0 | R16: 0 | X16: 0.0 | Y16: 0 | Z16: 0
A17: 8 | B17: ='Wettkampf 1'!B17 -> Johannes Hülsmann | C17: ='Wettkampf 1'!C17 -> Spahnharrenstätte II | D17: 305.0 | F17: 305.0 | G17: 0 | H17: 0 | I17: 0 | J17: 0 | K17: 0 | L17: 0 | M17: 0 | N17: 0 | O17: 305 | P17: 1 | Q17: 0 | R17: 0 | X17: 0.0 | Y17: 0 | Z17: 0
A18: 9 | B18: ='Wettkampf 1'!B18 -> Heiner Kröger | C18: ='Wettkampf 1'!C18 -> Spahnharrenstätte II | D18: 311.7 | F18: 311.7 | G18: 0 | H18: 0 | I18: 0 | J18: 0 | K18: 0 | L18: 0 | M18: 0 | N18: 0 | O18: 311.7 | P18: 1 | Q18: 0 | R18: 0 | X18: 0.0 | Y18: 0 | Z18: 0
A19: 10 | B19: ='Wettkampf 1'!B19 -> Bernd Nortmann | C19: ='Wettkampf 1'!C19 -> Lahn V | D19: 303.8 | F19: 303.8 | G19: 0 | H19: 0 | I19: 0 | J19: 0 | K19: 0 | L19: 0 | M19: 303.8 | N19: 1 | O19: 0 | P19: 0 | Q19: 0 | R19: 0 | X19: 0.0 | Y19: 0 | Z19: 0
A20: 11 | B20: ='Wettkampf 1'!B20 -> Oliver Reinelt | C20: ='Wettkampf 1'!C20 -> Lahn V | D20: 304.3 | F20: 304.3 | G20: 0 | H20: 0 | I20: 0 | J20: 0 | K20: 0 | L20: 0 | M20: 304.3 | N20: 1 | O20: 0 | P20: 0 | Q20: 0 | R20: 0 | X20: 0.0 | Y20: 0 | Z20: 0
A21: 12 | B21: ='Wettkampf 1'!B21 -> Simon Schukenbrock | C21: ='Wettkampf 1'!C21 -> Lahn V | D21: 0.0 | F21: 0.0 | G21: 0 | H21: 0 | I21: 0 | J21: 0 | K21: 0 | L21: 0 | M21: 0 | N21: 1 | O21: 0 | P21: 0 | Q21: 0 | R21: 0 | X21: 0.0 | Y21: 1 | Z21: 0
A22: 13 | B22: ='Wettkampf 1'!B22 -> Michael Boje | C22: ='Wettkampf 1'!C22 -> Lahn V | D22: 0.0 | F22: 0.0 | G22: 0 | H22: 0 | I22: 0 | J22: 0 | K22: 0 | L22: 0 | M22: 0 | N22: 1 | O22: 0 | P22: 0 | Q22: 0 | R22: 0 | X22: 0.0 | Y22: 1 | Z22: 0
A23: 14 | B23: ='Wettkampf 1'!B23 -> Ludger Hermes | C23: ='Wettkampf 1'!C23 -> Neubörger II | D23: 310.9 | F23: 310.9 | G23: 0 | H23: 0 | I23: 0 | J23: 0 | K23: 310.9 | L23: 1 | M23: 0 | N23: 0 | O23: 0 | P23: 0 | Q23: 0 | R23: 0 | X23: 0.0 | Y23: 0 | Z23: 0
A24: 15 | B24: ='Wettkampf 1'!B24 -> Rudi Fromme | C24: ='Wettkampf 1'!C24 -> Neubörger II | D24: 303.8 | F24: 303.8 | G24: 0 | H24: 0 | I24: 0 | J24: 0 | K24: 303.8 | L24: 1 | M24: 0 | N24: 0 | O24: 0 | P24: 0 | Q24: 0 | R24: 0 | X24: 0.0 | Y24: 0 | Z24: 0
A25: 16 | B25: ='Wettkampf 1'!B25 -> Alois Schmitz | C25: ='Wettkampf 1'!C25 -> Neubörger II | D25: 311.8 | F25: 311.8 | G25: 0 | H25: 0 | I25: 0 | J25: 0 | K25: 311.8 | L25: 1 | M25: 0 | N25: 0 | O25: 0 | P25: 0 | Q25: 0 | R25: 0 | X25: 0.0 | Y25: 0 | Z25: 0
A26: 17 | B26: ='Wettkampf 1'!B26 -> Ludwig Langen | C26: ='Wettkampf 1'!C26 -> Neubörger II | D26: 304.9 | F26: 304.9 | G26: 0 | H26: 0 | I26: 0 | J26: 0 | K26: 304.9 | L26: 1 | M26: 0 | N26: 0 | O26: 0 | P26: 0 | Q26: 0 | R26: 0 | X26: 0.0 | Y26: 0 | Z26: 0
A27: 18 | B27: ='Wettkampf 1'!B27 -> Rainer Wielenberg | C27: ='Wettkampf 1'!C27 -> Esterwegen II | D27: 0.0 | E27: x | F27: 0 | G27: 0 | H27: 0 | I27: 0 | J27: 0 | K27: 0 | L27: 0 | M27: 0 | N27: 0 | O27: 0 | P27: 0 | Q27: 0 | R27: 0 | X27: 0.0 | Y27: 1 | Z27: 0
A28: 19 | B28: ='Wettkampf 1'!B28 -> Meik Sieger | C28: ='Wettkampf 1'!C28 -> Esterwegen II | D28: 310.1 | F28: 310.1 | G28: 0 | H28: 0 | I28: 310.1 | J28: 1 | K28: 0 | L28: 0 | M28: 0 | N28: 0 | O28: 0 | P28: 0 | Q28: 0 | R28: 0 | X28: 0.0 | Y28: 0 | Z28: 0
A29: 20 | B29: ='Wettkampf 1'!B29 -> Dennis Lindemann | C29: ='Wettkampf 1'!C29 -> Esterwegen II | D29: 306.7 | F29: 306.7 | G29: 0 | H29: 0 | I29: 306.7 | J29: 1 | K29: 0 | L29: 0 | M29: 0 | N29: 0 | O29: 0 | P29: 0 | Q29: 0 | R29: 0 | X29: 0.0 | Y29: 0 | Z29: 0
A30: 21 | B30: ='Wettkampf 1'!B30 -> Andreas Lindemann | C30: ='Wettkampf 1'!C30 -> Esterwegen II | D30: 305.8 | F30: 305.8 | G30: 0 | H30: 0 | I30: 305.8 | J30: 1 | K30: 0 | L30: 0 | M30: 0 | N30: 0 | O30: 0 | P30: 0 | Q30: 0 | R30: 0 | X30: 0.0 | Y30: 0 | Z30: 0
A31: 22 | B31: ='Wettkampf 1'!B31 -> Johannes Gebken | C31: ='Wettkampf 1'!C31 -> Esterwegen II | D31: 0.0 | E31: x | F31: 0 | G31: 0 | H31: 0 | I31: 0 | J31: 0 | K31: 0 | L31: 0 | M31: 0 | N31: 0 | O31: 0 | P31: 0 | Q31: 0 | R31: 0 | X31: 0.0 | Y31: 1 | Z31: 0
A32: 23 | B32: ='Wettkampf 1'!B32 -> Jan-Niklas Lindemann | C32: ='Wettkampf 1'!C32 -> Esterwegen II | D32: 0.0 | E32: x | F32: 0 | G32: 0 | H32: 0 | I32: 0 | J32: 0 | K32: 0 | L32: 0 | M32: 0 | N32: 0 | O32: 0 | P32: 0 | Q32: 0 | R32: 0 | X32: 0.0 | Y32: 1 | Z32: 0
A33: 24 | B33: ='Wettkampf 1'!B33 -> Stefan Burlager | C33: ='Wettkampf 1'!C33 -> Esterwegen II | D33: 306.8 | F33: 306.8 | G33: 0 | H33: 0 | I33: 306.8 | J33: 1 | K33: 0 | L33: 0 | M33: 0 | N33: 0 | O33: 0 | P33: 0 | Q33: 0 | R33: 0 | X33: 0.0 | Y33: 0 | Z33: 0
A34: 25 | B34: ='Wettkampf 1'!B34 -> Franz Ostermann | C34: ='Wettkampf 1'!C34 -> Eisten II | D34: 306.5 | F34: 306.5 | G34: 0 | H34: 0 | I34: 0 | J34: 0 | K34: 0 | L34: 0 | M34: 0 | N34: 0 | O34: 0 | P34: 0 | Q34: 306.5 | R34: 1 | X34: 0.0 | Y34: 0 | Z34: 0
A35: 26 | B35: ='Wettkampf 1'!B35 -> Martin Hackmann | C35: ='Wettkampf 1'!C35 -> Eisten II | D35: 315.5 | F35: 315.5 | G35: 0 | H35: 0 | I35: 0 | J35: 0 | K35: 0 | L35: 0 | M35: 0 | N35: 0 | O35: 0 | P35: 0 | Q35: 315.5 | R35: 1 | X35: 0.0 | Y35: 0 | Z35: 0
A36: 27 | B36: ='Wettkampf 1'!B36 -> Günther Baalmann | C36: ='Wettkampf 1'!C36 -> Eisten II | D36: 315.7 | F36: 315.7 | G36: 0 | H36: 0 | I36: 0 | J36: 0 | K36: 0 | L36: 0 | M36: 0 | N36: 0 | O36: 0 | P36: 0 | Q36: 315.7 | R36: 1 | X36: 0.0 | Y36: 0 | Z36: 0
A37: 28 | B37: ='Wettkampf 1'!B37 -> Martin Poker | C37: ='Wettkampf 1'!C37 -> Eisten II | D37: 313.3 | F37: 313.3 | G37: 0 | H37: 0 | I37: 0 | J37: 0 | K37: 0 | L37: 0 | M37: 0 | N37: 0 | O37: 0 | P37: 0 | Q37: 313.3 | R37: 1 | X37: 0.0 | Y37: 0 | Z37: 0
A38: 29 | B38: ='Wettkampf 1'!B38 -> Schütze 29 | C38: ='Wettkampf 1'!C38 -> 0.0 | F38: 0.0 | G38: 0 | H38: 0 | I38: 0 | J38: 0 | K38: 0 | L38: 0 | M38: 0 | N38: 0 | O38: 0 | P38: 0 | Q38: 0 | R38: 0 | X38: 0.0 | Y38: 1 | Z38: 0
A39: 30 | B39: ='Wettkampf 1'!B39 -> Schütze 30 | C39: ='Wettkampf 1'!C39 -> 0.0 | F39: 0.0 | G39: 0 | H39: 0 | I39: 0 | J39: 0 | K39: 0 | L39: 0 | M39: 0 | N39: 0 | O39: 0 | P39: 0 | Q39: 0 | R39: 0 | X39: 0.0 | Y39: 1 | Z39: 0
A40: 31 | B40: ='Wettkampf 1'!B40 -> Schütze 31 | C40: ='Wettkampf 1'!C40 -> 0.0 | F40: 0.0 | G40: 0 | H40: 0 | I40: 0 | J40: 0 | K40: 0 | L40: 0 | M40: 0 | N40: 0 | O40: 0 | P40: 0 | Q40: 0 | R40: 0 | X40: 0.0 | Y40: 1 | Z40: 0
A41: 32 | B41: ='Wettkampf 1'!B41 -> Schütze 32 | C41: ='Wettkampf 1'!C41 -> 0.0 | F41: 0.0 | G41: 0 | H41: 0 | I41: 0 | J41: 0 | K41: 0 | L41: 0 | M41: 0 | N41: 0 | O41: 0 | P41: 0 | Q41: 0 | R41: 0 | X41: 0.0 | Y41: 1 | Z41: 0
A42: 33 | B42: ='Wettkampf 1'!B42 -> Schütze 33 | C42: ='Wettkampf 1'!C42 -> 0.0 | F42: 0.0 | G42: 0 | H42: 0 | I42: 0 | J42: 0 | K42: 0 | L42: 0 | M42: 0 | N42: 0 | O42: 0 | P42: 0 | Q42: 0 | R42: 0 | X42: 0.0 | Y42: 1 | Z42: 0
A43: 34 | B43: ='Wettkampf 1'!B43 -> Schütze 34 | C43: ='Wettkampf 1'!C43 -> 0.0 | F43: 0.0 | G43: 0 | H43: 0 | I43: 0 | J43: 0 | K43: 0 | L43: 0 | M43: 0 | N43: 0 | O43: 0 | P43: 0 | Q43: 0 | R43: 0 | X43: 0.0 | Y43: 1 | Z43: 0
A44: 35 | B44: ='Wettkampf 1'!B44 -> Schütze 35 | C44: ='Wettkampf 1'!C44 -> 0.0 | F44: 0.0 | G44: 0 | H44: 0 | I44: 0 | J44: 0 | K44: 0 | L44: 0 | M44: 0 | N44: 0 | O44: 0 | P44: 0 | Q44: 0 | R44: 0 | X44: 0.0 | Y44: 1 | Z44: 0
A45: 36 | B45: ='Wettkampf 1'!B45 -> Schütze 36 | C45: ='Wettkampf 1'!C45 -> 0.0 | F45: 0.0 | G45: 0 | H45: 0 | I45: 0 | J45: 0 | K45: 0 | L45: 0 | M45: 0 | N45: 0 | O45: 0 | P45: 0 | Q45: 0 | R45: 0 | X45: 0.0 | Y45: 1 | Z45: 0
G46: =LARGE(G10:G45,1)+LARGE(G10:G45,2)+LARGE(G10:G45,3) -> 938.9 | H46: =SUM(H10:H45) -> 4 | I46: =LARGE(I10:I45,1)+LARGE(I10:I45,2)+LARGE(I10:I45,3) -> 923.6 | J46: =SUM(J10:J45) -> 4 | K46: =LARGE(K10:K45,1)+LARGE(K10:K45,2)+LARGE(K10:K45,3) -> 927.6 | L46: =SUM(L10:L45) -> 4 | M46: =LARGE(M10:M45,1)+LARGE(M10:M45,2)+LARGE(M10:M45,3) -> 608.1 | N46: =SUM(N10:N45) -> 4 | O46: =LARGE(O10:O45,1)+LARGE(O10:O45,2)+LARGE(O10:O45,3) -> 928 | P46: =SUM(P10:P45) -> 4 | Q46: =LARGE(Q10:Q45,1)+LARGE(Q10:Q45,2)+LARGE(Q10:Q45,3) -> 944.5 | R46: =SUM(R10:S45) -> 4
C47: per Email an: sk-huemmling@gmx.de

Sheet 12
B1: Verein / Gruppe | D1: Ergebnisse | V1: Austragungsort: | W1: =Übersicht!Q4 -> Eisten
A2: 1 | B2: ='Wettkampf 1'!B2 -> Spahnharrenstätte III | D2: =G46 -> 0.0 | E2: =IF(H46>4,"Es sind zu viele Schützen in Wertung!"," ") -> Es sind zu viele Schützen in Wertung! | V2: Wettkampftag: | W2: =Übersicht!Q3 -> 29.03.
A3: 2 | B3: ='Wettkampf 1'!B3 -> Esterwegen II | D3: =I46 -> 0.0 | E3: =IF(J46>4,"Es sind zu viele Schützen in Wertung!"," ") -> Es sind zu viele Schützen in Wertung!
A4: 3 | B4: ='Wettkampf 1'!B4 -> Neubörger II | D4: =K46 -> 0.0 | E4: =IF(L46>4,"Es sind zu viele Schützen in Wertung!"," ") ->  | X4: Ansprechpartner für Rückfragen:
A5: 4 | B5: ='Wettkampf 1'!B5 -> Lahn V | D5: =M46 -> 0.0 | E5: =IF(N46>4,"Es sind zu viele Schützen in Wertung!"," ") ->  | V5: Name:
A6: 5 | B6: ='Wettkampf 1'!B6 -> Spahnharrenstätte II | D6: =O46 -> 0.0 | E6: =IF(P46>4,"Es sind zu viele Schützen in Wertung!"," ") ->  | V6: Tel:
A7: 6 | B7: ='Wettkampf 1'!B7 -> Eisten II | D7: =Q46 -> 0.0 | E7: =IF(R46>4,"Es sind zu viele Schützen in Wertung!"," ") ->  | V7: Standaufsicht:
B9: Einzelergebnisse: | C9: Verein / Gruppe | D9: Ergebnisse (mindestens 0 eintragen) | E9: AW? Dann x eintippen | G9: Verein 1 | I9: Verein 2 | K9: Verein 3 | M9: Verein 4 | O9: Verein 5 | Q9: Verein 6 | U9: Proberechnung bei Streifen:
A10: 1 | B10: ='Wettkampf 1'!B10 -> Heiko Micksch | C10: ='Wettkampf 1'!C10 -> Spahnharrenstätte III | F10: =IF(E10="x","0",D10) -> 0.0 | G10: =IF(C10=$B$2,F10,0) -> 0 | H10: =(IF(AND($E10="",$C10=$B$2),1,0)) -> 1 | I10: =IF($C10=$B$3,F10,0) -> 0 | J10: =(IF(AND($E10="",$C10=$B$3),1,0)) -> 0 | K10: =IF($C10=$B$4,F10,0) -> 0 | L10: =(IF(AND($E10="",$C10=$B$4),1,0)) -> 0 | M10: =IF($C10=$B$5,F10,0) -> 0 | N10: =(IF(AND($E10="",$C10=$B$5),1,0)) -> 0 | O10: =IF($C10=$B$6,F10,0) -> 0 | P10: =(IF(AND($E10="",$C10=$B$6),1,0)) -> 0 | Q10: =IF($C10=$B$7,F10,0) -> 0 | R10: =(IF(AND($E10="",$C10=$B$7),1,0)) -> 0 | X10: =U10+V10+W10 -> 0.0 | Y10: =IF(X10=D10,1,0) -> 1 | Z10: =IF(X10=0,0,1) -> 0 | AA10: =IF(Y10+Z10=2,"Korrekt","") -> 
A11: 2 | B11: ='Wettkampf 1'!B11 -> Dirk Meyer | C11: ='Wettkampf 1'!C11 -> Spahnharrenstätte III | F11: =IF(E11="x","0",D11) -> 0.0 | G11: =IF(C11=$B$2,F11,0) -> 0 | H11: =(IF(AND($E11="",$C11=$B$2),1,0)) -> 1 | I11: =IF($C11=$B$3,F11,0) -> 0 | J11: =(IF(AND($E11="",$C11=$B$3),1,0)) -> 0 | K11: =IF($C11=$B$4,F11,0) -> 0 | L11: =(IF(AND($E11="",$C11=$B$4),1,0)) -> 0 | M11: =IF($C11=$B$5,F11,0) -> 0 | N11: =(IF(AND($E11="",$C11=$B$5),1,0)) -> 0 | O11: =IF($C11=$B$6,F11,0) -> 0 | P11: =(IF(AND($E11="",$C11=$B$6),1,0)) -> 0 | Q11: =IF($C11=$B$7,F11,0) -> 0 | R11: =(IF(AND($E11="",$C11=$B$7),1,0)) -> 0 | X11: =U11+V11+W11 -> 0.0 | Y11: =IF(X11=D11,1,0) -> 1 | Z11: =IF(X11=0,0,1) -> 0 | AA11: =IF(Y11+Z11=2,"Korrekt","") -> 
A12: 3 | B12: ='Wettkampf 1'!B12 -> Sebastian Albers | C12: ='Wettkampf 1'!C12 -> Spahnharrenstätte III | F12: 0.0 | G12: 0 | H12: 1 | I12: 0 | J12: 0 | K12: 0 | L12: 0 | M12: 0 | N12: 0 | O12: 0 | P12: 0 | Q12: 0 | R12: 0 | X12: 0.0 | Y12: 1 | Z12: 0
A13: 4 | B13: ='Wettkampf 1'!B13 -> Achim Will | C13: ='Wettkampf 1'!C13 -> Spahnharrenstätte III | F13: 0.0 | G13: 0 | H13: 1 | I13: 0 | J13: 0 | K13: 0 | L13: 0 | M13: 0 | N13: 0 | O13: 0 | P13: 0 | Q13: 0 | R13: 0 | X13: 0.0 | Y13: 1 | Z13: 0
A14: 5 | B14: ='Wettkampf 1'!B14 -> Christian Grönheim | C14: ='Wettkampf 1'!C14 -> Spahnharrenstätte III | F14: 0.0 | G14: 0 | H14: 1 | I14: 0 | J14: 0 | K14: 0 | L14: 0 | M14: 0 | N14: 0 | O14: 0 | P14: 0 | Q14: 0 | R14: 0 | X14: 0.0 | Y14: 1 | Z14: 0
A15: 6 | B15: ='Wettkampf 1'!B15 -> Dieter Hanekamp | C15: ='Wettkampf 1'!C15 -> Spahnharrenstätte II | F15: 0.0 | G15: 0 | H15: 0 | I15: 0 | J15: 0 | K15: 0 | L15: 0 | M15: 0 | N15: 0 | O15: 0 | P15: 1 | Q15: 0 | R15: 0 | X15: 0.0 | Y15: 1 | Z15: 0
A16: 7 | B16: ='Wettkampf 1'!B16 -> Josef Langen | C16: ='Wettkampf 1'!C16 -> Spahnharrenstätte II | F16: 0.0 | G16: 0 | H16: 0 | I16: 0 | J16: 0 | K16: 0 | L16: 0 | M16: 0 | N16: 0 | O16: 0 | P16: 1 | Q16: 0 | R16: 0 | X16: 0.0 | Y16: 1 | Z16: 0
A17: 8 | B17: ='Wettkampf 1'!B17 -> Johannes Hülsmann | C17: ='Wettkampf 1'!C17 -> Spahnharrenstätte II | F17: 0.0 | G17: 0 | H17: 0 | I17: 0 | J17: 0 | K17: 0 | L17: 0 | M17: 0 | N17: 0 | O17: 0 | P17: 1 | Q17: 0 | R17: 0 | X17: 0.0 | Y17: 1 | Z17: 0
A18: 9 | B18: ='Wettkampf 1'!B18 -> Heiner Kröger | C18: ='Wettkampf 1'!C18 -> Spahnharrenstätte II | F18: 0.0 | G18: 0 | H18: 0 | I18: 0 | J18: 0 | K18: 0 | L18: 0 | M18: 0 | N18: 0 | O18: 0 | P18: 1 | Q18: 0 | R18: 0 | X18: 0.0 | Y18: 1 | Z18: 0
A19: 10 | B19: ='Wettkampf 1'!B19 -> Bernd Nortmann | C19: ='Wettkampf 1'!C19 -> Lahn V | F19: 0.0 | G19: 0 | H19: 0 | I19: 0 | J19: 0 | K19: 0 | L19: 0 | M19: 0 | N19: 1 | O19: 0 | P19: 0 | Q19: 0 | R19: 0 | X19: 0.0 | Y19: 1 | Z19: 0
A20: 11 | B20: ='Wettkampf 1'!B20 -> Oliver Reinelt | C20: ='Wettkampf 1'!C20 -> Lahn V | F20: 0.0 | G20: 0 | H20: 0 | I20: 0 | J20: 0 | K20: 0 | L20: 0 | M20: 0 | N20: 1 | O20: 0 | P20: 0 | Q20: 0 | R20: 0 | X20: 0.0 | Y20: 1 | Z20: 0
A21: 12 | B21: ='Wettkampf 1'!B21 -> Simon Schukenbrock | C21: ='Wettkampf 1'!C21 -> Lahn V | F21: 0.0 | G21: 0 | H21: 0 | I21: 0 | J21: 0 | K21: 0 | L21: 0 | M21: 0 | N21: 1 | O21: 0 | P21: 0 | Q21: 0 | R21: 0 | X21: 0.0 | Y21: 1 | Z21: 0
A22: 13 | B22: ='Wettkampf 1'!B22 -> Michael Boje | C22: ='Wettkampf 1'!C22 -> Lahn V | F22: 0.0 | G22: 0 | H22: 0 | I22: 0 | J22: 0 | K22: 0 | L22: 0 | M22: 0 | N22: 1 | O22: 0 | P22: 0 | Q22: 0 | R22: 0 | X22: 0.0 | Y22: 1 | Z22: 0
A23: 14 | B23: ='Wettkampf 1'!B23 -> Ludger Hermes | C23: ='Wettkampf 1'!C23 -> Neubörger II | F23: 0.0 | G23: 0 | H23: 0 | I23: 0 | J23: 0 | K23: 0 | L23: 1 | M23: 0 | N23: 0 | O23: 0 | P23: 0 | Q23: 0 | R23: 0 | X23: 0.0 | Y23: 1 | Z23: 0
A24: 15 | B24: ='Wettkampf 1'!B24 -> Rudi Fromme | C24: ='Wettkampf 1'!C24 -> Neubörger II | F24: 0.0 | G24: 0 | H24: 0 | I24: 0 | J24: 0 | K24: 0 | L24: 1 | M24: 0 | N24: 0 | O24: 0 | P24: 0 | Q24: 0 | R24: 0 | X24: 0.0 | Y24: 1 | Z24: 0
A25: 16 | B25: ='Wettkampf 1'!B25 -> Alois Schmitz | C25: ='Wettkampf 1'!C25 -> Neubörger II | F25: 0.0 | G25: 0 | H25: 0 | I25: 0 | J25: 0 | K25: 0 | L25: 1 | M25: 0 | N25: 0 | O25: 0 | P25: 0 | Q25: 0 | R25: 0 | X25: 0.0 | Y25: 1 | Z25: 0
A26: 17 | B26: ='Wettkampf 1'!B26 -> Ludwig Langen | C26: ='Wettkampf 1'!C26 -> Neubörger II | F26: 0.0 | G26: 0 | H26: 0 | I26: 0 | J26: 0 | K26: 0 | L26: 1 | M26: 0 | N26: 0 | O26: 0 | P26: 0 | Q26: 0 | R26: 0 | X26: 0.0 | Y26: 1 | Z26: 0
A27: 18 | B27: ='Wettkampf 1'!B27 -> Rainer Wielenberg | C27: ='Wettkampf 1'!C27 -> Esterwegen II | F27: 0.0 | G27: 0 | H27: 0 | I27: 0 | J27: 1 | K27: 0 | L27: 0 | M27: 0 | N27: 0 | O27: 0 | P27: 0 | Q27: 0 | R27: 0 | X27: 0.0 | Y27: 1 | Z27: 0
A28: 19 | B28: ='Wettkampf 1'!B28 -> Meik Sieger | C28: ='Wettkampf 1'!C28 -> Esterwegen II | F28: 0.0 | G28: 0 | H28: 0 | I28: 0 | J28: 1 | K28: 0 | L28: 0 | M28: 0 | N28: 0 | O28: 0 | P28: 0 | Q28: 0 | R28: 0 | X28: 0.0 | Y28: 1 | Z28: 0
A29: 20 | B29: ='Wettkampf 1'!B29 -> Dennis Lindemann | C29: ='Wettkampf 1'!C29 -> Esterwegen II | F29: 0.0 | G29: 0 | H29: 0 | I29: 0 | J29: 1 | K29: 0 | L29: 0 | M29: 0 | N29: 0 | O29: 0 | P29: 0 | Q29: 0 | R29: 0 | X29: 0.0 | Y29: 1 | Z29: 0
A30: 21 | B30: ='Wettkampf 1'!B30 -> Andreas Lindemann | C30: ='Wettkampf 1'!C30 -> Esterwegen II | F30: 0.0 | G30: 0 | H30: 0 | I30: 0 | J30: 1 | K30: 0 | L30: 0 | M30: 0 | N30: 0 | O30: 0 | P30: 0 | Q30: 0 | R30: 0 | X30: 0.0 | Y30: 1 | Z30: 0
A31: 22 | B31: ='Wettkampf 1'!B31 -> Johannes Gebken | C31: ='Wettkampf 1'!C31 -> Esterwegen II | F31: 0.0 | G31: 0 | H31: 0 | I31: 0 | J31: 1 | K31: 0 | L31: 0 | M31: 0 | N31: 0 | O31: 0 | P31: 0 | Q31: 0 | R31: 0 | X31: 0.0 | Y31: 1 | Z31: 0
A32: 23 | B32: ='Wettkampf 1'!B32 -> Jan-Niklas Lindemann | C32: ='Wettkampf 1'!C32 -> Esterwegen II | F32: 0.0 | G32: 0 | H32: 0 | I32: 0 | J32: 1 | K32: 0 | L32: 0 | M32: 0 | N32: 0 | O32: 0 | P32: 0 | Q32: 0 | R32: 0 | X32: 0.0 | Y32: 1 | Z32: 0
A33: 24 | B33: ='Wettkampf 1'!B33 -> Stefan Burlager | C33: ='Wettkampf 1'!C33 -> Esterwegen II | F33: 0.0 | G33: 0 | H33: 0 | I33: 0 | J33: 1 | K33: 0 | L33: 0 | M33: 0 | N33: 0 | O33: 0 | P33: 0 | Q33: 0 | R33: 0 | X33: 0.0 | Y33: 1 | Z33: 0
A34: 25 | B34: ='Wettkampf 1'!B34 -> Franz Ostermann | C34: ='Wettkampf 1'!C34 -> Eisten II | F34: 0.0 | G34: 0 | H34: 0 | I34: 0 | J34: 0 | K34: 0 | L34: 0 | M34: 0 | N34: 0 | O34: 0 | P34: 0 | Q34: 0 | R34: 1 | X34: 0.0 | Y34: 1 | Z34: 0
A35: 26 | B35: ='Wettkampf 1'!B35 -> Martin Hackmann | C35: ='Wettkampf 1'!C35 -> Eisten II | F35: 0.0 | G35: 0 | H35: 0 | I35: 0 | J35: 0 | K35: 0 | L35: 0 | M35: 0 | N35: 0 | O35: 0 | P35: 0 | Q35: 0 | R35: 1 | X35: 0.0 | Y35: 1 | Z35: 0
A36: 27 | B36: ='Wettkampf 1'!B36 -> Günther Baalmann | C36: ='Wettkampf 1'!C36 -> Eisten II | F36: 0.0 | G36: 0 | H36: 0 | I36: 0 | J36: 0 | K36: 0 | L36: 0 | M36: 0 | N36: 0 | O36: 0 | P36: 0 | Q36: 0 | R36: 1 | X36: 0.0 | Y36: 1 | Z36: 0
A37: 28 | B37: ='Wettkampf 1'!B37 -> Martin Poker | C37: ='Wettkampf 1'!C37 -> Eisten II | F37: 0.0 | G37: 0 | H37: 0 | I37: 0 | J37: 0 | K37: 0 | L37: 0 | M37: 0 | N37: 0 | O37: 0 | P37: 0 | Q37: 0 | R37: 1 | X37: 0.0 | Y37: 1 | Z37: 0
A38: 29 | B38: ='Wettkampf 1'!B38 -> Schütze 29 | C38: ='Wettkampf 1'!C38 -> 0.0 | F38: 0.0 | G38: 0 | H38: 0 | I38: 0 | J38: 0 | K38: 0 | L38: 0 | M38: 0 | N38: 0 | O38: 0 | P38: 0 | Q38: 0 | R38: 0 | X38: 0.0 | Y38: 1 | Z38: 0
A39: 30 | B39: ='Wettkampf 1'!B39 -> Schütze 30 | C39: ='Wettkampf 1'!C39 -> 0.0 | F39: 0.0 | G39: 0 | H39: 0 | I39: 0 | J39: 0 | K39: 0 | L39: 0 | M39: 0 | N39: 0 | O39: 0 | P39: 0 | Q39: 0 | R39: 0 | X39: 0.0 | Y39: 1 | Z39: 0
A40: 31 | B40: ='Wettkampf 1'!B40 -> Schütze 31 | C40: ='Wettkampf 1'!C40 -> 0.0 | F40: 0.0 | G40: 0 | H40: 0 | I40: 0 | J40: 0 | K40: 0 | L40: 0 | M40: 0 | N40: 0 | O40: 0 | P40: 0 | Q40: 0 | R40: 0 | X40: 0.0 | Y40: 1 | Z40: 0
A41: 32 | B41: ='Wettkampf 1'!B41 -> Schütze 32 | C41: ='Wettkampf 1'!C41 -> 0.0 | F41: 0.0 | G41: 0 | H41: 0 | I41: 0 | J41: 0 | K41: 0 | L41: 0 | M41: 0 | N41: 0 | O41: 0 | P41: 0 | Q41: 0 | R41: 0 | X41: 0.0 | Y41: 1 | Z41: 0
A42: 33 | B42: ='Wettkampf 1'!B42 -> Schütze 33 | C42: ='Wettkampf 1'!C42 -> 0.0 | F42: 0.0 | G42: 0 | H42: 0 | I42: 0 | J42: 0 | K42: 0 | L42: 0 | M42: 0 | N42: 0 | O42: 0 | P42: 0 | Q42: 0 | R42: 0 | X42: 0.0 | Y42: 1 | Z42: 0
A43: 34 | B43: ='Wettkampf 1'!B43 -> Schütze 34 | C43: ='Wettkampf 1'!C43 -> 0.0 | F43: 0.0 | G43: 0 | H43: 0 | I43: 0 | J43: 0 | K43: 0 | L43: 0 | M43: 0 | N43: 0 | O43: 0 | P43: 0 | Q43: 0 | R43: 0 | X43: 0.0 | Y43: 1 | Z43: 0
A44: 35 | B44: ='Wettkampf 1'!B44 -> Schütze 35 | C44: ='Wettkampf 1'!C44 -> 0.0 | F44: 0.0 | G44: 0 | H44: 0 | I44: 0 | J44: 0 | K44: 0 | L44: 0 | M44: 0 | N44: 0 | O44: 0 | P44: 0 | Q44: 0 | R44: 0 | X44: 0.0 | Y44: 1 | Z44: 0
A45: 36 | B45: ='Wettkampf 1'!B45 -> Schütze 36 | C45: ='Wettkampf 1'!C45 -> 0.0 | F45: 0.0 | G45: 0 | H45: 0 | I45: 0 | J45: 0 | K45: 0 | L45: 0 | M45: 0 | N45: 0 | O45: 0 | P45: 0 | Q45: 0 | R45: 0 | X45: 0.0 | Y45: 1 | Z45: 0
G46: =LARGE(G10:G45,1)+LARGE(G10:G45,2)+LARGE(G10:G45,3) -> 0 | H46: =SUM(H10:H45) -> 5 | I46: =LARGE(I10:I45,1)+LARGE(I10:I45,2)+LARGE(I10:I45,3) -> 0 | J46: =SUM(J10:J45) -> 7 | K46: =LARGE(K10:K45,1)+LARGE(K10:K45,2)+LARGE(K10:K45,3) -> 0 | L46: =SUM(L10:L45) -> 4 | M46: =LARGE(M10:M45,1)+LARGE(M10:M45,2)+LARGE(M10:M45,3) -> 0 | N46: =SUM(N10:N45) -> 4 | O46: =LARGE(O10:O45,1)+LARGE(O10:O45,2)+LARGE(O10:O45,3) -> 0 | P46: =SUM(P10:P45) -> 4 | Q46: =LARGE(Q10:Q45,1)+LARGE(Q10:Q45,2)+LARGE(Q10:Q45,3) -> 0 | R46: =SUM(R10:S45) -> 4
C47: per Email an: sk-huemmling@gmx.de

Sheet Ausdruck
B1: Verein / Gruppe | C1: Ergebnisse | D1: =Übersicht!K1 -> 2019/2020 | X1: Austragungsort:
A2: 1 | B2: ='Wettkampf 1'!B2 -> Spahnharrenstätte III | D2: Klasse: | X2: Wettkampftag:
A3: 2 | B3: ='Wettkampf 1'!B3 -> Esterwegen II | D3: =Übersicht!M1 -> 4. Kreisklasse
A4: 3 | B4: ='Wettkampf 1'!B4 -> Neubörger II | D4: =Übersicht!P1 -> Schützen | Z4: Ansprechpartner für Rückfragen:
A5: 4 | B5: ='Wettkampf 1'!B5 -> Lahn V | X5: Name:
A6: 5 | B6: ='Wettkampf 1'!B6 -> Spahnharrenstätte II | X6: Tel:
A7: 6 | B7: ='Wettkampf 1'!B7 -> Eisten II | X7: Standaufsicht:
B9: Name Schütze | C9: Verein/Gruppe | D9: Ergebnis | E9: AW? | G9: Verein 1 | I9: Verein 2 | K9: Verein 3 | M9: Verein 4 | O9: Verein 5 | Q9: Verein 6 | U9: Geburts-datum | W9: Proberechnung bei Streifen:
A10: 1 | B10: ='Wettkampf 1'!B10 -> Heiko Micksch | C10: ='Wettkampf 1'!C10 -> Spahnharrenstätte III | F10: =IF(E10="x","0",D10) -> 0 | G10: =IF(C10=$B$2,F10,0) -> 0 | H10: =(IF(AND($E10="",$C10=$B$2),1,0)) -> 1 | I10: =IF($C10=$B$3,F10,0) -> 0 | J10: =(IF(AND($E10="",$C10=$B$3),1,0)) -> 0 | K10: =IF($C10=$B$4,F10,0) -> 0 | L10: =(IF(AND($E10="",$C10=$B$4),1,0)) -> 0 | M10: =IF($C10=$B$5,F10,0) -> 0 | N10: =(IF(AND($E10="",$C10=$B$5),1,0)) -> 0 | O10: =IF($C10=$B$6,F10,0) -> 0 | P10: =(IF(AND($E10="",$C10=$B$6),1,0)) -> 0 | Q10: =IF($C10=$B$7,F10,0) -> 0 | R10: =(IF(AND($E10="",$C10=$B$7),1,0)) -> 0 | AA10: =IF(Z10=D10,1,0) -> 1 | AB10: =IF(Z10=0,0,1) -> 0 | AC10: =IF(AA10+AB10=2,"Korrekt","") -> 
A11: 2 | B11: ='Wettkampf 1'!B11 -> Dirk Meyer | C11: ='Wettkampf 1'!C11 -> Spahnharrenstätte III | F11: =IF(E11="x","0",D11) -> 0 | G11: =IF(C11=$B$2,F11,0) -> 0 | H11: =(IF(AND($E11="",$C11=$B$2),1,0)) -> 1 | I11: =IF($C11=$B$3,F11,0) -> 0 | J11: =(IF(AND($E11="",$C11=$B$3),1,0)) -> 0 | K11: =IF($C11=$B$4,F11,0) -> 0 | L11: =(IF(AND($E11="",$C11=$B$4),1,0)) -> 0 | M11: =IF($C11=$B$5,F11,0) -> 0 | N11: =(IF(AND($E11="",$C11=$B$5),1,0)) -> 0 | O11: =IF($C11=$B$6,F11,0) -> 0 | P11: =(IF(AND($E11="",$C11=$B$6),1,0)) -> 0 | Q11: =IF($C11=$B$7,F11,0) -> 0 | R11: =(IF(AND($E11="",$C11=$B$7),1,0)) -> 0 | AA11: =IF(Z11=D11,1,0) -> 1 | AB11: =IF(Z11=0,0,1) -> 0 | AC11: =IF(AA11+AB11=2,"Korrekt","") -> 
A12: 3 | B12: ='Wettkampf 1'!B12 -> Sebastian Albers | C12: ='Wettkampf 1'!C12 -> Spahnharrenstätte III | F12: 0 | G12: 0 | H12: 1 | I12: 0 | J12: 0 | K12: 0 | L12: 0 | M12: 0 | N12: 0 | O12: 0 | P12: 0 | Q12: 0 | R12: 0 | AA12: 1 | AB12: 0
A13: 4 | B13: ='Wettkampf 1'!B13 -> Achim Will | C13: ='Wettkampf 1'!C13 -> Spahnharrenstätte III | F13: 0 | G13: 0 | H13: 1 | I13: 0 | J13: 0 | K13: 0 | L13: 0 | M13: 0 | N13: 0 | O13: 0 | P13: 0 | Q13: 0 | R13: 0 | AA13: 1 | AB13: 0
A14: 5 | B14: ='Wettkampf 1'!B14 -> Christian Grönheim | C14: ='Wettkampf 1'!C14 -> Spahnharrenstätte III | F14: 0 | G14: 0 | H14: 1 | I14: 0 | J14: 0 | K14: 0 | L14: 0 | M14: 0 | N14: 0 | O14: 0 | P14: 0 | Q14: 0 | R14: 0 | AA14: 1 | AB14: 0
A15: 6 | B15: ='Wettkampf 1'!B15 -> Dieter Hanekamp | C15: ='Wettkampf 1'!C15 -> Spahnharrenstätte II | F15: 0 | G15: 0 | H15: 0 | I15: 0 | J15: 0 | K15: 0 | L15: 0 | M15: 0 | N15: 0 | O15: 0 | P15: 1 | Q15: 0 | R15: 0 | AA15: 1 | AB15: 0
A16: 7 | B16: ='Wettkampf 1'!B16 -> Josef Langen | C16: ='Wettkampf 1'!C16 -> Spahnharrenstätte II | F16: 0 | G16: 0 | H16: 0 | I16: 0 | J16: 0 | K16: 0 | L16: 0 | M16: 0 | N16: 0 | O16: 0 | P16: 1 | Q16: 0 | R16: 0 | AA16: 1 | AB16: 0
A17: 8 | B17: ='Wettkampf 1'!B17 -> Johannes Hülsmann | C17: ='Wettkampf 1'!C17 -> Spahnharrenstätte II | F17: 0 | G17: 0 | H17: 0 | I17: 0 | J17: 0 | K17: 0 | L17: 0 | M17: 0 | N17: 0 | O17: 0 | P17: 1 | Q17: 0 | R17: 0 | AA17: 1 | AB17: 0
A18: 9 | B18: ='Wettkampf 1'!B18 -> Heiner Kröger | C18: ='Wettkampf 1'!C18 -> Spahnharrenstätte II | F18: 0 | G18: 0 | H18: 0 | I18: 0 | J18: 0 | K18: 0 | L18: 0 | M18: 0 | N18: 0 | O18: 0 | P18: 1 | Q18: 0 | R18: 0 | AA18: 1 | AB18: 0
A19: 10 | B19: ='Wettkampf 1'!B19 -> Bernd Nortmann | C19: ='Wettkampf 1'!C19 -> Lahn V | F19: 0 | G19: 0 | H19: 0 | I19: 0 | J19: 0 | K19: 0 | L19: 0 | M19: 0 | N19: 1 | O19: 0 | P19: 0 | Q19: 0 | R19: 0 | AA19: 1 | AB19: 0
A20: 11 | B20: ='Wettkampf 1'!B20 -> Oliver Reinelt | C20: ='Wettkampf 1'!C20 -> Lahn V | F20: 0 | G20: 0 | H20: 0 | I20: 0 | J20: 0 | K20: 0 | L20: 0 | M20: 0 | N20: 1 | O20: 0 | P20: 0 | Q20: 0 | R20: 0 | AA20: 1 | AB20: 0
A21: 12 | B21: ='Wettkampf 1'!B21 -> Simon Schukenbrock | C21: ='Wettkampf 1'!C21 -> Lahn V | F21: 0 | G21: 0 | H21: 0 | I21: 0 | J21: 0 | K21: 0 | L21: 0 | M21: 0 | N21: 1 | O21: 0 | P21: 0 | Q21: 0 | R21: 0 | AA21: 1 | AB21: 0
A22: 13 | B22: ='Wettkampf 1'!B22 -> Michael Boje | C22: ='Wettkampf 1'!C22 -> Lahn V | F22: 0 | G22: 0 | H22: 0 | I22: 0 | J22: 0 | K22: 0 | L22: 0 | M22: 0 | N22: 1 | O22: 0 | P22: 0 | Q22: 0 | R22: 0 | AA22: 1 | AB22: 0
A23: 14 | B23: ='Wettkampf 1'!B23 -> Ludger Hermes | C23: ='Wettkampf 1'!C23 -> Neubörger II | F23: 0 | G23: 0 | H23: 0 | I23: 0 | J23: 0 | K23: 0 | L23: 1 | M23: 0 | N23: 0 | O23: 0 | P23: 0 | Q23: 0 | R23: 0 | AA23: 1 | AB23: 0
A24: 15 | B24: ='Wettkampf 1'!B24 -> Rudi Fromme | C24: ='Wettkampf 1'!C24 -> Neubörger II | F24: 0 | G24: 0 | H24: 0 | I24: 0 | J24: 0 | K24: 0 | L24: 1 | M24: 0 | N24: 0 | O24: 0 | P24: 0 | Q24: 0 | R24: 0 | AA24: 1 | AB24: 0
A25: 16 | B25: ='Wettkampf 1'!B25 -> Alois Schmitz | C25: ='Wettkampf 1'!C25 -> Neubörger II | F25: 0 | G25: 0 | H25: 0 | I25: 0 | J25: 0 | K25: 0 | L25: 1 | M25: 0 | N25: 0 | O25: 0 | P25: 0 | Q25: 0 | R25: 0 | AA25: 1 | AB25: 0
A26: 17 | B26: ='Wettkampf 1'!B26 -> Ludwig Langen | C26: ='Wettkampf 1'!C26 -> Neubörger II | F26: 0 | G26: 0 | H26: 0 | I26: 0 | J26: 0 | K26: 0 | L26: 1 | M26: 0 | N26: 0 | O26: 0 | P26: 0 | Q26: 0 | R26: 0 | AA26: 1 | AB26: 0
A27: 18 | B27: ='Wettkampf 1'!B27 -> Rainer Wielenberg | C27: ='Wettkampf 1'!C27 -> Esterwegen II | F27: 0 | G27: 0 | H27: 0 | I27: 0 | J27: 1 | K27: 0 | L27: 0 | M27: 0 | N27: 0 | O27: 0 | P27: 0 | Q27: 0 | R27: 0 | AA27: 1 | AB27: 0
A28: 19 | B28: ='Wettkampf 1'!B28 -> Meik Sieger | C28: ='Wettkampf 1'!C28 -> Esterwegen II | F28: 0 | G28: 0 | H28: 0 | I28: 0 | J28: 1 | K28: 0 | L28: 0 | M28: 0 | N28: 0 | O28: 0 | P28: 0 | Q28: 0 | R28: 0 | AA28: 1 | AB28: 0
A29: 20 | B29: ='Wettkampf 1'!B29 -> Dennis Lindemann | C29: ='Wettkampf 1'!C29 -> Esterwegen II | F29: 0 | G29: 0 | H29: 0 | I29: 0 | J29: 1 | K29: 0 | L29: 0 | M29: 0 | N29: 0 | O29: 0 | P29: 0 | Q29: 0 | R29: 0 | AA29: 1 | AB29: 0
A30: 21 | B30: ='Wettkampf 1'!B30 -> Andreas Lindemann | C30: ='Wettkampf 1'!C30 -> Esterwegen II | F30: 0 | G30: 0 | H30: 0 | I30: 0 | J30: 1 | K30: 0 | L30: 0 | M30: 0 | N30: 0 | O30: 0 | P30: 0 | Q30: 0 | R30: 0 | AA30: 1 | AB30: 0
A31: 22 | B31: ='Wettkampf 1'!B31 -> Johannes Gebken | C31: ='Wettkampf 1'!C31 -> Esterwegen II | F31: 0 | G31: 0 | H31: 0 | I31: 0 | J31: 1 | K31: 0 | L31: 0 | M31: 0 | N31: 0 | O31: 0 | P31: 0 | Q31: 0 | R31: 0 | AA31: 1 | AB31: 0
A32: 23 | B32: ='Wettkampf 1'!B32 -> Jan-Niklas Lindemann | C32: ='Wettkampf 1'!C32 -> Esterwegen II | F32: 0 | G32: 0 | H32: 0 | I32: 0 | J32: 1 | K32: 0 | L32: 0 | M32: 0 | N32: 0 | O32: 0 | P32: 0 | Q32: 0 | R32: 0 | AA32: 1 | AB32: 0
A33: 24 | B33: ='Wettkampf 1'!B33 -> Stefan Burlager | C33: ='Wettkampf 1'!C33 -> Esterwegen II | F33: 0 | G33: 0 | H33: 0 | I33: 0 | J33: 1 | K33: 0 | L33: 0 | M33: 0 | N33: 0 | O33: 0 | P33: 0 | Q33: 0 | R33: 0 | AA33: 1 | AB33: 0
A34: 25 | B34: ='Wettkampf 1'!B34 -> Franz Ostermann | C34: ='Wettkampf 1'!C34 -> Eisten II | F34: 0 | G34: 0 | H34: 0 | I34: 0 | J34: 0 | K34: 0 | L34: 0 | M34: 0 | N34: 0 | O34: 0 | P34: 0 | Q34: 0 | R34: 1 | AA34: 1 | AB34: 0
A35: 26 | B35: ='Wettkampf 1'!B35 -> Martin Hackmann | C35: ='Wettkampf 1'!C35 -> Eisten II | F35: 0 | G35: 0 | H35: 0 | I35: 0 | J35: 0 | K35: 0 | L35: 0 | M35: 0 | N35: 0 | O35: 0 | P35: 0 | Q35: 0 | R35: 1 | AA35: 1 | AB35: 0
A36: 27 | B36: ='Wettkampf 1'!B36 -> Günther Baalmann | C36: ='Wettkampf 1'!C36 -> Eisten II | F36: 0 | G36: 0 | H36: 0 | I36: 0 | J36: 0 | K36: 0 | L36: 0 | M36: 0 | N36: 0 | O36: 0 | P36: 0 | Q36: 0 | R36: 1 | AA36: 1 | AB36: 0
A37: 28 | B37: ='Wettkampf 1'!B37 -> Martin Poker | C37: ='Wettkampf 1'!C37 -> Eisten II | F37: 0 | G37: 0 | H37: 0 | I37: 0 | J37: 0 | K37: 0 | L37: 0 | M37: 0 | N37: 0 | O37: 0 | P37: 0 | Q37: 0 | R37: 1 | AA37: 1 | AB37: 0
A38: 29 | B38: ='Wettkampf 1'!B38 -> Schütze 29 | C38: ='Wettkampf 1'!C38 -> 0 | F38: 0 | G38: 0 | H38: 0 | I38: 0 | J38: 0 | K38: 0 | L38: 0 | M38: 0 | N38: 0 | O38: 0 | P38: 0 | Q38: 0 | R38: 0 | AA38: 1 | AB38: 0
A39: 30 | B39: ='Wettkampf 1'!B39 -> Schütze 30 | C39: ='Wettkampf 1'!C39 -> 0 | F39: 0 | G39: 0 | H39: 0 | I39: 0 | J39: 0 | K39: 0 | L39: 0 | M39: 0 | N39: 0 | O39: 0 | P39: 0 | Q39: 0 | R39: 0 | AA39: 1 | AB39: 0
A40: 31 | B40: ='Wettkampf 1'!B40 -> Schütze 31 | C40: ='Wettkampf 1'!C40 -> 0 | F40: 0 | G40: 0 | H40: 0 | I40: 0 | J40: 0 | K40: 0 | L40: 0 | M40: 0 | N40: 0 | O40: 0 | P40: 0 | Q40: 0 | R40: 0 | AA40: 1 | AB40: 0
A41: 32 | B41: ='Wettkampf 1'!B41 -> Schütze 32 | C41: ='Wettkampf 1'!C41 -> 0 | F41: 0 | G41: 0 | H41: 0 | I41: 0 | J41: 0 | K41: 0 | L41: 0 | M41: 0 | N41: 0 | O41: 0 | P41: 0 | Q41: 0 | R41: 0 | AA41: 1 | AB41: 0
A42: 33 | B42: ='Wettkampf 1'!B42 -> Schütze 33 | C42: ='Wettkampf 1'!C42 -> 0 | F42: 0 | G42: 0 | H42: 0 | I42: 0 | J42: 0 | K42: 0 | L42: 0 | M42: 0 | N42: 0 | O42: 0 | P42: 0 | Q42: 0 | R42: 0 | AA42: 1 | AB42: 0
A43: 34 | B43: ='Wettkampf 1'!B43 -> Schütze 34 | C43: ='Wettkampf 1'!C43 -> 0 | F43: 0 | G43: 0 | H43: 0 | I43: 0 | J43: 0 | K43: 0 | L43: 0 | M43: 0 | N43: 0 | O43: 0 | P43: 0 | Q43: 0 | R43: 0 | AA43: 1 | AB43: 0
A44: 35 | B44: ='Wettkampf 1'!B44 -> Schütze 35 | C44: ='Wettkampf 1'!C44 -> 0 | F44: 0 | G44: 0 | H44: 0 | I44: 0 | J44: 0 | K44: 0 | L44: 0 | M44: 0 | N44: 0 | O44: 0 | P44: 0 | Q44: 0 | R44: 0 | AA44: 1 | AB44: 0
A45: 36 | B45: ='Wettkampf 1'!B45 -> Schütze 36 | C45: ='Wettkampf 1'!C45 -> 0 | F45: 0 | G45: 0 | H45: 0 | I45: 0 | J45: 0 | K45: 0 | L45: 0 | M45: 0 | N45: 0 | O45: 0 | P45: 0 | Q45: 0 | R45: 0 | AA45: 1 | AB45: 0
G46: =LARGE(G10:G45,1)+LARGE(G10:G45,2)+LARGE(G10:G45,3) -> 0 | H46: =SUM(H10:H45) -> 5 | I46: =LARGE(I10:I45,1)+LARGE(I10:I45,2)+LARGE(I10:I45,3) -> 0 | J46: =SUM(J10:J45) -> 7 | K46: =LARGE(K10:K45,1)+LARGE(K10:K45,2)+LARGE(K10:K45,3) -> 0 | L46: =SUM(L10:L45) -> 4 | M46: =LARGE(M10:M45,1)+LARGE(M10:M45,2)+LARGE(M10:M45,3) -> 0 | N46: =SUM(N10:N45) -> 4 | O46: =LARGE(O10:O45,1)+LARGE(O10:O45,2)+LARGE(O10:O45,3) -> 0 | P46: =SUM(P10:P45) -> 4 | Q46: =LARGE(Q10:Q45,1)+LARGE(Q10:Q45,2)+LARGE(Q10:Q45,3) -> 0 | R46: =SUM(R10:S45) -> 4
B48: Bitte beachtet, dass die Standaufsicht benannt werden muss

Sheet Ausdruck blank
B1: Verein / Gruppe | C1: Ergebnisse | D1: =Übersicht!K1 -> 2019/2020 | X1: Austragungsort:
A2: 1 | D2: Klasse: | X2: Wettkampftag:
A3: 2
A4: 3 | Z4: Ansprechpartner für Rückfragen:
A5: 4 | X5: Name:
A6: 5 | X6: Tel:
A7: 6 | X7: Standaufsicht:
B9: Name Schütze | C9: Verein/Gruppe | D9: Ergebnis | E9: AW? | G9: Verein 1 | I9: Verein 2 | K9: Verein 3 | M9: Verein 4 | O9: Verein 5 | Q9: Verein 6 | U9: Geburts-datum | W9: Proberechnung bei Streifen:
A10: 1 | F10: =IF(E10="x","0",D10) -> 0 | G10: =IF(C10=$B$2,F10,0) -> 0 | H10: =(IF(AND($E10="",$C10=$B$2),1,0)) -> 1 | I10: =IF($C10=$B$3,F10,0) -> 0 | J10: =(IF(AND($E10="",$C10=$B$3),1,0)) -> 1 | K10: =IF($C10=$B$4,F10,0) -> 0 | L10: =(IF(AND($E10="",$C10=$B$4),1,0)) -> 1 | M10: =IF($C10=$B$5,F10,0) -> 0 | N10: =(IF(AND($E10="",$C10=$B$5),1,0)) -> 1 | O10: =IF($C10=$B$6,F10,0) -> 0 | P10: =(IF(AND($E10="",$C10=$B$6),1,0)) -> 1 | Q10: =IF($C10=$B$7,F10,0) -> 0 | R10: =(IF(AND($E10="",$C10=$B$7),1,0)) -> 1 | AA10: =IF(Z10=D10,1,0) -> 1 | AB10: =IF(Z10=0,0,1) -> 0 | AC10: =IF(AA10+AB10=2,"Korrekt","") -> 
A11: 2 | F11: =IF(E11="x","0",D11) -> 0 | G11: =IF(C11=$B$2,F11,0) -> 0 | H11: =(IF(AND($E11="",$C11=$B$2),1,0)) -> 1 | I11: =IF($C11=$B$3,F11,0) -> 0 | J11: =(IF(AND($E11="",$C11=$B$3),1,0)) -> 1 | K11: =IF($C11=$B$4,F11,0) -> 0 | L11: =(IF(AND($E11="",$C11=$B$4),1,0)) -> 1 | M11: =IF($C11=$B$5,F11,0) -> 0 | N11: =(IF(AND($E11="",$C11=$B$5),1,0)) -> 1 | O11: =IF($C11=$B$6,F11,0) -> 0 | P11: =(IF(AND($E11="",$C11=$B$6),1,0)) -> 1 | Q11: =IF($C11=$B$7,F11,0) -> 0 | R11: =(IF(AND($E11="",$C11=$B$7),1,0)) -> 1 | AA11: =IF(Z11=D11,1,0) -> 1 | AB11: =IF(Z11=0,0,1) -> 0 | AC11: =IF(AA11+AB11=2,"Korrekt","") -> 
A12: 3 | F12: 0 | G12: 0 | H12: 1 | I12: 0 | J12: 1 | K12: 0 | L12: 1 | M12: 0 | N12: 1 | O12: 0 | P12: 1 | Q12: 0 | R12: 1 | AA12: 1 | AB12: 0
A13: 4 | F13: 0 | G13: 0 | H13: 1 | I13: 0 | J13: 1 | K13: 0 | L13: 1 | M13: 0 | N13: 1 | O13: 0 | P13: 1 | Q13: 0 | R13: 1 | AA13: 1 | AB13: 0
A14: 5 | F14: 0 | G14: 0 | H14: 1 | I14: 0 | J14: 1 | K14: 0 | L14: 1 | M14: 0 | N14: 1 | O14: 0 | P14: 1 | Q14: 0 | R14: 1 | AA14: 1 | AB14: 0
A15: 6 | F15: 0 | G15: 0 | H15: 1 | I15: 0 | J15: 1 | K15: 0 | L15: 1 | M15: 0 | N15: 1 | O15: 0 | P15: 1 | Q15: 0 | R15: 1 | AA15: 1 | AB15: 0
A16: 7 | F16: 0 | G16: 0 | H16: 1 | I16: 0 | J16: 1 | K16: 0 | L16: 1 | M16: 0 | N16: 1 | O16: 0 | P16: 1 | Q16: 0 | R16: 1 | AA16: 1 | AB16: 0
A17: 8 | F17: 0 | G17: 0 | H17: 1 | I17: 0 | J17: 1 | K17: 0 | L17: 1 | M17: 0 | N17: 1 | O17: 0 | P17: 1 | Q17: 0 | R17: 1 | AA17: 1 | AB17: 0
A18: 9 | F18: 0 | G18: 0 | H18: 1 | I18: 0 | J18: 1 | K18: 0 | L18: 1 | M18: 0 | N18: 1 | O18: 0 | P18: 1 | Q18: 0 | R18: 1 | AA18: 1 | AB18: 0
A19: 10 | F19: 0 | G19: 0 | H19: 1 | I19: 0 | J19: 1 | K19: 0 | L19: 1 | M19: 0 | N19: 1 | O19: 0 | P19: 1 | Q19: 0 | R19: 1 | AA19: 1 | AB19: 0
A20: 11 | F20: 0 | G20: 0 | H20: 1 | I20: 0 | J20: 1 | K20: 0 | L20: 1 | M20: 0 | N20: 1 | O20: 0 | P20: 1 | Q20: 0 | R20: 1 | AA20: 1 | AB20: 0
A21: 12 | F21: 0 | G21: 0 | H21: 1 | I21: 0 | J21: 1 | K21: 0 | L21: 1 | M21: 0 | N21: 1 | O21: 0 | P21: 1 | Q21: 0 | R21: 1 | AA21: 1 | AB21: 0
A22: 13 | F22: 0 | G22: 0 | H22: 1 | I22: 0 | J22: 1 | K22: 0 | L22: 1 | M22: 0 | N22: 1 | O22: 0 | P22: 1 | Q22: 0 | R22: 1 | AA22: 1 | AB22: 0
A23: 14 | F23: 0 | G23: 0 | H23: 1 | I23: 0 | J23: 1 | K23: 0 | L23: 1 | M23: 0 | N23: 1 | O23: 0 | P23: 1 | Q23: 0 | R23: 1 | AA23: 1 | AB23: 0
A24: 15 | F24: 0 | G24: 0 | H24: 1 | I24: 0 | J24: 1 | K24: 0 | L24: 1 | M24: 0 | N24: 1 | O24: 0 | P24: 1 | Q24: 0 | R24: 1 | AA24: 1 | AB24: 0
A25: 16 | F25: 0 | G25: 0 | H25: 1 | I25: 0 | J25: 1 | K25: 0 | L25: 1 | M25: 0 | N25: 1 | O25: 0 | P25: 1 | Q25: 0 | R25: 1 | AA25: 1 | AB25: 0
A26: 17 | F26: 0 | G26: 0 | H26: 1 | I26: 0 | J26: 1 | K26: 0 | L26: 1 | M26: 0 | N26: 1 | O26: 0 | P26: 1 | Q26: 0 | R26: 1 | AA26: 1 | AB26: 0
A27: 18 | F27: 0 | G27: 0 | H27: 1 | I27: 0 | J27: 1 | K27: 0 | L27: 1 | M27: 0 | N27: 1 | O27: 0 | P27: 1 | Q27: 0 | R27: 1 | AA27: 1 | AB27: 0
A28: 19 | F28: 0 | G28: 0 | H28: 1 | I28: 0 | J28: 1 | K28: 0 | L28: 1 | M28: 0 | N28: 1 | O28: 0 | P28: 1 | Q28: 0 | R28: 1 | AA28: 1 | AB28: 0
A29: 20 | F29: 0 | G29: 0 | H29: 1 | I29: 0 | J29: 1 | K29: 0 | L29: 1 | M29: 0 | N29: 1 | O29: 0 | P29: 1 | Q29: 0 | R29: 1 | AA29: 1 | AB29: 0
A30: 21 | F30: 0 | G30: 0 | H30: 1 | I30: 0 | J30: 1 | K30: 0 | L30: 1 | M30: 0 | N30: 1 | O30: 0 | P30: 1 | Q30: 0 | R30: 1 | AA30: 1 | AB30: 0
A31: 22 | F31: 0 | G31: 0 | H31: 1 | I31: 0 | J31: 1 | K31: 0 | L31: 1 | M31: 0 | N31: 1 | O31: 0 | P31: 1 | Q31: 0 | R31: 1 | AA31: 1 | AB31: 0
A32: 23 | F32: 0 | G32: 0 | H32: 1 | I32: 0 | J32: 1 | K32: 0 | L32: 1 | M32: 0 | N32: 1 | O32: 0 | P32: 1 | Q32: 0 | R32: 1 | AA32: 1 | AB32: 0
A33: 24 | F33: 0 | G33: 0 | H33: 1 | I33: 0 | J33: 1 | K33: 0 | L33: 1 | M33: 0 | N33: 1 | O33: 0 | P33: 1 | Q33: 0 | R33: 1 | AA33: 1 | AB33: 0
A34: 25 | F34: 0 | G34: 0 | H34: 1 | I34: 0 | J34: 1 | K34: 0 | L34: 1 | M34: 0 | N34: 1 | O34: 0 | P34: 1 | Q34: 0 | R34: 1 | AA34: 1 | AB34: 0
A35: 26 | F35: 0 | G35: 0 | H35: 1 | I35: 0 | J35: 1 | K35: 0 | L35: 1 | M35: 0 | N35: 1 | O35: 0 | P35: 1 | Q35: 0 | R35: 1 | AA35: 1 | AB35: 0
A36: 27 | F36: 0 | G36: 0 | H36: 1 | I36: 0 | J36: 1 | K36: 0 | L36: 1 | M36: 0 | N36: 1 | O36: 0 | P36: 1 | Q36: 0 | R36: 1 | AA36: 1 | AB36: 0
A37: 28 | F37: 0 | G37: 0 | H37: 1 | I37: 0 | J37: 1 | K37: 0 | L37: 1 | M37: 0 | N37: 1 | O37: 0 | P37: 1 | Q37: 0 | R37: 1 | AA37: 1 | AB37: 0
A38: 29 | F38: 0 | G38: 0 | H38: 1 | I38: 0 | J38: 1 | K38: 0 | L38: 1 | M38: 0 | N38: 1 | O38: 0 | P38: 1 | Q38: 0 | R38: 1 | AA38: 1 | AB38: 0
A39: 30 | F39: 0 | G39: 0 | H39: 1 | I39: 0 | J39: 1 | K39: 0 | L39: 1 | M39: 0 | N39: 1 | O39: 0 | P39: 1 | Q39: 0 | R39: 1 | AA39: 1 | AB39: 0
A40: 31 | F40: 0 | G40: 0 | H40: 1 | I40: 0 | J40: 1 | K40: 0 | L40: 1 | M40: 0 | N40: 1 | O40: 0 | P40: 1 | Q40: 0 | R40: 1 | AA40: 1 | AB40: 0
A41: 32 | F41: 0 | G41: 0 | H41: 1 | I41: 0 | J41: 1 | K41: 0 | L41: 1 | M41: 0 | N41: 1 | O41: 0 | P41: 1 | Q41: 0 | R41: 1 | AA41: 1 | AB41: 0
A42: 33 | F42: 0 | G42: 0 | H42: 1 | I42: 0 | J42: 1 | K42: 0 | L42: 1 | M42: 0 | N42: 1 | O42: 0 | P42: 1 | Q42: 0 | R42: 1 | AA42: 1 | AB42: 0
A43: 34 | F43: 0 | G43: 0 | H43: 1 | I43: 0 | J43: 1 | K43: 0 | L43: 1 | M43: 0 | N43: 1 | O43: 0 | P43: 1 | Q43: 0 | R43: 1 | AA43: 1 | AB43: 0
A44: 35 | F44: 0 | G44: 0 | H44: 1 | I44: 0 | J44: 1 | K44: 0 | L44: 1 | M44: 0 | N44: 1 | O44: 0 | P44: 1 | Q44: 0 | R44: 1 | AA44: 1 | AB44: 0
A45: 36 | F45: 0 | G45: 0 | H45: 1 | I45: 0 | J45: 1 | K45: 0 | L45: 1 | M45: 0 | N45: 1 | O45: 0 | P45: 1 | Q45: 0 | R45: 1 | AA45: 1 | AB45: 0
G46: =LARGE(G10:G45,1)+LARGE(G10:G45,2)+LARGE(G10:G45,3) -> 0 | H46: =SUM(H10:H45) -> 36 | I46: =LARGE(I10:I45,1)+LARGE(I10:I45,2)+LARGE(I10:I45,3) -> 0 | J46: =SUM(J10:J45) -> 36 | K46: =LARGE(K10:K45,1)+LARGE(K10:K45,2)+LARGE(K10:K45,3) -> 0 | L46: =SUM(L10:L45) -> 36 | M46: =LARGE(M10:M45,1)+LARGE(M10:M45,2)+LARGE(M10:M45,3) -> 0 | N46: =SUM(N10:N45) -> 36 | O46: =LARGE(O10:O45,1)+LARGE(O10:O45,2)+LARGE(O10:O45,3) -> 0 | P46: =SUM(P10:P45) -> 36 | Q46: =LARGE(Q10:Q45,1)+LARGE(Q10:Q45,2)+LARGE(Q10:Q45,3) -> 0 | R46: =SUM(R10:S45) -> 36
B48: Bitte beachtet, dass die Standaufsicht benannt werden muss

Sheet Übersicht Schützen (hidden)
C1: 1.0 | D1: 2.0 | E1: 3.0 | F1: 4.0 | G1: 5.0 | H1: 6.0 | L1: 7.0 | M1: 8.0 | N1: 9.0 | O1: 10.0 | P1: 11.0 | Q1: 12.0
A2: Günther Baalmann | B2: =VLOOKUP(A2,'Wettkampf 1'!$B$10:$C$45,2,FALSE) -> Eisten II | C2: =VLOOKUP(A2,'Wettkampf 1'!$B$10:$D$45,3,FALSE) -> 315.3 | D2: =VLOOKUP($A2,'2'!$B$10:$D$45,3,FALSE) -> 312.1 | E2: =VLOOKUP($A2,'3'!$B$10:$D$45,3,FALSE) -> 316.7 | F2: =VLOOKUP($A2,'4'!$B$10:$D$45,3,FALSE) -> 313.7 | G2: =VLOOKUP($A2,'5'!$B$10:$D$45,3,FALSE) -> 312.8 | H2: =VLOOKUP($A2,'6'!$B$10:$D$45,3,FALSE) -> 311.4 | I2: =K2/J2 -> 313.7 | J2: =VLOOKUP(A2,Formelhilfe!$A$9:$H$44,8,FALSE) -> 6.0 | K2: =SUM(C2:H2) -> 1,882.0 | L2: =VLOOKUP($A2,'7'!$B$10:$D$45,3,FALSE) -> 315.4 | M2: =VLOOKUP($A2,'8'!$B$10:$D$45,3,FALSE) -> 313.8 | N2: =VLOOKUP($A2,'9'!$B$10:$D$45,3,FALSE) -> 314.5 | O2: =VLOOKUP($A2,'10'!$B$10:$D$45,3,FALSE) -> 311.3 | P2: =VLOOKUP($A2,'11'!$B$10:$D$45,3,FALSE) -> 315.7 | Q2: =VLOOKUP($A2,'12'!$B$10:$D$45,3,FALSE) -> 0.0 | R2: =T2/S2 -> 314.1 | S2: =VLOOKUP(A2,Formelhilfe!$A$9:$O$44,15,FALSE) -> 5.0 | T2: =SUM(L2:Q2) -> 1,570.7 | U2: =W2/V2 -> 313.9 | V2: =VLOOKUP(A2,Formelhilfe!$A$9:$P$44,16,FALSE) -> 11.0 | W2: =SUM(C2:H2,L2:Q2) -> 3,452.7
A3: Achim Will | B3: =VLOOKUP(A3,'Wettkampf 1'!$B$10:$C$45,2,FALSE) -> Spahnharrenstätte III | C3: =VLOOKUP(A3,'Wettkampf 1'!$B$10:$D$45,3,FALSE) -> 307.9 | D3: =VLOOKUP($A3,'2'!$B$10:$D$45,3,FALSE) -> 313.7 | E3: =VLOOKUP($A3,'3'!$B$10:$D$45,3,FALSE) -> 310.4 | F3: =VLOOKUP($A3,'4'!$B$10:$D$45,3,FALSE) -> 313.7 | G3: =VLOOKUP($A3,'5'!$B$10:$D$45,3,FALSE) -> 315.1 | H3: =VLOOKUP($A3,'6'!$B$10:$D$45,3,FALSE) -> 308.4 | I3: =K3/J3 -> 311.5 | J3: =VLOOKUP(A3,Formelhilfe!$A$9:$H$44,8,FALSE) -> 6.0 | K3: =SUM(C3:H3) -> 1,869.2 | L3: =VLOOKUP($A3,'7'!$B$10:$D$45,3,FALSE) -> 314.4 | M3: =VLOOKUP($A3,'8'!$B$10:$D$45,3,FALSE) -> 308.4 | N3: =VLOOKUP($A3,'9'!$B$10:$D$45,3,FALSE) -> 312.7 | O3: =VLOOKUP($A3,'10'!$B$10:$D$45,3,FALSE) -> 315.3 | P3: =VLOOKUP($A3,'11'!$B$10:$D$45,3,FALSE) -> 316.3 | Q3: =VLOOKUP($A3,'12'!$B$10:$D$45,3,FALSE) -> 0.0 | R3: =T3/S3 -> 313.4 | S3: =VLOOKUP(A3,Formelhilfe!$A$9:$O$44,15,FALSE) -> 5.0 | T3: =SUM(L3:Q3) -> 1,567.1 | U3: =W3/V3 -> 312.4 | V3: =VLOOKUP(A3,Formelhilfe!$A$9:$P$44,16,FALSE) -> 11.0 | W3: =SUM(C3:H3,L3:Q3) -> 3,436.3
A4: Martin Hackmann | B4: =VLOOKUP(A4,'Wettkampf 1'!$B$10:$C$45,2,FALSE) -> Eisten II | C4: =VLOOKUP(A4,'Wettkampf 1'!$B$10:$D$45,3,FALSE) -> 313.5 | D4: =VLOOKUP($A4,'2'!$B$10:$D$45,3,FALSE) -> 307.5 | E4: =VLOOKUP($A4,'3'!$B$10:$D$45,3,FALSE) -> 311.4 | F4: =VLOOKUP($A4,'4'!$B$10:$D$45,3,FALSE) -> 313.3 | G4: =VLOOKUP($A4,'5'!$B$10:$D$45,3,FALSE) -> 313.0 | H4: =VLOOKUP($A4,'6'!$B$10:$D$45,3,FALSE) -> 311.1 | I4: =K4/J4 -> 311.6 | J4: =VLOOKUP(A4,Formelhilfe!$A$9:$H$44,8,FALSE) -> 6.0 | K4: =SUM(C4:H4) -> 1,869.8 | L4: =VLOOKUP($A4,'7'!$B$10:$D$45,3,FALSE) -> 307.4 | M4: =VLOOKUP($A4,'8'!$B$10:$D$45,3,FALSE) -> 308.9 | N4: =VLOOKUP($A4,'9'!$B$10:$D$45,3,FALSE) -> 311.0 | O4: =VLOOKUP($A4,'10'!$B$10:$D$45,3,FALSE) -> 310.6 | P4: =VLOOKUP($A4,'11'!$B$10:$D$45,3,FALSE) -> 315.5 | Q4: =VLOOKUP($A4,'12'!$B$10:$D$45,3,FALSE) -> 0.0 | R4: =T4/S4 -> 310.7 | S4: =VLOOKUP(A4,Formelhilfe!$A$9:$O$44,15,FALSE) -> 5.0 | T4: =SUM(L4:Q4) -> 1,553.4 | U4: =W4/V4 -> 311.2 | V4: =VLOOKUP(A4,Formelhilfe!$A$9:$P$44,16,FALSE) -> 11.0 | W4: =SUM(C4:H4,L4:Q4) -> 3,423.2
A5: Martin Poker | B5: =VLOOKUP(A5,'Wettkampf 1'!$B$10:$C$45,2,FALSE) -> Eisten II | C5: =VLOOKUP(A5,'Wettkampf 1'!$B$10:$D$45,3,FALSE) -> 307.3 | D5: =VLOOKUP($A5,'2'!$B$10:$D$45,3,FALSE) -> 313.4 | E5: =VLOOKUP($A5,'3'!$B$10:$D$45,3,FALSE) -> 311.0 | F5: =VLOOKUP($A5,'4'!$B$10:$D$45,3,FALSE) -> 310.5 | G5: =VLOOKUP($A5,'5'!$B$10:$D$45,3,FALSE) -> 310.9 | H5: =VLOOKUP($A5,'6'!$B$10:$D$45,3,FALSE) -> 311.8 | I5: =K5/J5 -> 310.8 | J5: =VLOOKUP(A5,Formelhilfe!$A$9:$H$44,8,FALSE) -> 6.0 | K5: =SUM(C5:H5) -> 1,864.9 | L5: =VLOOKUP($A5,'7'!$B$10:$D$45,3,FALSE) -> 312.6 | M5: =VLOOKUP($A5,'8'!$B$10:$D$45,3,FALSE) -> 305.4 | N5: =VLOOKUP($A5,'9'!$B$10:$D$45,3,FALSE) -> 311.8 | O5: =VLOOKUP($A5,'10'!$B$10:$D$45,3,FALSE) -> 314.2 | P5: =VLOOKUP($A5,'11'!$B$10:$D$45,3,FALSE) -> 313.3 | Q5: =VLOOKUP($A5,'12'!$B$10:$D$45,3,FALSE) -> 0.0 | R5: =T5/S5 -> 311.5 | S5: =VLOOKUP(A5,Formelhilfe!$A$9:$O$44,15,FALSE) -> 5.0 | T5: =SUM(L5:Q5) -> 1,557.3 | U5: =W5/V5 -> 311.1 | V5: =VLOOKUP(A5,Formelhilfe!$A$9:$P$44,16,FALSE) -> 11.0 | W5: =SUM(C5:H5,L5:Q5) -> 3,422.2
A6: Dieter Hanekamp | B6: =VLOOKUP(A6,'Wettkampf 1'!$B$10:$C$45,2,FALSE) -> Spahnharrenstätte II | C6: =VLOOKUP(A6,'Wettkampf 1'!$B$10:$D$45,3,FALSE) -> 311.2 | D6: =VLOOKUP($A6,'2'!$B$10:$D$45,3,FALSE) -> 308.7 | E6: =VLOOKUP($A6,'3'!$B$10:$D$45,3,FALSE) -> 309.8 | F6: =VLOOKUP($A6,'4'!$B$10:$D$45,3,FALSE) -> 310.7 | G6: =VLOOKUP($A6,'5'!$B$10:$D$45,3,FALSE) -> 312.0 | H6: =VLOOKUP($A6,'6'!$B$10:$D$45,3,FALSE) -> 313.7 | I6: =K6/J6 -> 311.0 | J6: =VLOOKUP(A6,Formelhilfe!$A$9:$H$44,8,FALSE) -> 6.0 | K6: =SUM(C6:H6) -> 1,866.1 | L6: =VLOOKUP($A6,'7'!$B$10:$D$45,3,FALSE) -> 312.5 | M6: =VLOOKUP($A6,'8'!$B$10:$D$45,3,FALSE) -> 311.5 | N6: =VLOOKUP($A6,'9'!$B$10:$D$45,3,FALSE) -> 310.7 | O6: =VLOOKUP($A6,'10'!$B$10:$D$45,3,FALSE) -> 309.5 | P6: =VLOOKUP($A6,'11'!$B$10:$D$45,3,FALSE) -> 311.3 | Q6: =VLOOKUP($A6,'12'!$B$10:$D$45,3,FALSE) -> 0.0 | R6: =T6/S6 -> 311.1 | S6: =VLOOKUP(A6,Formelhilfe!$A$9:$O$44,15,FALSE) -> 5.0 | T6: =SUM(L6:Q6) -> 1,555.5 | U6: =W6/V6 -> 311.1 | V6: =VLOOKUP(A6,Formelhilfe!$A$9:$P$44,16,FALSE) -> 11.0 | W6: =SUM(C6:H6,L6:Q6) -> 3,421.6
A7: Alois Schmitz | B7: =VLOOKUP(A7,'Wettkampf 1'!$B$10:$C$45,2,FALSE) -> Neubörger II | C7: =VLOOKUP(A7,'Wettkampf 1'!$B$10:$D$45,3,FALSE) -> 311.0 | D7: =VLOOKUP($A7,'2'!$B$10:$D$45,3,FALSE) -> 310.0 | E7: =VLOOKUP($A7,'3'!$B$10:$D$45,3,FALSE) -> 308.7 | F7: =VLOOKUP($A7,'4'!$B$10:$D$45,3,FALSE) -> 311.8 | G7: =VLOOKUP($A7,'5'!$B$10:$D$45,3,FALSE) -> 313.2 | H7: =VLOOKUP($A7,'6'!$B$10:$D$45,3,FALSE) -> 305.6 | I7: =K7/J7 -> 310.1 | J7: =VLOOKUP(A7,Formelhilfe!$A$9:$H$44,8,FALSE) -> 6.0 | K7: =SUM(C7:H7) -> 1,860.3 | L7: =VLOOKUP($A7,'7'!$B$10:$D$45,3,FALSE) -> 307.5 | M7: =VLOOKUP($A7,'8'!$B$10:$D$45,3,FALSE) -> 304.9 | N7: =VLOOKUP($A7,'9'!$B$10:$D$45,3,FALSE) -> 310.5 | O7: =VLOOKUP($A7,'10'!$B$10:$D$45,3,FALSE) -> 306.4 | P7: =VLOOKUP($A7,'11'!$B$10:$D$45,3,FALSE) -> 311.8 | Q7: =VLOOKUP($A7,'12'!$B$10:$D$45,3,FALSE) -> 0.0 | R7: =T7/S7 -> 308.2 | S7: =VLOOKUP(A7,Formelhilfe!$A$9:$O$44,15,FALSE) -> 5.0 | T7: =SUM(L7:Q7) -> 1,541.1 | U7: =W7/V7 -> 309.2 | V7: =VLOOKUP(A7,Formelhilfe!$A$9:$P$44,16,FALSE) -> 11.0 | W7: =SUM(C7:H7,L7:Q7) -> 3,401.4
A8: Heiner Kröger | B8: =VLOOKUP(A8,'Wettkampf 1'!$B$10:$C$45,2,FALSE) -> Spahnharrenstätte II | C8: =VLOOKUP(A8,'Wettkampf 1'!$B$10:$D$45,3,FALSE) -> 307.9 | D8: =VLOOKUP($A8,'2'!$B$10:$D$45,3,FALSE) -> 308.1 | E8: =VLOOKUP($A8,'3'!$B$10:$D$45,3,FALSE) -> 306.9 | F8: =VLOOKUP($A8,'4'!$B$10:$D$45,3,FALSE) -> 310.2 | G8: =VLOOKUP($A8,'5'!$B$10:$D$45,3,FALSE) -> 306.9 | H8: =VLOOKUP($A8,'6'!$B$10:$D$45,3,FALSE) -> 309.3 | I8: =K8/J8 -> 308.2 | J8: =VLOOKUP(A8,Formelhilfe!$A$9:$H$44,8,FALSE) -> 6.0 | K8: =SUM(C8:H8) -> 1,849.3 | L8: =VLOOKUP($A8,'7'!$B$10:$D$45,3,FALSE) -> 311.6 | M8: =VLOOKUP($A8,'8'!$B$10:$D$45,3,FALSE) -> 307.5 | N8: =VLOOKUP($A8,'9'!$B$10:$D$45,3,FALSE) -> 308.9 | O8: =VLOOKUP($A8,'10'!$B$10:$D$45,3,FALSE) -> 311.7 | P8: =VLOOKUP($A8,'11'!$B$10:$D$45,3,FALSE) -> 311.7 | Q8: =VLOOKUP($A8,'12'!$B$10:$D$45,3,FALSE) -> 0.0 | R8: =T8/S8 -> 310.3 | S8: =VLOOKUP(A8,Formelhilfe!$A$9:$O$44,15,FALSE) -> 5.0 | T8: =SUM(L8:Q8) -> 1,551.4 | U8: =W8/V8 -> 309.2 | V8: =VLOOKUP(A8,Formelhilfe!$A$9:$P$44,16,FALSE) -> 11.0 | W8: =SUM(C8:H8,L8:Q8) -> 3,400.7
A9: Meik Sieger | B9: =VLOOKUP(A9,'Wettkampf 1'!$B$10:$C$45,2,FALSE) -> Esterwegen II | C9: =VLOOKUP(A9,'Wettkampf 1'!$B$10:$D$45,3,FALSE) -> 307.8 | D9: =VLOOKUP($A9,'2'!$B$10:$D$45,3,FALSE) -> 305.8 | E9: =VLOOKUP($A9,'3'!$B$10:$D$45,3,FALSE) -> 309.2 | F9: =VLOOKUP($A9,'4'!$B$10:$D$45,3,FALSE) -> 312.3 | G9: =VLOOKUP($A9,'5'!$B$10:$D$45,3,FALSE) -> 311.0 | H9: =VLOOKUP($A9,'6'!$B$10:$D$45,3,FALSE) -> 306.5 | I9: =K9/J9 -> 308.8 | J9: =VLOOKUP(A9,Formelhilfe!$A$9:$H$44,8,FALSE) -> 6.0 | K9: =SUM(C9:H9) -> 1,852.6 | L9: =VLOOKUP($A9,'7'!$B$10:$D$45,3,FALSE) -> 311.1 | M9: =VLOOKUP($A9,'8'!$B$10:$D$45,3,FALSE) -> 306.6 | N9: =VLOOKUP($A9,'9'!$B$10:$D$45,3,FALSE) -> 311.7 | O9: =VLOOKUP($A9,'10'!$B$10:$D$45,3,FALSE) -> 306.8 | P9: =VLOOKUP($A9,'11'!$B$10:$D$45,3,FALSE) -> 310.1 | Q9: =VLOOKUP($A9,'12'!$B$10:$D$45,3,FALSE) -> 0.0 | R9: =T9/S9 -> 309.3 | S9: =VLOOKUP(A9,Formelhilfe!$A$9:$O$44,15,FALSE) -> 5.0 | T9: =SUM(L9:Q9) -> 1,546.3 | U9: =W9/V9 -> 309.0 | V9: =VLOOKUP(A9,Formelhilfe!$A$9:$P$44,16,FALSE) -> 11.0 | W9: =SUM(C9:H9,L9:Q9) -> 3,398.9
A10: Ludger Hermes | B10: =VLOOKUP(A10,'Wettkampf 1'!$B$10:$C$45,2,FALSE) -> Neubörger II | C10: =VLOOKUP(A10,'Wettkampf 1'!$B$10:$D$45,3,FALSE) -> 311.9 | D10: =VLOOKUP($A10,'2'!$B$10:$D$45,3,FALSE) -> 309.3 | E10: =VLOOKUP($A10,'3'!$B$10:$D$45,3,FALSE) -> 312.9 | F10: =VLOOKUP($A10,'4'!$B$10:$D$45,3,FALSE) -> 308.2 | G10: =VLOOKUP($A10,'5'!$B$10:$D$45,3,FALSE) -> 309.9 | H10: =VLOOKUP($A10,'6'!$B$10:$D$45,3,FALSE) -> 301.6 | I10: =K10/J10 -> 309.0 | J10: =VLOOKUP(A10,Formelhilfe!$A$9:$H$44,8,FALSE) -> 6.0 | K10: =SUM(C10:H10) -> 1,853.8 | L10: =VLOOKUP($A10,'7'!$B$10:$D$45,3,FALSE) -> 309.1 | M10: =VLOOKUP($A10,'8'!$B$10:$D$45,3,FALSE) -> 310.6 | N10: =VLOOKUP($A10,'9'!$B$10:$D$45,3,FALSE) -> 304.5 | O10: =VLOOKUP($A10,'10'!$B$10:$D$45,3,FALSE) -> 305.8 | P10: =VLOOKUP($A10,'11'!$B$10:$D$45,3,FALSE) -> 310.9 | Q10: =VLOOKUP($A10,'12'!$B$10:$D$45,3,FALSE) -> 0.0 | R10: =T10/S10 -> 308.2 | S10: =VLOOKUP(A10,Formelhilfe!$A$9:$O$44,15,FALSE) -> 5.0 | T10: =SUM(L10:Q10) -> 1,540.9 | U10: =W10/V10 -> 308.6 | V10: =VLOOKUP(A10,Formelhilfe!$A$9:$P$44,16,FALSE) -> 11.0 | W10: =SUM(C10:H10,L10:Q10) -> 3,394.7
A11: Johannes Hülsmann | B11: =VLOOKUP(A11,'Wettkampf 1'!$B$10:$C$45,2,FALSE) -> Spahnharrenstätte II | C11: =VLOOKUP(A11,'Wettkampf 1'!$B$10:$D$45,3,FALSE) -> 305.6 | D11: =VLOOKUP($A11,'2'!$B$10:$D$45,3,FALSE) -> 312.4 | E11: =VLOOKUP($A11,'3'!$B$10:$D$45,3,FALSE) -> 303.4 | F11: =VLOOKUP($A11,'4'!$B$10:$D$45,3,FALSE) -> 308.8 | G11: =VLOOKUP($A11,'5'!$B$10:$D$45,3,FALSE) -> 312.0 | H11: =VLOOKUP($A11,'6'!$B$10:$D$45,3,FALSE) -> 311.5 | I11: =K11/J11 -> 309.0 | J11: =VLOOKUP(A11,Formelhilfe!$A$9:$H$44,8,FALSE) -> 6.0 | K11: =SUM(C11:H11) -> 1,853.7 | L11: =VLOOKUP($A11,'7'!$B$10:$D$45,3,FALSE) -> 307.8 | M11: =VLOOKUP($A11,'8'!$B$10:$D$45,3,FALSE) -> 309.5 | N11: =VLOOKUP($A11,'9'!$B$10:$D$45,3,FALSE) -> 310.1 | O11: =VLOOKUP($A11,'10'!$B$10:$D$45,3,FALSE) -> 308.5 | P11: =VLOOKUP($A11,'11'!$B$10:$D$45,3,FALSE) -> 305.0 | Q11: =VLOOKUP($A11,'12'!$B$10:$D$45,3,FALSE) -> 0.0 | R11: =T11/S11 -> 308.2 | S11: =VLOOKUP(A11,Formelhilfe!$A$9:$O$44,15,FALSE) -> 5.0 | T11: =SUM(L11:Q11) -> 1,540.9 | U11: =W11/V11 -> 308.6 | V11: =VLOOKUP(A11,Formelhilfe!$A$9:$P$44,16,FALSE) -> 11.0 | W11: =SUM(C11:H11,L11:Q11) -> 3,394.6
A12: Dennis Lindemann | B12: =VLOOKUP(A12,'Wettkampf 1'!$B$10:$C$45,2,FALSE) -> Esterwegen II | C12: =VLOOKUP(A12,'Wettkampf 1'!$B$10:$D$45,3,FALSE) -> 302.4 | D12: =VLOOKUP($A12,'2'!$B$10:$D$45,3,FALSE) -> 306.6 | E12: =VLOOKUP($A12,'3'!$B$10:$D$45,3,FALSE) -> 310.3 | F12: =VLOOKUP($A12,'4'!$B$10:$D$45,3,FALSE) -> 306.5 | G12: =VLOOKUP($A12,'5'!$B$10:$D$45,3,FALSE) -> 311.5 | H12: =VLOOKUP($A12,'6'!$B$10:$D$45,3,FALSE) -> 308.9 | I12: =K12/J12 -> 307.7 | J12: =VLOOKUP(A12,Formelhilfe!$A$9:$H$44,8,FALSE) -> 6.0 | K12: =SUM(C12:H12) -> 1,846.2 | L12: =VLOOKUP($A12,'7'!$B$10:$D$45,3,FALSE) -> 310.4 | M12: =VLOOKUP($A12,'8'!$B$10:$D$45,3,FALSE) -> 312.5 | N12: =VLOOKUP($A12,'9'!$B$10:$D$45,3,FALSE) -> 308.2 | O12: =VLOOKUP($A12,'10'!$B$10:$D$45,3,FALSE) -> 307.0 | P12: =VLOOKUP($A12,'11'!$B$10:$D$45,3,FALSE) -> 306.7 | Q12: =VLOOKUP($A12,'12'!$B$10:$D$45,3,FALSE) -> 0.0 | R12: =T12/S12 -> 309.0 | S12: =VLOOKUP(A12,Formelhilfe!$A$9:$O$44,15,FALSE) -> 5.0 | T12: =SUM(L12:Q12) -> 1,544.8 | U12: =W12/V12 -> 308.3 | V12: =VLOOKUP(A12,Formelhilfe!$A$9:$P$44,16,FALSE) -> 11.0 | W12: =SUM(C12:H12,L12:Q12) -> 3,391.0
A13: Christian Grönheim | B13: =VLOOKUP(A13,'Wettkampf 1'!$B$10:$C$45,2,FALSE) -> Spahnharrenstätte III | C13: =VLOOKUP(A13,'Wettkampf 1'!$B$10:$D$45,3,FALSE) -> 310.8 | D13: =VLOOKUP($A13,'2'!$B$10:$D$45,3,FALSE) -> 309.9 | E13: =VLOOKUP($A13,'3'!$B$10:$D$45,3,FALSE) -> 307.7 | F13: =VLOOKUP($A13,'4'!$B$10:$D$45,3,FALSE) -> 310.0 | G13: =VLOOKUP($A13,'5'!$B$10:$D$45,3,FALSE) -> 309.6 | H13: =VLOOKUP($A13,'6'!$B$10:$D$45,3,FALSE) -> 302.6 | I13: =K13/J13 -> 308.4 | J13: =VLOOKUP(A13,Formelhilfe!$A$9:$H$44,8,FALSE) -> 6.0 | K13: =SUM(C13:H13) -> 1,850.6 | L13: =VLOOKUP($A13,'7'!$B$10:$D$45,3,FALSE) -> 303.1 | M13: =VLOOKUP($A13,'8'!$B$10:$D$45,3,FALSE) -> 308.0 | N13: =VLOOKUP($A13,'9'!$B$10:$D$45,3,FALSE) -> 310.0 | O13: =VLOOKUP($A13,'10'!$B$10:$D$45,3,FALSE) -> 303.1 | P13: =VLOOKUP($A13,'11'!$B$10:$D$45,3,FALSE) -> 311.2 | Q13: =VLOOKUP($A13,'12'!$B$10:$D$45,3,FALSE) -> 0.0 | R13: =T13/S13 -> 307.1 | S13: =VLOOKUP(A13,Formelhilfe!$A$9:$O$44,15,FALSE) -> 5.0 | T13: =SUM(L13:Q13) -> 1,535.4 | U13: =W13/V13 -> 307.8 | V13: =VLOOKUP(A13,Formelhilfe!$A$9:$P$44,16,FALSE) -> 11.0 | W13: =SUM(C13:H13,L13:Q13) -> 3,386.0
A14: Franz Ostermann | B14: =VLOOKUP(A14,'Wettkampf 1'!$B$10:$C$45,2,FALSE) -> Eisten II | C14: =VLOOKUP(A14,'Wettkampf 1'!$B$10:$D$45,3,FALSE) -> 308.3 | D14: =VLOOKUP($A14,'2'!$B$10:$D$45,3,FALSE) -> 309.6 | E14: =VLOOKUP($A14,'3'!$B$10:$D$45,3,FALSE) -> 306.8 | F14: =VLOOKUP($A14,'4'!$B$10:$D$45,3,FALSE) -> 300.2 | G14: =VLOOKUP($A14,'5'!$B$10:$D$45,3,FALSE) -> 310.3 | H14: =VLOOKUP($A14,'6'!$B$10:$D$45,3,FALSE) -> 312.2 | I14: =K14/J14 -> 307.9 | J14: =VLOOKUP(A14,Formelhilfe!$A$9:$H$44,8,FALSE) -> 6.0 | K14: =SUM(C14:H14) -> 1,847.4 | L14: =VLOOKUP($A14,'7'!$B$10:$D$45,3,FALSE) -> 307.4 | M14: =VLOOKUP($A14,'8'!$B$10:$D$45,3,FALSE) -> 309.7 | N14: =VLOOKUP($A14,'9'!$B$10:$D$45,3,FALSE) -> 308.2 | O14: =VLOOKUP($A14,'10'!$B$10:$D$45,3,FALSE) -> 297.8 | P14: =VLOOKUP($A14,'11'!$B$10:$D$45,3,FALSE) -> 306.5 | Q14: =VLOOKUP($A14,'12'!$B$10:$D$45,3,FALSE) -> 0.0 | R14: =T14/S14 -> 305.9 | S14: =VLOOKUP(A14,Formelhilfe!$A$9:$O$44,15,FALSE) -> 5.0 | T14: =SUM(L14:Q14) -> 1,529.6 | U14: =W14/V14 -> 307.0 | V14: =VLOOKUP(A14,Formelhilfe!$A$9:$P$44,16,FALSE) -> 11.0 | W14: =SUM(C14:H14,L14:Q14) -> 3,377.0
A15: Ludwig Langen | B15: =VLOOKUP(A15,'Wettkampf 1'!$B$10:$C$45,2,FALSE) -> Neubörger II | C15: =VLOOKUP(A15,'Wettkampf 1'!$B$10:$D$45,3,FALSE) -> 305.8 | D15: =VLOOKUP($A15,'2'!$B$10:$D$45,3,FALSE) -> 299.5 | E15: =VLOOKUP($A15,'3'!$B$10:$D$45,3,FALSE) -> 305.8 | F15: =VLOOKUP($A15,'4'!$B$10:$D$45,3,FALSE) -> 308.0 | G15: =VLOOKUP($A15,'5'!$B$10:$D$45,3,FALSE) -> 312.2 | H15: =VLOOKUP($A15,'6'!$B$10:$D$45,3,FALSE) -> 307.9 | I15: =K15/J15 -> 306.5 | J15: =VLOOKUP(A15,Formelhilfe!$A$9:$H$44,8,FALSE) -> 6.0 | K15: =SUM(C15:H15) -> 1,839.2 | L15: =VLOOKUP($A15,'7'!$B$10:$D$45,3,FALSE) -> 304.4 | M15: =VLOOKUP($A15,'8'!$B$10:$D$45,3,FALSE) -> 305.8 | N15: =VLOOKUP($A15,'9'!$B$10:$D$45,3,FALSE) -> 309.4 | O15: =VLOOKUP($A15,'10'!$B$10:$D$45,3,FALSE) -> 308.3 | P15: =VLOOKUP($A15,'11'!$B$10:$D$45,3,FALSE) -> 304.9 | Q15: =VLOOKUP($A15,'12'!$B$10:$D$45,3,FALSE) -> 0.0 | R15: =T15/S15 -> 306.6 | S15: =VLOOKUP(A15,Formelhilfe!$A$9:$O$44,15,FALSE) -> 5.0 | T15: =SUM(L15:Q15) -> 1,532.8 | U15: =W15/V15 -> 306.5 | V15: =VLOOKUP(A15,Formelhilfe!$A$9:$P$44,16,FALSE) -> 11.0 | W15: =SUM(C15:H15,L15:Q15) -> 3,372.0
A16: Sebastian Albers | B16: =VLOOKUP(A16,'Wettkampf 1'!$B$10:$C$45,2,FALSE) -> Spahnharrenstätte III | C16: =VLOOKUP(A16,'Wettkampf 1'!$B$10:$D$45,3,FALSE) -> 304.5 | D16: =VLOOKUP($A16,'2'!$B$10:$D$45,3,FALSE) -> 303.8 | E16: =VLOOKUP($A16,'3'!$B$10:$D$45,3,FALSE) -> 307.5 | F16: =VLOOKUP($A16,'4'!$B$10:$D$45,3,FALSE) -> 304.7 | G16: =VLOOKUP($A16,'5'!$B$10:$D$45,3,FALSE) -> 305.7 | H16: =VLOOKUP($A16,'6'!$B$10:$D$45,3,FALSE) -> 307.4 | I16: =K16/J16 -> 305.6 | J16: =VLOOKUP(A16,Formelhilfe!$A$9:$H$44,8,FALSE) -> 6.0 | K16: =SUM(C16:H16) -> 1,833.6 | L16: =VLOOKUP($A16,'7'!$B$10:$D$45,3,FALSE) -> 308.6 | M16: =VLOOKUP($A16,'8'!$B$10:$D$45,3,FALSE) -> 307.2 | N16: =VLOOKUP($A16,'9'!$B$10:$D$45,3,FALSE) -> 306.3 | O16: =VLOOKUP($A16,'10'!$B$10:$D$45,3,FALSE) -> 304.8 | P16: =VLOOKUP($A16,'11'!$B$10:$D$45,3,FALSE) -> 311.3 | Q16: =VLOOKUP($A16,'12'!$B$10:$D$45,3,FALSE) -> 0.0 | R16: =T16/S16 -> 307.6 | S16: =VLOOKUP(A16,Formelhilfe!$A$9:$O$44,15,FALSE) -> 5.0 | T16: =SUM(L16:Q16) -> 1,538.2 | U16: =W16/V16 -> 306.5 | V16: =VLOOKUP(A16,Formelhilfe!$A$9:$P$44,16,FALSE) -> 11.0 | W16: =SUM(C16:H16,L16:Q16) -> 3,371.8
A17: Heiko Micksch | B17: =VLOOKUP(A17,'Wettkampf 1'!$B$10:$C$45,2,FALSE) -> Spahnharrenstätte III | C17: =VLOOKUP(A17,'Wettkampf 1'!$B$10:$D$45,3,FALSE) -> 302.8 | D17: =VLOOKUP($A17,'2'!$B$10:$D$45,3,FALSE) -> 302.5 | E17: =VLOOKUP($A17,'3'!$B$10:$D$45,3,FALSE) -> 309.4 | F17: =VLOOKUP($A17,'4'!$B$10:$D$45,3,FALSE) -> 303.6 | G17: =VLOOKUP($A17,'5'!$B$10:$D$45,3,FALSE) -> 304.3 | H17: =VLOOKUP($A17,'6'!$B$10:$D$45,3,FALSE) -> 306.5 | I17: =K17/J17 -> 304.9 | J17: =VLOOKUP(A17,Formelhilfe!$A$9:$H$44,8,FALSE) -> 6.0 | K17: =SUM(C17:H17) -> 1,829.1 | L17: =VLOOKUP($A17,'7'!$B$10:$D$45,3,FALSE) -> 303.6 | M17: =VLOOKUP($A17,'8'!$B$10:$D$45,3,FALSE) -> 305.7 | N17: =VLOOKUP($A17,'9'!$B$10:$D$45,3,FALSE) -> 306.3 | O17: =VLOOKUP($A17,'10'!$B$10:$D$45,3,FALSE) -> 306.9 | P17: =VLOOKUP($A17,'11'!$B$10:$D$45,3,FALSE) -> 309.6 | Q17: =VLOOKUP($A17,'12'!$B$10:$D$45,3,FALSE) -> 0.0 | R17: =T17/S17 -> 306.4 | S17: =VLOOKUP(A17,Formelhilfe!$A$9:$O$44,15,FALSE) -> 5.0 | T17: =SUM(L17:Q17) -> 1,532.1 | U17: =W17/V17 -> 305.6 | V17: =VLOOKUP(A17,Formelhilfe!$A$9:$P$44,16,FALSE) -> 11.0 | W17: =SUM(C17:H17,L17:Q17) -> 3,361.2
A18: Bernd Nortmann | B18: =VLOOKUP(A18,'Wettkampf 1'!$B$10:$C$45,2,FALSE) -> Lahn V | C18: =VLOOKUP(A18,'Wettkampf 1'!$B$10:$D$45,3,FALSE) -> 307.8 | D18: =VLOOKUP($A18,'2'!$B$10:$D$45,3,FALSE) -> 302.2 | E18: =VLOOKUP($A18,'3'!$B$10:$D$45,3,FALSE) -> 301.5 | F18: =VLOOKUP($A18,'4'!$B$10:$D$45,3,FALSE) -> 308.6 | G18: =VLOOKUP($A18,'5'!$B$10:$D$45,3,FALSE) -> 309.7 | H18: =VLOOKUP($A18,'6'!$B$10:$D$45,3,FALSE) -> 306.0 | I18: =K18/J18 -> 306.0 | J18: =VLOOKUP(A18,Formelhilfe!$A$9:$H$44,8,FALSE) -> 6.0 | K18: =SUM(C18:H18) -> 1,835.8 | L18: =VLOOKUP($A18,'7'!$B$10:$D$45,3,FALSE) -> 304.1 | M18: =VLOOKUP($A18,'8'!$B$10:$D$45,3,FALSE) -> 308.9 | N18: =VLOOKUP($A18,'9'!$B$10:$D$45,3,FALSE) -> 302.7 | O18: =VLOOKUP($A18,'10'!$B$10:$D$45,3,FALSE) -> 304.5 | P18: =VLOOKUP($A18,'11'!$B$10:$D$45,3,FALSE) -> 303.8 | Q18: =VLOOKUP($A18,'12'!$B$10:$D$45,3,FALSE) -> 0.0 | R18: =T18/S18 -> 304.8 | S18: =VLOOKUP(A18,Formelhilfe!$A$9:$O$44,15,FALSE) -> 5.0 | T18: =SUM(L18:Q18) -> 1,524.0 | U18: =W18/V18 -> 305.4 | V18: =VLOOKUP(A18,Formelhilfe!$A$9:$P$44,16,FALSE) -> 11.0 | W18: =SUM(C18:H18,L18:Q18) -> 3,359.8
A19: Josef Langen | B19: =VLOOKUP(A19,'Wettkampf 1'!$B$10:$C$45,2,FALSE) -> Spahnharrenstätte II | C19: =VLOOKUP(A19,'Wettkampf 1'!$B$10:$D$45,3,FALSE) -> 306.0 | D19: =VLOOKUP($A19,'2'!$B$10:$D$45,3,FALSE) -> 304.9 | E19: =VLOOKUP($A19,'3'!$B$10:$D$45,3,FALSE) -> 304.9 | F19: =VLOOKUP($A19,'4'!$B$10:$D$45,3,FALSE) -> 300.3 | G19: =VLOOKUP($A19,'5'!$B$10:$D$45,3,FALSE) -> 302.2 | H19: =VLOOKUP($A19,'6'!$B$10:$D$45,3,FALSE) -> 308.2 | I19: =K19/J19 -> 304.4 | J19: =VLOOKUP(A19,Formelhilfe!$A$9:$H$44,8,FALSE) -> 6.0 | K19: =SUM(C19:H19) -> 1,826.5 | L19: =VLOOKUP($A19,'7'!$B$10:$D$45,3,FALSE) -> 302.9 | M19: =VLOOKUP($A19,'8'!$B$10:$D$45,3,FALSE) -> 306.7 | N19: =VLOOKUP($A19,'9'!$B$10:$D$45,3,FALSE) -> 305.8 | O19: =VLOOKUP($A19,'10'!$B$10:$D$45,3,FALSE) -> 307.9 | P19: =VLOOKUP($A19,'11'!$B$10:$D$45,3,FALSE) -> 304.9 | Q19: =VLOOKUP($A19,'12'!$B$10:$D$45,3,FALSE) -> 0.0 | R19: =T19/S19 -> 305.6 | S19: =VLOOKUP(A19,Formelhilfe!$A$9:$O$44,15,FALSE) -> 5.0 | T19: =SUM(L19:Q19) -> 1,528.2 | U19: =W19/V19 -> 305.0 | V19: =VLOOKUP(A19,Formelhilfe!$A$9:$P$44,16,FALSE) -> 11.0 | W19: =SUM(C19:H19,L19:Q19) -> 3,354.7
A20: Andreas Lindemann | B20: =VLOOKUP(A20,'Wettkampf 1'!$B$10:$C$45,2,FALSE) -> Esterwegen II | C20: =VLOOKUP(A20,'Wettkampf 1'!$B$10:$D$45,3,FALSE) -> 301.3 | D20: =VLOOKUP($A20,'2'!$B$10:$D$45,3,FALSE) -> 308.0 | E20: =VLOOKUP($A20,'3'!$B$10:$D$45,3,FALSE) -> 312.0 | F20: =VLOOKUP($A20,'4'!$B$10:$D$45,3,FALSE) -> 301.7 | G20: =VLOOKUP($A20,'5'!$B$10:$D$45,3,FALSE) -> 282.1 | H20: =VLOOKUP($A20,'6'!$B$10:$D$45,3,FALSE) -> 304.9 | I20: =K20/J20 -> 301.7 | J20: =VLOOKUP(A20,Formelhilfe!$A$9:$H$44,8,FALSE) -> 6.0 | K20: =SUM(C20:H20) -> 1,810.0 | L20: =VLOOKUP($A20,'7'!$B$10:$D$45,3,FALSE) -> 303.0 | M20: =VLOOKUP($A20,'8'!$B$10:$D$45,3,FALSE) -> 307.8 | N20: =VLOOKUP($A20,'9'!$B$10:$D$45,3,FALSE) -> 305.5 | O20: =VLOOKUP($A20,'10'!$B$10:$D$45,3,FALSE) -> 302.7 | P20: =VLOOKUP($A20,'11'!$B$10:$D$45,3,FALSE) -> 305.8 | Q20: =VLOOKUP($A20,'12'!$B$10:$D$45,3,FALSE) -> 0.0 | R20: =T20/S20 -> 305.0 | S20: =VLOOKUP(A20,Formelhilfe!$A$9:$O$44,15,FALSE) -> 5.0 | T20: =SUM(L20:Q20) -> 1,524.8 | U20: =W20/V20 -> 303.2 | V20: =VLOOKUP(A20,Formelhilfe!$A$9:$P$44,16,FALSE) -> 11.0 | W20: =SUM(C20:H20,L20:Q20) -> 3,334.8
A21: Rudi Fromme | B21: =VLOOKUP(A21,'Wettkampf 1'!$B$10:$C$45,2,FALSE) -> Neubörger II | C21: =VLOOKUP(A21,'Wettkampf 1'!$B$10:$D$45,3,FALSE) -> 303.4 | D21: =VLOOKUP($A21,'2'!$B$10:$D$45,3,FALSE) -> 298.5 | E21: =VLOOKUP($A21,'3'!$B$10:$D$45,3,FALSE) -> 306.3 | F21: =VLOOKUP($A21,'4'!$B$10:$D$45,3,FALSE) -> 302.3 | G21: =VLOOKUP($A21,'5'!$B$10:$D$45,3,FALSE) -> 301.4 | H21: =VLOOKUP($A21,'6'!$B$10:$D$45,3,FALSE) -> 305.4 | I21: =K21/J21 -> 302.9 | J21: =VLOOKUP(A21,Formelhilfe!$A$9:$H$44,8,FALSE) -> 6.0 | K21: =SUM(C21:H21) -> 1,817.3 | L21: =VLOOKUP($A21,'7'!$B$10:$D$45,3,FALSE) -> 304.7 | M21: =VLOOKUP($A21,'8'!$B$10:$D$45,3,FALSE) -> 303.2 | N21: =VLOOKUP($A21,'9'!$B$10:$D$45,3,FALSE) -> 300.8 | O21: =VLOOKUP($A21,'10'!$B$10:$D$45,3,FALSE) -> 304.2 | P21: =VLOOKUP($A21,'11'!$B$10:$D$45,3,FALSE) -> 303.8 | Q21: =VLOOKUP($A21,'12'!$B$10:$D$45,3,FALSE) -> 0.0 | R21: =T21/S21 -> 303.3 | S21: =VLOOKUP(A21,Formelhilfe!$A$9:$O$44,15,FALSE) -> 5.0 | T21: =SUM(L21:Q21) -> 1,516.7 | U21: =W21/V21 -> 303.1 | V21: =VLOOKUP(A21,Formelhilfe!$A$9:$P$44,16,FALSE) -> 11.0 | W21: =SUM(C21:H21,L21:Q21) -> 3,334.0
A22: Oliver Reinelt | B22: =VLOOKUP(A22,'Wettkampf 1'!$B$10:$C$45,2,FALSE) -> Lahn V | C22: =VLOOKUP(A22,'Wettkampf 1'!$B$10:$D$45,3,FALSE) -> 294.1 | D22: =VLOOKUP($A22,'2'!$B$10:$D$45,3,FALSE) -> 299.7 | E22: =VLOOKUP($A22,'3'!$B$10:$D$45,3,FALSE) -> 293.1 | F22: =VLOOKUP($A22,'4'!$B$10:$D$45,3,FALSE) -> 298.5 | G22: =VLOOKUP($A22,'5'!$B$10:$D$45,3,FALSE) -> 303.3 | H22: =VLOOKUP($A22,'6'!$B$10:$D$45,3,FALSE) -> 294.5 | I22: =K22/J22 -> 297.2 | J22: =VLOOKUP(A22,Formelhilfe!$A$9:$H$44,8,FALSE) -> 6.0 | K22: =SUM(C22:H22) -> 1,783.2 | L22: =VLOOKUP($A22,'7'!$B$10:$D$45,3,FALSE) -> 301.4 | M22: =VLOOKUP($A22,'8'!$B$10:$D$45,3,FALSE) -> 304.4 | N22: =VLOOKUP($A22,'9'!$B$10:$D$45,3,FALSE) -> 305.8 | O22: =VLOOKUP($A22,'10'!$B$10:$D$45,3,FALSE) -> 299.0 | P22: =VLOOKUP($A22,'11'!$B$10:$D$45,3,FALSE) -> 304.3 | Q22: =VLOOKUP($A22,'12'!$B$10:$D$45,3,FALSE) -> 0.0 | R22: =T22/S22 -> 303.0 | S22: =VLOOKUP(A22,Formelhilfe!$A$9:$O$44,15,FALSE) -> 5.0 | T22: =SUM(L22:Q22) -> 1,514.9 | U22: =W22/V22 -> 299.8 | V22: =VLOOKUP(A22,Formelhilfe!$A$9:$P$44,16,FALSE) -> 11.0 | W22: =SUM(C22:H22,L22:Q22) -> 3,298.1
A23: Dirk Meyer | B23: =VLOOKUP(A23,'Wettkampf 1'!$B$10:$C$45,2,FALSE) -> Spahnharrenstätte III | C23: =VLOOKUP(A23,'Wettkampf 1'!$B$10:$D$45,3,FALSE) -> 308.6 | D23: =VLOOKUP($A23,'2'!$B$10:$D$45,3,FALSE) -> 311.2 | E23: =VLOOKUP($A23,'3'!$B$10:$D$45,3,FALSE) -> 310.4 | F23: =VLOOKUP($A23,'4'!$B$10:$D$45,3,FALSE) -> 311.9 | G23: =VLOOKUP($A23,'5'!$B$10:$D$45,3,FALSE) -> 312.8 | H23: =VLOOKUP($A23,'6'!$B$10:$D$45,3,FALSE) -> 312.3 | I23: =K23/J23 -> 311.2 | J23: =VLOOKUP(A23,Formelhilfe!$A$9:$H$44,8,FALSE) -> 6.0 | K23: =SUM(C23:H23) -> 1,867.2 | L23: =VLOOKUP($A23,'7'!$B$10:$D$45,3,FALSE) -> 0.0 | M23: =VLOOKUP($A23,'8'!$B$10:$D$45,3,FALSE) -> 311.6 | N23: =VLOOKUP($A23,'9'!$B$10:$D$45,3,FALSE) -> 312.7 | O23: =VLOOKUP($A23,'10'!$B$10:$D$45,3,FALSE) -> 312.7 | P23: =VLOOKUP($A23,'11'!$B$10:$D$45,3,FALSE) -> 311.4 | Q23: =VLOOKUP($A23,'12'!$B$10:$D$45,3,FALSE) -> 0.0 | R23: =T23/S23 -> 312.1 | S23: =VLOOKUP(A23,Formelhilfe!$A$9:$O$44,15,FALSE) -> 4.0 | T23: =SUM(L23:Q23) -> 1,248.4 | U23: =W23/V23 -> 311.6 | V23: =VLOOKUP(A23,Formelhilfe!$A$9:$P$44,16,FALSE) -> 10.0 | W23: =SUM(C23:H23,L23:Q23) -> 3,115.6
A24: Simon Schukenbrock | B24: =VLOOKUP(A24,'Wettkampf 1'!$B$10:$C$45,2,FALSE) -> Lahn V | C24: =VLOOKUP(A24,'Wettkampf 1'!$B$10:$D$45,3,FALSE) -> 309.4 | D24: =VLOOKUP($A24,'2'!$B$10:$D$45,3,FALSE) -> 308.5 | E24: =VLOOKUP($A24,'3'!$B$10:$D$45,3,FALSE) -> 309.1 | F24: =VLOOKUP($A24,'4'!$B$10:$D$45,3,FALSE) -> 308.2 | G24: =VLOOKUP($A24,'5'!$B$10:$D$45,3,FALSE) -> 312.3 | H24: =VLOOKUP($A24,'6'!$B$10:$D$45,3,FALSE) -> 309.9 | I24: =K24/J24 -> 309.6 | J24: =VLOOKUP(A24,Formelhilfe!$A$9:$H$44,8,FALSE) -> 6.0 | K24: =SUM(C24:H24) -> 1,857.4 | L24: =VLOOKUP($A24,'7'!$B$10:$D$45,3,FALSE) -> 310.2 | M24: =VLOOKUP($A24,'8'!$B$10:$D$45,3,FALSE) -> 301.9 | N24: =VLOOKUP($A24,'9'!$B$10:$D$45,3,FALSE) -> 311.9 | O24: =VLOOKUP($A24,'10'!$B$10:$D$45,3,FALSE) -> 308.4 | P24: =VLOOKUP($A24,'11'!$B$10:$D$45,3,FALSE) -> 0.0 | Q24: =VLOOKUP($A24,'12'!$B$10:$D$45,3,FALSE) -> 0.0 | R24: =T24/S24 -> 308.1 | S24: =VLOOKUP(A24,Formelhilfe!$A$9:$O$44,15,FALSE) -> 4.0 | T24: =SUM(L24:Q24) -> 1,232.4 | U24: =W24/V24 -> 309.0 | V24: =VLOOKUP(A24,Formelhilfe!$A$9:$P$44,16,FALSE) -> 10.0 | W24: =SUM(C24:H24,L24:Q24) -> 3,089.8
A25: Stefan Burlager | B25: =VLOOKUP(A25,'Wettkampf 1'!$B$10:$C$45,2,FALSE) -> Esterwegen II | C25: =VLOOKUP(A25,'Wettkampf 1'!$B$10:$D$45,3,FALSE) -> 304.3 | D25: =VLOOKUP($A25,'2'!$B$10:$D$45,3,FALSE) -> 301.4 | E25: =VLOOKUP($A25,'3'!$B$10:$D$45,3,FALSE) -> 296.8 | F25: =VLOOKUP($A25,'4'!$B$10:$D$45,3,FALSE) -> 0.0 | G25: =VLOOKUP($A25,'5'!$B$10:$D$45,3,FALSE) -> 306.5 | H25: =VLOOKUP($A25,'6'!$B$10:$D$45,3,FALSE) -> 310.4 | I25: =K25/J25 -> 303.9 | J25: =VLOOKUP(A25,Formelhilfe!$A$9:$H$44,8,FALSE) -> 5.0 | K25: =SUM(C25:H25) -> 1,519.4 | L25: =VLOOKUP($A25,'7'!$B$10:$D$45,3,FALSE) -> 304.6 | M25: =VLOOKUP($A25,'8'!$B$10:$D$45,3,FALSE) -> 303.5 | N25: =VLOOKUP($A25,'9'!$B$10:$D$45,3,FALSE) -> 306.8 | O25: =VLOOKUP($A25,'10'!$B$10:$D$45,3,FALSE) -> 306.5 | P25: =VLOOKUP($A25,'11'!$B$10:$D$45,3,FALSE) -> 306.8 | Q25: =VLOOKUP($A25,'12'!$B$10:$D$45,3,FALSE) -> 0.0 | R25: =T25/S25 -> 305.6 | S25: =VLOOKUP(A25,Formelhilfe!$A$9:$O$44,15,FALSE) -> 5.0 | T25: =SUM(L25:Q25) -> 1,528.2 | U25: =W25/V25 -> 304.8 | V25: =VLOOKUP(A25,Formelhilfe!$A$9:$P$44,16,FALSE) -> 10.0 | W25: =SUM(C25:H25,L25:Q25) -> 3,047.6
A26: Rainer Wielenberg | B26: =VLOOKUP(A26,'Wettkampf 1'!$B$10:$C$45,2,FALSE) -> Esterwegen II | C26: =VLOOKUP(A26,'Wettkampf 1'!$B$10:$D$45,3,FALSE) -> 305.9 | D26: =VLOOKUP($A26,'2'!$B$10:$D$45,3,FALSE) -> 306.6 | E26: =VLOOKUP($A26,'3'!$B$10:$D$45,3,FALSE) -> 306.4 | F26: =VLOOKUP($A26,'4'!$B$10:$D$45,3,FALSE) -> 302.9 | G26: =VLOOKUP($A26,'5'!$B$10:$D$45,3,FALSE) -> 302.9 | H26: =VLOOKUP($A26,'6'!$B$10:$D$45,3,FALSE) -> 299.6 | I26: =K26/J26 -> 304.1 | J26: =VLOOKUP(A26,Formelhilfe!$A$9:$H$44,8,FALSE) -> 6.0 | K26: =SUM(C26:H26) -> 1,824.3 | L26: =VLOOKUP($A26,'7'!$B$10:$D$45,3,FALSE) -> 0.0 | M26: =VLOOKUP($A26,'8'!$B$10:$D$45,3,FALSE) -> 298.3 | N26: =VLOOKUP($A26,'9'!$B$10:$D$45,3,FALSE) -> 303.5 | O26: =VLOOKUP($A26,'10'!$B$10:$D$45,3,FALSE) -> 299.5 | P26: =VLOOKUP($A26,'11'!$B$10:$D$45,3,FALSE) -> 0.0 | Q26: =VLOOKUP($A26,'12'!$B$10:$D$45,3,FALSE) -> 0.0 | R26: =T26/S26 -> 300.4 | S26: =VLOOKUP(A26,Formelhilfe!$A$9:$O$44,15,FALSE) -> 3.0 | T26: =SUM(L26:Q26) -> 901.3 | U26: =W26/V26 -> 302.8 | V26: =VLOOKUP(A26,Formelhilfe!$A$9:$P$44,16,FALSE) -> 9.0 | W26: =SUM(C26:H26,L26:Q26) -> 2,725.6
A27: Johannes Gebken | B27: =VLOOKUP(A27,'Wettkampf 1'!$B$10:$C$45,2,FALSE) -> Esterwegen II | C27: =VLOOKUP(A27,'Wettkampf 1'!$B$10:$D$45,3,FALSE) -> 299.9 | D27: =VLOOKUP($A27,'2'!$B$10:$D$45,3,FALSE) -> 291.1 | E27: =VLOOKUP($A27,'3'!$B$10:$D$45,3,FALSE) -> 290.6 | F27: =VLOOKUP($A27,'4'!$B$10:$D$45,3,FALSE) -> 0.0 | G27: =VLOOKUP($A27,'5'!$B$10:$D$45,3,FALSE) -> 0.0 | H27: =VLOOKUP($A27,'6'!$B$10:$D$45,3,FALSE) -> 0.0 | I27: =K27/J27 -> 293.9 | J27: =VLOOKUP(A27,Formelhilfe!$A$9:$H$44,8,FALSE) -> 3.0 | K27: =SUM(C27:H27) -> 881.6 | L27: =VLOOKUP($A27,'7'!$B$10:$D$45,3,FALSE) -> 0.0 | M27: =VLOOKUP($A27,'8'!$B$10:$D$45,3,FALSE) -> 0.0 | N27: =VLOOKUP($A27,'9'!$B$10:$D$45,3,FALSE) -> 0.0 | O27: =VLOOKUP($A27,'10'!$B$10:$D$45,3,FALSE) -> 0.0 | P27: =VLOOKUP($A27,'11'!$B$10:$D$45,3,FALSE) -> 0.0 | Q27: =VLOOKUP($A27,'12'!$B$10:$D$45,3,FALSE) -> 0.0 | R27: =T27/S27 ->  | S27: =VLOOKUP(A27,Formelhilfe!$A$9:$O$44,15,FALSE) -> 0.0 | T27: =SUM(L27:Q27) -> 0.0 | U27: =W27/V27 -> 293.9 | V27: =VLOOKUP(A27,Formelhilfe!$A$9:$P$44,16,FALSE) -> 3.0 | W27: =SUM(C27:H27,L27:Q27) -> 881.6
A28: Michael Boje | B28: =VLOOKUP(A28,'Wettkampf 1'!$B$10:$C$45,2,FALSE) -> Lahn V | C28: =VLOOKUP(A28,'Wettkampf 1'!$B$10:$D$45,3,FALSE) -> 0.0 | D28: =VLOOKUP($A28,'2'!$B$10:$D$45,3,FALSE) -> 298.7 | E28: =VLOOKUP($A28,'3'!$B$10:$D$45,3,FALSE) -> 0.0 | F28: =VLOOKUP($A28,'4'!$B$10:$D$45,3,FALSE) -> 0.0 | G28: =VLOOKUP($A28,'5'!$B$10:$D$45,3,FALSE) -> 0.0 | H28: =VLOOKUP($A28,'6'!$B$10:$D$45,3,FALSE) -> 0.0 | I28: =K28/J28 -> 298.7 | J28: =VLOOKUP(A28,Formelhilfe!$A$9:$H$44,8,FALSE) -> 1.0 | K28: =SUM(C28:H28) -> 298.7 | L28: =VLOOKUP($A28,'7'!$B$10:$D$45,3,FALSE) -> 0.0 | M28: =VLOOKUP($A28,'8'!$B$10:$D$45,3,FALSE) -> 0.0 | N28: =VLOOKUP($A28,'9'!$B$10:$D$45,3,FALSE) -> 0.0 | O28: =VLOOKUP($A28,'10'!$B$10:$D$45,3,FALSE) -> 0.0 | P28: =VLOOKUP($A28,'11'!$B$10:$D$45,3,FALSE) -> 0.0 | Q28: =VLOOKUP($A28,'12'!$B$10:$D$45,3,FALSE) -> 0.0 | R28: =T28/S28 ->  | S28: =VLOOKUP(A28,Formelhilfe!$A$9:$O$44,15,FALSE) -> 0.0 | T28: =SUM(L28:Q28) -> 0.0 | U28: =W28/V28 -> 298.7 | V28: =VLOOKUP(A28,Formelhilfe!$A$9:$P$44,16,FALSE) -> 1.0 | W28: =SUM(C28:H28,L28:Q28) -> 298.7
A29: Jan-Niklas Lindemann | B29: =VLOOKUP(A29,'Wettkampf 1'!$B$10:$C$45,2,FALSE) -> Esterwegen II | C29: =VLOOKUP(A29,'Wettkampf 1'!$B$10:$D$45,3,FALSE) -> 0.0 | D29: =VLOOKUP($A29,'2'!$B$10:$D$45,3,FALSE) -> 0.0 | E29: =VLOOKUP($A29,'3'!$B$10:$D$45,3,FALSE) -> 0.0 | F29: =VLOOKUP($A29,'4'!$B$10:$D$45,3,FALSE) -> 0.0 | G29: =VLOOKUP($A29,'5'!$B$10:$D$45,3,FALSE) -> 0.0 | H29: =VLOOKUP($A29,'6'!$B$10:$D$45,3,FALSE) -> 0.0 | I29: =K29/J29 ->  | J29: =VLOOKUP(A29,Formelhilfe!$A$9:$H$44,8,FALSE) -> 0.0 | K29: =SUM(C29:H29) -> 0.0 | L29: =VLOOKUP($A29,'7'!$B$10:$D$45,3,FALSE) -> 0.0 | M29: =VLOOKUP($A29,'8'!$B$10:$D$45,3,FALSE) -> 0.0 | N29: =VLOOKUP($A29,'9'!$B$10:$D$45,3,FALSE) -> 0.0 | O29: =VLOOKUP($A29,'10'!$B$10:$D$45,3,FALSE) -> 0.0 | P29: =VLOOKUP($A29,'11'!$B$10:$D$45,3,FALSE) -> 0.0 | Q29: =VLOOKUP($A29,'12'!$B$10:$D$45,3,FALSE) -> 0.0 | R29: =T29/S29 ->  | S29: =VLOOKUP(A29,Formelhilfe!$A$9:$O$44,15,FALSE) -> 0.0 | T29: =SUM(L29:Q29) -> 0.0 | U29: =W29/V29 ->  | V29: =VLOOKUP(A29,Formelhilfe!$A$9:$P$44,16,FALSE) -> 0.0 | W29: =SUM(C29:H29,L29:Q29) -> 0.0
A30: Schütze 29 | B30: =VLOOKUP(A30,'Wettkampf 1'!$B$10:$C$45,2,FALSE) -> 0.0 | C30: =VLOOKUP(A30,'Wettkampf 1'!$B$10:$D$45,3,FALSE) -> 0.0 | D30: =VLOOKUP($A30,'2'!$B$10:$D$45,3,FALSE) -> 0.0 | E30: =VLOOKUP($A30,'3'!$B$10:$D$45,3,FALSE) -> 0.0 | F30: =VLOOKUP($A30,'4'!$B$10:$D$45,3,FALSE) -> 0.0 | G30: =VLOOKUP($A30,'5'!$B$10:$D$45,3,FALSE) -> 0.0 | H30: =VLOOKUP($A30,'6'!$B$10:$D$45,3,FALSE) -> 0.0 | I30: =K30/J30 ->  | J30: =VLOOKUP(A30,Formelhilfe!$A$9:$H$44,8,FALSE) -> 0.0 | K30: =SUM(C30:H30) -> 0.0 | L30: =VLOOKUP($A30,'7'!$B$10:$D$45,3,FALSE) -> 0.0 | M30: =VLOOKUP($A30,'8'!$B$10:$D$45,3,FALSE) -> 0.0 | N30: =VLOOKUP($A30,'9'!$B$10:$D$45,3,FALSE) -> 0.0 | O30: =VLOOKUP($A30,'10'!$B$10:$D$45,3,FALSE) -> 0.0 | P30: =VLOOKUP($A30,'11'!$B$10:$D$45,3,FALSE) -> 0.0 | Q30: =VLOOKUP($A30,'12'!$B$10:$D$45,3,FALSE) -> 0.0 | R30: =T30/S30 ->  | S30: =VLOOKUP(A30,Formelhilfe!$A$9:$O$44,15,FALSE) -> 0.0 | T30: =SUM(L30:Q30) -> 0.0 | U30: =W30/V30 ->  | V30: =VLOOKUP(A30,Formelhilfe!$A$9:$P$44,16,FALSE) -> 0.0 | W30: =SUM(C30:H30,L30:Q30) -> 0.0
A31: Schütze 30 | B31: =VLOOKUP(A31,'Wettkampf 1'!$B$10:$C$45,2,FALSE) -> 0.0 | C31: =VLOOKUP(A31,'Wettkampf 1'!$B$10:$D$45,3,FALSE) -> 0.0 | D31: =VLOOKUP($A31,'2'!$B$10:$D$45,3,FALSE) -> 0.0 | E31: =VLOOKUP($A31,'3'!$B$10:$D$45,3,FALSE) -> 0.0 | F31: =VLOOKUP($A31,'4'!$B$10:$D$45,3,FALSE) -> 0.0 | G31: =VLOOKUP($A31,'5'!$B$10:$D$45,3,FALSE) -> 0.0 | H31: =VLOOKUP($A31,'6'!$B$10:$D$45,3,FALSE) -> 0.0 | I31: =K31/J31 ->  | J31: =VLOOKUP(A31,Formelhilfe!$A$9:$H$44,8,FALSE) -> 0.0 | K31: =SUM(C31:H31) -> 0.0 | L31: =VLOOKUP($A31,'7'!$B$10:$D$45,3,FALSE) -> 0.0 | M31: =VLOOKUP($A31,'8'!$B$10:$D$45,3,FALSE) -> 0.0 | N31: =VLOOKUP($A31,'9'!$B$10:$D$45,3,FALSE) -> 0.0 | O31: =VLOOKUP($A31,'10'!$B$10:$D$45,3,FALSE) -> 0.0 | P31: =VLOOKUP($A31,'11'!$B$10:$D$45,3,FALSE) -> 0.0 | Q31: =VLOOKUP($A31,'12'!$B$10:$D$45,3,FALSE) -> 0.0 | R31: =T31/S31 ->  | S31: =VLOOKUP(A31,Formelhilfe!$A$9:$O$44,15,FALSE) -> 0.0 | T31: =SUM(L31:Q31) -> 0.0 | U31: =W31/V31 ->  | V31: =VLOOKUP(A31,Formelhilfe!$A$9:$P$44,16,FALSE) -> 0.0 | W31: =SUM(C31:H31,L31:Q31) -> 0.0
A32: Schütze 31 | B32: =VLOOKUP(A32,'Wettkampf 1'!$B$10:$C$45,2,FALSE) -> 0.0 | C32: =VLOOKUP(A32,'Wettkampf 1'!$B$10:$D$45,3,FALSE) -> 0.0 | D32: =VLOOKUP($A32,'2'!$B$10:$D$45,3,FALSE) -> 0.0 | E32: =VLOOKUP($A32,'3'!$B$10:$D$45,3,FALSE) -> 0.0 | F32: =VLOOKUP($A32,'4'!$B$10:$D$45,3,FALSE) -> 0.0 | G32: =VLOOKUP($A32,'5'!$B$10:$D$45,3,FALSE) -> 0.0 | H32: =VLOOKUP($A32,'6'!$B$10:$D$45,3,FALSE) -> 0.0 | I32: =K32/J32 ->  | J32: =VLOOKUP(A32,Formelhilfe!$A$9:$H$44,8,FALSE) -> 0.0 | K32: =SUM(C32:H32) -> 0.0 | L32: =VLOOKUP($A32,'7'!$B$10:$D$45,3,FALSE) -> 0.0 | M32: =VLOOKUP($A32,'8'!$B$10:$D$45,3,FALSE) -> 0.0 | N32: =VLOOKUP($A32,'9'!$B$10:$D$45,3,FALSE) -> 0.0 | O32: =VLOOKUP($A32,'10'!$B$10:$D$45,3,FALSE) -> 0.0 | P32: =VLOOKUP($A32,'11'!$B$10:$D$45,3,FALSE) -> 0.0 | Q32: =VLOOKUP($A32,'12'!$B$10:$D$45,3,FALSE) -> 0.0 | R32: =T32/S32 ->  | S32: =VLOOKUP(A32,Formelhilfe!$A$9:$O$44,15,FALSE) -> 0.0 | T32: =SUM(L32:Q32) -> 0.0 | U32: =W32/V32 ->  | V32: =VLOOKUP(A32,Formelhilfe!$A$9:$P$44,16,FALSE) -> 0.0 | W32: =SUM(C32:H32,L32:Q32) -> 0.0
A33: Schütze 32 | B33: =VLOOKUP(A33,'Wettkampf 1'!$B$10:$C$45,2,FALSE) -> 0.0 | C33: =VLOOKUP(A33,'Wettkampf 1'!$B$10:$D$45,3,FALSE) -> 0.0 | D33: =VLOOKUP($A33,'2'!$B$10:$D$45,3,FALSE) -> 0.0 | E33: =VLOOKUP($A33,'3'!$B$10:$D$45,3,FALSE) -> 0.0 | F33: =VLOOKUP($A33,'4'!$B$10:$D$45,3,FALSE) -> 0.0 | G33: =VLOOKUP($A33,'5'!$B$10:$D$45,3,FALSE) -> 0.0 | H33: =VLOOKUP($A33,'6'!$B$10:$D$45,3,FALSE) -> 0.0 | I33: =K33/J33 ->  | J33: =VLOOKUP(A33,Formelhilfe!$A$9:$H$44,8,FALSE) -> 0.0 | K33: =SUM(C33:H33) -> 0.0 | L33: =VLOOKUP($A33,'7'!$B$10:$D$45,3,FALSE) -> 0.0 | M33: =VLOOKUP($A33,'8'!$B$10:$D$45,3,FALSE) -> 0.0 | N33: =VLOOKUP($A33,'9'!$B$10:$D$45,3,FALSE) -> 0.0 | O33: =VLOOKUP($A33,'10'!$B$10:$D$45,3,FALSE) -> 0.0 | P33: =VLOOKUP($A33,'11'!$B$10:$D$45,3,FALSE) -> 0.0 | Q33: =VLOOKUP($A33,'12'!$B$10:$D$45,3,FALSE) -> 0.0 | R33: =T33/S33 ->  | S33: =VLOOKUP(A33,Formelhilfe!$A$9:$O$44,15,FALSE) -> 0.0 | T33: =SUM(L33:Q33) -> 0.0 | U33: =W33/V33 ->  | V33: =VLOOKUP(A33,Formelhilfe!$A$9:$P$44,16,FALSE) -> 0.0 | W33: =SUM(C33:H33,L33:Q33) -> 0.0
A34: Schütze 33 | B34: =VLOOKUP(A34,'Wettkampf 1'!$B$10:$C$45,2,FALSE) -> 0.0 | C34: =VLOOKUP(A34,'Wettkampf 1'!$B$10:$D$45,3,FALSE) -> 0.0 | D34: =VLOOKUP($A34,'2'!$B$10:$D$45,3,FALSE) -> 0.0 | E34: =VLOOKUP($A34,'3'!$B$10:$D$45,3,FALSE) -> 0.0 | F34: =VLOOKUP($A34,'4'!$B$10:$D$45,3,FALSE) -> 0.0 | G34: =VLOOKUP($A34,'5'!$B$10:$D$45,3,FALSE) -> 0.0 | H34: =VLOOKUP($A34,'6'!$B$10:$D$45,3,FALSE) -> 0.0 | I34: =K34/J34 ->  | J34: =VLOOKUP(A34,Formelhilfe!$A$9:$H$44,8,FALSE) -> 0.0 | K34: =SUM(C34:H34) -> 0.0 | L34: =VLOOKUP($A34,'7'!$B$10:$D$45,3,FALSE) -> 0.0 | M34: =VLOOKUP($A34,'8'!$B$10:$D$45,3,FALSE) -> 0.0 | N34: =VLOOKUP($A34,'9'!$B$10:$D$45,3,FALSE) -> 0.0 | O34: =VLOOKUP($A34,'10'!$B$10:$D$45,3,FALSE) -> 0.0 | P34: =VLOOKUP($A34,'11'!$B$10:$D$45,3,FALSE) -> 0.0 | Q34: =VLOOKUP($A34,'12'!$B$10:$D$45,3,FALSE) -> 0.0 | R34: =T34/S34 ->  | S34: =VLOOKUP(A34,Formelhilfe!$A$9:$O$44,15,FALSE) -> 0.0 | T34: =SUM(L34:Q34) -> 0.0 | U34: =W34/V34 ->  | V34: =VLOOKUP(A34,Formelhilfe!$A$9:$P$44,16,FALSE) -> 0.0 | W34: =SUM(C34:H34,L34:Q34) -> 0.0
A35: Schütze 34 | B35: =VLOOKUP(A35,'Wettkampf 1'!$B$10:$C$45,2,FALSE) -> 0.0 | C35: =VLOOKUP(A35,'Wettkampf 1'!$B$10:$D$45,3,FALSE) -> 0.0 | D35: =VLOOKUP($A35,'2'!$B$10:$D$45,3,FALSE) -> 0.0 | E35: =VLOOKUP($A35,'3'!$B$10:$D$45,3,FALSE) -> 0.0 | F35: =VLOOKUP($A35,'4'!$B$10:$D$45,3,FALSE) -> 0.0 | G35: =VLOOKUP($A35,'5'!$B$10:$D$45,3,FALSE) -> 0.0 | H35: =VLOOKUP($A35,'6'!$B$10:$D$45,3,FALSE) -> 0.0 | I35: =K35/J35 ->  | J35: =VLOOKUP(A35,Formelhilfe!$A$9:$H$44,8,FALSE) -> 0.0 | K35: =SUM(C35:H35) -> 0.0 | L35: =VLOOKUP($A35,'7'!$B$10:$D$45,3,FALSE) -> 0.0 | M35: =VLOOKUP($A35,'8'!$B$10:$D$45,3,FALSE) -> 0.0 | N35: =VLOOKUP($A35,'9'!$B$10:$D$45,3,FALSE) -> 0.0 | O35: =VLOOKUP($A35,'10'!$B$10:$D$45,3,FALSE) -> 0.0 | P35: =VLOOKUP($A35,'11'!$B$10:$D$45,3,FALSE) -> 0.0 | Q35: =VLOOKUP($A35,'12'!$B$10:$D$45,3,FALSE) -> 0.0 | R35: =T35/S35 ->  | S35: =VLOOKUP(A35,Formelhilfe!$A$9:$O$44,15,FALSE) -> 0.0 | T35: =SUM(L35:Q35) -> 0.0 | U35: =W35/V35 ->  | V35: =VLOOKUP(A35,Formelhilfe!$A$9:$P$44,16,FALSE) -> 0.0 | W35: =SUM(C35:H35,L35:Q35) -> 0.0
A36: Schütze 35 | B36: =VLOOKUP(A36,'Wettkampf 1'!$B$10:$C$45,2,FALSE) -> 0.0 | C36: =VLOOKUP(A36,'Wettkampf 1'!$B$10:$D$45,3,FALSE) -> 0.0 | D36: =VLOOKUP($A36,'2'!$B$10:$D$45,3,FALSE) -> 0.0 | E36: =VLOOKUP($A36,'3'!$B$10:$D$45,3,FALSE) -> 0.0 | F36: =VLOOKUP($A36,'4'!$B$10:$D$45,3,FALSE) -> 0.0 | G36: =VLOOKUP($A36,'5'!$B$10:$D$45,3,FALSE) -> 0.0 | H36: =VLOOKUP($A36,'6'!$B$10:$D$45,3,FALSE) -> 0.0 | I36: =K36/J36 ->  | J36: =VLOOKUP(A36,Formelhilfe!$A$9:$H$44,8,FALSE) -> 0.0 | K36: =SUM(C36:H36) -> 0.0 | L36: =VLOOKUP($A36,'7'!$B$10:$D$45,3,FALSE) -> 0.0 | M36: =VLOOKUP($A36,'8'!$B$10:$D$45,3,FALSE) -> 0.0 | N36: =VLOOKUP($A36,'9'!$B$10:$D$45,3,FALSE) -> 0.0 | O36: =VLOOKUP($A36,'10'!$B$10:$D$45,3,FALSE) -> 0.0 | P36: =VLOOKUP($A36,'11'!$B$10:$D$45,3,FALSE) -> 0.0 | Q36: =VLOOKUP($A36,'12'!$B$10:$D$45,3,FALSE) -> 0.0 | R36: =T36/S36 ->  | S36: =VLOOKUP(A36,Formelhilfe!$A$9:$O$44,15,FALSE) -> 0.0 | T36: =SUM(L36:Q36) -> 0.0 | U36: =W36/V36 ->  | V36: =VLOOKUP(A36,Formelhilfe!$A$9:$P$44,16,FALSE) -> 0.0 | W36: =SUM(C36:H36,L36:Q36) -> 0.0
A37: Schütze 36 | B37: =VLOOKUP(A37,'Wettkampf 1'!$B$10:$C$45,2,FALSE) -> 0.0 | C37: =VLOOKUP(A37,'Wettkampf 1'!$B$10:$D$45,3,FALSE) -> 0.0 | D37: =VLOOKUP($A37,'2'!$B$10:$D$45,3,FALSE) -> 0.0 | E37: =VLOOKUP($A37,'3'!$B$10:$D$45,3,FALSE) -> 0.0 | F37: =VLOOKUP($A37,'4'!$B$10:$D$45,3,FALSE) -> 0.0 | G37: =VLOOKUP($A37,'5'!$B$10:$D$45,3,FALSE) -> 0.0 | H37: =VLOOKUP($A37,'6'!$B$10:$D$45,3,FALSE) -> 0.0 | I37: =K37/J37 ->  | J37: =VLOOKUP(A37,Formelhilfe!$A$9:$H$44,8,FALSE) -> 0.0 | K37: =SUM(C37:H37) -> 0.0 | L37: =VLOOKUP($A37,'7'!$B$10:$D$45,3,FALSE) -> 0.0 | M37: =VLOOKUP($A37,'8'!$B$10:$D$45,3,FALSE) -> 0.0 | N37: =VLOOKUP($A37,'9'!$B$10:$D$45,3,FALSE) -> 0.0 | O37: =VLOOKUP($A37,'10'!$B$10:$D$45,3,FALSE) -> 0.0 | P37: =VLOOKUP($A37,'11'!$B$10:$D$45,3,FALSE) -> 0.0 | Q37: =VLOOKUP($A37,'12'!$B$10:$D$45,3,FALSE) -> 0.0 | R37: =T37/S37 ->  | S37: =VLOOKUP(A37,Formelhilfe!$A$9:$O$44,15,FALSE) -> 0.0 | T37: =SUM(L37:Q37) -> 0.0 | U37: =W37/V37 ->  | V37: =VLOOKUP(A37,Formelhilfe!$A$9:$P$44,16,FALSE) -> 0.0 | W37: =SUM(C37:H37,L37:Q37) -> 0.0

Sheet Formelhilfe (hidden)
B1: 1 | C1: 2 | D1: 3 | E1: 4 | F1: 5 | G1: 6 | H1: Hinrunde Schnitt | I1: 7 | J1: 8 | K1: 9 | L1: 10 | M1: 11 | N1: 12 | O1: Rückrunde Schnitt | P1: Gesamt Schnitt | S1: Kreisoberliga | T1: Schützen | U1: 2019/2020
A2: ='Wettkampf 1'!B2 -> Spahnharrenstätte III | B2: =IF('Wettkampf 1'!D2>0,1,0) -> 1 | C2: =IF('2'!$D2>0,1,0) -> 1 | D2: =IF('3'!$D2>0,1,0) -> 1 | E2: =IF('4'!$D2>0,1,0) -> 1 | F2: =IF('5'!$D2>0,1,0) -> 1 | G2: =IF('6'!$D2>0,1,0) -> 1 | H2: =B2+C2+D2+E2+F2+G2 -> 6 | I2: =IF('7'!$D2>0,1,0) -> 1 | J2: =IF('8'!$D2>0,1,0) -> 1 | K2: =IF('9'!$D2>0,1,0) -> 1 | L2: =IF('10'!$D2>0,1,0) -> 1 | M2: =IF('11'!$D2>0,1,0) -> 1 | N2: =IF('12'!$D2>0,1,0) -> 0 | O2: =I2+J2+K2+L2+M2+N2 -> 5 | P2: =O2+H2 -> 11 | S2: 1. Kreisliga | T2: Damen | U2: 2020/2021
A3: ='Wettkampf 1'!B3 -> Esterwegen II | B3: =IF('Wettkampf 1'!D3>0,1,0) -> 1 | C3: =IF('2'!$D3>0,1,0) -> 1 | D3: =IF('3'!$D3>0,1,0) -> 1 | E3: =IF('4'!$D3>0,1,0) -> 1 | F3: =IF('5'!$D3>0,1,0) -> 1 | G3: =IF('6'!$D3>0,1,0) -> 1 | H3: 6 | I3: =IF('7'!$D3>0,1,0) -> 1 | J3: =IF('8'!$D3>0,1,0) -> 1 | K3: =IF('9'!$D3>0,1,0) -> 1 | L3: =IF('10'!$D3>0,1,0) -> 1 | M3: =IF('11'!$D3>0,1,0) -> 1 | N3: =IF('12'!$D3>0,1,0) -> 0 | O3: 5 | P3: 11 | S3: 2. Kreisliga | T3: Altersgruppe | U3: 2021/2022
A4: ='Wettkampf 1'!B4 -> Neubörger II | B4: =IF('Wettkampf 1'!D4>0,1,0) -> 1 | C4: =IF('2'!$D4>0,1,0) -> 1 | D4: =IF('3'!$D4>0,1,0) -> 1 | E4: =IF('4'!$D4>0,1,0) -> 1 | F4: =IF('5'!$D4>0,1,0) -> 1 | G4: =IF('6'!$D4>0,1,0) -> 1 | H4: 6 | I4: =IF('7'!$D4>0,1,0) -> 1 | J4: =IF('8'!$D4>0,1,0) -> 1 | K4: =IF('9'!$D4>0,1,0) -> 1 | L4: =IF('10'!$D4>0,1,0) -> 1 | M4: =IF('11'!$D4>0,1,0) -> 1 | N4: =IF('12'!$D4>0,1,0) -> 0 | O4: 5 | P4: 11 | S4: 1. Kreisklasse | T4: Senioren | U4: 2022/2023
A5: ='Wettkampf 1'!B5 -> Lahn V | B5: =IF('Wettkampf 1'!D5>0,1,0) -> 1 | C5: =IF('2'!$D5>0,1,0) -> 1 | D5: =IF('3'!$D5>0,1,0) -> 1 | E5: =IF('4'!$D5>0,1,0) -> 1 | F5: =IF('5'!$D5>0,1,0) -> 1 | G5: =IF('6'!$D5>0,1,0) -> 1 | H5: 6 | I5: =IF('7'!$D5>0,1,0) -> 1 | J5: =IF('8'!$D5>0,1,0) -> 1 | K5: =IF('9'!$D5>0,1,0) -> 1 | L5: =IF('10'!$D5>0,1,0) -> 1 | M5: =IF('11'!$D5>0,1,0) -> 1 | N5: =IF('12'!$D5>0,1,0) -> 0 | O5: 5 | P5: 11 | S5: 2. Kreisklasse | U5: 2023/2024
A6: ='Wettkampf 1'!B6 -> Spahnharrenstätte II | B6: =IF('Wettkampf 1'!D6>0,1,0) -> 1 | C6: =IF('2'!$D6>0,1,0) -> 1 | D6: =IF('3'!$D6>0,1,0) -> 1 | E6: =IF('4'!$D6>0,1,0) -> 1 | F6: =IF('5'!$D6>0,1,0) -> 1 | G6: =IF('6'!$D6>0,1,0) -> 1 | H6: 6 | I6: =IF('7'!$D6>0,1,0) -> 1 | J6: =IF('8'!$D6>0,1,0) -> 1 | K6: =IF('9'!$D6>0,1,0) -> 1 | L6: =IF('10'!$D6>0,1,0) -> 1 | M6: =IF('11'!$D6>0,1,0) -> 1 | N6: =IF('12'!$D6>0,1,0) -> 0 | O6: 5 | P6: 11 | S6: 3. Kreisklasse
A7: ='Wettkampf 1'!B7 -> Eisten II | B7: =IF('Wettkampf 1'!D7>0,1,0) -> 1 | C7: =IF('2'!$D7>0,1,0) -> 1 | D7: =IF('3'!$D7>0,1,0) -> 1 | E7: =IF('4'!$D7>0,1,0) -> 1 | F7: =IF('5'!$D7>0,1,0) -> 1 | G7: =IF('6'!$D7>0,1,0) -> 1 | H7: 6 | I7: =IF('7'!$D7>0,1,0) -> 1 | J7: =IF('8'!$D7>0,1,0) -> 1 | K7: =IF('9'!$D7>0,1,0) -> 1 | L7: =IF('10'!$D7>0,1,0) -> 1 | M7: =IF('11'!$D7>0,1,0) -> 1 | N7: =IF('12'!$D7>0,1,0) -> 0 | O7: 5 | P7: 11 | S7: 4. Kreisklasse
S8: 5. Kreisklasse
A9: Heiko Micksch | B9: =IF('Wettkampf 1'!D10>0,1,0) -> 1 | C9: =IF('2'!$D10>0,1,0) -> 1 | D9: =IF('3'!$D10>0,1,0) -> 1 | E9: =IF('4'!$D10>0,1,0) -> 1 | F9: =IF('5'!$D10>0,1,0) -> 1 | G9: =IF('6'!$D10>0,1,0) -> 1 | H9: =B9+C9+D9+E9+F9+G9 -> 6 | I9: =IF('7'!$D10>0,1,0) -> 1 | J9: =IF('8'!$D10>0,1,0) -> 1 | K9: =IF('9'!$D10>0,1,0) -> 1 | L9: =IF('10'!$D10>0,1,0) -> 1 | M9: =IF('11'!$D10>0,1,0) -> 1 | N9: =IF('12'!$D10>0,1,0) -> 0 | O9: =I9+J9+K9+L9+M9+N9 -> 5 | P9: =O9+H9 -> 11 | S9: 6. Kreisklasse
A10: Dirk Meyer | B10: =IF('Wettkampf 1'!D11>0,1,0) -> 1 | C10: =IF('2'!$D11>0,1,0) -> 1 | D10: =IF('3'!$D11>0,1,0) -> 1 | E10: =IF('4'!$D11>0,1,0) -> 1 | F10: =IF('5'!$D11>0,1,0) -> 1 | G10: =IF('6'!$D11>0,1,0) -> 1 | H10: =B10+C10+D10+E10+F10+G10 -> 6 | I10: =IF('7'!$D11>0,1,0) -> 0 | J10: =IF('8'!$D11>0,1,0) -> 1 | K10: =IF('9'!$D11>0,1,0) -> 1 | L10: =IF('10'!$D11>0,1,0) -> 1 | M10: =IF('11'!$D11>0,1,0) -> 1 | N10: =IF('12'!$D11>0,1,0) -> 0 | O10: =I10+J10+K10+L10+M10+N10 -> 4 | P10: =O10+H10 -> 10 | S10: 7. Kreisklasse
A11: Sebastian Albers | B11: =IF('Wettkampf 1'!D12>0,1,0) -> 1 | C11: =IF('2'!$D12>0,1,0) -> 1 | D11: =IF('3'!$D12>0,1,0) -> 1 | E11: =IF('4'!$D12>0,1,0) -> 1 | F11: =IF('5'!$D12>0,1,0) -> 1 | G11: =IF('6'!$D12>0,1,0) -> 1 | H11: 6 | I11: =IF('7'!$D12>0,1,0) -> 1 | J11: =IF('8'!$D12>0,1,0) -> 1 | K11: =IF('9'!$D12>0,1,0) -> 1 | L11: =IF('10'!$D12>0,1,0) -> 1 | M11: =IF('11'!$D12>0,1,0) -> 1 | N11: =IF('12'!$D12>0,1,0) -> 0 | O11: 5 | P11: 11
A12: Achim Will | B12: =IF('Wettkampf 1'!D13>0,1,0) -> 1 | C12: =IF('2'!$D13>0,1,0) -> 1 | D12: =IF('3'!$D13>0,1,0) -> 1 | E12: =IF('4'!$D13>0,1,0) -> 1 | F12: =IF('5'!$D13>0,1,0) -> 1 | G12: =IF('6'!$D13>0,1,0) -> 1 | H12: 6 | I12: =IF('7'!$D13>0,1,0) -> 1 | J12: =IF('8'!$D13>0,1,0) -> 1 | K12: =IF('9'!$D13>0,1,0) -> 1 | L12: =IF('10'!$D13>0,1,0) -> 1 | M12: =IF('11'!$D13>0,1,0) -> 1 | N12: =IF('12'!$D13>0,1,0) -> 0 | O12: 5 | P12: 11
A13: Christian Grönheim | B13: =IF('Wettkampf 1'!D14>0,1,0) -> 1 | C13: =IF('2'!$D14>0,1,0) -> 1 | D13: =IF('3'!$D14>0,1,0) -> 1 | E13: =IF('4'!$D14>0,1,0) -> 1 | F13: =IF('5'!$D14>0,1,0) -> 1 | G13: =IF('6'!$D14>0,1,0) -> 1 | H13: 6 | I13: =IF('7'!$D14>0,1,0) -> 1 | J13: =IF('8'!$D14>0,1,0) -> 1 | K13: =IF('9'!$D14>0,1,0) -> 1 | L13: =IF('10'!$D14>0,1,0) -> 1 | M13: =IF('11'!$D14>0,1,0) -> 1 | N13: =IF('12'!$D14>0,1,0) -> 0 | O13: 5 | P13: 11
A14: Dieter Hanekamp | B14: =IF('Wettkampf 1'!D15>0,1,0) -> 1 | C14: =IF('2'!$D15>0,1,0) -> 1 | D14: =IF('3'!$D15>0,1,0) -> 1 | E14: =IF('4'!$D15>0,1,0) -> 1 | F14: =IF('5'!$D15>0,1,0) -> 1 | G14: =IF('6'!$D15>0,1,0) -> 1 | H14: 6 | I14: =IF('7'!$D15>0,1,0) -> 1 | J14: =IF('8'!$D15>0,1,0) -> 1 | K14: =IF('9'!$D15>0,1,0) -> 1 | L14: =IF('10'!$D15>0,1,0) -> 1 | M14: =IF('11'!$D15>0,1,0) -> 1 | N14: =IF('12'!$D15>0,1,0) -> 0 | O14: 5 | P14: 11
A15: Josef Langen | B15: =IF('Wettkampf 1'!D16>0,1,0) -> 1 | C15: =IF('2'!$D16>0,1,0) -> 1 | D15: =IF('3'!$D16>0,1,0) -> 1 | E15: =IF('4'!$D16>0,1,0) -> 1 | F15: =IF('5'!$D16>0,1,0) -> 1 | G15: =IF('6'!$D16>0,1,0) -> 1 | H15: 6 | I15: =IF('7'!$D16>0,1,0) -> 1 | J15: =IF('8'!$D16>0,1,0) -> 1 | K15: =IF('9'!$D16>0,1,0) -> 1 | L15: =IF('10'!$D16>0,1,0) -> 1 | M15: =IF('11'!$D16>0,1,0) -> 1 | N15: =IF('12'!$D16>0,1,0) -> 0 | O15: 5 | P15: 11
A16: Johannes Hülsmann | B16: =IF('Wettkampf 1'!D17>0,1,0) -> 1 | C16: =IF('2'!$D17>0,1,0) -> 1 | D16: =IF('3'!$D17>0,1,0) -> 1 | E16: =IF('4'!$D17>0,1,0) -> 1 | F16: =IF('5'!$D17>0,1,0) -> 1 | G16: =IF('6'!$D17>0,1,0) -> 1 | H16: 6 | I16: =IF('7'!$D17>0,1,0) -> 1 | J16: =IF('8'!$D17>0,1,0) -> 1 | K16: =IF('9'!$D17>0,1,0) -> 1 | L16: =IF('10'!$D17>0,1,0) -> 1 | M16: =IF('11'!$D17>0,1,0) -> 1 | N16: =IF('12'!$D17>0,1,0) -> 0 | O16: 5 | P16: 11
A17: Heiner Kröger | B17: =IF('Wettkampf 1'!D18>0,1,0) -> 1 | C17: =IF('2'!$D18>0,1,0) -> 1 | D17: =IF('3'!$D18>0,1,0) -> 1 | E17: =IF('4'!$D18>0,1,0) -> 1 | F17: =IF('5'!$D18>0,1,0) -> 1 | G17: =IF('6'!$D18>0,1,0) -> 1 | H17: 6 | I17: =IF('7'!$D18>0,1,0) -> 1 | J17: =IF('8'!$D18>0,1,0) -> 1 | K17: =IF('9'!$D18>0,1,0) -> 1 | L17: =IF('10'!$D18>0,1,0) -> 1 | M17: =IF('11'!$D18>0,1,0) -> 1 | N17: =IF('12'!$D18>0,1,0) -> 0 | O17: 5 | P17: 11
A18: Bernd Nortmann | B18: =IF('Wettkampf 1'!D19>0,1,0) -> 1 | C18: =IF('2'!$D19>0,1,0) -> 1 | D18: =IF('3'!$D19>0,1,0) -> 1 | E18: =IF('4'!$D19>0,1,0) -> 1 | F18: =IF('5'!$D19>0,1,0) -> 1 | G18: =IF('6'!$D19>0,1,0) -> 1 | H18: 6 | I18: =IF('7'!$D19>0,1,0) -> 1 | J18: =IF('8'!$D19>0,1,0) -> 1 | K18: =IF('9'!$D19>0,1,0) -> 1 | L18: =IF('10'!$D19>0,1,0) -> 1 | M18: =IF('11'!$D19>0,1,0) -> 1 | N18: =IF('12'!$D19>0,1,0) -> 0 | O18: 5 | P18: 11
A19: Oliver Reinelt | B19: =IF('Wettkampf 1'!D20>0,1,0) -> 1 | C19: =IF('2'!$D20>0,1,0) -> 1 | D19: =IF('3'!$D20>0,1,0) -> 1 | E19: =IF('4'!$D20>0,1,0) -> 1 | F19: =IF('5'!$D20>0,1,0) -> 1 | G19: =IF('6'!$D20>0,1,0) -> 1 | H19: 6 | I19: =IF('7'!$D20>0,1,0) -> 1 | J19: =IF('8'!$D20>0,1,0) -> 1 | K19: =IF('9'!$D20>0,1,0) -> 1 | L19: =IF('10'!$D20>0,1,0) -> 1 | M19: =IF('11'!$D20>0,1,0) -> 1 | N19: =IF('12'!$D20>0,1,0) -> 0 | O19: 5 | P19: 11
A20: Simon Schukenbrock | B20: =IF('Wettkampf 1'!D21>0,1,0) -> 1 | C20: =IF('2'!$D21>0,1,0) -> 1 | D20: =IF('3'!$D21>0,1,0) -> 1 | E20: =IF('4'!$D21>0,1,0) -> 1 | F20: =IF('5'!$D21>0,1,0) -> 1 | G20: =IF('6'!$D21>0,1,0) -> 1 | H20: 6 | I20: =IF('7'!$D21>0,1,0) -> 1 | J20: =IF('8'!$D21>0,1,0) -> 1 | K20: =IF('9'!$D21>0,1,0) -> 1 | L20: =IF('10'!$D21>0,1,0) -> 1 | M20: =IF('11'!$D21>0,1,0) -> 0 | N20: =IF('12'!$D21>0,1,0) -> 0 | O20: 4 | P20: 10
A21: Michael Boje | B21: =IF('Wettkampf 1'!D22>0,1,0) -> 0 | C21: =IF('2'!$D22>0,1,0) -> 1 | D21: =IF('3'!$D22>0,1,0) -> 0 | E21: =IF('4'!$D22>0,1,0) -> 0 | F21: =IF('5'!$D22>0,1,0) -> 0 | G21: =IF('6'!$D22>0,1,0) -> 0 | H21: 1 | I21: =IF('7'!$D22>0,1,0) -> 0 | J21: =IF('8'!$D22>0,1,0) -> 0 | K21: =IF('9'!$D22>0,1,0) -> 0 | L21: =IF('10'!$D22>0,1,0) -> 0 | M21: =IF('11'!$D22>0,1,0) -> 0 | N21: =IF('12'!$D22>0,1,0) -> 0 | O21: 0 | P21: 1
A22: Ludger Hermes | B22: =IF('Wettkampf 1'!D23>0,1,0) -> 1 | C22: =IF('2'!$D23>0,1,0) -> 1 | D22: =IF('3'!$D23>0,1,0) -> 1 | E22: =IF('4'!$D23>0,1,0) -> 1 | F22: =IF('5'!$D23>0,1,0) -> 1 | G22: =IF('6'!$D23>0,1,0) -> 1 | H22: 6 | I22: =IF('7'!$D23>0,1,0) -> 1 | J22: =IF('8'!$D23>0,1,0) -> 1 | K22: =IF('9'!$D23>0,1,0) -> 1 | L22: =IF('10'!$D23>0,1,0) -> 1 | M22: =IF('11'!$D23>0,1,0) -> 1 | N22: =IF('12'!$D23>0,1,0) -> 0 | O22: 5 | P22: 11
A23: Rudi Fromme | B23: =IF('Wettkampf 1'!D24>0,1,0) -> 1 | C23: =IF('2'!$D24>0,1,0) -> 1 | D23: =IF('3'!$D24>0,1,0) -> 1 | E23: =IF('4'!$D24>0,1,0) -> 1 | F23: =IF('5'!$D24>0,1,0) -> 1 | G23: =IF('6'!$D24>0,1,0) -> 1 | H23: 6 | I23: =IF('7'!$D24>0,1,0) -> 1 | J23: =IF('8'!$D24>0,1,0) -> 1 | K23: =IF('9'!$D24>0,1,0) -> 1 | L23: =IF('10'!$D24>0,1,0) -> 1 | M23: =IF('11'!$D24>0,1,0) -> 1 | N23: =IF('12'!$D24>0,1,0) -> 0 | O23: 5 | P23: 11
A24: Alois Schmitz | B24: =IF('Wettkampf 1'!D25>0,1,0) -> 1 | C24: =IF('2'!$D25>0,1,0) -> 1 | D24: =IF('3'!$D25>0,1,0) -> 1 | E24: =IF('4'!$D25>0,1,0) -> 1 | F24: =IF('5'!$D25>0,1,0) -> 1 | G24: =IF('6'!$D25>0,1,0) -> 1 | H24: 6 | I24: =IF('7'!$D25>0,1,0) -> 1 | J24: =IF('8'!$D25>0,1,0) -> 1 | K24: =IF('9'!$D25>0,1,0) -> 1 | L24: =IF('10'!$D25>0,1,0) -> 1 | M24: =IF('11'!$D25>0,1,0) -> 1 | N24: =IF('12'!$D25>0,1,0) -> 0 | O24: 5 | P24: 11
A25: Ludwig Langen | B25: =IF('Wettkampf 1'!D26>0,1,0) -> 1 | C25: =IF('2'!$D26>0,1,0) -> 1 | D25: =IF('3'!$D26>0,1,0) -> 1 | E25: =IF('4'!$D26>0,1,0) -> 1 | F25: =IF('5'!$D26>0,1,0) -> 1 | G25: =IF('6'!$D26>0,1,0) -> 1 | H25: 6 | I25: =IF('7'!$D26>0,1,0) -> 1 | J25: =IF('8'!$D26>0,1,0) -> 1 | K25: =IF('9'!$D26>0,1,0) -> 1 | L25: =IF('10'!$D26>0,1,0) -> 1 | M25: =IF('11'!$D26>0,1,0) -> 1 | N25: =IF('12'!$D26>0,1,0) -> 0 | O25: 5 | P25: 11
A26: Rainer Wielenberg | B26: =IF('Wettkampf 1'!D27>0,1,0) -> 1 | C26: =IF('2'!$D27>0,1,0) -> 1 | D26: =IF('3'!$D27>0,1,0) -> 1 | E26: =IF('4'!$D27>0,1,0) -> 1 | F26: =IF('5'!$D27>0,1,0) -> 1 | G26: =IF('6'!$D27>0,1,0) -> 1 | H26: 6 | I26: =IF('7'!$D27>0,1,0) -> 0 | J26: =IF('8'!$D27>0,1,0) -> 1 | K26: =IF('9'!$D27>0,1,0) -> 1 | L26: =IF('10'!$D27>0,1,0) -> 1 | M26: =IF('11'!$D27>0,1,0) -> 0 | N26: =IF('12'!$D27>0,1,0) -> 0 | O26: 3 | P26: 9
A27: Meik Sieger | B27: =IF('Wettkampf 1'!D28>0,1,0) -> 1 | C27: =IF('2'!$D28>0,1,0) -> 1 | D27: =IF('3'!$D28>0,1,0) -> 1 | E27: =IF('4'!$D28>0,1,0) -> 1 | F27: =IF('5'!$D28>0,1,0) -> 1 | G27: =IF('6'!$D28>0,1,0) -> 1 | H27: 6 | I27: =IF('7'!$D28>0,1,0) -> 1 | J27: =IF('8'!$D28>0,1,0) -> 1 | K27: =IF('9'!$D28>0,1,0) -> 1 | L27: =IF('10'!$D28>0,1,0) -> 1 | M27: =IF('11'!$D28>0,1,0) -> 1 | N27: =IF('12'!$D28>0,1,0) -> 0 | O27: 5 | P27: 11
A28: Dennis Lindemann | B28: =IF('Wettkampf 1'!D29>0,1,0) -> 1 | C28: =IF('2'!$D29>0,1,0) -> 1 | D28: =IF('3'!$D29>0,1,0) -> 1 | E28: =IF('4'!$D29>0,1,0) -> 1 | F28: =IF('5'!$D29>0,1,0) -> 1 | G28: =IF('6'!$D29>0,1,0) -> 1 | H28: 6 | I28: =IF('7'!$D29>0,1,0) -> 1 | J28: =IF('8'!$D29>0,1,0) -> 1 | K28: =IF('9'!$D29>0,1,0) -> 1 | L28: =IF('10'!$D29>0,1,0) -> 1 | M28: =IF('11'!$D29>0,1,0) -> 1 | N28: =IF('12'!$D29>0,1,0) -> 0 | O28: 5 | P28: 11
A29: Andreas Lindemann | B29: =IF('Wettkampf 1'!D30>0,1,0) -> 1 | C29: =IF('2'!$D30>0,1,0) -> 1 | D29: =IF('3'!$D30>0,1,0) -> 1 | E29: =IF('4'!$D30>0,1,0) -> 1 | F29: =IF('5'!$D30>0,1,0) -> 1 | G29: =IF('6'!$D30>0,1,0) -> 1 | H29: 6 | I29: =IF('7'!$D30>0,1,0) -> 1 | J29: =IF('8'!$D30>0,1,0) -> 1 | K29: =IF('9'!$D30>0,1,0) -> 1 | L29: =IF('10'!$D30>0,1,0) -> 1 | M29: =IF('11'!$D30>0,1,0) -> 1 | N29: =IF('12'!$D30>0,1,0) -> 0 | O29: 5 | P29: 11
A30: Johannes Gebken | B30: =IF('Wettkampf 1'!D31>0,1,0) -> 1 | C30: =IF('2'!$D31>0,1,0) -> 1 | D30: =IF('3'!$D31>0,1,0) -> 1 | E30: =IF('4'!$D31>0,1,0) -> 0 | F30: =IF('5'!$D31>0,1,0) -> 0 | G30: =IF('6'!$D31>0,1,0) -> 0 | H30: 3 | I30: =IF('7'!$D31>0,1,0) -> 0 | J30: =IF('8'!$D31>0,1,0) -> 0 | K30: =IF('9'!$D31>0,1,0) -> 0 | L30: =IF('10'!$D31>0,1,0) -> 0 | M30: =IF('11'!$D31>0,1,0) -> 0 | N30: =IF('12'!$D31>0,1,0) -> 0 | O30: 0 | P30: 3
A31: Jan-Niklas Lindemann | B31: =IF('Wettkampf 1'!D32>0,1,0) -> 0 | C31: =IF('2'!$D32>0,1,0) -> 0 | D31: =IF('3'!$D32>0,1,0) -> 0 | E31: =IF('4'!$D32>0,1,0) -> 0 | F31: =IF('5'!$D32>0,1,0) -> 0 | G31: =IF('6'!$D32>0,1,0) -> 0 | H31: 0 | I31: =IF('7'!$D32>0,1,0) -> 0 | J31: =IF('8'!$D32>0,1,0) -> 0 | K31: =IF('9'!$D32>0,1,0) -> 0 | L31: =IF('10'!$D32>0,1,0) -> 0 | M31: =IF('11'!$D32>0,1,0) -> 0 | N31: =IF('12'!$D32>0,1,0) -> 0 | O31: 0 | P31: 0
A32: Stefan Burlager | B32: =IF('Wettkampf 1'!D33>0,1,0) -> 1 | C32: =IF('2'!$D33>0,1,0) -> 1 | D32: =IF('3'!$D33>0,1,0) -> 1 | E32: =IF('4'!$D33>0,1,0) -> 0 | F32: =IF('5'!$D33>0,1,0) -> 1 | G32: =IF('6'!$D33>0,1,0) -> 1 | H32: 5 | I32: =IF('7'!$D33>0,1,0) -> 1 | J32: =IF('8'!$D33>0,1,0) -> 1 | K32: =IF('9'!$D33>0,1,0) -> 1 | L32: =IF('10'!$D33>0,1,0) -> 1 | M32: =IF('11'!$D33>0,1,0) -> 1 | N32: =IF('12'!$D33>0,1,0) -> 0 | O32: 5 | P32: 10
A33: Franz Ostermann | B33: =IF('Wettkampf 1'!D34>0,1,0) -> 1 | C33: =IF('2'!$D34>0,1,0) -> 1 | D33: =IF('3'!$D34>0,1,0) -> 1 | E33: =IF('4'!$D34>0,1,0) -> 1 | F33: =IF('5'!$D34>0,1,0) -> 1 | G33: =IF('6'!$D34>0,1,0) -> 1 | H33: 6 | I33: =IF('7'!$D34>0,1,0) -> 1 | J33: =IF('8'!$D34>0,1,0) -> 1 | K33: =IF('9'!$D34>0,1,0) -> 1 | L33: =IF('10'!$D34>0,1,0) -> 1 | M33: =IF('11'!$D34>0,1,0) -> 1 | N33: =IF('12'!$D34>0,1,0) -> 0 | O33: 5 | P33: 11
A34: Martin Hackmann | B34: =IF('Wettkampf 1'!D35>0,1,0) -> 1 | C34: =IF('2'!$D35>0,1,0) -> 1 | D34: =IF('3'!$D35>0,1,0) -> 1 | E34: =IF('4'!$D35>0,1,0) -> 1 | F34: =IF('5'!$D35>0,1,0) -> 1 | G34: =IF('6'!$D35>0,1,0) -> 1 | H34: 6 | I34: =IF('7'!$D35>0,1,0) -> 1 | J34: =IF('8'!$D35>0,1,0) -> 1 | K34: =IF('9'!$D35>0,1,0) -> 1 | L34: =IF('10'!$D35>0,1,0) -> 1 | M34: =IF('11'!$D35>0,1,0) -> 1 | N34: =IF('12'!$D35>0,1,0) -> 0 | O34: 5 | P34: 11
A35: Günther Baalmann | B35: =IF('Wettkampf 1'!D36>0,1,0) -> 1 | C35: =IF('2'!$D36>0,1,0) -> 1 | D35: =IF('3'!$D36>0,1,0) -> 1 | E35: =IF('4'!$D36>0,1,0) -> 1 | F35: =IF('5'!$D36>0,1,0) -> 1 | G35: =IF('6'!$D36>0,1,0) -> 1 | H35: 6 | I35: =IF('7'!$D36>0,1,0) -> 1 | J35: =IF('8'!$D36>0,1,0) -> 1 | K35: =IF('9'!$D36>0,1,0) -> 1 | L35: =IF('10'!$D36>0,1,0) -> 1 | M35: =IF('11'!$D36>0,1,0) -> 1 | N35: =IF('12'!$D36>0,1,0) -> 0 | O35: 5 | P35: 11
A36: Martin Poker | B36: =IF('Wettkampf 1'!D37>0,1,0) -> 1 | C36: =IF('2'!$D37>0,1,0) -> 1 | D36: =IF('3'!$D37>0,1,0) -> 1 | E36: =IF('4'!$D37>0,1,0) -> 1 | F36: =IF('5'!$D37>0,1,0) -> 1 | G36: =IF('6'!$D37>0,1,0) -> 1 | H36: 6 | I36: =IF('7'!$D37>0,1,0) -> 1 | J36: =IF('8'!$D37>0,1,0) -> 1 | K36: =IF('9'!$D37>0,1,0) -> 1 | L36: =IF('10'!$D37>0,1,0) -> 1 | M36: =IF('11'!$D37>0,1,0) -> 1 | N36: =IF('12'!$D37>0,1,0) -> 0 | O36: 5 | P36: 11
A37: Schütze 29 | B37: =IF('Wettkampf 1'!D38>0,1,0) -> 0 | C37: =IF('2'!$D38>0,1,0) -> 0 | D37: =IF('3'!$D38>0,1,0) -> 0 | E37: =IF('4'!$D38>0,1,0) -> 0 | F37: =IF('5'!$D38>0,1,0) -> 0 | G37: =IF('6'!$D38>0,1,0) -> 0 | H37: 0 | I37: =IF('7'!$D38>0,1,0) -> 0 | J37: =IF('8'!$D38>0,1,0) -> 0 | K37: =IF('9'!$D38>0,1,0) -> 0 | L37: =IF('10'!$D38>0,1,0) -> 0 | M37: =IF('11'!$D38>0,1,0) -> 0 | N37: =IF('12'!$D38>0,1,0) -> 0 | O37: 0 | P37: 0
A38: Schütze 30 | B38: =IF('Wettkampf 1'!D39>0,1,0) -> 0 | C38: =IF('2'!$D39>0,1,0) -> 0 | D38: =IF('3'!$D39>0,1,0) -> 0 | E38: =IF('4'!$D39>0,1,0) -> 0 | F38: =IF('5'!$D39>0,1,0) -> 0 | G38: =IF('6'!$D39>0,1,0) -> 0 | H38: 0 | I38: =IF('7'!$D39>0,1,0) -> 0 | J38: =IF('8'!$D39>0,1,0) -> 0 | K38: =IF('9'!$D39>0,1,0) -> 0 | L38: =IF('10'!$D39>0,1,0) -> 0 | M38: =IF('11'!$D39>0,1,0) -> 0 | N38: =IF('12'!$D39>0,1,0) -> 0 | O38: 0 | P38: 0
A39: Schütze 31 | B39: =IF('Wettkampf 1'!D40>0,1,0) -> 0 | C39: =IF('2'!$D40>0,1,0) -> 0 | D39: =IF('3'!$D40>0,1,0) -> 0 | E39: =IF('4'!$D40>0,1,0) -> 0 | F39: =IF('5'!$D40>0,1,0) -> 0 | G39: =IF('6'!$D40>0,1,0) -> 0 | H39: =B39+C39+D39+E39+F39+G39 -> 0 | I39: =IF('7'!$D40>0,1,0) -> 0 | J39: =IF('8'!$D40>0,1,0) -> 0 | K39: =IF('9'!$D40>0,1,0) -> 0 | L39: =IF('10'!$D40>0,1,0) -> 0 | M39: =IF('11'!$D40>0,1,0) -> 0 | N39: =IF('12'!$D40>0,1,0) -> 0 | O39: =I39+J39+K39+L39+M39+N39 -> 0 | P39: =O39+H39 -> 0
A40: Schütze 32 | B40: =IF('Wettkampf 1'!D41>0,1,0) -> 0 | C40: =IF('2'!$D41>0,1,0) -> 0 | D40: =IF('3'!$D41>0,1,0) -> 0 | E40: =IF('4'!$D41>0,1,0) -> 0 | F40: =IF('5'!$D41>0,1,0) -> 0 | G40: =IF('6'!$D41>0,1,0) -> 0 | H40: 0 | I40: =IF('7'!$D41>0,1,0) -> 0 | J40: =IF('8'!$D41>0,1,0) -> 0 | K40: =IF('9'!$D41>0,1,0) -> 0 | L40: =IF('10'!$D41>0,1,0) -> 0 | M40: =IF('11'!$D41>0,1,0) -> 0 | N40: =IF('12'!$D41>0,1,0) -> 0 | O40: 0 | P40: 0
A41: Schütze 33 | B41: =IF('Wettkampf 1'!D42>0,1,0) -> 0 | C41: =IF('2'!$D42>0,1,0) -> 0 | D41: =IF('3'!$D42>0,1,0) -> 0 | E41: =IF('4'!$D42>0,1,0) -> 0 | F41: =IF('5'!$D42>0,1,0) -> 0 | G41: =IF('6'!$D42>0,1,0) -> 0 | H41: 0 | I41: =IF('7'!$D42>0,1,0) -> 0 | J41: =IF('8'!$D42>0,1,0) -> 0 | K41: =IF('9'!$D42>0,1,0) -> 0 | L41: =IF('10'!$D42>0,1,0) -> 0 | M41: =IF('11'!$D42>0,1,0) -> 0 | N41: =IF('12'!$D42>0,1,0) -> 0 | O41: 0 | P41: 0
A42: Schütze 34 | B42: =IF('Wettkampf 1'!D43>0,1,0) -> 0 | C42: =IF('2'!$D43>0,1,0) -> 0 | D42: =IF('3'!$D43>0,1,0) -> 0 | E42: =IF('4'!$D43>0,1,0) -> 0 | F42: =IF('5'!$D43>0,1,0) -> 0 | G42: =IF('6'!$D43>0,1,0) -> 0 | H42: 0 | I42: =IF('7'!$D43>0,1,0) -> 0 | J42: =IF('8'!$D43>0,1,0) -> 0 | K42: =IF('9'!$D43>0,1,0) -> 0 | L42: =IF('10'!$D43>0,1,0) -> 0 | M42: =IF('11'!$D43>0,1,0) -> 0 | N42: =IF('12'!$D43>0,1,0) -> 0 | O42: 0 | P42: 0
A43: Schütze 35 | B43: =IF('Wettkampf 1'!D44>0,1,0) -> 0 | C43: =IF('2'!$D44>0,1,0) -> 0 | D43: =IF('3'!$D44>0,1,0) -> 0 | E43: =IF('4'!$D44>0,1,0) -> 0 | F43: =IF('5'!$D44>0,1,0) -> 0 | G43: =IF('6'!$D44>0,1,0) -> 0 | H43: 0 | I43: =IF('7'!$D44>0,1,0) -> 0 | J43: =IF('8'!$D44>0,1,0) -> 0 | K43: =IF('9'!$D44>0,1,0) -> 0 | L43: =IF('10'!$D44>0,1,0) -> 0 | M43: =IF('11'!$D44>0,1,0) -> 0 | N43: =IF('12'!$D44>0,1,0) -> 0 | O43: 0 | P43: 0
A44: Schütze 36 | B44: =IF('Wettkampf 1'!D45>0,1,0) -> 0 | C44: =IF('2'!$D45>0,1,0) -> 0 | D44: =IF('3'!$D45>0,1,0) -> 0 | E44: =IF('4'!$D45>0,1,0) -> 0 | F44: =IF('5'!$D45>0,1,0) -> 0 | G44: =IF('6'!$D45>0,1,0) -> 0 | H44: 0 | I44: =IF('7'!$D45>0,1,0) -> 0 | J44: =IF('8'!$D45>0,1,0) -> 0 | K44: =IF('9'!$D45>0,1,0) -> 0 | L44: =IF('10'!$D45>0,1,0) -> 0 | M44: =IF('11'!$D45>0,1,0) -> 0 | N44: =IF('12'!$D45>0,1,0) -> 0 | O44: 0 | P44: 0
B45: =SUM(B9:B44) -> 26.00 | C45: =SUM(C9:C44) -> 27.00 | D45: 26.00 | E45: 24.00 | F45: 25.00 | G45: 25.00 | H45: =SUM(H9:H38) -> 153.00 | I45: =SUM(I9:I44) -> 23.00 | J45: =SUM(J9:J44) -> 25.00 | K45: 25.00 | L45: 25.00 | M45: 23.00 | N45: 0.00 | O45: =SUM(O9:O44) -> 121.00 | P45: =SUM(P9:P44) -> 274.00

Sheet Übersicht Gruppen (hidden)
B2: Eisten II | C2: =VLOOKUP($B$2:$B$7,'Wettkampf 1'!$B$2:$D$7,3,FALSE) -> 937.1 | D2: =VLOOKUP($B$2:$B$7,'2'!$B$2:$D$7,3,FALSE) -> 935.1 | E2: =VLOOKUP($B$2:$B$7,'3'!$B$2:$D$7,3,FALSE) -> 939.1 | F2: =VLOOKUP($B$2:$B$7,'4'!$B$2:$D$7,3,FALSE) -> 937.5 | G2: =VLOOKUP($B$2:$B$7,'5'!$B$2:$D$7,3,FALSE) -> 936.7 | H2: =VLOOKUP($B$2:$B$7,'6'!$B$2:$D$7,3,FALSE) -> 935.4 | I2: =J2/Formelhilfe!H5 -> 936.8 | J2: =SUM(C2:H2) -> 5,620.9 | K2: =VLOOKUP($B$2:$B$7,'7'!$B$2:$D$7,3,FALSE) -> 935.4 | L2: =VLOOKUP($B$2:$B$7,'8'!$B$2:$D$7,3,FALSE) -> 932.4 | M2: =VLOOKUP($B$2:$B$7,'9'!$B$2:$D$7,3,FALSE) -> 937.3 | N2: =VLOOKUP($B$2:$B$7,'10'!$B$2:$D$7,3,FALSE) -> 936.1 | O2: =VLOOKUP($B$2:$B$7,'11'!$B$2:$D$7,3,FALSE) -> 944.5 | P2: =VLOOKUP($B$2:$B$7,'12'!$B$2:$D$7,3,FALSE) -> 0.0 | Q2: =R2/Formelhilfe!O5 -> 937.1 | R2: =SUM(K2:P2) -> 4,685.7 | S2: =T2/Formelhilfe!P5 -> 937.0 | T2: =SUM(C2:H2,K2:P2) -> 10,306.6
B3: Spahnharrenstätte III | C3: =VLOOKUP($B$2:$B$7,'Wettkampf 1'!$B$2:$D$7,3,FALSE) -> 927.3 | D3: =VLOOKUP($B$2:$B$7,'2'!$B$2:$D$7,3,FALSE) -> 934.8 | E3: =VLOOKUP($B$2:$B$7,'3'!$B$2:$D$7,3,FALSE) -> 928.5 | F3: =VLOOKUP($B$2:$B$7,'4'!$B$2:$D$7,3,FALSE) -> 935.6 | G3: =VLOOKUP($B$2:$B$7,'5'!$B$2:$D$7,3,FALSE) -> 937.5 | H3: =VLOOKUP($B$2:$B$7,'6'!$B$2:$D$7,3,FALSE) -> 927.2 | I3: =J3/Formelhilfe!H3 -> 931.8 | J3: =SUM(C3:H3) -> 5,590.9 | K3: =VLOOKUP($B$2:$B$7,'7'!$B$2:$D$7,3,FALSE) -> 921.1 | L3: =VLOOKUP($B$2:$B$7,'8'!$B$2:$D$7,3,FALSE) -> 928.0 | M3: =VLOOKUP($B$2:$B$7,'9'!$B$2:$D$7,3,FALSE) -> 935.4 | N3: =VLOOKUP($B$2:$B$7,'10'!$B$2:$D$7,3,FALSE) -> 934.9 | O3: =VLOOKUP($B$2:$B$7,'11'!$B$2:$D$7,3,FALSE) -> 938.9 | P3: =VLOOKUP($B$2:$B$7,'12'!$B$2:$D$7,3,FALSE) -> 0.0 | Q3: =R3/Formelhilfe!O3 -> 931.7 | R3: =SUM(K3:P3) -> 4,658.3 | S3: =T3/Formelhilfe!P3 -> 931.7 | T3: =SUM(C3:H3,K3:P3) -> 10,249.2
B4: Spahnharrenstätte II | C4: =VLOOKUP($B$2:$B$7,'Wettkampf 1'!$B$2:$D$7,3,FALSE) -> 925.1 | D4: =VLOOKUP($B$2:$B$7,'2'!$B$2:$D$7,3,FALSE) -> 929.2 | E4: =VLOOKUP($B$2:$B$7,'3'!$B$2:$D$7,3,FALSE) -> 921.6 | F4: =VLOOKUP($B$2:$B$7,'4'!$B$2:$D$7,3,FALSE) -> 929.7 | G4: =VLOOKUP($B$2:$B$7,'5'!$B$2:$D$7,3,FALSE) -> 930.9 | H4: =VLOOKUP($B$2:$B$7,'6'!$B$2:$D$7,3,FALSE) -> 934.5 | I4: =J4/Formelhilfe!H7 -> 928.5 | J4: =SUM(C4:H4) -> 5,571.0 | K4: =VLOOKUP($B$2:$B$7,'7'!$B$2:$D$7,3,FALSE) -> 931.9 | L4: =VLOOKUP($B$2:$B$7,'8'!$B$2:$D$7,3,FALSE) -> 928.5 | M4: =VLOOKUP($B$2:$B$7,'9'!$B$2:$D$7,3,FALSE) -> 929.7 | N4: =VLOOKUP($B$2:$B$7,'10'!$B$2:$D$7,3,FALSE) -> 929.7 | O4: =VLOOKUP($B$2:$B$7,'11'!$B$2:$D$7,3,FALSE) -> 928.0 | P4: =VLOOKUP($B$2:$B$7,'12'!$B$2:$D$7,3,FALSE) -> 0.0 | Q4: =R4/Formelhilfe!O7 -> 929.6 | R4: =SUM(K4:P4) -> 4,647.8 | S4: =T4/Formelhilfe!P7 -> 929.0 | T4: =SUM(C4:H4,K4:P4) -> 10,218.8
B5: Neubörger II | C5: =VLOOKUP($B$2:$B$7,'Wettkampf 1'!$B$2:$D$7,3,FALSE) -> 928.7 | D5: =VLOOKUP($B$2:$B$7,'2'!$B$2:$D$7,3,FALSE) -> 918.8 | E5: =VLOOKUP($B$2:$B$7,'3'!$B$2:$D$7,3,FALSE) -> 927.9 | F5: =VLOOKUP($B$2:$B$7,'4'!$B$2:$D$7,3,FALSE) -> 928.0 | G5: =VLOOKUP($B$2:$B$7,'5'!$B$2:$D$7,3,FALSE) -> 935.3 | H5: =VLOOKUP($B$2:$B$7,'6'!$B$2:$D$7,3,FALSE) -> 918.9 | I5: =J5/Formelhilfe!H6 -> 926.3 | J5: =SUM(C5:H5) -> 5,557.6 | K5: =VLOOKUP($B$2:$B$7,'7'!$B$2:$D$7,3,FALSE) -> 921.3 | L5: =VLOOKUP($B$2:$B$7,'8'!$B$2:$D$7,3,FALSE) -> 921.3 | M5: =VLOOKUP($B$2:$B$7,'9'!$B$2:$D$7,3,FALSE) -> 924.4 | N5: =VLOOKUP($B$2:$B$7,'10'!$B$2:$D$7,3,FALSE) -> 920.5 | O5: =VLOOKUP($B$2:$B$7,'11'!$B$2:$D$7,3,FALSE) -> 927.6 | P5: =VLOOKUP($B$2:$B$7,'12'!$B$2:$D$7,3,FALSE) -> 0.0 | Q5: =R5/Formelhilfe!O6 -> 923.0 | R5: =SUM(K5:P5) -> 4,615.1 | S5: =T5/Formelhilfe!P6 -> 924.8 | T5: =SUM(C5:H5,K5:P5) -> 10,172.7
B6: Esterwegen II | C6: =VLOOKUP($B$2:$B$7,'Wettkampf 1'!$B$2:$D$7,3,FALSE) -> 916.1 | D6: =VLOOKUP($B$2:$B$7,'2'!$B$2:$D$7,3,FALSE) -> 919.0 | E6: =VLOOKUP($B$2:$B$7,'3'!$B$2:$D$7,3,FALSE) -> 931.5 | F6: =VLOOKUP($B$2:$B$7,'4'!$B$2:$D$7,3,FALSE) -> 921.7 | G6: =VLOOKUP($B$2:$B$7,'5'!$B$2:$D$7,3,FALSE) -> 925.4 | H6: =VLOOKUP($B$2:$B$7,'6'!$B$2:$D$7,3,FALSE) -> 925.8 | I6: =J6/Formelhilfe!H2 -> 923.3 | J6: =SUM(C6:H6) -> 5,539.5 | K6: =VLOOKUP($B$2:$B$7,'7'!$B$2:$D$7,3,FALSE) -> 926.1 | L6: =VLOOKUP($B$2:$B$7,'8'!$B$2:$D$7,3,FALSE) -> 926.9 | M6: =VLOOKUP($B$2:$B$7,'9'!$B$2:$D$7,3,FALSE) -> 926.7 | N6: =VLOOKUP($B$2:$B$7,'10'!$B$2:$D$7,3,FALSE) -> 920.3 | O6: =VLOOKUP($B$2:$B$7,'11'!$B$2:$D$7,3,FALSE) -> 923.6 | P6: =VLOOKUP($B$2:$B$7,'12'!$B$2:$D$7,3,FALSE) -> 0.0 | Q6: =R6/Formelhilfe!O2 -> 924.7 | R6: =SUM(K6:P6) -> 4,623.6 | S6: =T6/Formelhilfe!P2 -> 923.9 | T6: =SUM(C6:H6,K6:P6) -> 10,163.1
B7: Lahn V | C7: =VLOOKUP($B$2:$B$7,'Wettkampf 1'!$B$2:$D$7,3,FALSE) -> 911.3 | D7: =VLOOKUP($B$2:$B$7,'2'!$B$2:$D$7,3,FALSE) -> 910.4 | E7: =VLOOKUP($B$2:$B$7,'3'!$B$2:$D$7,3,FALSE) -> 903.7 | F7: =VLOOKUP($B$2:$B$7,'4'!$B$2:$D$7,3,FALSE) -> 915.3 | G7: =VLOOKUP($B$2:$B$7,'5'!$B$2:$D$7,3,FALSE) -> 925.3 | H7: =VLOOKUP($B$2:$B$7,'6'!$B$2:$D$7,3,FALSE) -> 910.4 | I7: =J7/Formelhilfe!H4 -> 912.7 | J7: =SUM(C7:H7) -> 5,476.4 | K7: =VLOOKUP($B$2:$B$7,'7'!$B$2:$D$7,3,FALSE) -> 915.7 | L7: =VLOOKUP($B$2:$B$7,'8'!$B$2:$D$7,3,FALSE) -> 915.2 | M7: =VLOOKUP($B$2:$B$7,'9'!$B$2:$D$7,3,FALSE) -> 920.4 | N7: =VLOOKUP($B$2:$B$7,'10'!$B$2:$D$7,3,FALSE) -> 911.9 | O7: =VLOOKUP($B$2:$B$7,'11'!$B$2:$D$7,3,FALSE) -> 608.1 | P7: =VLOOKUP($B$2:$B$7,'12'!$B$2:$D$7,3,FALSE) -> 0.0 | Q7: =R7/Formelhilfe!O4 -> 854.3 | R7: =SUM(K7:P7) -> 4,271.3 | S7: =T7/Formelhilfe!P4 -> 886.2 | T7: =SUM(C7:H7,K7:P7) -> 9,747.7
